Workbook

Sheet HMAT Front
F4: Highways Maintenance Appraisal Tool

Sheet Help
F2: Help
E6: The Highways Maintenance Appraisal Tool is an economic appraisal tool which has built additional functionality around the Highways Maintenance Efficiency Programme (HMEP) Lifecycle Planning Toolkit. The existing elements of the HMEP Toolkit remain unchanged and additional tabs have been added for enhanced functionality.
E8: General Information
E9: Macros must be enabled for the Highways Maintenance Appraisal Tool to operate correctly.
F10: Forward Arrow: Move to the next step of the toolkit.
F11: Backward Arrow: Move to the previous step of the toolkit.
F12: Purple Button: Used to perform a specific calculation or function.
F13: Red Button: Used to perform an advanced calculation or function (recommended for advanced users only).
F14: Help: Used to provide the user with page specific help and guidance.
F15: Overview: allows the user to navigate to the relevant overview page (either Highways Maintenance Appraisal Tool of HMEP Tool).
E17: Tabs
E19: The colour coding of the tabs in the Highway Maintenance Appraisal Tool builds on that used in the HMEP tool and is as follows:
F21: Purple Tabs: Modules requiring user inputs into Highways Maintenance Appraisal Tool.
F22: Blue Tabs: HMEP input sheets .
F23: Yellow Tabs: HMEP output sheets.
F24: Orange Tabs: Output of Highways Maintenance Appraisal Tool modules.
F25: Red Tabs: Contain default data that can be overwritten (recommended for advanced users only).
F26: White Tabs: HMEP homesheet and HMEP model structure.
E28: Cells
F30: Cream Cells: Require user inputs.
F31: Lilac Cells: Inputs that are currently set as default values.
F32: Red Cells: Optional inputs.
F33: White Cells: Output cells containing read-only values.
F34: Grey Cells: Header text.
E36: Lookup Data
G38: Use the button to the left to unhide the lookup data sheets
G40: Use the button to the left to hide the lookup data sheets
E42: Version Releases
E44: Version | F44: Release Date | G44: Details
E45: 1 | F45: 2014-07-09 | G45: First release of the Highways Maintenance Appraisal Tool
E46: 1.01 | F46: 2014-08-11 | G46: Amendments based on client discussions
E47: 1.02 | F47: 2014-08-18 | G47: Amendments based on client discussions
E48: 1.03 | F48: 2014-08-27 | G48: Amended single run process and status messages
E49: 1.04 | F49: 2015-11-18 | G49: Functionality to unhide default data lookups

Sheet Overview
J2: Overview

Sheet Run Analysis
G2: Run Analysis
C6: This page allows a user to run all calculations in the Highways Maintenance Appraisal Tool as either individual steps or as one process.
C7: Whichever option is required, the same initial steps are required up to and including step 4
C15: Step 1 | D15: Calculate the budget splits based on the activity allocation, road type and treatment proportions from the total maintenance budget specified on the 'Activity Budgets' tab.
C19: Step 2 | D19: If undertaking a budget analysis, transfer the road type and treatment type budgets from the 'Activity Budgets' tab (calculated in step 1) into the HMEP budget tab '5 - Budgets'
C21: Step 3 | D21: If undertaking a target condition analysis, make sure the required performance targets have been specified on the HMEP performance target tab '6 - Performance Targets'
C23: Step 4 | D23: Make sure the conidition analysis scenario has been setup and specified and that the correct budgets and/or performance targets are used for each year of the analysis for each road type. This is done on the HMEP tab '7 - Scenario'
D27: Run all process as one | K27: Run processes individually
C29: Step 5 | D29: Run the HMAT tool | J29: Step 5 | K29: Run the HMEP condition projection
J33: Step 6 | K33: Run the traffic calculations
J37: Step 7 | K37: Run the treatment impacts module
J41: Step 8 | K41: Calculate IRI distribution from HMEP projections
J45: Step 9 | K45: Calculate Vehicle Operating Costs
J49: Step 10 | K49: Calculate Accident Forecasts
J53: Step 11 | K53: Calculate Job Impacts

Sheet Standard Inputs
P1: M-way Urban
F2: Standard Inputs | P2: M-way Rural
P3: A-Road Urban Dual
P4: A-Road Rural Dual
P5: A-Road Urban Single
P6: A-Road Rural Single
D7: Analysis Period | I7: Analysis Name: | J7: Anal5 Sc1 30yrs | P7: B-Road Urban
P8: B-Road Rural
D9: Start Year | E9: 2014 | P9: C-Road Urban
P10: C-Road Rural
D11: Analysis Period | E11: 30 | F11: (years) | P11: U-Road Urban
P12: U-Road Rural
D13: Road Types | I13: Condition Bands | M13: Treatment Types
D14: Number of Road Types | I14: Number of Condition Bands | M14: Number of Treatment Types
E15: 10 | J15: 5 | N15: 6
D17: No. | E17: Name | F17: Road Type Lookup | G17: Average Scheme Length (km) | I17: No. | J17: Name | K17: Code | M17: No. | N17: Name | O17: Code | P17: kg CO2e/m²
D18: =ROW()-17 -> 1 | E18: AR | F18: A-Road Urban Single | G18: 1.59 | I18: =ROW()-17 -> 1 | J18: Very Good | K18: VG | M18: =ROW()-17 -> 1 | N18: Surface Dressing | O18: SD | P18: 0.9
D19: 2 | E19: AU | F19: A-Road Urban Single | G19: 1.05 | I19: 2 | J19: Good | K19: G | M19: =ROW()-17 -> 2 | N19: Micro Asphalt | O19: MA | P19: 3.62
D20: 3 | E20: BR | F20: B-Road Rural | G20: 1.82 | I20: 3 | J20: Fair | K20: F | M20: 3 | N20: Moderate Overlay | O20: MO | P20: 6.29
D21: 4 | E21: BU | F21: B-Road Urban | G21: 1.15 | I21: 4 | J21: Poor | K21: P | M21: 4 | N21: Moderate Inlay | O21: MI | P21: 9.69
D22: 5 | E22: CR | F22: C-Road Rural | G22: 1.38 | I22: 5 | J22: Very Poor | K22: VP | M22: 5 | N22: Deep Inlay | O22: DI | P22: 15.75
D23: 6 | E23: CU | F23: C-Road Urban | G23: 0.99 | M23: 6 | N23: Reconstruction | O23: RE | P23: 29.94
D24: 7 | E24: MR | F24: M-way Rural | G24: 1.59
D25: 8 | E25: MU | F25: M-way Urban | G25: 1.05
D26: 9 | E26: UR | F26: U-Road Rural | G26: 1.04
D27: 10 | E27: UU | F27: U-Road Urban | G27: 0.45

Sheet Activity Allocation
F2: Activity Allocation
D5: Activity Types
D6: Number of Activity Types
E7: 12
H8: Budget Envelopes
D10: No. | E10: Name | F10: Condition Analysis | H10: Name | I10: Budgets (£k)
B11: Carriageway | D11: =ROW()-10 -> 1 | E11: Reconstruction (capital) | F11: Carriageway | H11: Lower | I11: 2299350
B12: Lighting | D12: 2 | E12: Structural (capital) | F12: Carriageway | H12: Mid | I12: 4629267
B13: Skid | D13: 3 | E13: Bridge (capital) | F13: None | H13: Upper | I13: 6976101
B14: None | D14: 4 | E14: Road Safety (capital) | F14: None
D15: 5 | E15: Lighting (capital) | F15: Lighting
D16: 6 | E16: Planning, policy & strategy (revenue) | F16: None
D17: 7 | E17: Structural - roads (revenue) | F17: Carriageway
D18: 8 | E18: Structural -skid (revenue) | F18: Skid
D19: 9 | E19: Structural - bridges (revenue) | F19: None
D20: 10 | E20: Environment (revenue) | F20: None
D21: 11 | E21: Lighting (revenue) | F21: Lighting
D22: 12 | E22: TM & Road safety (revenue) | F22: None
D62: Budget Percentages and Drivers for Allocation Ranges
D64: No. | E64: Name | F64: Lower Envelope | M64: Mid Envelope | T64: Upper Envelope
F65: Total Budget Percentage | G65: Maintenance Drivers | M65: Total Budget Percentage | N65: Maintenance Drivers | T65: Total Budget Percentage | U65: Maintenance Drivers
G66: Safety | H66: Accessibility | I66: Condition | J66: Reliability | K66: Customer Service | L66: Environment | N66: Safety | O66: Accessibility | P66: Condition | Q66: Reliability | R66: Customer Service | S66: Environment | U66: Safety | V66: Accessibility | W66: Condition | X66: Reliability | Y66: Customer Service | Z66: Environment
D67: =ROW()-66 -> 1 | E67: =E11 -> Reconstruction (capital) | F67: 0 | G67: 20 | H67: 10 | I67: 0 | J67: 40 | K67: 30 | L67: 0 | M67: 13 | N67: 20 | O67: 10 | P67: 0 | Q67: 40 | R67: 30 | S67: 0 | T67: 17 | U67: 20 | V67: 10 | W67: 0 | X67: 40 | Y67: 30 | Z67: 0
D68: 2 | E68: =E12 -> Structural (capital) | F68: 11 | G68: 15 | H68: 0 | I68: 65 | J68: 0 | K68: 10 | L68: 10 | M68: 20 | N68: 15 | O68: 0 | P68: 65 | Q68: 0 | R68: 10 | S68: 10 | T68: 26 | U68: 15 | V68: 0 | W68: 65 | X68: 0 | Y68: 10 | Z68: 10
D69: 3 | E69: Bridge (capital) | F69: 5 | G69: 30 | H69: 10 | I69: 20 | J69: 0 | K69: 30 | L69: 10 | M69: 3 | N69: 30 | O69: 10 | P69: 20 | Q69: 0 | R69: 30 | S69: 10 | T69: 4 | U69: 30 | V69: 10 | W69: 20 | X69: 0 | Y69: 30 | Z69: 10
D70: 4 | E70: Road Safety (capital) | F70: 4 | G70: 90 | H70: 0 | I70: 0 | J70: 0 | K70: 10 | L70: 0 | M70: 2 | N70: 90 | O70: 0 | P70: 0 | Q70: 0 | R70: 10 | S70: 0 | T70: 2 | U70: 90 | V70: 0 | W70: 0 | X70: 0 | Y70: 10 | Z70: 0
D71: 5 | E71: Lighting (capital) | F71: 4 | G71: 60 | H71: 0 | I71: 0 | J71: 20 | K71: 20 | L71: 0 | M71: 2 | N71: 60 | O71: 0 | P71: 0 | Q71: 20 | R71: 20 | S71: 0 | T71: 2 | U71: 60 | V71: 0 | W71: 0 | X71: 20 | Y71: 20 | Z71: 0
D72: 6 | E72: Planning, policy & strategy (revenue) | F72: 14 | G72: 10 | H72: 0 | I72: 40 | J72: 0 | K72: 20 | L72: 30 | M72: 17 | N72: 10 | O72: 0 | P72: 40 | Q72: 0 | R72: 20 | S72: 30 | T72: 12 | U72: 10 | V72: 0 | W72: 40 | X72: 0 | Y72: 20 | Z72: 30
D73: 7 | E73: Structural - roads (revenue) | F73: 6 | G73: 15 | H73: 0 | I73: 65 | J73: 0 | K73: 10 | L73: 10 | M73: 9 | N73: 15 | O73: 0 | P73: 65 | Q73: 0 | R73: 10 | S73: 10 | T73: 9 | U73: 15 | V73: 0 | W73: 65 | X73: 0 | Y73: 10 | Z73: 10
D74: 8 | E74: Structural -skid (revenue) | F74: 2 | G74: 90 | H74: 0 | I74: 0 | J74: 0 | K74: 10 | L74: 0 | M74: 1 | N74: 90 | O74: 0 | P74: 0 | Q74: 0 | R74: 10 | S74: 0 | T74: 1 | U74: 90 | V74: 0 | W74: 0 | X74: 0 | Y74: 10 | Z74: 0
D75: 9 | E75: Structural - bridges (revenue) | F75: 2 | G75: 30 | H75: 10 | I75: 20 | J75: 0 | K75: 30 | L75: 10 | M75: 1 | N75: 30 | O75: 10 | P75: 20 | Q75: 0 | R75: 30 | S75: 10 | T75: 1 | U75: 30 | V75: 10 | W75: 20 | X75: 0 | Y75: 30 | Z75: 10
D76: 10 | E76: Environment (revenue) | F76: 29 | G76: 20 | H76: 0 | I76: 0 | J76: 0 | K76: 40 | L76: 40 | M76: 18 | N76: 20 | O76: 0 | P76: 0 | Q76: 0 | R76: 40 | S76: 40 | T76: 13 | U76: 20 | V76: 0 | W76: 0 | X76: 0 | Y76: 40 | Z76: 40
D77: 11 | E77: =E21 -> Lighting (revenue) | F77: 16 | G77: 50 | H77: 0 | I77: 0 | J77: 20 | K77: 30 | L77: 0 | M77: 10 | N77: 50 | O77: 0 | P77: 0 | Q77: 20 | R77: 30 | S77: 0 | T77: 7 | U77: 50 | V77: 0 | W77: 0 | X77: 20 | Y77: 30 | Z77: 0
D78: 12 | E78: =E22 -> TM & Road safety (revenue) | F78: 7 | G78: 90 | H78: 0 | I78: 0 | J78: 0 | K78: 10 | L78: 0 | M78: 4 | N78: 90 | O78: 0 | P78: 0 | Q78: 0 | R78: 10 | S78: 0 | T78: 6 | U78: 90 | V78: 0 | W78: 0 | X78: 0 | Y78: 10 | Z78: 0
D118: Budget Percentages for Road Types and Treatments
D120: No Road Types | E120: 10 | J120: No of Treatment Types | K120: 6
D121: Road Types | J121: Treatment Types
D122: No. | E122: Name | F122: Total Budget Percentage | J122: No | K122: Name | L122: Total Budget Percentage
F123: Lower Envelope | G123: Mid Envelope | H123: Upper Envelope | L123: Lower Envelope | M123: Mid Envelope | N123: Upper Envelope
D124: =ROW()-123 -> 1 | E124: AR | F124: 34 | G124: 22 | H124: 20 | J124: =ROW()-123 -> 1 | K124: Surface Dressing | L124: 30 | M124: 10 | N124: 15
D125: =ROW()-123 -> 2 | E125: AU | F125: 16 | G125: 11 | H125: 8 | J125: =ROW()-123 -> 2 | K125: Micro Asphalt | L125: 20 | M125: 10 | N125: 10
D126: 3 | E126: BR | F126: 6 | G126: 4 | H126: 4 | J126: 3 | K126: Moderate Overlay | L126: 20 | M126: 20 | N126: 25
D127: 4 | E127: BU | F127: 1 | G127: 1 | H127: 1 | J127: =ROW()-123 -> 4 | K127: Moderate Inlay | L127: 15 | M127: 20 | N127: 20
D128: 5 | E128: CR | F128: 12 | G128: 14 | H128: 17 | J128: =ROW()-123 -> 5 | K128: Deep Inlay | L128: 10 | M128: 20 | N128: 15
D129: 6 | E129: CU | F129: 2 | G129: 2 | H129: 2 | J129: =ROW()-123 -> 6 | K129: Reconstruction | L129: 5 | M129: 20 | N129: 15
D130: 7 | E130: MR | F130: 1 | G130: 1 | H130: 1
D131: 8 | E131: MU | F131: 1 | G131: 1 | H131: 1
D132: 9 | E132: UR | F132: 13 | G132: 22 | H132: 23
D133: =ROW()-123 -> 10 | E133: UU | F133: 14 | G133: 22 | H133: 23

Sheet Activity Budgets
F2: Activity Budgets
D6: No Analysis Yrs | E6: 30
D7: Start Year | E7: 2014
F13: =TEXT(start_year+(COLUMN()-6),"0") -> 2014 | G13: 2015 | H13: 2016 | I13: 2017 | J13: 2018 | K13: 2019 | L13: 2020 | M13: 2021 | N13: 2022 | O13: 2023 | P13: 2024 | Q13: 2025 | R13: 2026 | S13: 2027 | T13: 2028 | U13: 2029 | V13: 2030 | W13: 2031 | X13: 2032 | Y13: 2033 | Z13: 2034 | AA13: 2035 | AB13: 2036 | AC13: 2037 | AD13: 2038 | AE13: 2039 | AF13: 2040 | AG13: 2041 | AH13: 2042 | AI13: 2043
D14: Overall Maintenance Budget (£k) | F14: 4629267 | G14: 4629267 | H14: 4629267 | I14: 4629267 | J14: 4629267 | K14: 4629267 | L14: 4629267 | M14: 4629267 | N14: 4629267 | O14: 4629267 | P14: 4629267 | Q14: 4629267 | R14: 4629267 | S14: 4629267 | T14: 4629267 | U14: 4629267 | V14: 4629267 | W14: 4629267 | X14: 4629267 | Y14: 4629267 | Z14: 4629267 | AA14: 4629267 | AB14: 4629267 | AC14: 4629267 | AD14: 4629267 | AE14: 4629267 | AF14: 4629267 | AG14: 4629267 | AH14: 4629267 | AI14: 4629267
D16: Budget split by Activity Type (£k)
D18: No. | E18: Activity | F18: =TEXT(start_year+(COLUMN()-6),"0") -> 2014 | G18: 2015 | H18: 2016 | I18: 2017 | J18: 2018 | K18: 2019 | L18: 2020 | M18: 2021 | N18: 2022 | O18: 2023 | P18: 2024 | Q18: 2025 | R18: 2026 | S18: 2027 | T18: 2028 | U18: 2029 | V18: 2030 | W18: 2031 | X18: 2032 | Y18: 2033 | Z18: 2034 | AA18: 2035 | AB18: 2036 | AC18: 2037 | AD18: 2038 | AE18: 2039 | AF18: 2040 | AG18: 2041 | AH18: 2042 | AI18: 2043
D19: =ROW()-18 -> 1 | E19: Reconstruction (capital) | F19: 601804.71 | G19: 601804.71 | H19: 601804.71 | I19: 601804.71 | J19: 601804.71 | K19: 601804.71 | L19: 601804.71 | M19: 601804.71 | N19: 601804.71 | O19: 601804.71 | P19: 601804.71 | Q19: 601804.71 | R19: 601804.71 | S19: 601804.71 | T19: 601804.71 | U19: 601804.71 | V19: 601804.71 | W19: 601804.71 | X19: 601804.71 | Y19: 601804.71 | Z19: 601804.71 | AA19: 601804.71 | AB19: 601804.71 | AC19: 601804.71 | AD19: 601804.71 | AE19: 601804.71 | AF19: 601804.71 | AG19: 601804.71 | AH19: 601804.71 | AI19: 601804.71
D20: =ROW()-18 -> 2 | E20: Structural (capital) | F20: 925853.4 | G20: 925853.4 | H20: 925853.4 | I20: 925853.4 | J20: 925853.4 | K20: 925853.4 | L20: 925853.4 | M20: 925853.4 | N20: 925853.4 | O20: 925853.4 | P20: 925853.4 | Q20: 925853.4 | R20: 925853.4 | S20: 925853.4 | T20: 925853.4 | U20: 925853.4 | V20: 925853.4 | W20: 925853.4 | X20: 925853.4 | Y20: 925853.4 | Z20: 925853.4 | AA20: 925853.4 | AB20: 925853.4 | AC20: 925853.4 | AD20: 925853.4 | AE20: 925853.4 | AF20: 925853.4 | AG20: 925853.4 | AH20: 925853.4 | AI20: 925853.4
D21: 3 | E21: Bridge (capital) | F21: 138878.01 | G21: 138878.01 | H21: 138878.01 | I21: 138878.01 | J21: 138878.01 | K21: 138878.01 | L21: 138878.01 | M21: 138878.01 | N21: 138878.01 | O21: 138878.01 | P21: 138878.01 | Q21: 138878.01 | R21: 138878.01 | S21: 138878.01 | T21: 138878.01 | U21: 138878.01 | V21: 138878.01 | W21: 138878.01 | X21: 138878.01 | Y21: 138878.01 | Z21: 138878.01 | AA21: 138878.01 | AB21: 138878.01 | AC21: 138878.01 | AD21: 138878.01 | AE21: 138878.01 | AF21: 138878.01 | AG21: 138878.01 | AH21: 138878.01 | AI21: 138878.01
D22: 4 | E22: Road Safety (capital) | F22: 92585.34 | G22: 92585.34 | H22: 92585.34 | I22: 92585.34 | J22: 92585.34 | K22: 92585.34 | L22: 92585.34 | M22: 92585.34 | N22: 92585.34 | O22: 92585.34 | P22: 92585.34 | Q22: 92585.34 | R22: 92585.34 | S22: 92585.34 | T22: 92585.34 | U22: 92585.34 | V22: 92585.34 | W22: 92585.34 | X22: 92585.34 | Y22: 92585.34 | Z22: 92585.34 | AA22: 92585.34 | AB22: 92585.34 | AC22: 92585.34 | AD22: 92585.34 | AE22: 92585.34 | AF22: 92585.34 | AG22: 92585.34 | AH22: 92585.34 | AI22: 92585.34
D23: 5 | E23: Lighting (capital) | F23: 92585.34 | G23: 92585.34 | H23: 92585.34 | I23: 92585.34 | J23: 92585.34 | K23: 92585.34 | L23: 92585.34 | M23: 92585.34 | N23: 92585.34 | O23: 92585.34 | P23: 92585.34 | Q23: 92585.34 | R23: 92585.34 | S23: 92585.34 | T23: 92585.34 | U23: 92585.34 | V23: 92585.34 | W23: 92585.34 | X23: 92585.34 | Y23: 92585.34 | Z23: 92585.34 | AA23: 92585.34 | AB23: 92585.34 | AC23: 92585.34 | AD23: 92585.34 | AE23: 92585.34 | AF23: 92585.34 | AG23: 92585.34 | AH23: 92585.34 | AI23: 92585.34
D24: 6 | E24: Planning, policy & strategy (revenue) | F24: 786975.39 | G24: 786975.39 | H24: 786975.39 | I24: 786975.39 | J24: 786975.39 | K24: 786975.39 | L24: 786975.39 | M24: 786975.39 | N24: 786975.39 | O24: 786975.39 | P24: 786975.39 | Q24: 786975.39 | R24: 786975.39 | S24: 786975.39 | T24: 786975.39 | U24: 786975.39 | V24: 786975.39 | W24: 786975.39 | X24: 786975.39 | Y24: 786975.39 | Z24: 786975.39 | AA24: 786975.39 | AB24: 786975.39 | AC24: 786975.39 | AD24: 786975.39 | AE24: 786975.39 | AF24: 786975.39 | AG24: 786975.39 | AH24: 786975.39 | AI24: 786975.39
D25: 7 | E25: Structural - roads (revenue) | F25: 416634.03 | G25: 416634.03 | H25: 416634.03 | I25: 416634.03 | J25: 416634.03 | K25: 416634.03 | L25: 416634.03 | M25: 416634.03 | N25: 416634.03 | O25: 416634.03 | P25: 416634.03 | Q25: 416634.03 | R25: 416634.03 | S25: 416634.03 | T25: 416634.03 | U25: 416634.03 | V25: 416634.03 | W25: 416634.03 | X25: 416634.03 | Y25: 416634.03 | Z25: 416634.03 | AA25: 416634.03 | AB25: 416634.03 | AC25: 416634.03 | AD25: 416634.03 | AE25: 416634.03 | AF25: 416634.03 | AG25: 416634.03 | AH25: 416634.03 | AI25: 416634.03
D26: 8 | E26: Structural -skid (revenue) | F26: 46292.67 | G26: 46292.67 | H26: 46292.67 | I26: 46292.67 | J26: 46292.67 | K26: 46292.67 | L26: 46292.67 | M26: 46292.67 | N26: 46292.67 | O26: 46292.67 | P26: 46292.67 | Q26: 46292.67 | R26: 46292.67 | S26: 46292.67 | T26: 46292.67 | U26: 46292.67 | V26: 46292.67 | W26: 46292.67 | X26: 46292.67 | Y26: 46292.67 | Z26: 46292.67 | AA26: 46292.67 | AB26: 46292.67 | AC26: 46292.67 | AD26: 46292.67 | AE26: 46292.67 | AF26: 46292.67 | AG26: 46292.67 | AH26: 46292.67 | AI26: 46292.67
D27: =ROW()-18 -> 9 | E27: Structural - bridges (revenue) | F27: 46292.67 | G27: 46292.67 | H27: 46292.67 | I27: 46292.67 | J27: 46292.67 | K27: 46292.67 | L27: 46292.67 | M27: 46292.67 | N27: 46292.67 | O27: 46292.67 | P27: 46292.67 | Q27: 46292.67 | R27: 46292.67 | S27: 46292.67 | T27: 46292.67 | U27: 46292.67 | V27: 46292.67 | W27: 46292.67 | X27: 46292.67 | Y27: 46292.67 | Z27: 46292.67 | AA27: 46292.67 | AB27: 46292.67 | AC27: 46292.67 | AD27: 46292.67 | AE27: 46292.67 | AF27: 46292.67 | AG27: 46292.67 | AH27: 46292.67 | AI27: 46292.67
D28: 10 | E28: Environment (revenue) | F28: 833268.06 | G28: 833268.06 | H28: 833268.06 | I28: 833268.06 | J28: 833268.06 | K28: 833268.06 | L28: 833268.06 | M28: 833268.06 | N28: 833268.06 | O28: 833268.06 | P28: 833268.06 | Q28: 833268.06 | R28: 833268.06 | S28: 833268.06 | T28: 833268.06 | U28: 833268.06 | V28: 833268.06 | W28: 833268.06 | X28: 833268.06 | Y28: 833268.06 | Z28: 833268.06 | AA28: 833268.06 | AB28: 833268.06 | AC28: 833268.06 | AD28: 833268.06 | AE28: 833268.06 | AF28: 833268.06 | AG28: 833268.06 | AH28: 833268.06 | AI28: 833268.06
D29: 11 | E29: Lighting (revenue) | F29: 462926.7 | G29: 462926.7 | H29: 462926.7 | I29: 462926.7 | J29: 462926.7 | K29: 462926.7 | L29: 462926.7 | M29: 462926.7 | N29: 462926.7 | O29: 462926.7 | P29: 462926.7 | Q29: 462926.7 | R29: 462926.7 | S29: 462926.7 | T29: 462926.7 | U29: 462926.7 | V29: 462926.7 | W29: 462926.7 | X29: 462926.7 | Y29: 462926.7 | Z29: 462926.7 | AA29: 462926.7 | AB29: 462926.7 | AC29: 462926.7 | AD29: 462926.7 | AE29: 462926.7 | AF29: 462926.7 | AG29: 462926.7 | AH29: 462926.7 | AI29: 462926.7
D30: 12 | E30: TM & Road safety (revenue) | F30: 185170.68 | G30: 185170.68 | H30: 185170.68 | I30: 185170.68 | J30: 185170.68 | K30: 185170.68 | L30: 185170.68 | M30: 185170.68 | N30: 185170.68 | O30: 185170.68 | P30: 185170.68 | Q30: 185170.68 | R30: 185170.68 | S30: 185170.68 | T30: 185170.68 | U30: 185170.68 | V30: 185170.68 | W30: 185170.68 | X30: 185170.68 | Y30: 185170.68 | Z30: 185170.68 | AA30: 185170.68 | AB30: 185170.68 | AC30: 185170.68 | AD30: 185170.68 | AE30: 185170.68 | AF30: 185170.68 | AG30: 185170.68 | AH30: 185170.68 | AI30: 185170.68
D121: Budget split by Condition Analysis (£k)
D123: Condition Analysis | F123: =TEXT(start_year+(COLUMN()-6),"0") -> 2014 | G123: 2015 | H123: 2016 | I123: 2017 | J123: 2018 | K123: 2019 | L123: 2020 | M123: 2021 | N123: 2022 | O123: 2023 | P123: 2024 | Q123: 2025 | R123: 2026 | S123: 2027 | T123: 2028 | U123: 2029 | V123: 2030 | W123: 2031 | X123: 2032 | Y123: 2033 | Z123: 2034 | AA123: 2035 | AB123: 2036 | AC123: 2037 | AD123: 2038 | AE123: 2039 | AF123: 2040 | AG123: 2041 | AH123: 2042 | AI123: 2043
D124: Carriageway (incl. skid) - input | F124: 1990584.81 | G124: 1990584.81 | H124: 1990584.81 | I124: 1990584.81 | J124: 1990584.81 | K124: 1990584.81 | L124: 1990584.81 | M124: 1990584.81 | N124: 1990584.81 | O124: 1990584.81 | P124: 1990584.81 | Q124: 1990584.81 | R124: 1990584.81 | S124: 1990584.81 | T124: 1990584.81 | U124: 1990584.81 | V124: 1990584.81 | W124: 1990584.81 | X124: 1990584.81 | Y124: 1990584.81 | Z124: 1990584.81 | AA124: 1990584.81 | AB124: 1990584.81 | AC124: 1990584.81 | AD124: 1990584.81 | AE124: 1990584.81 | AF124: 1990584.81 | AG124: 1990584.81 | AH124: 1990584.81 | AI124: 1990584.81
D125: Carriageway (incl. skid) - output | F125: 1886792.886 | G125: 1905017.998 | H125: 1917879.09 | I125: 1913787.599 | J125: 1895246.719 | K125: 1869079.489 | L125: 1848147.783 | M125: 1837535.438 | N125: 1832761.135 | O125: 1830502.308 | P125: 1828004.687 | Q125: 1826331.402 | R125: 1825127.27 | S125: 1820791.678 | T125: 1812466.052 | U125: 1809440.585 | V125: 1809258.115 | W125: 1810445.189 | X125: 1812251.032 | Y125: 1814293.824 | Z125: 1816379.267 | AA125: 1818408.728 | AB125: 1820333.227 | AC125: 1822130.484 | AD125: 1823793.338 | AE125: 1825323.643 | AF125: 1826728.811 | AG125: 1826962.232 | AH125: 1827094.835 | AI125: 1827169.096
D126: Skid only | F126: 46292.67 | G126: 46292.67 | H126: 46292.67 | I126: 46292.67 | J126: 46292.67 | K126: 46292.67 | L126: 46292.67 | M126: 46292.67 | N126: 46292.67 | O126: 46292.67 | P126: 46292.67 | Q126: 46292.67 | R126: 46292.67 | S126: 46292.67 | T126: 46292.67 | U126: 46292.67 | V126: 46292.67 | W126: 46292.67 | X126: 46292.67 | Y126: 46292.67 | Z126: 46292.67 | AA126: 46292.67 | AB126: 46292.67 | AC126: 46292.67 | AD126: 46292.67 | AE126: 46292.67 | AF126: 46292.67 | AG126: 46292.67 | AH126: 46292.67 | AI126: 46292.67
D127: Lighting | F127: 555512.04 | G127: 555512.04 | H127: 555512.04 | I127: 555512.04 | J127: 555512.04 | K127: 555512.04 | L127: 555512.04 | M127: 555512.04 | N127: 555512.04 | O127: 555512.04 | P127: 555512.04 | Q127: 555512.04 | R127: 555512.04 | S127: 555512.04 | T127: 555512.04 | U127: 555512.04 | V127: 555512.04 | W127: 555512.04 | X127: 555512.04 | Y127: 555512.04 | Z127: 555512.04 | AA127: 555512.04 | AB127: 555512.04 | AC127: 555512.04 | AD127: 555512.04 | AE127: 555512.04 | AF127: 555512.04 | AG127: 555512.04 | AH127: 555512.04 | AI127: 555512.04
D128: None | F128: 2083170.15 | G128: 2083170.15 | H128: 2083170.15 | I128: 2083170.15 | J128: 2083170.15 | K128: 2083170.15 | L128: 2083170.15 | M128: 2083170.15 | N128: 2083170.15 | O128: 2083170.15 | P128: 2083170.15 | Q128: 2083170.15 | R128: 2083170.15 | S128: 2083170.15 | T128: 2083170.15 | U128: 2083170.15 | V128: 2083170.15 | W128: 2083170.15 | X128: 2083170.15 | Y128: 2083170.15 | Z128: 2083170.15 | AA128: 2083170.15 | AB128: 2083170.15 | AC128: 2083170.15 | AD128: 2083170.15 | AE128: 2083170.15 | AF128: 2083170.15 | AG128: 2083170.15 | AH128: 2083170.15 | AI128: 2083170.15
D129: Total budget - input | F129: =F124+F127+F128 -> 4629267 | G129: =G124+G127+G128 -> 4629267 | H129: 4629267 | I129: 4629267 | J129: 4629267 | K129: 4629267 | L129: 4629267 | M129: 4629267 | N129: 4629267 | O129: 4629267 | P129: =P124+P127+P128 -> 4629267 | Q129: 4629267 | R129: 4629267 | S129: 4629267 | T129: 4629267 | U129: 4629267 | V129: 4629267 | W129: 4629267 | X129: 4629267 | Y129: 4629267 | Z129: 4629267 | AA129: 4629267 | AB129: 4629267 | AC129: 4629267 | AD129: 4629267 | AE129: 4629267 | AF129: 4629267 | AG129: 4629267 | AH129: 4629267 | AI129: 4629267
D130: Total budget - output | F130: =F125+F127+F128 -> 4525475.076 | G130: =G125+G127+G128 -> 4543700.188 | H130: 4556561.28 | I130: 4552469.789 | J130: 4533928.909 | K130: 4507761.679 | L130: 4486829.973 | M130: 4476217.628 | N130: 4471443.325 | O130: 4469184.498 | P130: =P125+P127+P128 -> 4466686.877 | Q130: 4465013.592 | R130: 4463809.46 | S130: 4459473.868 | T130: 4451148.242 | U130: 4448122.775 | V130: 4447940.305 | W130: 4449127.379 | X130: 4450933.222 | Y130: 4452976.014 | Z130: 4455061.457 | AA130: 4457090.918 | AB130: 4459015.417 | AC130: 4460812.674 | AD130: 4462475.528 | AE130: 4464005.833 | AF130: 4465411.001 | AG130: 4465644.422 | AH130: 4465777.025 | AI130: 4465851.286
D132: Budget split by Asset Driver (£ k)
D134: Driver | F134: =TEXT(start_year+(COLUMN()-6),"0") -> 2014 | G134: 2015 | H134: 2016 | I134: 2017 | J134: 2018 | K134: 2019 | L134: 2020 | M134: 2021 | N134: 2022 | O134: 2023 | P134: 2024 | Q134: 2025 | R134: 2026 | S134: 2027 | T134: 2028 | U134: 2029 | V134: 2030 | W134: 2031 | X134: 2032 | Y134: 2033 | Z134: 2034 | AA134: 2035 | AB134: 2036 | AC134: 2037 | AD134: 2038 | AE134: 2039 | AF134: 2040 | AG134: 2041 | AH134: 2042 | AI134: 2043
D135: Safety | F135: 1201294.786 | G135: 1201294.786 | H135: 1201294.786 | I135: 1201294.786 | J135: 1201294.786 | K135: 1201294.786 | L135: 1201294.786 | M135: 1201294.786 | N135: 1201294.786 | O135: 1201294.786 | P135: 1201294.786 | Q135: 1201294.786 | R135: 1201294.786 | S135: 1201294.786 | T135: 1201294.786 | U135: 1201294.786 | V135: 1201294.786 | W135: 1201294.786 | X135: 1201294.786 | Y135: 1201294.786 | Z135: 1201294.786 | AA135: 1201294.786 | AB135: 1201294.786 | AC135: 1201294.786 | AD135: 1201294.786 | AE135: 1201294.786 | AF135: 1201294.786 | AG135: 1201294.786 | AH135: 1201294.786 | AI135: 1201294.786
D136: Accessibility | F136: 78697.539 | G136: 78697.539 | H136: 78697.539 | I136: 78697.539 | J136: 78697.539 | K136: 78697.539 | L136: 78697.539 | M136: 78697.539 | N136: 78697.539 | O136: 78697.539 | P136: 78697.539 | Q136: 78697.539 | R136: 78697.539 | S136: 78697.539 | T136: 78697.539 | U136: 78697.539 | V136: 78697.539 | W136: 78697.539 | X136: 78697.539 | Y136: 78697.539 | Z136: 78697.539 | AA136: 78697.539 | AB136: 78697.539 | AC136: 78697.539 | AD136: 78697.539 | AE136: 78697.539 | AF136: 78697.539 | AG136: 78697.539 | AH136: 78697.539 | AI136: 78697.539
D137: Condition | F137: 1224441.122 | G137: 1224441.122 | H137: 1224441.122 | I137: 1224441.122 | J137: 1224441.122 | K137: 1224441.122 | L137: 1224441.122 | M137: 1224441.122 | N137: 1224441.122 | O137: 1224441.122 | P137: 1224441.122 | Q137: 1224441.122 | R137: 1224441.122 | S137: 1224441.122 | T137: 1224441.122 | U137: 1224441.122 | V137: 1224441.122 | W137: 1224441.122 | X137: 1224441.122 | Y137: 1224441.122 | Z137: 1224441.122 | AA137: 1224441.122 | AB137: 1224441.122 | AC137: 1224441.122 | AD137: 1224441.122 | AE137: 1224441.122 | AF137: 1224441.122 | AG137: 1224441.122 | AH137: 1224441.122 | AI137: 1224441.122
D138: Reliability | F138: 351824.292 | G138: 351824.292 | H138: 351824.292 | I138: 351824.292 | J138: 351824.292 | K138: 351824.292 | L138: 351824.292 | M138: 351824.292 | N138: 351824.292 | O138: 351824.292 | P138: 351824.292 | Q138: 351824.292 | R138: 351824.292 | S138: 351824.292 | T138: 351824.292 | U138: 351824.292 | V138: 351824.292 | W138: 351824.292 | X138: 351824.292 | Y138: 351824.292 | Z138: 351824.292 | AA138: 351824.292 | AB138: 351824.292 | AC138: 351824.292 | AD138: 351824.292 | AE138: 351824.292 | AF138: 351824.292 | AG138: 351824.292 | AH138: 351824.292 | AI138: 351824.292
D139: Customer Service | F139: 1050843.609 | G139: 1050843.609 | H139: 1050843.609 | I139: 1050843.609 | J139: 1050843.609 | K139: 1050843.609 | L139: 1050843.609 | M139: 1050843.609 | N139: 1050843.609 | O139: 1050843.609 | P139: 1050843.609 | Q139: 1050843.609 | R139: 1050843.609 | S139: 1050843.609 | T139: 1050843.609 | U139: 1050843.609 | V139: 1050843.609 | W139: 1050843.609 | X139: 1050843.609 | Y139: 1050843.609 | Z139: 1050843.609 | AA139: 1050843.609 | AB139: 1050843.609 | AC139: 1050843.609 | AD139: 1050843.609 | AE139: 1050843.609 | AF139: 1050843.609 | AG139: 1050843.609 | AH139: 1050843.609 | AI139: 1050843.609
D140: Environment | F140: 722165.652 | G140: 722165.652 | H140: 722165.652 | I140: 722165.652 | J140: 722165.652 | K140: 722165.652 | L140: 722165.652 | M140: 722165.652 | N140: 722165.652 | O140: 722165.652 | P140: 722165.652 | Q140: 722165.652 | R140: 722165.652 | S140: 722165.652 | T140: 722165.652 | U140: 722165.652 | V140: 722165.652 | W140: 722165.652 | X140: 722165.652 | Y140: 722165.652 | Z140: 722165.652 | AA140: 722165.652 | AB140: 722165.652 | AC140: 722165.652 | AD140: 722165.652 | AE140: 722165.652 | AF140: 722165.652 | AG140: 722165.652 | AH140: 722165.652 | AI140: 722165.652
D142: Carriageway budget split by Road Type and Treatment (£k)
D144: Road Type | E144: Treatment | F144: =TEXT(start_year+(COLUMN()-6),"0") -> 2014 | G144: 2015 | H144: 2016 | I144: 2017 | J144: 2018 | K144: 2019 | L144: 2020 | M144: 2021 | N144: 2022 | O144: 2023 | P144: 2024 | Q144: 2025 | R144: 2026 | S144: 2027 | T144: 2028 | U144: 2029 | V144: 2030 | W144: 2031 | X144: 2032 | Y144: 2033 | Z144: 2034 | AA144: 2035 | AB144: 2036 | AC144: 2037 | AD144: 2038 | AE144: 2039 | AF144: 2040 | AG144: 2041 | AH144: 2042 | AI144: 2043
D145: AR | E145: Surface Dressing | F145: 43792.86582 | G145: 43792.86582 | H145: 43792.86582 | I145: 43792.86582 | J145: 43792.86582 | K145: 43792.86582 | L145: 43792.86582 | M145: 43792.86582 | N145: 43792.86582 | O145: 43792.86582 | P145: 43792.86582 | Q145: 43792.86582 | R145: 43792.86582 | S145: 43792.86582 | T145: 43792.86582 | U145: 43792.86582 | V145: 43792.86582 | W145: 43792.86582 | X145: 43792.86582 | Y145: 43792.86582 | Z145: 43792.86582 | AA145: 43792.86582 | AB145: 43792.86582 | AC145: 43792.86582 | AD145: 43792.86582 | AE145: 43792.86582 | AF145: 43792.86582 | AG145: 43792.86582 | AH145: 43792.86582 | AI145: 43792.86582
D146: AR | E146: Micro Asphalt | F146: 43792.86582 | G146: 43792.86582 | H146: 43792.86582 | I146: 43792.86582 | J146: 43792.86582 | K146: 43792.86582 | L146: 43792.86582 | M146: 43792.86582 | N146: 43792.86582 | O146: 43792.86582 | P146: 43792.86582 | Q146: 43792.86582 | R146: 43792.86582 | S146: 43792.86582 | T146: 43792.86582 | U146: 43792.86582 | V146: 43792.86582 | W146: 43792.86582 | X146: 43792.86582 | Y146: 43792.86582 | Z146: 43792.86582 | AA146: 43792.86582 | AB146: 43792.86582 | AC146: 43792.86582 | AD146: 43792.86582 | AE146: 43792.86582 | AF146: 43792.86582 | AG146: 43792.86582 | AH146: 43792.86582 | AI146: 43792.86582
D147: AR | E147: Moderate Overlay | F147: 87585.73164 | G147: 87585.73164 | H147: 87585.73164 | I147: 87585.73164 | J147: 87585.73164 | K147: 87585.73164 | L147: 87585.73164 | M147: 87585.73164 | N147: 87585.73164 | O147: 87585.73164 | P147: 87585.73164 | Q147: 87585.73164 | R147: 87585.73164 | S147: 87585.73164 | T147: 87585.73164 | U147: 87585.73164 | V147: 87585.73164 | W147: 87585.73164 | X147: 87585.73164 | Y147: 87585.73164 | Z147: 87585.73164 | AA147: 87585.73164 | AB147: 87585.73164 | AC147: 87585.73164 | AD147: 87585.73164 | AE147: 87585.73164 | AF147: 87585.73164 | AG147: 87585.73164 | AH147: 87585.73164 | AI147: 87585.73164
D148: AR | E148: Moderate Inlay | F148: 87585.73164 | G148: 87585.73164 | H148: 87585.73164 | I148: 87585.73164 | J148: 87585.73164 | K148: 87585.73164 | L148: 87585.73164 | M148: 87585.73164 | N148: 87585.73164 | O148: 87585.73164 | P148: 87585.73164 | Q148: 87585.73164 | R148: 87585.73164 | S148: 87585.73164 | T148: 87585.73164 | U148: 87585.73164 | V148: 87585.73164 | W148: 87585.73164 | X148: 87585.73164 | Y148: 87585.73164 | Z148: 87585.73164 | AA148: 87585.73164 | AB148: 87585.73164 | AC148: 87585.73164 | AD148: 87585.73164 | AE148: 87585.73164 | AF148: 87585.73164 | AG148: 87585.73164 | AH148: 87585.73164 | AI148: 87585.73164
D149: AR | E149: Deep Inlay | F149: 87585.73164 | G149: 87585.73164 | H149: 87585.73164 | I149: 87585.73164 | J149: 87585.73164 | K149: 87585.73164 | L149: 87585.73164 | M149: 87585.73164 | N149: 87585.73164 | O149: 87585.73164 | P149: 87585.73164 | Q149: 87585.73164 | R149: 87585.73164 | S149: 87585.73164 | T149: 87585.73164 | U149: 87585.73164 | V149: 87585.73164 | W149: 87585.73164 | X149: 87585.73164 | Y149: 87585.73164 | Z149: 87585.73164 | AA149: 87585.73164 | AB149: 87585.73164 | AC149: 87585.73164 | AD149: 87585.73164 | AE149: 87585.73164 | AF149: 87585.73164 | AG149: 87585.73164 | AH149: 87585.73164 | AI149: 87585.73164
D150: AR | E150: Reconstruction | F150: 87585.73164 | G150: 87585.73164 | H150: 87585.73164 | I150: 87585.73164 | J150: 87585.73164 | K150: 87585.73164 | L150: 87585.73164 | M150: 87585.73164 | N150: 87585.73164 | O150: 87585.73164 | P150: 87585.73164 | Q150: 87585.73164 | R150: 87585.73164 | S150: 87585.73164 | T150: 87585.73164 | U150: 87585.73164 | V150: 87585.73164 | W150: 87585.73164 | X150: 87585.73164 | Y150: 87585.73164 | Z150: 87585.73164 | AA150: 87585.73164 | AB150: 87585.73164 | AC150: 87585.73164 | AD150: 87585.73164 | AE150: 87585.73164 | AF150: 87585.73164 | AG150: 87585.73164 | AH150: 87585.73164 | AI150: 87585.73164
D151: AU | E151: Surface Dressing | F151: 21896.43291 | G151: 21896.43291 | H151: 21896.43291 | I151: 21896.43291 | J151: 21896.43291 | K151: 21896.43291 | L151: 21896.43291 | M151: 21896.43291 | N151: 21896.43291 | O151: 21896.43291 | P151: 21896.43291 | Q151: 21896.43291 | R151: 21896.43291 | S151: 21896.43291 | T151: 21896.43291 | U151: 21896.43291 | V151: 21896.43291 | W151: 21896.43291 | X151: 21896.43291 | Y151: 21896.43291 | Z151: 21896.43291 | AA151: 21896.43291 | AB151: 21896.43291 | AC151: 21896.43291 | AD151: 21896.43291 | AE151: 21896.43291 | AF151: 21896.43291 | AG151: 21896.43291 | AH151: 21896.43291 | AI151: 21896.43291
D152: AU | E152: Micro Asphalt | F152: 21896.43291 | G152: 21896.43291 | H152: 21896.43291 | I152: 21896.43291 | J152: 21896.43291 | K152: 21896.43291 | L152: 21896.43291 | M152: 21896.43291 | N152: 21896.43291 | O152: 21896.43291 | P152: 21896.43291 | Q152: 21896.43291 | R152: 21896.43291 | S152: 21896.43291 | T152: 21896.43291 | U152: 21896.43291 | V152: 21896.43291 | W152: 21896.43291 | X152: 21896.43291 | Y152: 21896.43291 | Z152: 21896.43291 | AA152: 21896.43291 | AB152: 21896.43291 | AC152: 21896.43291 | AD152: 21896.43291 | AE152: 21896.43291 | AF152: 21896.43291 | AG152: 21896.43291 | AH152: 21896.43291 | AI152: 21896.43291
D153: AU | E153: Moderate Overlay | F153: 43792.86582 | G153: 43792.86582 | H153: 43792.86582 | I153: 43792.86582 | J153: 43792.86582 | K153: 43792.86582 | L153: 43792.86582 | M153: 43792.86582 | N153: 43792.86582 | O153: 43792.86582 | P153: 43792.86582 | Q153: 43792.86582 | R153: 43792.86582 | S153: 43792.86582 | T153: 43792.86582 | U153: 43792.86582 | V153: 43792.86582 | W153: 43792.86582 | X153: 43792.86582 | Y153: 43792.86582 | Z153: 43792.86582 | AA153: 43792.86582 | AB153: 43792.86582 | AC153: 43792.86582 | AD153: 43792.86582 | AE153: 43792.86582 | AF153: 43792.86582 | AG153: 43792.86582 | AH153: 43792.86582 | AI153: 43792.86582
D154: AU | E154: Moderate Inlay | F154: 43792.86582 | G154: 43792.86582 | H154: 43792.86582 | I154: 43792.86582 | J154: 43792.86582 | K154: 43792.86582 | L154: 43792.86582 | M154: 43792.86582 | N154: 43792.86582 | O154: 43792.86582 | P154: 43792.86582 | Q154: 43792.86582 | R154: 43792.86582 | S154: 43792.86582 | T154: 43792.86582 | U154: 43792.86582 | V154: 43792.86582 | W154: 43792.86582 | X154: 43792.86582 | Y154: 43792.86582 | Z154: 43792.86582 | AA154: 43792.86582 | AB154: 43792.86582 | AC154: 43792.86582 | AD154: 43792.86582 | AE154: 43792.86582 | AF154: 43792.86582 | AG154: 43792.86582 | AH154: 43792.86582 | AI154: 43792.86582
D155: AU | E155: Deep Inlay | F155: 43792.86582 | G155: 43792.86582 | H155: 43792.86582 | I155: 43792.86582 | J155: 43792.86582 | K155: 43792.86582 | L155: 43792.86582 | M155: 43792.86582 | N155: 43792.86582 | O155: 43792.86582 | P155: 43792.86582 | Q155: 43792.86582 | R155: 43792.86582 | S155: 43792.86582 | T155: 43792.86582 | U155: 43792.86582 | V155: 43792.86582 | W155: 43792.86582 | X155: 43792.86582 | Y155: 43792.86582 | Z155: 43792.86582 | AA155: 43792.86582 | AB155: 43792.86582 | AC155: 43792.86582 | AD155: 43792.86582 | AE155: 43792.86582 | AF155: 43792.86582 | AG155: 43792.86582 | AH155: 43792.86582 | AI155: 43792.86582
D156: AU | E156: Reconstruction | F156: 43792.86582 | G156: 43792.86582 | H156: 43792.86582 | I156: 43792.86582 | J156: 43792.86582 | K156: 43792.86582 | L156: 43792.86582 | M156: 43792.86582 | N156: 43792.86582 | O156: 43792.86582 | P156: 43792.86582 | Q156: 43792.86582 | R156: 43792.86582 | S156: 43792.86582 | T156: 43792.86582 | U156: 43792.86582 | V156: 43792.86582 | W156: 43792.86582 | X156: 43792.86582 | Y156: 43792.86582 | Z156: 43792.86582 | AA156: 43792.86582 | AB156: 43792.86582 | AC156: 43792.86582 | AD156: 43792.86582 | AE156: 43792.86582 | AF156: 43792.86582 | AG156: 43792.86582 | AH156: 43792.86582 | AI156: 43792.86582
D157: BR | E157: Surface Dressing | F157: 7962.33924 | G157: 7962.33924 | H157: 7962.33924 | I157: 7962.33924 | J157: 7962.33924 | K157: 7962.33924 | L157: 7962.33924 | M157: 7962.33924 | N157: 7962.33924 | O157: 7962.33924 | P157: 7962.33924 | Q157: 7962.33924 | R157: 7962.33924 | S157: 7962.33924 | T157: 7962.33924 | U157: 7962.33924 | V157: 7962.33924 | W157: 7962.33924 | X157: 7962.33924 | Y157: 7962.33924 | Z157: 7962.33924 | AA157: 7962.33924 | AB157: 7962.33924 | AC157: 7962.33924 | AD157: 7962.33924 | AE157: 7962.33924 | AF157: 7962.33924 | AG157: 7962.33924 | AH157: 7962.33924 | AI157: 7962.33924
D158: BR | E158: Micro Asphalt | F158: 7962.33924 | G158: 7962.33924 | H158: 7962.33924 | I158: 7962.33924 | J158: 7962.33924 | K158: 7962.33924 | L158: 7962.33924 | M158: 7962.33924 | N158: 7962.33924 | O158: 7962.33924 | P158: 7962.33924 | Q158: 7962.33924 | R158: 7962.33924 | S158: 7962.33924 | T158: 7962.33924 | U158: 7962.33924 | V158: 7962.33924 | W158: 7962.33924 | X158: 7962.33924 | Y158: 7962.33924 | Z158: 7962.33924 | AA158: 7962.33924 | AB158: 7962.33924 | AC158: 7962.33924 | AD158: 7962.33924 | AE158: 7962.33924 | AF158: 7962.33924 | AG158: 7962.33924 | AH158: 7962.33924 | AI158: 7962.33924
D159: BR | E159: Moderate Overlay | F159: 15924.67848 | G159: 15924.67848 | H159: 15924.67848 | I159: 15924.67848 | J159: 15924.67848 | K159: 15924.67848 | L159: 15924.67848 | M159: 15924.67848 | N159: 15924.67848 | O159: 15924.67848 | P159: 15924.67848 | Q159: 15924.67848 | R159: 15924.67848 | S159: 15924.67848 | T159: 15924.67848 | U159: 15924.67848 | V159: 15924.67848 | W159: 15924.67848 | X159: 15924.67848 | Y159: 15924.67848 | Z159: 15924.67848 | AA159: 15924.67848 | AB159: 15924.67848 | AC159: 15924.67848 | AD159: 15924.67848 | AE159: 15924.67848 | AF159: 15924.67848 | AG159: 15924.67848 | AH159: 15924.67848 | AI159: 15924.67848
D160: BR | E160: Moderate Inlay | F160: 15924.67848 | G160: 15924.67848 | H160: 15924.67848 | I160: 15924.67848 | J160: 15924.67848 | K160: 15924.67848 | L160: 15924.67848 | M160: 15924.67848 | N160: 15924.67848 | O160: 15924.67848 | P160: 15924.67848 | Q160: 15924.67848 | R160: 15924.67848 | S160: 15924.67848 | T160: 15924.67848 | U160: 15924.67848 | V160: 15924.67848 | W160: 15924.67848 | X160: 15924.67848 | Y160: 15924.67848 | Z160: 15924.67848 | AA160: 15924.67848 | AB160: 15924.67848 | AC160: 15924.67848 | AD160: 15924.67848 | AE160: 15924.67848 | AF160: 15924.67848 | AG160: 15924.67848 | AH160: 15924.67848 | AI160: 15924.67848
D161: BR | E161: Deep Inlay | F161: 15924.67848 | G161: 15924.67848 | H161: 15924.67848 | I161: 15924.67848 | J161: 15924.67848 | K161: 15924.67848 | L161: 15924.67848 | M161: 15924.67848 | N161: 15924.67848 | O161: 15924.67848 | P161: 15924.67848 | Q161: 15924.67848 | R161: 15924.67848 | S161: 15924.67848 | T161: 15924.67848 | U161: 15924.67848 | V161: 15924.67848 | W161: 15924.67848 | X161: 15924.67848 | Y161: 15924.67848 | Z161: 15924.67848 | AA161: 15924.67848 | AB161: 15924.67848 | AC161: 15924.67848 | AD161: 15924.67848 | AE161: 15924.67848 | AF161: 15924.67848 | AG161: 15924.67848 | AH161: 15924.67848 | AI161: 15924.67848
D162: BR | E162: Reconstruction | F162: 15924.67848 | G162: 15924.67848 | H162: 15924.67848 | I162: 15924.67848 | J162: 15924.67848 | K162: 15924.67848 | L162: 15924.67848 | M162: 15924.67848 | N162: 15924.67848 | O162: 15924.67848 | P162: 15924.67848 | Q162: 15924.67848 | R162: 15924.67848 | S162: 15924.67848 | T162: 15924.67848 | U162: 15924.67848 | V162: 15924.67848 | W162: 15924.67848 | X162: 15924.67848 | Y162: 15924.67848 | Z162: 15924.67848 | AA162: 15924.67848 | AB162: 15924.67848 | AC162: 15924.67848 | AD162: 15924.67848 | AE162: 15924.67848 | AF162: 15924.67848 | AG162: 15924.67848 | AH162: 15924.67848 | AI162: 15924.67848
D163: BU | E163: Surface Dressing | F163: 1990.58481 | G163: 1990.58481 | H163: 1990.58481 | I163: 1990.58481 | J163: 1990.58481 | K163: 1990.58481 | L163: 1990.58481 | M163: 1990.58481 | N163: 1990.58481 | O163: 1990.58481 | P163: 1990.58481 | Q163: 1990.58481 | R163: 1990.58481 | S163: 1990.58481 | T163: 1990.58481 | U163: 1990.58481 | V163: 1990.58481 | W163: 1990.58481 | X163: 1990.58481 | Y163: 1990.58481 | Z163: 1990.58481 | AA163: 1990.58481 | AB163: 1990.58481 | AC163: 1990.58481 | AD163: 1990.58481 | AE163: 1990.58481 | AF163: 1990.58481 | AG163: 1990.58481 | AH163: 1990.58481 | AI163: 1990.58481
D164: BU | E164: Micro Asphalt | F164: 1990.58481 | G164: 1990.58481 | H164: 1990.58481 | I164: 1990.58481 | J164: 1990.58481 | K164: 1990.58481 | L164: 1990.58481 | M164: 1990.58481 | N164: 1990.58481 | O164: 1990.58481 | P164: 1990.58481 | Q164: 1990.58481 | R164: 1990.58481 | S164: 1990.58481 | T164: 1990.58481 | U164: 1990.58481 | V164: 1990.58481 | W164: 1990.58481 | X164: 1990.58481 | Y164: 1990.58481 | Z164: 1990.58481 | AA164: 1990.58481 | AB164: 1990.58481 | AC164: 1990.58481 | AD164: 1990.58481 | AE164: 1990.58481 | AF164: 1990.58481 | AG164: 1990.58481 | AH164: 1990.58481 | AI164: 1990.58481
D165: BU | E165: Moderate Overlay | F165: 3981.16962 | G165: 3981.16962 | H165: 3981.16962 | I165: 3981.16962 | J165: 3981.16962 | K165: 3981.16962 | L165: 3981.16962 | M165: 3981.16962 | N165: 3981.16962 | O165: 3981.16962 | P165: 3981.16962 | Q165: 3981.16962 | R165: 3981.16962 | S165: 3981.16962 | T165: 3981.16962 | U165: 3981.16962 | V165: 3981.16962 | W165: 3981.16962 | X165: 3981.16962 | Y165: 3981.16962 | Z165: 3981.16962 | AA165: 3981.16962 | AB165: 3981.16962 | AC165: 3981.16962 | AD165: 3981.16962 | AE165: 3981.16962 | AF165: 3981.16962 | AG165: 3981.16962 | AH165: 3981.16962 | AI165: 3981.16962
D166: BU | E166: Moderate Inlay | F166: 3981.16962 | G166: 3981.16962 | H166: 3981.16962 | I166: 3981.16962 | J166: 3981.16962 | K166: 3981.16962 | L166: 3981.16962 | M166: 3981.16962 | N166: 3981.16962 | O166: 3981.16962 | P166: 3981.16962 | Q166: 3981.16962 | R166: 3981.16962 | S166: 3981.16962 | T166: 3981.16962 | U166: 3981.16962 | V166: 3981.16962 | W166: 3981.16962 | X166: 3981.16962 | Y166: 3981.16962 | Z166: 3981.16962 | AA166: 3981.16962 | AB166: 3981.16962 | AC166: 3981.16962 | AD166: 3981.16962 | AE166: 3981.16962 | AF166: 3981.16962 | AG166: 3981.16962 | AH166: 3981.16962 | AI166: 3981.16962
D167: BU | E167: Deep Inlay | F167: 3981.16962 | G167: 3981.16962 | H167: 3981.16962 | I167: 3981.16962 | J167: 3981.16962 | K167: 3981.16962 | L167: 3981.16962 | M167: 3981.16962 | N167: 3981.16962 | O167: 3981.16962 | P167: 3981.16962 | Q167: 3981.16962 | R167: 3981.16962 | S167: 3981.16962 | T167: 3981.16962 | U167: 3981.16962 | V167: 3981.16962 | W167: 3981.16962 | X167: 3981.16962 | Y167: 3981.16962 | Z167: 3981.16962 | AA167: 3981.16962 | AB167: 3981.16962 | AC167: 3981.16962 | AD167: 3981.16962 | AE167: 3981.16962 | AF167: 3981.16962 | AG167: 3981.16962 | AH167: 3981.16962 | AI167: 3981.16962
D168: BU | E168: Reconstruction | F168: 3981.16962 | G168: 3981.16962 | H168: 3981.16962 | I168: 3981.16962 | J168: 3981.16962 | K168: 3981.16962 | L168: 3981.16962 | M168: 3981.16962 | N168: 3981.16962 | O168: 3981.16962 | P168: 3981.16962 | Q168: 3981.16962 | R168: 3981.16962 | S168: 3981.16962 | T168: 3981.16962 | U168: 3981.16962 | V168: 3981.16962 | W168: 3981.16962 | X168: 3981.16962 | Y168: 3981.16962 | Z168: 3981.16962 | AA168: 3981.16962 | AB168: 3981.16962 | AC168: 3981.16962 | AD168: 3981.16962 | AE168: 3981.16962 | AF168: 3981.16962 | AG168: 3981.16962 | AH168: 3981.16962 | AI168: 3981.16962
D169: CR | E169: Surface Dressing | F169: 27868.18734 | G169: 27868.18734 | H169: 27868.18734 | I169: 27868.18734 | J169: 27868.18734 | K169: 27868.18734 | L169: 27868.18734 | M169: 27868.18734 | N169: 27868.18734 | O169: 27868.18734 | P169: 27868.18734 | Q169: 27868.18734 | R169: 27868.18734 | S169: 27868.18734 | T169: 27868.18734 | U169: 27868.18734 | V169: 27868.18734 | W169: 27868.18734 | X169: 27868.18734 | Y169: 27868.18734 | Z169: 27868.18734 | AA169: 27868.18734 | AB169: 27868.18734 | AC169: 27868.18734 | AD169: 27868.18734 | AE169: 27868.18734 | AF169: 27868.18734 | AG169: 27868.18734 | AH169: 27868.18734 | AI169: 27868.18734
D170: CR | E170: Micro Asphalt | F170: 27868.18734 | G170: 27868.18734 | H170: 27868.18734 | I170: 27868.18734 | J170: 27868.18734 | K170: 27868.18734 | L170: 27868.18734 | M170: 27868.18734 | N170: 27868.18734 | O170: 27868.18734 | P170: 27868.18734 | Q170: 27868.18734 | R170: 27868.18734 | S170: 27868.18734 | T170: 27868.18734 | U170: 27868.18734 | V170: 27868.18734 | W170: 27868.18734 | X170: 27868.18734 | Y170: 27868.18734 | Z170: 27868.18734 | AA170: 27868.18734 | AB170: 27868.18734 | AC170: 27868.18734 | AD170: 27868.18734 | AE170: 27868.18734 | AF170: 27868.18734 | AG170: 27868.18734 | AH170: 27868.18734 | AI170: 27868.18734
D171: CR | E171: Moderate Overlay | F171: 55736.37468 | G171: 55736.37468 | H171: 55736.37468 | I171: 55736.37468 | J171: 55736.37468 | K171: 55736.37468 | L171: 55736.37468 | M171: 55736.37468 | N171: 55736.37468 | O171: 55736.37468 | P171: 55736.37468 | Q171: 55736.37468 | R171: 55736.37468 | S171: 55736.37468 | T171: 55736.37468 | U171: 55736.37468 | V171: 55736.37468 | W171: 55736.37468 | X171: 55736.37468 | Y171: 55736.37468 | Z171: 55736.37468 | AA171: 55736.37468 | AB171: 55736.37468 | AC171: 55736.37468 | AD171: 55736.37468 | AE171: 55736.37468 | AF171: 55736.37468 | AG171: 55736.37468 | AH171: 55736.37468 | AI171: 55736.37468
D172: CR | E172: Moderate Inlay | F172: 55736.37468 | G172: 55736.37468 | H172: 55736.37468 | I172: 55736.37468 | J172: 55736.37468 | K172: 55736.37468 | L172: 55736.37468 | M172: 55736.37468 | N172: 55736.37468 | O172: 55736.37468 | P172: 55736.37468 | Q172: 55736.37468 | R172: 55736.37468 | S172: 55736.37468 | T172: 55736.37468 | U172: 55736.37468 | V172: 55736.37468 | W172: 55736.37468 | X172: 55736.37468 | Y172: 55736.37468 | Z172: 55736.37468 | AA172: 55736.37468 | AB172: 55736.37468 | AC172: 55736.37468 | AD172: 55736.37468 | AE172: 55736.37468 | AF172: 55736.37468 | AG172: 55736.37468 | AH172: 55736.37468 | AI172: 55736.37468
D173: CR | E173: Deep Inlay | F173: 55736.37468 | G173: 55736.37468 | H173: 55736.37468 | I173: 55736.37468 | J173: 55736.37468 | K173: 55736.37468 | L173: 55736.37468 | M173: 55736.37468 | N173: 55736.37468 | O173: 55736.37468 | P173: 55736.37468 | Q173: 55736.37468 | R173: 55736.37468 | S173: 55736.37468 | T173: 55736.37468 | U173: 55736.37468 | V173: 55736.37468 | W173: 55736.37468 | X173: 55736.37468 | Y173: 55736.37468 | Z173: 55736.37468 | AA173: 55736.37468 | AB173: 55736.37468 | AC173: 55736.37468 | AD173: 55736.37468 | AE173: 55736.37468 | AF173: 55736.37468 | AG173: 55736.37468 | AH173: 55736.37468 | AI173: 55736.37468
D174: CR | E174: Reconstruction | F174: 55736.37468 | G174: 55736.37468 | H174: 55736.37468 | I174: 55736.37468 | J174: 55736.37468 | K174: 55736.37468 | L174: 55736.37468 | M174: 55736.37468 | N174: 55736.37468 | O174: 55736.37468 | P174: 55736.37468 | Q174: 55736.37468 | R174: 55736.37468 | S174: 55736.37468 | T174: 55736.37468 | U174: 55736.37468 | V174: 55736.37468 | W174: 55736.37468 | X174: 55736.37468 | Y174: 55736.37468 | Z174: 55736.37468 | AA174: 55736.37468 | AB174: 55736.37468 | AC174: 55736.37468 | AD174: 55736.37468 | AE174: 55736.37468 | AF174: 55736.37468 | AG174: 55736.37468 | AH174: 55736.37468 | AI174: 55736.37468
D175: CU | E175: Surface Dressing | F175: 3981.16962 | G175: 3981.16962 | H175: 3981.16962 | I175: 3981.16962 | J175: 3981.16962 | K175: 3981.16962 | L175: 3981.16962 | M175: 3981.16962 | N175: 3981.16962 | O175: 3981.16962 | P175: 3981.16962 | Q175: 3981.16962 | R175: 3981.16962 | S175: 3981.16962 | T175: 3981.16962 | U175: 3981.16962 | V175: 3981.16962 | W175: 3981.16962 | X175: 3981.16962 | Y175: 3981.16962 | Z175: 3981.16962 | AA175: 3981.16962 | AB175: 3981.16962 | AC175: 3981.16962 | AD175: 3981.16962 | AE175: 3981.16962 | AF175: 3981.16962 | AG175: 3981.16962 | AH175: 3981.16962 | AI175: 3981.16962
D176: CU | E176: Micro Asphalt | F176: 3981.16962 | G176: 3981.16962 | H176: 3981.16962 | I176: 3981.16962 | J176: 3981.16962 | K176: 3981.16962 | L176: 3981.16962 | M176: 3981.16962 | N176: 3981.16962 | O176: 3981.16962 | P176: 3981.16962 | Q176: 3981.16962 | R176: 3981.16962 | S176: 3981.16962 | T176: 3981.16962 | U176: 3981.16962 | V176: 3981.16962 | W176: 3981.16962 | X176: 3981.16962 | Y176: 3981.16962 | Z176: 3981.16962 | AA176: 3981.16962 | AB176: 3981.16962 | AC176: 3981.16962 | AD176: 3981.16962 | AE176: 3981.16962 | AF176: 3981.16962 | AG176: 3981.16962 | AH176: 3981.16962 | AI176: 3981.16962
D177: CU | E177: Moderate Overlay | F177: 7962.33924 | G177: 7962.33924 | H177: 7962.33924 | I177: 7962.33924 | J177: 7962.33924 | K177: 7962.33924 | L177: 7962.33924 | M177: 7962.33924 | N177: 7962.33924 | O177: 7962.33924 | P177: 7962.33924 | Q177: 7962.33924 | R177: 7962.33924 | S177: 7962.33924 | T177: 7962.33924 | U177: 7962.33924 | V177: 7962.33924 | W177: 7962.33924 | X177: 7962.33924 | Y177: 7962.33924 | Z177: 7962.33924 | AA177: 7962.33924 | AB177: 7962.33924 | AC177: 7962.33924 | AD177: 7962.33924 | AE177: 7962.33924 | AF177: 7962.33924 | AG177: 7962.33924 | AH177: 7962.33924 | AI177: 7962.33924
D178: CU | E178: Moderate Inlay | F178: 7962.33924 | G178: 7962.33924 | H178: 7962.33924 | I178: 7962.33924 | J178: 7962.33924 | K178: 7962.33924 | L178: 7962.33924 | M178: 7962.33924 | N178: 7962.33924 | O178: 7962.33924 | P178: 7962.33924 | Q178: 7962.33924 | R178: 7962.33924 | S178: 7962.33924 | T178: 7962.33924 | U178: 7962.33924 | V178: 7962.33924 | W178: 7962.33924 | X178: 7962.33924 | Y178: 7962.33924 | Z178: 7962.33924 | AA178: 7962.33924 | AB178: 7962.33924 | AC178: 7962.33924 | AD178: 7962.33924 | AE178: 7962.33924 | AF178: 7962.33924 | AG178: 7962.33924 | AH178: 7962.33924 | AI178: 7962.33924
D179: CU | E179: Deep Inlay | F179: 7962.33924 | G179: 7962.33924 | H179: 7962.33924 | I179: 7962.33924 | J179: 7962.33924 | K179: 7962.33924 | L179: 7962.33924 | M179: 7962.33924 | N179: 7962.33924 | O179: 7962.33924 | P179: 7962.33924 | Q179: 7962.33924 | R179: 7962.33924 | S179: 7962.33924 | T179: 7962.33924 | U179: 7962.33924 | V179: 7962.33924 | W179: 7962.33924 | X179: 7962.33924 | Y179: 7962.33924 | Z179: 7962.33924 | AA179: 7962.33924 | AB179: 7962.33924 | AC179: 7962.33924 | AD179: 7962.33924 | AE179: 7962.33924 | AF179: 7962.33924 | AG179: 7962.33924 | AH179: 7962.33924 | AI179: 7962.33924
D180: CU | E180: Reconstruction | F180: 7962.33924 | G180: 7962.33924 | H180: 7962.33924 | I180: 7962.33924 | J180: 7962.33924 | K180: 7962.33924 | L180: 7962.33924 | M180: 7962.33924 | N180: 7962.33924 | O180: 7962.33924 | P180: 7962.33924 | Q180: 7962.33924 | R180: 7962.33924 | S180: 7962.33924 | T180: 7962.33924 | U180: 7962.33924 | V180: 7962.33924 | W180: 7962.33924 | X180: 7962.33924 | Y180: 7962.33924 | Z180: 7962.33924 | AA180: 7962.33924 | AB180: 7962.33924 | AC180: 7962.33924 | AD180: 7962.33924 | AE180: 7962.33924 | AF180: 7962.33924 | AG180: 7962.33924 | AH180: 7962.33924 | AI180: 7962.33924
D181: MR | E181: Surface Dressing | F181: 1990.58481 | G181: 1990.58481 | H181: 1990.58481 | I181: 1990.58481 | J181: 1990.58481 | K181: 1990.58481 | L181: 1990.58481 | M181: 1990.58481 | N181: 1990.58481 | O181: 1990.58481 | P181: 1990.58481 | Q181: 1990.58481 | R181: 1990.58481 | S181: 1990.58481 | T181: 1990.58481 | U181: 1990.58481 | V181: 1990.58481 | W181: 1990.58481 | X181: 1990.58481 | Y181: 1990.58481 | Z181: 1990.58481 | AA181: 1990.58481 | AB181: 1990.58481 | AC181: 1990.58481 | AD181: 1990.58481 | AE181: 1990.58481 | AF181: 1990.58481 | AG181: 1990.58481 | AH181: 1990.58481 | AI181: 1990.58481
D182: MR | E182: Micro Asphalt | F182: 1990.58481 | G182: 1990.58481 | H182: 1990.58481 | I182: 1990.58481 | J182: 1990.58481 | K182: 1990.58481 | L182: 1990.58481 | M182: 1990.58481 | N182: 1990.58481 | O182: 1990.58481 | P182: 1990.58481 | Q182: 1990.58481 | R182: 1990.58481 | S182: 1990.58481 | T182: 1990.58481 | U182: 1990.58481 | V182: 1990.58481 | W182: 1990.58481 | X182: 1990.58481 | Y182: 1990.58481 | Z182: 1990.58481 | AA182: 1990.58481 | AB182: 1990.58481 | AC182: 1990.58481 | AD182: 1990.58481 | AE182: 1990.58481 | AF182: 1990.58481 | AG182: 1990.58481 | AH182: 1990.58481 | AI182: 1990.58481
D183: MR | E183: Moderate Overlay | F183: 3981.16962 | G183: 3981.16962 | H183: 3981.16962 | I183: 3981.16962 | J183: 3981.16962 | K183: 3981.16962 | L183: 3981.16962 | M183: 3981.16962 | N183: 3981.16962 | O183: 3981.16962 | P183: 3981.16962 | Q183: 3981.16962 | R183: 3981.16962 | S183: 3981.16962 | T183: 3981.16962 | U183: 3981.16962 | V183: 3981.16962 | W183: 3981.16962 | X183: 3981.16962 | Y183: 3981.16962 | Z183: 3981.16962 | AA183: 3981.16962 | AB183: 3981.16962 | AC183: 3981.16962 | AD183: 3981.16962 | AE183: 3981.16962 | AF183: 3981.16962 | AG183: 3981.16962 | AH183: 3981.16962 | AI183: 3981.16962
D184: MR | E184: Moderate Inlay | F184: 3981.16962 | G184: 3981.16962 | H184: 3981.16962 | I184: 3981.16962 | J184: 3981.16962 | K184: 3981.16962 | L184: 3981.16962 | M184: 3981.16962 | N184: 3981.16962 | O184: 3981.16962 | P184: 3981.16962 | Q184: 3981.16962 | R184: 3981.16962 | S184: 3981.16962 | T184: 3981.16962 | U184: 3981.16962 | V184: 3981.16962 | W184: 3981.16962 | X184: 3981.16962 | Y184: 3981.16962 | Z184: 3981.16962 | AA184: 3981.16962 | AB184: 3981.16962 | AC184: 3981.16962 | AD184: 3981.16962 | AE184: 3981.16962 | AF184: 3981.16962 | AG184: 3981.16962 | AH184: 3981.16962 | AI184: 3981.16962
D185: MR | E185: Deep Inlay | F185: 3981.16962 | G185: 3981.16962 | H185: 3981.16962 | I185: 3981.16962 | J185: 3981.16962 | K185: 3981.16962 | L185: 3981.16962 | M185: 3981.16962 | N185: 3981.16962 | O185: 3981.16962 | P185: 3981.16962 | Q185: 3981.16962 | R185: 3981.16962 | S185: 3981.16962 | T185: 3981.16962 | U185: 3981.16962 | V185: 3981.16962 | W185: 3981.16962 | X185: 3981.16962 | Y185: 3981.16962 | Z185: 3981.16962 | AA185: 3981.16962 | AB185: 3981.16962 | AC185: 3981.16962 | AD185: 3981.16962 | AE185: 3981.16962 | AF185: 3981.16962 | AG185: 3981.16962 | AH185: 3981.16962 | AI185: 3981.16962
D186: MR | E186: Reconstruction | F186: 3981.16962 | G186: 3981.16962 | H186: 3981.16962 | I186: 3981.16962 | J186: 3981.16962 | K186: 3981.16962 | L186: 3981.16962 | M186: 3981.16962 | N186: 3981.16962 | O186: 3981.16962 | P186: 3981.16962 | Q186: 3981.16962 | R186: 3981.16962 | S186: 3981.16962 | T186: 3981.16962 | U186: 3981.16962 | V186: 3981.16962 | W186: 3981.16962 | X186: 3981.16962 | Y186: 3981.16962 | Z186: 3981.16962 | AA186: 3981.16962 | AB186: 3981.16962 | AC186: 3981.16962 | AD186: 3981.16962 | AE186: 3981.16962 | AF186: 3981.16962 | AG186: 3981.16962 | AH186: 3981.16962 | AI186: 3981.16962
D187: MU | E187: Surface Dressing | F187: 1990.58481 | G187: 1990.58481 | H187: 1990.58481 | I187: 1990.58481 | J187: 1990.58481 | K187: 1990.58481 | L187: 1990.58481 | M187: 1990.58481 | N187: 1990.58481 | O187: 1990.58481 | P187: 1990.58481 | Q187: 1990.58481 | R187: 1990.58481 | S187: 1990.58481 | T187: 1990.58481 | U187: 1990.58481 | V187: 1990.58481 | W187: 1990.58481 | X187: 1990.58481 | Y187: 1990.58481 | Z187: 1990.58481 | AA187: 1990.58481 | AB187: 1990.58481 | AC187: 1990.58481 | AD187: 1990.58481 | AE187: 1990.58481 | AF187: 1990.58481 | AG187: 1990.58481 | AH187: 1990.58481 | AI187: 1990.58481
D188: MU | E188: Micro Asphalt | F188: 1990.58481 | G188: 1990.58481 | H188: 1990.58481 | I188: 1990.58481 | J188: 1990.58481 | K188: 1990.58481 | L188: 1990.58481 | M188: 1990.58481 | N188: 1990.58481 | O188: 1990.58481 | P188: 1990.58481 | Q188: 1990.58481 | R188: 1990.58481 | S188: 1990.58481 | T188: 1990.58481 | U188: 1990.58481 | V188: 1990.58481 | W188: 1990.58481 | X188: 1990.58481 | Y188: 1990.58481 | Z188: 1990.58481 | AA188: 1990.58481 | AB188: 1990.58481 | AC188: 1990.58481 | AD188: 1990.58481 | AE188: 1990.58481 | AF188: 1990.58481 | AG188: 1990.58481 | AH188: 1990.58481 | AI188: 1990.58481
D189: MU | E189: Moderate Overlay | F189: 3981.16962 | G189: 3981.16962 | H189: 3981.16962 | I189: 3981.16962 | J189: 3981.16962 | K189: 3981.16962 | L189: 3981.16962 | M189: 3981.16962 | N189: 3981.16962 | O189: 3981.16962 | P189: 3981.16962 | Q189: 3981.16962 | R189: 3981.16962 | S189: 3981.16962 | T189: 3981.16962 | U189: 3981.16962 | V189: 3981.16962 | W189: 3981.16962 | X189: 3981.16962 | Y189: 3981.16962 | Z189: 3981.16962 | AA189: 3981.16962 | AB189: 3981.16962 | AC189: 3981.16962 | AD189: 3981.16962 | AE189: 3981.16962 | AF189: 3981.16962 | AG189: 3981.16962 | AH189: 3981.16962 | AI189: 3981.16962
D190: MU | E190: Moderate Inlay | F190: 3981.16962 | G190: 3981.16962 | H190: 3981.16962 | I190: 3981.16962 | J190: 3981.16962 | K190: 3981.16962 | L190: 3981.16962 | M190: 3981.16962 | N190: 3981.16962 | O190: 3981.16962 | P190: 3981.16962 | Q190: 3981.16962 | R190: 3981.16962 | S190: 3981.16962 | T190: 3981.16962 | U190: 3981.16962 | V190: 3981.16962 | W190: 3981.16962 | X190: 3981.16962 | Y190: 3981.16962 | Z190: 3981.16962 | AA190: 3981.16962 | AB190: 3981.16962 | AC190: 3981.16962 | AD190: 3981.16962 | AE190: 3981.16962 | AF190: 3981.16962 | AG190: 3981.16962 | AH190: 3981.16962 | AI190: 3981.16962
D191: MU | E191: Deep Inlay | F191: 3981.16962 | G191: 3981.16962 | H191: 3981.16962 | I191: 3981.16962 | J191: 3981.16962 | K191: 3981.16962 | L191: 3981.16962 | M191: 3981.16962 | N191: 3981.16962 | O191: 3981.16962 | P191: 3981.16962 | Q191: 3981.16962 | R191: 3981.16962 | S191: 3981.16962 | T191: 3981.16962 | U191: 3981.16962 | V191: 3981.16962 | W191: 3981.16962 | X191: 3981.16962 | Y191: 3981.16962 | Z191: 3981.16962 | AA191: 3981.16962 | AB191: 3981.16962 | AC191: 3981.16962 | AD191: 3981.16962 | AE191: 3981.16962 | AF191: 3981.16962 | AG191: 3981.16962 | AH191: 3981.16962 | AI191: 3981.16962
D192: MU | E192: Reconstruction | F192: 3981.16962 | G192: 3981.16962 | H192: 3981.16962 | I192: 3981.16962 | J192: 3981.16962 | K192: 3981.16962 | L192: 3981.16962 | M192: 3981.16962 | N192: 3981.16962 | O192: 3981.16962 | P192: 3981.16962 | Q192: 3981.16962 | R192: 3981.16962 | S192: 3981.16962 | T192: 3981.16962 | U192: 3981.16962 | V192: 3981.16962 | W192: 3981.16962 | X192: 3981.16962 | Y192: 3981.16962 | Z192: 3981.16962 | AA192: 3981.16962 | AB192: 3981.16962 | AC192: 3981.16962 | AD192: 3981.16962 | AE192: 3981.16962 | AF192: 3981.16962 | AG192: 3981.16962 | AH192: 3981.16962 | AI192: 3981.16962
D193: UR | E193: Surface Dressing | F193: 43792.86582 | G193: 43792.86582 | H193: 43792.86582 | I193: 43792.86582 | J193: 43792.86582 | K193: 43792.86582 | L193: 43792.86582 | M193: 43792.86582 | N193: 43792.86582 | O193: 43792.86582 | P193: 43792.86582 | Q193: 43792.86582 | R193: 43792.86582 | S193: 43792.86582 | T193: 43792.86582 | U193: 43792.86582 | V193: 43792.86582 | W193: 43792.86582 | X193: 43792.86582 | Y193: 43792.86582 | Z193: 43792.86582 | AA193: 43792.86582 | AB193: 43792.86582 | AC193: 43792.86582 | AD193: 43792.86582 | AE193: 43792.86582 | AF193: 43792.86582 | AG193: 43792.86582 | AH193: 43792.86582 | AI193: 43792.86582
D194: UR | E194: Micro Asphalt | F194: 43792.86582 | G194: 43792.86582 | H194: 43792.86582 | I194: 43792.86582 | J194: 43792.86582 | K194: 43792.86582 | L194: 43792.86582 | M194: 43792.86582 | N194: 43792.86582 | O194: 43792.86582 | P194: 43792.86582 | Q194: 43792.86582 | R194: 43792.86582 | S194: 43792.86582 | T194: 43792.86582 | U194: 43792.86582 | V194: 43792.86582 | W194: 43792.86582 | X194: 43792.86582 | Y194: 43792.86582 | Z194: 43792.86582 | AA194: 43792.86582 | AB194: 43792.86582 | AC194: 43792.86582 | AD194: 43792.86582 | AE194: 43792.86582 | AF194: 43792.86582 | AG194: 43792.86582 | AH194: 43792.86582 | AI194: 43792.86582
D195: UR | E195: Moderate Overlay | F195: 87585.73164 | G195: 87585.73164 | H195: 87585.73164 | I195: 87585.73164 | J195: 87585.73164 | K195: 87585.73164 | L195: 87585.73164 | M195: 87585.73164 | N195: 87585.73164 | O195: 87585.73164 | P195: 87585.73164 | Q195: 87585.73164 | R195: 87585.73164 | S195: 87585.73164 | T195: 87585.73164 | U195: 87585.73164 | V195: 87585.73164 | W195: 87585.73164 | X195: 87585.73164 | Y195: 87585.73164 | Z195: 87585.73164 | AA195: 87585.73164 | AB195: 87585.73164 | AC195: 87585.73164 | AD195: 87585.73164 | AE195: 87585.73164 | AF195: 87585.73164 | AG195: 87585.73164 | AH195: 87585.73164 | AI195: 87585.73164
D196: UR | E196: Moderate Inlay | F196: 87585.73164 | G196: 87585.73164 | H196: 87585.73164 | I196: 87585.73164 | J196: 87585.73164 | K196: 87585.73164 | L196: 87585.73164 | M196: 87585.73164 | N196: 87585.73164 | O196: 87585.73164 | P196: 87585.73164 | Q196: 87585.73164 | R196: 87585.73164 | S196: 87585.73164 | T196: 87585.73164 | U196: 87585.73164 | V196: 87585.73164 | W196: 87585.73164 | X196: 87585.73164 | Y196: 87585.73164 | Z196: 87585.73164 | AA196: 87585.73164 | AB196: 87585.73164 | AC196: 87585.73164 | AD196: 87585.73164 | AE196: 87585.73164 | AF196: 87585.73164 | AG196: 87585.73164 | AH196: 87585.73164 | AI196: 87585.73164
D197: UR | E197: Deep Inlay | F197: 87585.73164 | G197: 87585.73164 | H197: 87585.73164 | I197: 87585.73164 | J197: 87585.73164 | K197: 87585.73164 | L197: 87585.73164 | M197: 87585.73164 | N197: 87585.73164 | O197: 87585.73164 | P197: 87585.73164 | Q197: 87585.73164 | R197: 87585.73164 | S197: 87585.73164 | T197: 87585.73164 | U197: 87585.73164 | V197: 87585.73164 | W197: 87585.73164 | X197: 87585.73164 | Y197: 87585.73164 | Z197: 87585.73164 | AA197: 87585.73164 | AB197: 87585.73164 | AC197: 87585.73164 | AD197: 87585.73164 | AE197: 87585.73164 | AF197: 87585.73164 | AG197: 87585.73164 | AH197: 87585.73164 | AI197: 87585.73164
D198: UR | E198: Reconstruction | F198: 87585.73164 | G198: 87585.73164 | H198: 87585.73164 | I198: 87585.73164 | J198: 87585.73164 | K198: 87585.73164 | L198: 87585.73164 | M198: 87585.73164 | N198: 87585.73164 | O198: 87585.73164 | P198: 87585.73164 | Q198: 87585.73164 | R198: 87585.73164 | S198: 87585.73164 | T198: 87585.73164 | U198: 87585.73164 | V198: 87585.73164 | W198: 87585.73164 | X198: 87585.73164 | Y198: 87585.73164 | Z198: 87585.73164 | AA198: 87585.73164 | AB198: 87585.73164 | AC198: 87585.73164 | AD198: 87585.73164 | AE198: 87585.73164 | AF198: 87585.73164 | AG198: 87585.73164 | AH198: 87585.73164 | AI198: 87585.73164
D199: UU | E199: Surface Dressing | F199: 43792.86582 | G199: 43792.86582 | H199: 43792.86582 | I199: 43792.86582 | J199: 43792.86582 | K199: 43792.86582 | L199: 43792.86582 | M199: 43792.86582 | N199: 43792.86582 | O199: 43792.86582 | P199: 43792.86582 | Q199: 43792.86582 | R199: 43792.86582 | S199: 43792.86582 | T199: 43792.86582 | U199: 43792.86582 | V199: 43792.86582 | W199: 43792.86582 | X199: 43792.86582 | Y199: 43792.86582 | Z199: 43792.86582 | AA199: 43792.86582 | AB199: 43792.86582 | AC199: 43792.86582 | AD199: 43792.86582 | AE199: 43792.86582 | AF199: 43792.86582 | AG199: 43792.86582 | AH199: 43792.86582 | AI199: 43792.86582
D200: UU | E200: Micro Asphalt | F200: 43792.86582 | G200: 43792.86582 | H200: 43792.86582 | I200: 43792.86582 | J200: 43792.86582 | K200: 43792.86582 | L200: 43792.86582 | M200: 43792.86582 | N200: 43792.86582 | O200: 43792.86582 | P200: 43792.86582 | Q200: 43792.86582 | R200: 43792.86582 | S200: 43792.86582 | T200: 43792.86582 | U200: 43792.86582 | V200: 43792.86582 | W200: 43792.86582 | X200: 43792.86582 | Y200: 43792.86582 | Z200: 43792.86582 | AA200: 43792.86582 | AB200: 43792.86582 | AC200: 43792.86582 | AD200: 43792.86582 | AE200: 43792.86582 | AF200: 43792.86582 | AG200: 43792.86582 | AH200: 43792.86582 | AI200: 43792.86582
D201: UU | E201: Moderate Overlay | F201: 87585.73164 | G201: 87585.73164 | H201: 87585.73164 | I201: 87585.73164 | J201: 87585.73164 | K201: 87585.73164 | L201: 87585.73164 | M201: 87585.73164 | N201: 87585.73164 | O201: 87585.73164 | P201: 87585.73164 | Q201: 87585.73164 | R201: 87585.73164 | S201: 87585.73164 | T201: 87585.73164 | U201: 87585.73164 | V201: 87585.73164 | W201: 87585.73164 | X201: 87585.73164 | Y201: 87585.73164 | Z201: 87585.73164 | AA201: 87585.73164 | AB201: 87585.73164 | AC201: 87585.73164 | AD201: 87585.73164 | AE201: 87585.73164 | AF201: 87585.73164 | AG201: 87585.73164 | AH201: 87585.73164 | AI201: 87585.73164
D202: UU | E202: Moderate Inlay | F202: 87585.73164 | G202: 87585.73164 | H202: 87585.73164 | I202: 87585.73164 | J202: 87585.73164 | K202: 87585.73164 | L202: 87585.73164 | M202: 87585.73164 | N202: 87585.73164 | O202: 87585.73164 | P202: 87585.73164 | Q202: 87585.73164 | R202: 87585.73164 | S202: 87585.73164 | T202: 87585.73164 | U202: 87585.73164 | V202: 87585.73164 | W202: 87585.73164 | X202: 87585.73164 | Y202: 87585.73164 | Z202: 87585.73164 | AA202: 87585.73164 | AB202: 87585.73164 | AC202: 87585.73164 | AD202: 87585.73164 | AE202: 87585.73164 | AF202: 87585.73164 | AG202: 87585.73164 | AH202: 87585.73164 | AI202: 87585.73164
D203: UU | E203: Deep Inlay | F203: 87585.73164 | G203: 87585.73164 | H203: 87585.73164 | I203: 87585.73164 | J203: 87585.73164 | K203: 87585.73164 | L203: 87585.73164 | M203: 87585.73164 | N203: 87585.73164 | O203: 87585.73164 | P203: 87585.73164 | Q203: 87585.73164 | R203: 87585.73164 | S203: 87585.73164 | T203: 87585.73164 | U203: 87585.73164 | V203: 87585.73164 | W203: 87585.73164 | X203: 87585.73164 | Y203: 87585.73164 | Z203: 87585.73164 | AA203: 87585.73164 | AB203: 87585.73164 | AC203: 87585.73164 | AD203: 87585.73164 | AE203: 87585.73164 | AF203: 87585.73164 | AG203: 87585.73164 | AH203: 87585.73164 | AI203: 87585.73164
D204: UU | E204: Reconstruction | F204: 87585.73164 | G204: 87585.73164 | H204: 87585.73164 | I204: 87585.73164 | J204: 87585.73164 | K204: 87585.73164 | L204: 87585.73164 | M204: 87585.73164 | N204: 87585.73164 | O204: 87585.73164 | P204: 87585.73164 | Q204: 87585.73164 | R204: 87585.73164 | S204: 87585.73164 | T204: 87585.73164 | U204: 87585.73164 | V204: 87585.73164 | W204: 87585.73164 | X204: 87585.73164 | Y204: 87585.73164 | Z204: 87585.73164 | AA204: 87585.73164 | AB204: 87585.73164 | AC204: 87585.73164 | AD204: 87585.73164 | AE204: 87585.73164 | AF204: 87585.73164 | AG204: 87585.73164 | AH204: 87585.73164 | AI204: 87585.73164

Sheet 0a - Homesheet
B3: HOMESHEET
B7: BASIC USER GUIDANCE
B9: SHEET TAB COLOURS
D11: Input Sheets: use these sheets to input data to be used in the model, and to initiate model runs.
D13: Output Sheets: use these sheets to view model outputs in tabular and graphical form.
B15: INPUT CELL COLOURS
D17: Mandatory: values must be supplied for these cells before the model can be run. In certain circumstances values
D18: may be left blank to signify zero values
D20: Optional: the values in these cells are not used in model runs, but may be entered to aid interpretation of outputs.
D22: Read-Only: the values in these cells are for display purposes only and may not be edited.
B24: TASK-BAR BUTTONS
D26: Homesheet: Click on this button to go to the Homesheet.
D29: Model Structure: Click on the button to go to the Model Structure sheet.
D32: Copy to Clipboard: Click on the button to copy the contents of the worksheet to the Windows Clipboard for .
D33: subsequent transfer / pasting to MS Word, Excel, etc.
D34: Help Button: a help button is located on the title-bar of each sheet/screen. Click on the button to display
D35: guidance which is appropriate to the relevant screen.
B37: For more comprehensive user guidance, please refer to the accompanying user manual.
B39: N.B. Please ensure that Macros are enabled before attempting to use this model.
B41: VERSION HISTORY
B43: Version | C43: Date | F43: Description
B44: 1.00 | C44: 2012-11-29 | F44: First release of the HMEP Toolkit
B45: 1.01 | C45: 2013-06-18 | F45: Four transition probabilities corrected
B50: FAULT REPORTING
B52: The HMEP Programme Board would welcome any comments and feedback on this Toolkit, so that it may be reviewed, improved, and refined to give the sector the best support possible.
B54: Please send your comments by email to highwaysefficiency@dft.gsi.gov.uk with the header, "Feedback on the Lifecycle Planning Toolkit":
B55: highwaysefficiency@dft.gsi.gov.uk
B58: ACKNOWLEDGMENTS
B60: The Lifecycle Planning Toolkit was developed by Atkins under the Highways Maintenance Efficiency Programme (HMEP). The help and support of the HMEP Asset Management Working Group and other contributors is acknowledged.
B62: Atkins Project Team
B63: Dr. Michael Anyala
B64: Alan Taggart
B65: Lila Tachtsi
B66: Dr. Eric Stannard
B67: Dr. Ro Cartwright
B68: Prof. Martin Snaith
B69: John Paterson
B71: HMEP Asset Management Working Group
B73: Chair – Matthew Lugg OBE (President of ADEPT and Director of Environment and Transport for Leicestershire CC)
B74: DfT - Haydn Davies | I74: UK Lighting Board - Peter Hosking
B75: DfT - Steve Berry | I75: UK Bridges Board / TAG - David Yeoell
B76: HAMFIG - Chris Allen-Smith | I76: UKRLG AM Group - Andy Stevenson
B77: Highways Agency - Clare Griffin | I77: UKRLG AM Group - Garry Sterritt
B78: Highways Agency - Richard Arrowsmith | I78: UKRLG AM Group - Paul Boss
B79: HMEP - Gary Thompson | I79: UKRLG AM Group - Lester Wilmington
B80: HTMA - Dennis Parkinson | I80: UKRLG AM Group - Phil Moore

Sheet 0b - Model Structure
B3: MODEL STRUCTURE
B5: INPUTS
B16: ANALYSIS
B22: OUTPUTS

Sheet 0 - Input Sheet (hidden)
B3: Input Sheet
B7: Analysis period | E7: Condition Bands | L7: Homogeneous asset groups | O7: Scenarios | Q7: Treatment Types
E8: Number of condition bands | L8: Number of homogeneous asset groups | R8: Number of treatment types
B9: Start Year | C9: 2014 | F9: 5 | M9: 10 | S9: 6
B11: Analysis Period | C11: 30 | D11: yrs | E11: Rank | F11: Description | G11: Short Code | L11: No. | M11: Name | O11: Number | Q11: No. | R11: Description | S11: Name
G12: None | S12: None
E13: =ROW()-12 -> 1 | F13: Very Good | G13: VG | L13: =ROW()-12 -> 1 | M13: AR | O13: 1 | Q13: =ROW()-12 -> 1 | R13: SD | S13: Surface Dressing
B14: End Year: | C14: =start_year+analysis_period-1 -> 2043 | E14: =ROW()-12 -> 2 | F14: Good | G14: G | L14: 2 | M14: AU | O14: 1 | Q14: 2 | R14: MA | S14: Micro Asphalt
E15: =ROW()-12 -> 3 | F15: Fair | G15: F | L15: 3 | M15: BR | O15: 1 | Q15: 3 | R15: MO | S15: Moderate Overlay
B16: Output Graphs | E16: =ROW()-12 -> 4 | F16: Poor | G16: P | L16: 4 | M16: BU | O16: 1 | Q16: 4 | R16: MI | S16: Moderate Inlay
E17: =ROW()-12 -> 5 | F17: Very Poor | G17: VP | L17: 5 | M17: CR | O17: 1 | Q17: 5 | R17: DI | S17: Deep Inlay
B18: Graph Type: | C18: Bar | D18: Bar | L18: 6 | M18: CU | O18: 1 | Q18: 6 | R18: RE | S18: Reconstruction
D19: Area | L19: 7 | M19: MR | O19: 1
L20: 8 | M20: MU | O20: 1
L21: 9 | M21: UR | O21: 1
L22: 10 | M22: UU | O22: 1
B115: Model parameters, which are not user-definable
B116: Minimum analysis period | C116: 10 | E116: Minimum number of bands | F116: 3 | L116: Minimum number of homogeneous groups | M116: 1 | O116: 1 | Q116: Minimum number of treatments | S116: 2
B117: Maximum analysis period | C117: 60 | E117: Maximum number of bands | F117: 10 | L117: Maximum number of homogeneous groups | M117: 100 | O117: 3 | Q117: Maximum number of treatments | S117: 10

Sheet 1 - Homog Asset Groups
B3: HOMOGENEOUS ASSET GROUPS
I6: Initial Condition | T6: CAT 1 Defects | Z6: CAT 2 Defects
I7: % of Asset Group in condition band in base year | T7: Average Annual Number per 100m Section in Condition Band | Z7: Average Annual Number per 100m Section in Condition Band
I8: =COLUMN()-8 -> 1 | J8: 2 | K8: 3 | L8: 4 | M8: 5 | N8: 6 | O8: 7 | P8: 8 | Q8: 9 | R8: 10 | T8: 1 | U8: 2 | V8: 3 | W8: 4 | X8: 5 | Z8: 1 | AA8: 2 | AB8: 3 | AC8: 4 | AD8: 5
B9: Asset Group | C9: Description | D9: Length (m) | E9: Width (m) | F9: Area | G9: Units | I9: =OFFSET(CONDITION_BAND_CODE,I8-1,0) -> VG | J9: G | K9: F | L9: P | M9: VP | N9: 0 | O9: 0 | P9: 0 | Q9: 0 | R9: 0 | T9: =OFFSET(CONDITION_BAND_CODE,T8-1,0) -> VG | U9: =OFFSET(CONDITION_BAND_CODE,U8-1,0) -> G | V9: =OFFSET(CONDITION_BAND_CODE,V8-1,0) -> F | W9: =OFFSET(CONDITION_BAND_CODE,W8-1,0) -> P | X9: =OFFSET(CONDITION_BAND_CODE,X8-1,0) -> VP | Z9: =OFFSET(CONDITION_BAND_CODE,Z8-1,0) -> VG | AA9: =OFFSET(CONDITION_BAND_CODE,AA8-1,0) -> G | AB9: =OFFSET(CONDITION_BAND_CODE,AB8-1,0) -> F | AC9: =OFFSET(CONDITION_BAND_CODE,AC8-1,0) -> P | AD9: =OFFSET(CONDITION_BAND_CODE,AD8-1,0) -> VP
B10: =ROW() - 9 -> 1 | C10: =OFFSET(ASSET_GROUP_NAME,'1 - Homog Asset Groups'!B10-1,0) -> AR | D10: 20336000 | E10: 8.1 | F10: =D10*E10 -> 164721600 | G10: m² | I10: 0.3155 | J10: 0.4326 | K10: 0.1942 | L10: 0.0499 | M10: 0.0078 | N10: 0 | O10: 0 | P10: 0 | Q10: 0 | R10: 0.1 | S10: =IF(SUM(OFFSET(I10,0,0,1,current_conditionBands)) <> 100%, "ERROR","") ->  | T10: 0 | U10: 0 | V10: 0 | W10: 0 | X10: 0 | Z10: 0 | AA10: 0 | AB10: 0 | AC10: 0 | AD10: 0
B11: 2 | C11: =OFFSET(ASSET_GROUP_NAME,'1 - Homog Asset Groups'!B11-1,0) -> AU | D11: 9674000 | E11: 8.6 | F11: 83196400 | G11: m² | I11: 0.3081 | J11: 0.3732 | K11: 0.209 | L11: 0.0884 | M11: 0.0213 | N11: 0 | O11: 0 | P11: 0 | Q11: 0 | R11: 0.1 | T11: 0 | U11: 0 | V11: 0 | W11: 0 | X11: 0 | Z11: 0 | AA11: 0 | AB11: 0 | AC11: 0 | AD11: 0
B12: 3 | C12: =OFFSET(ASSET_GROUP_NAME,'1 - Homog Asset Groups'!B12-1,0) -> BR | D12: 15236000 | E12: 6.4 | F12: 97510400 | G12: m² | I12: 0.2141 | J12: 0.4604 | K12: 0.251 | L12: 0.0624 | M12: 0.0121 | N12: 0 | O12: 0 | P12: 0 | Q12: 0 | R12: 0.1 | T12: 0 | U12: 0 | V12: 0 | W12: 0 | X12: 0 | Z12: 0 | AA12: 0 | AB12: 0 | AC12: 0 | AD12: 0
B13: 4 | C13: =OFFSET(ASSET_GROUP_NAME,'1 - Homog Asset Groups'!B13-1,0) -> BU | D13: 4139000 | E13: 7.3 | F13: 30214700 | G13: m² | I13: 0.278 | J13: 0.3989 | K13: 0.2161 | L13: 0.0815 | M13: 0.0255 | N13: 0 | O13: 0 | P13: 0 | Q13: 0 | R13: 0.1 | T13: 0 | U13: 0 | V13: 0 | W13: 0 | X13: 0 | Z13: 0 | AA13: 0 | AB13: 0 | AC13: 0 | AD13: 0
B14: 5 | C14: =OFFSET(ASSET_GROUP_NAME,'1 - Homog Asset Groups'!B14-1,0) -> CR | D14: 54480000 | E14: 5.4 | F14: 294192000 | G14: m² | I14: 0.2146 | J14: 0.404 | K14: 0.2804 | L14: 0.0824 | M14: 0.0186 | N14: 0 | O14: 0 | P14: 0 | Q14: 0 | R14: 0.1 | T14: 0 | U14: 0 | V14: 0 | W14: 0 | X14: 0 | Z14: 0 | AA14: 0 | AB14: 0 | AC14: 0 | AD14: 0
B15: 6 | C15: =OFFSET(ASSET_GROUP_NAME,'1 - Homog Asset Groups'!B15-1,0) -> CU | D15: 9078000 | E15: 6.9 | F15: 62638200 | G15: m² | I15: 0.3517 | J15: 0.3508 | K15: 0.1924 | L15: 0.0761 | M15: 0.029 | N15: 0 | O15: 0 | P15: 0 | Q15: 0 | R15: 0.1 | T15: 0 | U15: 0 | V15: 0 | W15: 0 | X15: 0 | Z15: 0 | AA15: 0 | AB15: 0 | AC15: 0 | AD15: 0
B16: 7 | C16: =OFFSET(ASSET_GROUP_NAME,'1 - Homog Asset Groups'!B16-1,0) -> MR | D16: 41150 | E16: 11 | F16: 452650 | G16: m² | I16: 0.6425 | J16: 0.2109 | K16: 0.0936 | L16: 0.0401 | M16: 0.0129 | N16: 0 | O16: 0 | P16: 0 | Q16: 0 | R16: 0.1 | T16: 0 | U16: 0 | V16: 0 | W16: 0 | X16: 0 | Z16: 0 | AA16: 0 | AB16: 0 | AC16: 0 | AD16: 0
B17: 8 | C17: =OFFSET(ASSET_GROUP_NAME,'1 - Homog Asset Groups'!B17-1,0) -> MU | D17: 41150 | E17: 11 | F17: 452650 | G17: m² | I17: 0.3928 | J17: 0.3184 | K17: 0.1656 | L17: 0.1005 | M17: 0.0227 | N17: 0 | O17: 0 | P17: 0 | Q17: 0 | R17: 0.1 | T17: 0 | U17: 0 | V17: 0 | W17: 0 | X17: 0 | Z17: 0 | AA17: 0 | AB17: 0 | AC17: 0 | AD17: 0
B18: 9 | C18: =OFFSET(ASSET_GROUP_NAME,'1 - Homog Asset Groups'!B18-1,0) -> UR | D18: 83379000 | E18: 4.4 | F18: 366867600 | G18: m² | I18: 0.239 | J18: 0.177 | K18: 0.292 | L18: 0.159 | M18: 0.133 | N18: 0 | O18: 0 | P18: 0 | Q18: 0 | R18: 0.1 | T18: 0 | U18: 0 | V18: 0 | W18: 0 | X18: 0 | Z18: 0 | AA18: 0 | AB18: 0 | AC18: 0 | AD18: 0
B19: 10 | C19: =OFFSET(ASSET_GROUP_NAME,'1 - Homog Asset Groups'!B19-1,0) -> UU | D19: 86979000 | E19: 6.3 | F19: 547967700 | G19: m² | I19: 0.354 | J19: 0.209 | K19: 0.253 | L19: 0.096 | M19: 0.088 | N19: 0 | O19: 0 | P19: 0 | Q19: 0 | R19: 0.1 | T19: 0 | U19: 0 | V19: 0 | W19: 0 | X19: 0 | Z19: 0 | AA19: 0 | AB19: 0 | AC19: 0 | AD19: 0

Sheet 2 - Transition Matrices
B3: TRANSITION MATRICES
C7: 1 | N7: 2 | X7: 3 | AG7: 4 | AO7: 5 | AV7: 6 | BB7: 7 | BG7: 8 | BK7: 9
C8: =OFFSET(CONDITION_BAND_CODE,C7-1,0) -> VG | M8: Validity Check | N8: =OFFSET(CONDITION_BAND_CODE,N7-1,0) -> G | W8: Validity Check | X8: =OFFSET(CONDITION_BAND_CODE,X7-1,0) -> F | AF8: Validity Check | AG8: =OFFSET(CONDITION_BAND_CODE,AG7-1,0) -> P | AN8: Validity Check | AO8: =OFFSET(CONDITION_BAND_CODE,AO7-1,0) -> VP | AU8: Validity Check | AV8: =OFFSET(CONDITION_BAND_CODE,AV7-1,0) -> 0 | BA8: Validity Check | BB8: =OFFSET(CONDITION_BAND_CODE,BB7-1,0) -> 0 | BF8: Validity Check | BG8: =OFFSET(CONDITION_BAND_CODE,BG7-1,0) -> 0 | BJ8: Validity Check | BK8: =OFFSET(CONDITION_BAND_CODE,BK7-1,0) -> 0 | BM8: Validity Check
C9: 1 | D9: 2 | E9: 3 | F9: 4 | G9: 5 | H9: 6 | I9: 7 | J9: 8 | K9: 9 | L9: 10 | N9: 2 | O9: 3 | P9: 4 | Q9: 5 | R9: 6 | S9: 7 | T9: 8 | U9: 9 | V9: 10 | X9: 3 | Y9: 4 | Z9: 5 | AA9: 6 | AB9: 7 | AC9: 8 | AD9: 9 | AE9: 10 | AG9: 4 | AH9: 5 | AI9: 6 | AJ9: 7 | AK9: 8 | AL9: 9 | AM9: 10 | AO9: 5 | AP9: 6 | AQ9: 7 | AR9: 8 | AS9: 9 | AT9: 10 | AV9: 6 | AW9: 7 | AX9: 8 | AY9: 9 | AZ9: 10 | BB9: 7 | BC9: 8 | BD9: 9 | BE9: 10 | BG9: 8 | BH9: 9 | BI9: 10 | BK9: 9 | BL9: 10
B10: Matrix Name | C10: ="-> " & OFFSET(CONDITION_BAND_CODE,C9-1,0) -> -> VG | D10: -> G | E10: -> F | F10: -> P | G10: -> VP | H10: -> | I10: -> | J10: -> | K10: -> | L10: -> | N10: ="-> " & OFFSET(CONDITION_BAND_CODE,N9-1,0) -> -> G | O10: -> F | P10: -> P | Q10: -> VP | R10: -> | S10: -> | T10: -> | U10: -> | V10: -> | X10: ="-> " & OFFSET(CONDITION_BAND_CODE,X9-1,0) -> -> F | Y10: -> P | Z10: -> VP | AA10: -> | AB10: -> | AC10: -> | AD10: -> | AE10: -> | AG10: ="-> " & OFFSET(CONDITION_BAND_CODE,AG9-1,0) -> -> P | AH10: -> VP | AI10: -> | AJ10: -> | AK10: -> | AL10: -> | AM10: -> | AO10: ="-> " & OFFSET(CONDITION_BAND_CODE,AO9-1,0) -> -> VP | AP10: -> | AQ10: -> | AR10: -> | AS10: -> | AT10: -> | AV10: ="-> " & OFFSET(CONDITION_BAND_CODE,AV9-1,0) -> -> | AW10: ="-> " & OFFSET(CONDITION_BAND_CODE,AW9-1,0) -> -> | AX10: ="-> " & OFFSET(CONDITION_BAND_CODE,AX9-1,0) -> -> | AY10: ="-> " & OFFSET(CONDITION_BAND_CODE,AY9-1,0) -> -> | AZ10: ="-> " & OFFSET(CONDITION_BAND_CODE,AZ9-1,0) -> -> | BB10: ="-> " & OFFSET(CONDITION_BAND_CODE,BB9-1,0) -> -> | BC10: ="-> " & OFFSET(CONDITION_BAND_CODE,BC9-1,0) -> -> | BD10: ="-> " & OFFSET(CONDITION_BAND_CODE,BD9-1,0) -> -> | BE10: ="-> " & OFFSET(CONDITION_BAND_CODE,BE9-1,0) -> -> | BG10: ="-> " & OFFSET(CONDITION_BAND_CODE,BG9-1,0) -> -> | BH10: ="-> " & OFFSET(CONDITION_BAND_CODE,BH9-1,0) -> -> | BI10: ="-> " & OFFSET(CONDITION_BAND_CODE,BI9-1,0) -> -> | BK10: ="-> " & OFFSET(CONDITION_BAND_CODE,BK9-1,0) -> -> | BL10: ="-> " & OFFSET(CONDITION_BAND_CODE,BL9-1,0) -> ->
B11: Scanner:Strat&Main:Urb | C11: 0.924 | D11: 0.076 | E11: 0 | F11: 0 | G11: 0 | H11: 0 | I11: 0 | J11: 0 | K11: 0 | L11: 0 | M11: =IF(SUM(OFFSET(C11,0,0,1,current_conditionBands))=1, "OK", "ERROR") -> OK | N11: 0.828 | O11: 0.172 | P11: 0 | Q11: 0 | R11: 0 | S11: 0 | T11: 0 | U11: 0 | V11: 0 | W11: =IF(SUM(OFFSET(N11,0,0,1,current_conditionBands-1))=1, "OK", "ERROR") -> OK | X11: 0.797 | Y11: 0.203 | Z11: 0 | AA11: 0 | AB11: 0 | AC11: 0 | AD11: 0 | AE11: 0 | AF11: =IF(SUM(OFFSET(X11,0,0,1,current_conditionBands-2))=1, "OK", "ERROR") -> OK | AG11: 0.868 | AH11: 0.132 | AI11: 0 | AJ11: 0 | AK11: 0 | AL11: 0 | AM11: 0 | AN11: =IF(SUM(OFFSET(AG11,0,0,1,current_conditionBands-3))=1, "OK", "ERROR") -> OK | AO11: 1 | AP11: 0 | AQ11: 0 | AR11: 0 | AS11: 0 | AT11: 0 | AU11: =IF(SUM(OFFSET(AO11,0,0,1,current_conditionBands-4))=1, "OK", "ERROR") -> OK | AV11: 0.95 | AW11: 0.05 | AX11: 0 | AY11: 0 | AZ11: 0 | BA11: =IF(SUM(OFFSET(AV11,0,0,1,current_conditionBands-5))=1, "OK", "ERROR") ->  | BB11: 0.95 | BC11: 0.05 | BD11: 0 | BE11: 0 | BF11: =IF(SUM(OFFSET(BB11,0,0,1,current_conditionBands-6))=1, "OK", "ERROR") -> ERROR | BG11: 0.95 | BH11: 0.05 | BI11: 0 | BJ11: =IF(SUM(OFFSET(BG11,0,0,1,current_conditionBands-7))=1, "OK", "ERROR") -> ERROR | BK11: 0.95 | BL11: 0.05 | BM11: =IF(SUM(OFFSET(BK11,0,0,1,current_conditionBands-8))=1, "OK", "ERROR") -> ERROR
B12: Scanner:Strat&Main:Rur | C12: 0.91 | D12: 0.09 | E12: 0 | F12: 0 | G12: 0 | H12: 0 | M12: OK | N12: 0.714 | O12: 0.279 | P12: 0.007 | Q12: 0 | T12: 0 | U12: 0 | V12: 0 | W12: OK | X12: 0.681 | Y12: 0.318 | Z12: 0.001 | AA12: 0 | AB12: 0 | AC12: 0 | AD12: 0 | AE12: 0 | AF12: OK | AG12: 0.771 | AH12: 0.229 | AI12: 0 | AJ12: 0 | AK12: 0 | AL12: 0 | AM12: 0 | AN12: OK | AO12: 1 | AP12: 0 | AQ12: 0 | AR12: 0 | AS12: 0 | AT12: 0 | AU12: OK | AV12: 0.95 | AW12: 0.05 | AX12: 0 | AY12: 0 | AZ12: 0 | BB12: 0.95 | BC12: 0.05 | BD12: 0 | BE12: 0 | BF12: ERROR | BG12: 0.95 | BH12: 0.05 | BI12: 0 | BJ12: ERROR | BK12: 0.95 | BL12: 0.05 | BM12: ERROR
B13: Scanner:Secondary:Urb | C13: 0.929 | D13: 0.071 | E13: 0 | F13: 0 | G13: 0 | H13: 0 | M13: OK | N13: 0.814 | O13: 0.186 | P13: 0 | Q13: 0 | T13: 0 | U13: 0 | V13: 0 | W13: OK | X13: 0.775 | Y13: 0.225 | Z13: 0 | AA13: 0 | AB13: 0 | AC13: 0 | AD13: 0 | AE13: 0 | AF13: OK | AG13: 0.846 | AH13: 0.154 | AI13: 0 | AJ13: 0 | AK13: 0 | AL13: 0 | AM13: 0 | AN13: OK | AO13: 1 | AP13: 0 | AQ13: 0 | AR13: 0 | AS13: 0 | AT13: 0 | AU13: OK | AV13: 0.95 | AW13: 0.05 | AX13: 0 | AY13: 0 | AZ13: 0 | BB13: 0.95 | BC13: 0.05 | BD13: 0 | BE13: 0 | BF13: ERROR | BG13: 0.95 | BH13: 0.05 | BI13: 0 | BJ13: ERROR | BK13: 0.95 | BL13: 0.05 | BM13: ERROR
B14: Scanner:Secondary:Rur | C14: 0.928 | D14: 0.072 | E14: 0 | F14: 0 | G14: 0 | H14: 0 | M14: OK | N14: 0.811 | O14: 0.189 | P14: 0 | Q14: 0 | T14: 0 | U14: 0 | V14: 0 | W14: OK | X14: 0.777 | Y14: 0.223 | Z14: 0 | AA14: 0 | AB14: 0 | AC14: 0 | AD14: 0 | AE14: 0 | AF14: OK | AG14: 0.839 | AH14: 0.161 | AI14: 0 | AJ14: 0 | AK14: 0 | AL14: 0 | AM14: 0 | AN14: OK | AO14: 1 | AP14: 0 | AQ14: 0 | AR14: 0 | AS14: 0 | AT14: 0 | AU14: OK | AV14: 0.95 | AW14: 0.05 | AX14: 0 | AY14: 0 | AZ14: 0 | BB14: 0.95 | BC14: 0.05 | BD14: 0 | BE14: 0 | BF14: ERROR | BG14: 0.95 | BH14: 0.05 | BI14: 0 | BJ14: ERROR | BK14: 0.95 | BL14: 0.05 | BM14: ERROR
B15: Scanner:Link:Urb | C15: 0.937 | D15: 0.063 | E15: 0 | F15: 0 | G15: 0 | H15: 0 | M15: OK | N15: 0.796 | O15: 0.202 | P15: 0.002 | Q15: 0 | T15: 0 | U15: 0 | V15: 0 | W15: OK | X15: 0.756 | Y15: 0.244 | Z15: 0 | AA15: 0 | AB15: 0 | AC15: 0 | AD15: 0 | AE15: 0 | AF15: OK | AG15: 0.88 | AH15: 0.12 | AI15: 0 | AJ15: 0 | AK15: 0 | AL15: 0 | AM15: 0 | AN15: OK | AO15: 1 | AP15: 0 | AQ15: 0 | AR15: 0 | AS15: 0 | AT15: 0 | AU15: OK | AV15: 0.95 | AW15: 0.05 | AX15: 0 | AY15: 0 | AZ15: 0 | BB15: 0.95 | BC15: 0.05 | BD15: 0 | BE15: 0 | BF15: ERROR | BG15: 0.95 | BH15: 0.05 | BI15: 0 | BJ15: ERROR | BK15: 0.95 | BL15: 0.05 | BM15: ERROR
B16: Scanner:Link:Rur | C16: 0.933 | D16: 0.067 | E16: 0 | F16: 0 | G16: 0 | H16: 0 | M16: OK | N16: 0.773 | O16: 0.225 | P16: 0.002 | Q16: 0 | T16: 0 | U16: 0 | V16: 0 | W16: OK | X16: 0.722 | Y16: 0.278 | Z16: 0 | AA16: 0 | AB16: 0 | AC16: 0 | AD16: 0 | AE16: 0 | AF16: OK | AG16: 0.836 | AH16: 0.164 | AI16: 0 | AJ16: 0 | AK16: 0 | AL16: 0 | AM16: 0 | AN16: OK | AO16: 1 | AP16: 0 | AQ16: 0 | AR16: 0 | AS16: 0 | AT16: 0 | AU16: OK | AV16: 0.95 | AW16: 0.05 | AX16: 0 | AY16: 0 | AZ16: 0 | BB16: 0.95 | BC16: 0.05 | BD16: 0 | BE16: 0 | BF16: ERROR | BG16: 0.95 | BH16: 0.05 | BI16: 0 | BJ16: ERROR | BK16: 0.95 | BL16: 0.05 | BM16: ERROR
B17: Scanner:Local:Urb&Rur | C17: 0.963 | D17: 0.037 | E17: 0 | F17: 0 | G17: 0 | H17: 0 | M17: OK | N17: 0.898 | O17: 0.102 | P17: 0 | Q17: 0 | T17: 0 | U17: 0 | V17: 0 | W17: OK | X17: 0.897 | Y17: 0.103 | Z17: 0 | AA17: 0 | AB17: 0 | AC17: 0 | AD17: 0 | AE17: 0 | AF17: OK | AG17: 0.933 | AH17: 0.067 | AI17: 0 | AJ17: 0 | AK17: 0 | AL17: 0 | AM17: 0 | AN17: OK | AO17: 1 | AP17: 0 | AQ17: 0 | AR17: 0 | AS17: 0 | AT17: 0 | AU17: OK | AV17: 0.95 | AW17: 0.05 | AX17: 0 | AY17: 0 | AZ17: 0 | BB17: 0.95 | BC17: 0.05 | BD17: 0 | BE17: 0 | BF17: ERROR | BG17: 0.95 | BH17: 0.05 | BI17: 0 | BJ17: ERROR | BK17: 0.95 | BL17: 0.05 | BM17: ERROR
B18: CVI:Strategic:Urban | C18: 0.911 | D18: 0.088 | E18: 0.001 | F18: 0 | G18: 0 | H18: 0 | M18: OK | N18: 0.727 | O18: 0.265 | P18: 0.008 | Q18: 0 | T18: 0 | U18: 0 | V18: 0 | W18: OK | X18: 0.688 | Y18: 0.31 | Z18: 0.002 | AA18: 0 | AB18: 0 | AC18: 0 | AD18: 0 | AE18: 0 | AF18: OK | AG18: 0.775 | AH18: 0.225 | AI18: 0 | AJ18: 0 | AK18: 0 | AL18: 0 | AM18: 0 | AN18: OK | AO18: 1 | AP18: 0 | AQ18: 0 | AR18: 0 | AS18: 0 | AT18: 0 | AU18: OK | AV18: 0.95 | AW18: 0.05 | AX18: 0 | AY18: 0 | AZ18: 0 | BB18: 0.95 | BC18: 0.05 | BD18: 0 | BE18: 0 | BF18: ERROR | BG18: 0.95 | BH18: 0.05 | BI18: 0 | BJ18: ERROR | BK18: 0.95 | BL18: 0.05 | BM18: ERROR
B19: CVI:Strategic:Rural | C19: 0.913 | D19: 0.087 | E19: 0 | F19: 0 | G19: 0 | H19: 0 | M19: OK | N19: 0.741 | O19: 0.254 | P19: 0.005 | Q19: 0 | T19: 0 | U19: 0 | V19: 0 | W19: OK | X19: 0.71 | Y19: 0.289 | Z19: 0.001 | AA19: 0 | AB19: 0 | AC19: 0 | AD19: 0 | AE19: 0 | AF19: OK | AG19: 0.788 | AH19: 0.212 | AI19: 0 | AJ19: 0 | AK19: 0 | AL19: 0 | AM19: 0 | AN19: OK | AO19: 1 | AP19: 0 | AQ19: 0 | AR19: 0 | AS19: 0 | AT19: 0 | AU19: OK | AV19: 0.95 | AW19: 0.05 | AX19: 0 | AY19: 0 | AZ19: 0 | BB19: 0.95 | BC19: 0.05 | BD19: 0 | BE19: 0 | BF19: ERROR | BG19: 0.95 | BH19: 0.05 | BI19: 0 | BJ19: ERROR | BK19: 0.95 | BL19: 0.05 | BM19: ERROR
B20: CVI:Main:Urban | C20: 0.88 | D20: 0.119 | E20: 0.001 | F20: 0 | G20: 0 | H20: 0 | M20: OK | N20: 0.74 | O20: 0.251 | P20: 0.009 | Q20: 0 | T20: 0 | U20: 0 | V20: 0 | W20: OK | X20: 0.706 | Y20: 0.292 | Z20: 0.002 | AA20: 0 | AB20: 0 | AC20: 0 | AD20: 0 | AE20: 0 | AF20: OK | AG20: 0.78 | AH20: 0.22 | AI20: 0 | AJ20: 0 | AK20: 0 | AL20: 0 | AM20: 0 | AN20: OK | AO20: 1 | AP20: 0 | AQ20: 0 | AR20: 0 | AS20: 0 | AT20: 0 | AU20: OK | AV20: 0.95 | AW20: 0.05 | AX20: 0 | AY20: 0 | AZ20: 0 | BB20: 0.95 | BC20: 0.05 | BD20: 0 | BE20: 0 | BF20: ERROR | BG20: 0.95 | BH20: 0.05 | BI20: 0 | BJ20: ERROR | BK20: 0.95 | BL20: 0.05 | BM20: ERROR
B21: CVI:Main:Rural | C21: 0.913 | D21: 0.086 | E21: 0.001 | F21: 0 | G21: 0 | H21: 0 | M21: OK | N21: 0.752 | O21: 0.242 | P21: 0.006 | Q21: 0 | T21: 0 | U21: 0 | V21: 0 | W21: OK | X21: 0.714 | Y21: 0.285 | Z21: 0.001 | AA21: 0 | AB21: 0 | AC21: 0 | AD21: 0 | AE21: 0 | AF21: OK | AG21: 0.796 | AH21: 0.204 | AI21: 0 | AJ21: 0 | AK21: 0 | AL21: 0 | AM21: 0 | AN21: OK | AO21: 1 | AP21: 0 | AQ21: 0 | AR21: 0 | AS21: 0 | AT21: 0 | AU21: OK | AV21: 0.95 | AW21: 0.05 | AX21: 0 | AY21: 0 | AZ21: 0 | BB21: 0.95 | BC21: 0.05 | BD21: 0 | BE21: 0 | BF21: ERROR | BG21: 0.95 | BH21: 0.05 | BI21: 0 | BJ21: ERROR | BK21: 0.95 | BL21: 0.05 | BM21: ERROR
B22: CVI:Secondary:Urban | C22: 0.932 | D22: 0.068 | E22: 0 | F22: 0 | G22: 0 | H22: 0 | M22: OK | N22: 0.831 | O22: 0.169 | P22: 0 | Q22: 0 | T22: 0 | U22: 0 | V22: 0 | W22: OK | X22: 0.797 | Y22: 0.203 | Z22: 0 | AA22: 0 | AB22: 0 | AC22: 0 | AD22: 0 | AE22: 0 | AF22: OK | AG22: 0.853 | AH22: 0.147 | AI22: 0 | AJ22: 0 | AK22: 0 | AL22: 0 | AM22: 0 | AN22: OK | AO22: 1 | AP22: 0 | AQ22: 0 | AR22: 0 | AS22: 0 | AT22: 0 | AU22: OK | AV22: 0.95 | AW22: 0.05 | AX22: 0 | AY22: 0 | AZ22: 0 | BB22: 0.95 | BC22: 0.05 | BD22: 0 | BE22: 0 | BF22: ERROR | BG22: 0.95 | BH22: 0.05 | BI22: 0 | BJ22: ERROR | BK22: 0.95 | BL22: 0.05 | BM22: ERROR
B23: CVI:Secondary:Rural | C23: 0.932 | D23: 0.068 | E23: 0 | F23: 0 | G23: 0 | H23: 0 | M23: OK | N23: 0.834 | O23: 0.166 | P23: 0 | Q23: 0 | T23: 0 | U23: 0 | V23: 0 | W23: OK | X23: 0.797 | Y23: 0.203 | Z23: 0 | AA23: 0 | AB23: 0 | AC23: 0 | AD23: 0 | AE23: 0 | AF23: OK | AG23: 0.856 | AH23: 0.144 | AI23: 0 | AJ23: 0 | AK23: 0 | AL23: 0 | AM23: 0 | AN23: OK | AO23: 1 | AP23: 0 | AQ23: 0 | AR23: 0 | AS23: 0 | AT23: 0 | AU23: OK | AV23: 0.95 | AW23: 0.05 | AX23: 0 | AY23: 0 | AZ23: 0 | BB23: 0.95 | BC23: 0.05 | BD23: 0 | BE23: 0 | BF23: ERROR | BG23: 0.95 | BH23: 0.05 | BI23: 0 | BJ23: ERROR | BK23: 0.95 | BL23: 0.05 | BM23: ERROR
B24: CVI:Link:Urban | C24: 0.94 | D24: 0.06 | E24: 0 | F24: 0 | G24: 0 | H24: 0 | M24: OK | N24: 0.815 | O24: 0.184 | P24: 0.001 | Q24: 0 | T24: 0 | U24: 0 | V24: 0 | W24: OK | X24: 0.781 | Y24: 0.219 | Z24: 0 | AA24: 0 | AB24: 0 | AC24: 0 | AD24: 0 | AE24: 0 | AF24: OK | AG24: 0.862 | AH24: 0.138 | AI24: 0 | AJ24: 0 | AK24: 0 | AL24: 0 | AM24: 0 | AN24: OK | AO24: 1 | AP24: 0 | AQ24: 0 | AR24: 0 | AS24: 0 | AT24: 0 | AU24: OK | AV24: 0.95 | AW24: 0.05 | AX24: 0 | AY24: 0 | AZ24: 0 | BB24: 0.95 | BC24: 0.05 | BD24: 0 | BE24: 0 | BF24: ERROR | BG24: 0.95 | BH24: 0.05 | BI24: 0 | BJ24: ERROR | BK24: 0.95 | BL24: 0.05 | BM24: ERROR
B25: CVI:Link:Rural | C25: 0.941 | D25: 0.059 | E25: 0 | F25: 0 | G25: 0 | H25: 0 | M25: OK | N25: 0.815 | O25: 0.184 | P25: 0.001 | Q25: 0 | T25: 0 | U25: 0 | V25: 0 | W25: OK | X25: 0.788 | Y25: 0.212 | Z25: 0 | AA25: 0 | AB25: 0 | AC25: 0 | AD25: 0 | AE25: 0 | AF25: OK | AG25: 0.864 | AH25: 0.136 | AI25: 0 | AJ25: 0 | AK25: 0 | AL25: 0 | AM25: 0 | AN25: OK | AO25: 1 | AP25: 0 | AQ25: 0 | AR25: 0 | AS25: 0 | AT25: 0 | AU25: OK | AV25: 0.95 | AW25: 0.05 | AX25: 0 | AY25: 0 | AZ25: 0 | BB25: 0.95 | BC25: 0.05 | BD25: 0 | BE25: 0 | BF25: ERROR | BG25: 0.95 | BH25: 0.05 | BI25: 0 | BJ25: ERROR | BK25: 0.95 | BL25: 0.05 | BM25: ERROR
B26: CVI:Local:Urban | C26: 0.942 | D26: 0.058 | E26: 0 | F26: 0 | G26: 0 | H26: 0 | M26: OK | N26: 0.829 | O26: 0.17 | P26: 0.001 | Q26: 0 | T26: 0 | U26: 0 | V26: 0 | W26: OK | X26: 0.795 | Y26: 0.205 | Z26: 0 | AA26: 0 | AB26: 0 | AC26: 0 | AD26: 0 | AE26: 0 | AF26: OK | AG26: 0.872 | AH26: 0.128 | AI26: 0 | AJ26: 0 | AK26: 0 | AL26: 0 | AM26: 0 | AN26: OK | AO26: 1 | AP26: 0 | AQ26: 0 | AR26: 0 | AS26: 0 | AT26: 0 | AU26: OK | AV26: 0.95 | AW26: 0.05 | AX26: 0 | AY26: 0 | AZ26: 0 | BB26: 0.95 | BC26: 0.05 | BD26: 0 | BE26: 0 | BF26: ERROR | BG26: 0.95 | BH26: 0.05 | BI26: 0 | BJ26: ERROR | BK26: 0.95 | BL26: 0.05 | BM26: ERROR
B27: CVI:Local:Rural | C27: 0.943 | D27: 0.057 | E27: 0 | F27: 0 | G27: 0 | H27: 0 | M27: OK | N27: 0.832 | O27: 0.167 | P27: 0.001 | Q27: 0 | T27: 0 | U27: 0 | V27: 0 | W27: OK | X27: 0.795 | Y27: 0.205 | Z27: 0 | AA27: 0 | AB27: 0 | AC27: 0 | AD27: 0 | AE27: 0 | AF27: OK | AG27: 0.874 | AH27: 0.126 | AI27: 0 | AJ27: 0 | AK27: 0 | AL27: 0 | AM27: 0 | AN27: OK | AO27: 1 | AP27: 0 | AQ27: 0 | AR27: 0 | AS27: 0 | AT27: 0 | AU27: OK | AV27: 0.95 | AW27: 0.05 | AX27: 0 | AY27: 0 | AZ27: 0 | BB27: 0.95 | BC27: 0.05 | BD27: 0 | BE27: 0 | BF27: ERROR | BG27: 0.95 | BH27: 0.05 | BI27: 0 | BJ27: ERROR | BK27: 0.95 | BL27: 0.05 | BM27: ERROR

Sheet 3 - Treatment Effects & Costs
C3: TREATMENTS EFFECTS & COSTS
H6: Effect of treatment | T6: Treatment Cost (£)
I8: 1 | J8: 2 | K8: 3 | L8: 4 | M8: 5 | N8: 6 | O8: 7 | P8: 8 | Q8: 9 | R8: 10 | T8: 1 | U8: 2 | V8: 3 | W8: 4 | X8: 5 | Y8: 6 | Z8: 7 | AA8: 8 | AB8: 9 | AC8: 10 | AD8: Units (£ per)
B9: No | C9: Asset Group | D9: Treatment | F9: Treatment Details | G9: ID | H9: After-treatment Asset Group | I9: =OFFSET(CONDITION_BAND_CODE,I8-1,0) -> VG | J9: G | K9: F | L9: P | M9: VP | N9: 0 | O9: 0 | P9: 0 | Q9: 0 | R9: 0 | S9: Validity Check | T9: =OFFSET(CONDITION_BAND_CODE,T8-1,0) -> VG | U9: G | V9: F | W9: P | X9: VP | Y9: 0 | Z9: 0 | AA9: 0 | AB9: 0 | AC9: 0
F10: CAT 1 | H10: CAT 1 | I10: None | J10: None | K10: None | L10: None | M10: None | N10: None | O10: None | P10: None | Q10: None | R10: None | T10: 5.58 | U10: 5.58 | V10: 5.58 | W10: 5.58 | X10: 5.58 | Y10: 5.58 | Z10: 5.58 | AA10: 5.58 | AB10: 5.58 | AC10: 5.58 | AD10: no.
F11: CAT 2 | H11: CAT 2 | I11: None | J11: None | K11: None | L11: None | M11: None | N11: None | O11: None | P11: None | Q11: None | R11: None | T11: 29.39 | U11: 29.39 | V11: 29.39 | W11: 29.39 | X11: 29.39 | Y11: 29.39 | Z11: 29.39 | AA11: 29.39 | AB11: 29.39 | AC11: 29.39 | AD11: no.
B12: =INT((ROW()-12)/(current_treatmentTypes))+1 -> 1 | C12: =OFFSET(ASSET_GROUP_NAME,B12-1,0) -> AR | D12: 1 | F12: =OFFSET(TREATMENT_TYPE_NAME,D12-1,0) -> Surface Dressing | G12: =IF(H12="",0,IF(ISERROR(MATCH(H12,System!$AE$4:$AE$105,0)),-1,MATCH(H12,System!$AE$4:$AE$105,0)-1)) -> 0 | H12: No Change | I12: VG | J12: VG | K12: G | L12: F | M12: P | N12: VG | O12: VG | P12: VG | Q12: VG | R12: VG | S12: =IF(CheckTreatmenTypeCodesOK(SELECT_CONDITION_BAND,OFFSET(I12,0,0,1,current_conditionBands),H12,G12)=FALSE,"ERROR","OK") ->  | T12: 6.09 | U12: 6.09 | V12: 6.09 | W12: 6.09 | X12: 6.09 | Y12: 10 | Z12: 10 | AA12: 10 | AB12: 10 | AC12: 10 | AD12: m²
D13: =D12+1 -> 2 | F13: Micro Asphalt | G13: =IF(H13="",0,IF(ISERROR(MATCH(H13,System!$AE$4:$AE$105,0)),-1,MATCH(H13,System!$AE$4:$AE$105,0)-1)) -> 0 | H13: No Change | I13: VG | J13: VG | K13: G | L13: F | M13: P | N13: VG | O13: VG | P13: VG | Q13: VG | R13: VG | T13: 8.77 | U13: 8.77 | V13: 8.77 | W13: 8.77 | X13: 8.77 | Y13: 10 | Z13: 10 | AA13: 10 | AB13: 10 | AC13: 10
D14: 3 | F14: =OFFSET(TREATMENT_TYPE_NAME,D14-1,0) -> Moderate Overlay | G14: =IF(H14="",0,IF(ISERROR(MATCH(H14,System!$AE$4:$AE$105,0)),-1,MATCH(H14,System!$AE$4:$AE$105,0)-1)) -> 0 | H14: No Change | I14: VG | J14: VG | K14: VG | L14: G | M14: G | S14: =IF(CheckTreatmenTypeCodesOK(SELECT_CONDITION_BAND,OFFSET(I14,0,0,1,current_conditionBands),H14,G14)=FALSE,"ERROR","OK") ->  | T14: 25.48 | U14: 25.48 | V14: 25.48 | W14: 25.48 | X14: 25.48
D15: 4 | F15: =OFFSET(TREATMENT_TYPE_NAME,D15-1,0) -> Moderate Inlay | G15: =IF(H15="",0,IF(ISERROR(MATCH(H15,System!$AE$4:$AE$105,0)),-1,MATCH(H15,System!$AE$4:$AE$105,0)-1)) -> 0 | H15: No Change | I15: VG | J15: VG | K15: VG | L15: G | M15: G | S15: =IF(CheckTreatmenTypeCodesOK(SELECT_CONDITION_BAND,OFFSET(I15,0,0,1,current_conditionBands),H15,G15)=FALSE,"ERROR","OK") ->  | T15: 21.89 | U15: 21.89 | V15: 21.89 | W15: 21.89 | X15: 21.89
D16: 5 | F16: =OFFSET(TREATMENT_TYPE_NAME,D16-1,0) -> Deep Inlay | G16: =IF(H16="",0,IF(ISERROR(MATCH(H16,System!$AE$4:$AE$105,0)),-1,MATCH(H16,System!$AE$4:$AE$105,0)-1)) -> 0 | H16: No Change | I16: VG | J16: VG | K16: VG | L16: G | M16: G | S16: =IF(CheckTreatmenTypeCodesOK(SELECT_CONDITION_BAND,OFFSET(I16,0,0,1,current_conditionBands),H16,G16)=FALSE,"ERROR","OK") ->  | T16: 35.7 | U16: 35.7 | V16: 35.7 | W16: 35.7 | X16: 35.7
D17: 6 | F17: =OFFSET(TREATMENT_TYPE_NAME,D17-1,0) -> Reconstruction | G17: =IF(H17="",0,IF(ISERROR(MATCH(H17,System!$AE$4:$AE$105,0)),-1,MATCH(H17,System!$AE$4:$AE$105,0)-1)) -> 0 | H17: No Change | I17: VG | J17: VG | K17: VG | L17: VG | M17: VG | S17: =IF(CheckTreatmenTypeCodesOK(SELECT_CONDITION_BAND,OFFSET(I17,0,0,1,current_conditionBands),H17,G17)=FALSE,"ERROR","OK") ->  | T17: 54.09 | U17: 54.09 | V17: 54.09 | W17: 54.09 | X17: 54.09
B18: =INT((ROW()-12)/(current_treatmentTypes))+1 -> 2 | C18: =OFFSET(ASSET_GROUP_NAME,B18-1,0) -> AU | D18: 1 | F18: =OFFSET(TREATMENT_TYPE_NAME,D18-1,0) -> Surface Dressing | G18: =IF(H18="",0,IF(ISERROR(MATCH(H18,System!$AE$4:$AE$105,0)),-1,MATCH(H18,System!$AE$4:$AE$105,0)-1)) -> 0 | H18: No Change | I18: VG | J18: VG | K18: G | L18: F | M18: P | N18: VG | O18: VG | P18: VG | Q18: VG | R18: VG | S18: =IF(CheckTreatmenTypeCodesOK(SELECT_CONDITION_BAND,OFFSET(I18,0,0,1,current_conditionBands),H18,G18)=FALSE,"ERROR","OK") ->  | T18: 6.07 | U18: 6.07 | V18: 6.07 | W18: 6.07 | X18: 6.07 | AD18: m²
D19: =D18+1 -> 2 | F19: Micro Asphalt | G19: =IF(H19="",0,IF(ISERROR(MATCH(H19,System!$AE$4:$AE$105,0)),-1,MATCH(H19,System!$AE$4:$AE$105,0)-1)) -> 0 | H19: No Change | I19: VG | J19: VG | K19: G | L19: F | M19: P | N19: VG | O19: VG | P19: VG | Q19: VG | R19: VG | T19: 8.51 | U19: 8.51 | V19: 8.51 | W19: 8.51 | X19: 8.51
D20: 3 | F20: =OFFSET(TREATMENT_TYPE_NAME,D20-1,0) -> Moderate Overlay | G20: =IF(H20="",0,IF(ISERROR(MATCH(H20,System!$AE$4:$AE$105,0)),-1,MATCH(H20,System!$AE$4:$AE$105,0)-1)) -> 0 | H20: No Change | I20: VG | J20: VG | K20: VG | L20: G | M20: G | S20: =IF(CheckTreatmenTypeCodesOK(SELECT_CONDITION_BAND,OFFSET(I20,0,0,1,current_conditionBands),H20,G20)=FALSE,"ERROR","OK") ->  | T20: 23.12 | U20: 23.12 | V20: 23.12 | W20: 23.12 | X20: 23.12
D21: 4 | F21: =OFFSET(TREATMENT_TYPE_NAME,D21-1,0) -> Moderate Inlay | G21: =IF(H21="",0,IF(ISERROR(MATCH(H21,System!$AE$4:$AE$105,0)),-1,MATCH(H21,System!$AE$4:$AE$105,0)-1)) -> 0 | H21: No Change | I21: VG | J21: VG | K21: VG | L21: G | M21: G | S21: =IF(CheckTreatmenTypeCodesOK(SELECT_CONDITION_BAND,OFFSET(I21,0,0,1,current_conditionBands),H21,G21)=FALSE,"ERROR","OK") ->  | T21: 22.36 | U21: 22.36 | V21: 22.36 | W21: 22.36 | X21: 22.36
D22: 5 | F22: =OFFSET(TREATMENT_TYPE_NAME,D22-1,0) -> Deep Inlay | G22: =IF(H22="",0,IF(ISERROR(MATCH(H22,System!$AE$4:$AE$105,0)),-1,MATCH(H22,System!$AE$4:$AE$105,0)-1)) -> 0 | H22: No Change | I22: VG | J22: VG | K22: VG | L22: G | M22: G | S22: =IF(CheckTreatmenTypeCodesOK(SELECT_CONDITION_BAND,OFFSET(I22,0,0,1,current_conditionBands),H22,G22)=FALSE,"ERROR","OK") ->  | T22: 34.06 | U22: 34.06 | V22: 34.06 | W22: 34.06 | X22: 34.06
D23: 6 | F23: =OFFSET(TREATMENT_TYPE_NAME,D23-1,0) -> Reconstruction | G23: =IF(H23="",0,IF(ISERROR(MATCH(H23,System!$AE$4:$AE$105,0)),-1,MATCH(H23,System!$AE$4:$AE$105,0)-1)) -> 0 | H23: No Change | I23: VG | J23: VG | K23: VG | L23: VG | M23: VG | S23: =IF(CheckTreatmenTypeCodesOK(SELECT_CONDITION_BAND,OFFSET(I23,0,0,1,current_conditionBands),H23,G23)=FALSE,"ERROR","OK") ->  | T23: 53.76 | U23: 53.76 | V23: 53.76 | W23: 53.76 | X23: 53.76
B24: =INT((ROW()-12)/(current_treatmentTypes))+1 -> 3 | C24: =OFFSET(ASSET_GROUP_NAME,B24-1,0) -> BR | D24: 1 | F24: =OFFSET(TREATMENT_TYPE_NAME,D24-1,0) -> Surface Dressing | G24: =IF(H24="",0,IF(ISERROR(MATCH(H24,System!$AE$4:$AE$105,0)),-1,MATCH(H24,System!$AE$4:$AE$105,0)-1)) -> 0 | H24: No Change | I24: VG | J24: VG | K24: G | L24: F | M24: P | N24: VG | O24: VG | P24: VG | Q24: VG | R24: VG | S24: =IF(CheckTreatmenTypeCodesOK(SELECT_CONDITION_BAND,OFFSET(I24,0,0,1,current_conditionBands),H24,G24)=FALSE,"ERROR","OK") ->  | T24: 6.22 | U24: 6.22 | V24: 6.22 | W24: 6.22 | X24: 6.22 | AD24: m²
D25: =D24+1 -> 2 | F25: Micro Asphalt | G25: =IF(H25="",0,IF(ISERROR(MATCH(H25,System!$AE$4:$AE$105,0)),-1,MATCH(H25,System!$AE$4:$AE$105,0)-1)) -> 0 | H25: No Change | I25: VG | J25: VG | K25: G | L25: F | M25: P | N25: VG | O25: VG | P25: VG | Q25: VG | R25: VG | T25: 8.96 | U25: 8.96 | V25: 8.96 | W25: 8.96 | X25: 8.96
D26: 3 | F26: =OFFSET(TREATMENT_TYPE_NAME,D26-1,0) -> Moderate Overlay | G26: =IF(H26="",0,IF(ISERROR(MATCH(H26,System!$AE$4:$AE$105,0)),-1,MATCH(H26,System!$AE$4:$AE$105,0)-1)) -> 0 | H26: No Change | I26: VG | J26: VG | K26: VG | L26: G | M26: G | S26: =IF(CheckTreatmenTypeCodesOK(SELECT_CONDITION_BAND,OFFSET(I26,0,0,1,current_conditionBands),H26,G26)=FALSE,"ERROR","OK") ->  | T26: 23.61 | U26: 23.61 | V26: 23.61 | W26: 23.61 | X26: 23.61
D27: 4 | F27: =OFFSET(TREATMENT_TYPE_NAME,D27-1,0) -> Moderate Inlay | G27: =IF(H27="",0,IF(ISERROR(MATCH(H27,System!$AE$4:$AE$105,0)),-1,MATCH(H27,System!$AE$4:$AE$105,0)-1)) -> 0 | H27: No Change | I27: VG | J27: VG | K27: VG | L27: G | M27: G | S27: =IF(CheckTreatmenTypeCodesOK(SELECT_CONDITION_BAND,OFFSET(I27,0,0,1,current_conditionBands),H27,G27)=FALSE,"ERROR","OK") ->  | T27: 21.44 | U27: 21.44 | V27: 21.44 | W27: 21.44 | X27: 21.44
D28: 5 | F28: =OFFSET(TREATMENT_TYPE_NAME,D28-1,0) -> Deep Inlay | G28: =IF(H28="",0,IF(ISERROR(MATCH(H28,System!$AE$4:$AE$105,0)),-1,MATCH(H28,System!$AE$4:$AE$105,0)-1)) -> 0 | H28: No Change | I28: VG | J28: VG | K28: VG | L28: G | M28: G | S28: =IF(CheckTreatmenTypeCodesOK(SELECT_CONDITION_BAND,OFFSET(I28,0,0,1,current_conditionBands),H28,G28)=FALSE,"ERROR","OK") ->  | T28: 33.95 | U28: 33.95 | V28: 33.95 | W28: 33.95 | X28: 33.95
D29: 6 | F29: =OFFSET(TREATMENT_TYPE_NAME,D29-1,0) -> Reconstruction | G29: =IF(H29="",0,IF(ISERROR(MATCH(H29,System!$AE$4:$AE$105,0)),-1,MATCH(H29,System!$AE$4:$AE$105,0)-1)) -> 0 | H29: No Change | I29: VG | J29: VG | K29: VG | L29: VG | M29: VG | S29: =IF(CheckTreatmenTypeCodesOK(SELECT_CONDITION_BAND,OFFSET(I29,0,0,1,current_conditionBands),H29,G29)=FALSE,"ERROR","OK") ->  | T29: 54.33 | U29: 54.33 | V29: 54.33 | W29: 54.33 | X29: 54.33
B30: =INT((ROW()-12)/(current_treatmentTypes))+1 -> 4 | C30: =OFFSET(ASSET_GROUP_NAME,B30-1,0) -> BU | D30: 1 | F30: =OFFSET(TREATMENT_TYPE_NAME,D30-1,0) -> Surface Dressing | G30: =IF(H30="",0,IF(ISERROR(MATCH(H30,System!$AE$4:$AE$105,0)),-1,MATCH(H30,System!$AE$4:$AE$105,0)-1)) -> 0 | H30: No Change | I30: VG | J30: VG | K30: G | L30: F | M30: P | N30: VG | O30: VG | P30: VG | Q30: VG | R30: VG | S30: =IF(CheckTreatmenTypeCodesOK(SELECT_CONDITION_BAND,OFFSET(I30,0,0,1,current_conditionBands),H30,G30)=FALSE,"ERROR","OK") ->  | T30: 6.04 | U30: 6.04 | V30: 6.04 | W30: 6.04 | X30: 6.04 | AD30: m²
D31: =D30+1 -> 2 | F31: Micro Asphalt | G31: =IF(H31="",0,IF(ISERROR(MATCH(H31,System!$AE$4:$AE$105,0)),-1,MATCH(H31,System!$AE$4:$AE$105,0)-1)) -> 0 | H31: No Change | I31: VG | J31: VG | K31: G | L31: F | M31: P | N31: VG | O31: VG | P31: VG | Q31: VG | R31: VG | T31: 8.64 | U31: 8.64 | V31: 8.64 | W31: 8.64 | X31: 8.64
D32: 3 | F32: =OFFSET(TREATMENT_TYPE_NAME,D32-1,0) -> Moderate Overlay | G32: =IF(H32="",0,IF(ISERROR(MATCH(H32,System!$AE$4:$AE$105,0)),-1,MATCH(H32,System!$AE$4:$AE$105,0)-1)) -> 0 | H32: No Change | I32: VG | J32: VG | K32: VG | L32: G | M32: G | S32: =IF(CheckTreatmenTypeCodesOK(SELECT_CONDITION_BAND,OFFSET(I32,0,0,1,current_conditionBands),H32,G32)=FALSE,"ERROR","OK") ->  | T32: 22.49 | U32: 22.49 | V32: 22.49 | W32: 22.49 | X32: 22.49
D33: 4 | F33: =OFFSET(TREATMENT_TYPE_NAME,D33-1,0) -> Moderate Inlay | G33: =IF(H33="",0,IF(ISERROR(MATCH(H33,System!$AE$4:$AE$105,0)),-1,MATCH(H33,System!$AE$4:$AE$105,0)-1)) -> 0 | H33: No Change | I33: VG | J33: VG | K33: VG | L33: G | M33: G | S33: =IF(CheckTreatmenTypeCodesOK(SELECT_CONDITION_BAND,OFFSET(I33,0,0,1,current_conditionBands),H33,G33)=FALSE,"ERROR","OK") ->  | T33: 21.36 | U33: 21.36 | V33: 21.36 | W33: 21.36 | X33: 21.36
D34: 5 | F34: =OFFSET(TREATMENT_TYPE_NAME,D34-1,0) -> Deep Inlay | G34: =IF(H34="",0,IF(ISERROR(MATCH(H34,System!$AE$4:$AE$105,0)),-1,MATCH(H34,System!$AE$4:$AE$105,0)-1)) -> 0 | H34: No Change | I34: VG | J34: VG | K34: VG | L34: G | M34: G | S34: =IF(CheckTreatmenTypeCodesOK(SELECT_CONDITION_BAND,OFFSET(I34,0,0,1,current_conditionBands),H34,G34)=FALSE,"ERROR","OK") ->  | T34: 32.99 | U34: 32.99 | V34: 32.99 | W34: 32.99 | X34: 32.99
D35: 6 | F35: =OFFSET(TREATMENT_TYPE_NAME,D35-1,0) -> Reconstruction | G35: =IF(H35="",0,IF(ISERROR(MATCH(H35,System!$AE$4:$AE$105,0)),-1,MATCH(H35,System!$AE$4:$AE$105,0)-1)) -> 0 | H35: No Change | I35: VG | J35: VG | K35: VG | L35: VG | M35: VG | S35: =IF(CheckTreatmenTypeCodesOK(SELECT_CONDITION_BAND,OFFSET(I35,0,0,1,current_conditionBands),H35,G35)=FALSE,"ERROR","OK") ->  | T35: 53.27 | U35: 53.27 | V35: 53.27 | W35: 53.27 | X35: 53.27
B36: =INT((ROW()-12)/(current_treatmentTypes))+1 -> 5 | C36: =OFFSET(ASSET_GROUP_NAME,B36-1,0) -> CR | D36: 1 | F36: =OFFSET(TREATMENT_TYPE_NAME,D36-1,0) -> Surface Dressing | G36: =IF(H36="",0,IF(ISERROR(MATCH(H36,System!$AE$4:$AE$105,0)),-1,MATCH(H36,System!$AE$4:$AE$105,0)-1)) -> 0 | H36: No Change | I36: VG | J36: VG | K36: G | L36: F | M36: P | N36: VG | O36: VG | P36: VG | Q36: VG | R36: VG | S36: =IF(CheckTreatmenTypeCodesOK(SELECT_CONDITION_BAND,OFFSET(I36,0,0,1,current_conditionBands),H36,G36)=FALSE,"ERROR","OK") ->  | T36: 6.78 | U36: 6.78 | V36: 6.78 | W36: 6.78 | X36: 6.78 | AD36: m²
D37: =D36+1 -> 2 | F37: Micro Asphalt | G37: =IF(H37="",0,IF(ISERROR(MATCH(H37,System!$AE$4:$AE$105,0)),-1,MATCH(H37,System!$AE$4:$AE$105,0)-1)) -> 0 | H37: No Change | I37: VG | J37: VG | K37: G | L37: F | M37: P | N37: VG | O37: VG | P37: VG | Q37: VG | R37: VG | T37: 8.67 | U37: 8.67 | V37: 8.67 | W37: 8.67 | X37: 8.67
D38: 3 | F38: =OFFSET(TREATMENT_TYPE_NAME,D38-1,0) -> Moderate Overlay | G38: =IF(H38="",0,IF(ISERROR(MATCH(H38,System!$AE$4:$AE$105,0)),-1,MATCH(H38,System!$AE$4:$AE$105,0)-1)) -> 0 | H38: No Change | I38: VG | J38: VG | K38: VG | L38: G | M38: G | S38: =IF(CheckTreatmenTypeCodesOK(SELECT_CONDITION_BAND,OFFSET(I38,0,0,1,current_conditionBands),H38,G38)=FALSE,"ERROR","OK") ->  | T38: 22.61 | U38: 22.61 | V38: 22.61 | W38: 22.61 | X38: 22.61
D39: 4 | F39: =OFFSET(TREATMENT_TYPE_NAME,D39-1,0) -> Moderate Inlay | G39: =IF(H39="",0,IF(ISERROR(MATCH(H39,System!$AE$4:$AE$105,0)),-1,MATCH(H39,System!$AE$4:$AE$105,0)-1)) -> 0 | H39: No Change | I39: VG | J39: VG | K39: VG | L39: G | M39: G | S39: =IF(CheckTreatmenTypeCodesOK(SELECT_CONDITION_BAND,OFFSET(I39,0,0,1,current_conditionBands),H39,G39)=FALSE,"ERROR","OK") ->  | T39: 20.72 | U39: 20.72 | V39: 20.72 | W39: 20.72 | X39: 20.72
D40: 5 | F40: =OFFSET(TREATMENT_TYPE_NAME,D40-1,0) -> Deep Inlay | G40: =IF(H40="",0,IF(ISERROR(MATCH(H40,System!$AE$4:$AE$105,0)),-1,MATCH(H40,System!$AE$4:$AE$105,0)-1)) -> 0 | H40: No Change | I40: VG | J40: VG | K40: VG | L40: G | M40: G | S40: =IF(CheckTreatmenTypeCodesOK(SELECT_CONDITION_BAND,OFFSET(I40,0,0,1,current_conditionBands),H40,G40)=FALSE,"ERROR","OK") ->  | T40: 33.17 | U40: 33.17 | V40: 33.17 | W40: 33.17 | X40: 33.17
D41: 6 | F41: =OFFSET(TREATMENT_TYPE_NAME,D41-1,0) -> Reconstruction | G41: =IF(H41="",0,IF(ISERROR(MATCH(H41,System!$AE$4:$AE$105,0)),-1,MATCH(H41,System!$AE$4:$AE$105,0)-1)) -> 0 | H41: No Change | I41: VG | J41: VG | K41: VG | L41: VG | M41: VG | S41: =IF(CheckTreatmenTypeCodesOK(SELECT_CONDITION_BAND,OFFSET(I41,0,0,1,current_conditionBands),H41,G41)=FALSE,"ERROR","OK") ->  | T41: 53.73 | U41: 53.73 | V41: 53.73 | W41: 53.73 | X41: 53.73
B42: =INT((ROW()-12)/(current_treatmentTypes))+1 -> 6 | C42: =OFFSET(ASSET_GROUP_NAME,B42-1,0) -> CU | D42: 1 | F42: =OFFSET(TREATMENT_TYPE_NAME,D42-1,0) -> Surface Dressing | G42: =IF(H42="",0,IF(ISERROR(MATCH(H42,System!$AE$4:$AE$105,0)),-1,MATCH(H42,System!$AE$4:$AE$105,0)-1)) -> 0 | H42: No Change | I42: VG | J42: VG | K42: G | L42: F | M42: P | N42: VG | O42: VG | P42: VG | Q42: VG | R42: VG | S42: =IF(CheckTreatmenTypeCodesOK(SELECT_CONDITION_BAND,OFFSET(I42,0,0,1,current_conditionBands),H42,G42)=FALSE,"ERROR","OK") ->  | T42: 6.59 | U42: 6.59 | V42: 6.59 | W42: 6.59 | X42: 6.59 | AD42: m²
D43: =D42+1 -> 2 | F43: Micro Asphalt | G43: =IF(H43="",0,IF(ISERROR(MATCH(H43,System!$AE$4:$AE$105,0)),-1,MATCH(H43,System!$AE$4:$AE$105,0)-1)) -> 0 | H43: No Change | I43: VG | J43: VG | K43: G | L43: F | M43: P | N43: VG | O43: VG | P43: VG | Q43: VG | R43: VG | T43: 8.4 | U43: 8.4 | V43: 8.4 | W43: 8.4 | X43: 8.4
D44: 3 | F44: =OFFSET(TREATMENT_TYPE_NAME,D44-1,0) -> Moderate Overlay | G44: =IF(H44="",0,IF(ISERROR(MATCH(H44,System!$AE$4:$AE$105,0)),-1,MATCH(H44,System!$AE$4:$AE$105,0)-1)) -> 0 | H44: No Change | I44: VG | J44: VG | K44: VG | L44: G | M44: G | S44: =IF(CheckTreatmenTypeCodesOK(SELECT_CONDITION_BAND,OFFSET(I44,0,0,1,current_conditionBands),H44,G44)=FALSE,"ERROR","OK") ->  | T44: 22.13 | U44: 22.13 | V44: 22.13 | W44: 22.13 | X44: 22.13
D45: 4 | F45: =OFFSET(TREATMENT_TYPE_NAME,D45-1,0) -> Moderate Inlay | G45: =IF(H45="",0,IF(ISERROR(MATCH(H45,System!$AE$4:$AE$105,0)),-1,MATCH(H45,System!$AE$4:$AE$105,0)-1)) -> 0 | H45: No Change | I45: VG | J45: VG | K45: VG | L45: G | M45: G | S45: =IF(CheckTreatmenTypeCodesOK(SELECT_CONDITION_BAND,OFFSET(I45,0,0,1,current_conditionBands),H45,G45)=FALSE,"ERROR","OK") ->  | T45: 20.84 | U45: 20.84 | V45: 20.84 | W45: 20.84 | X45: 20.84
D46: 5 | F46: =OFFSET(TREATMENT_TYPE_NAME,D46-1,0) -> Deep Inlay | G46: =IF(H46="",0,IF(ISERROR(MATCH(H46,System!$AE$4:$AE$105,0)),-1,MATCH(H46,System!$AE$4:$AE$105,0)-1)) -> 0 | H46: No Change | I46: VG | J46: VG | K46: VG | L46: G | M46: G | S46: =IF(CheckTreatmenTypeCodesOK(SELECT_CONDITION_BAND,OFFSET(I46,0,0,1,current_conditionBands),H46,G46)=FALSE,"ERROR","OK") ->  | T46: 31.37 | U46: 31.37 | V46: 31.37 | W46: 31.37 | X46: 31.37
D47: 6 | F47: =OFFSET(TREATMENT_TYPE_NAME,D47-1,0) -> Reconstruction | G47: =IF(H47="",0,IF(ISERROR(MATCH(H47,System!$AE$4:$AE$105,0)),-1,MATCH(H47,System!$AE$4:$AE$105,0)-1)) -> 0 | H47: No Change | I47: VG | J47: VG | K47: VG | L47: VG | M47: VG | S47: =IF(CheckTreatmenTypeCodesOK(SELECT_CONDITION_BAND,OFFSET(I47,0,0,1,current_conditionBands),H47,G47)=FALSE,"ERROR","OK") ->  | T47: 52.17 | U47: 52.17 | V47: 52.17 | W47: 52.17 | X47: 52.17
B48: =INT((ROW()-12)/(current_treatmentTypes))+1 -> 7 | C48: =OFFSET(ASSET_GROUP_NAME,B48-1,0) -> MR | D48: 1 | F48: =OFFSET(TREATMENT_TYPE_NAME,D48-1,0) -> Surface Dressing | G48: =IF(H48="",0,IF(ISERROR(MATCH(H48,System!$AE$4:$AE$105,0)),-1,MATCH(H48,System!$AE$4:$AE$105,0)-1)) -> 0 | H48: No Change | I48: VG | J48: VG | K48: G | L48: F | M48: P | N48: VG | O48: VG | P48: VG | Q48: VG | R48: VG | S48: =IF(CheckTreatmenTypeCodesOK(SELECT_CONDITION_BAND,OFFSET(I48,0,0,1,current_conditionBands),H48,G48)=FALSE,"ERROR","OK") ->  | T48: 6.09 | U48: 6.09 | V48: 6.09 | W48: 6.09 | X48: 6.09 | AD48: m²
D49: =D48+1 -> 2 | F49: Micro Asphalt | G49: =IF(H49="",0,IF(ISERROR(MATCH(H49,System!$AE$4:$AE$105,0)),-1,MATCH(H49,System!$AE$4:$AE$105,0)-1)) -> 0 | H49: No Change | I49: VG | J49: VG | K49: G | L49: F | M49: P | N49: VG | O49: VG | P49: VG | Q49: VG | R49: VG | T49: 8.77 | U49: 8.77 | V49: 8.77 | W49: 8.77 | X49: 8.77
D50: 3 | F50: =OFFSET(TREATMENT_TYPE_NAME,D50-1,0) -> Moderate Overlay | G50: =IF(H50="",0,IF(ISERROR(MATCH(H50,System!$AE$4:$AE$105,0)),-1,MATCH(H50,System!$AE$4:$AE$105,0)-1)) -> 0 | H50: No Change | I50: VG | J50: VG | K50: VG | L50: G | M50: G | S50: =IF(CheckTreatmenTypeCodesOK(SELECT_CONDITION_BAND,OFFSET(I50,0,0,1,current_conditionBands),H50,G50)=FALSE,"ERROR","OK") ->  | T50: 25.48 | U50: 25.48 | V50: 25.48 | W50: 25.48 | X50: 25.48
D51: 4 | F51: =OFFSET(TREATMENT_TYPE_NAME,D51-1,0) -> Moderate Inlay | G51: =IF(H51="",0,IF(ISERROR(MATCH(H51,System!$AE$4:$AE$105,0)),-1,MATCH(H51,System!$AE$4:$AE$105,0)-1)) -> 0 | H51: No Change | I51: VG | J51: VG | K51: VG | L51: G | M51: G | S51: =IF(CheckTreatmenTypeCodesOK(SELECT_CONDITION_BAND,OFFSET(I51,0,0,1,current_conditionBands),H51,G51)=FALSE,"ERROR","OK") ->  | T51: 21.89 | U51: 21.89 | V51: 21.89 | W51: 21.89 | X51: 21.89
D52: 5 | F52: =OFFSET(TREATMENT_TYPE_NAME,D52-1,0) -> Deep Inlay | G52: =IF(H52="",0,IF(ISERROR(MATCH(H52,System!$AE$4:$AE$105,0)),-1,MATCH(H52,System!$AE$4:$AE$105,0)-1)) -> 0 | H52: No Change | I52: VG | J52: VG | K52: VG | L52: G | M52: G | S52: =IF(CheckTreatmenTypeCodesOK(SELECT_CONDITION_BAND,OFFSET(I52,0,0,1,current_conditionBands),H52,G52)=FALSE,"ERROR","OK") ->  | T52: 35.7 | U52: 35.7 | V52: 35.7 | W52: 35.7 | X52: 35.7
D53: 6 | F53: =OFFSET(TREATMENT_TYPE_NAME,D53-1,0) -> Reconstruction | G53: =IF(H53="",0,IF(ISERROR(MATCH(H53,System!$AE$4:$AE$105,0)),-1,MATCH(H53,System!$AE$4:$AE$105,0)-1)) -> 0 | H53: No Change | I53: VG | J53: VG | K53: VG | L53: VG | M53: VG | S53: =IF(CheckTreatmenTypeCodesOK(SELECT_CONDITION_BAND,OFFSET(I53,0,0,1,current_conditionBands),H53,G53)=FALSE,"ERROR","OK") ->  | T53: 54.09 | U53: 54.09 | V53: 54.09 | W53: 54.09 | X53: 54.09
B54: =INT((ROW()-12)/(current_treatmentTypes))+1 -> 8 | C54: =OFFSET(ASSET_GROUP_NAME,B54-1,0) -> MU | D54: 1 | F54: =OFFSET(TREATMENT_TYPE_NAME,D54-1,0) -> Surface Dressing | G54: =IF(H54="",0,IF(ISERROR(MATCH(H54,System!$AE$4:$AE$105,0)),-1,MATCH(H54,System!$AE$4:$AE$105,0)-1)) -> 0 | H54: No Change | I54: VG | J54: VG | K54: G | L54: F | M54: P | N54: VG | O54: VG | P54: VG | Q54: VG | R54: VG | S54: =IF(CheckTreatmenTypeCodesOK(SELECT_CONDITION_BAND,OFFSET(I54,0,0,1,current_conditionBands),H54,G54)=FALSE,"ERROR","OK") ->  | T54: 6.07 | U54: 6.07 | V54: 6.07 | W54: 6.07 | X54: 6.07 | AD54: m²
D55: =D54+1 -> 2 | F55: Micro Asphalt | G55: =IF(H55="",0,IF(ISERROR(MATCH(H55,System!$AE$4:$AE$105,0)),-1,MATCH(H55,System!$AE$4:$AE$105,0)-1)) -> 0 | H55: No Change | I55: VG | J55: VG | K55: G | L55: F | M55: P | N55: VG | O55: VG | P55: VG | Q55: VG | R55: VG | T55: 8.51 | U55: 8.51 | V55: 8.51 | W55: 8.51 | X55: 8.51
D56: 3 | F56: =OFFSET(TREATMENT_TYPE_NAME,D56-1,0) -> Moderate Overlay | G56: =IF(H56="",0,IF(ISERROR(MATCH(H56,System!$AE$4:$AE$105,0)),-1,MATCH(H56,System!$AE$4:$AE$105,0)-1)) -> 0 | H56: No Change | I56: VG | J56: VG | K56: VG | L56: G | M56: G | S56: =IF(CheckTreatmenTypeCodesOK(SELECT_CONDITION_BAND,OFFSET(I56,0,0,1,current_conditionBands),H56,G56)=FALSE,"ERROR","OK") ->  | T56: 23.12 | U56: 23.12 | V56: 23.12 | W56: 23.12 | X56: 23.12
D57: 4 | F57: =OFFSET(TREATMENT_TYPE_NAME,D57-1,0) -> Moderate Inlay | G57: =IF(H57="",0,IF(ISERROR(MATCH(H57,System!$AE$4:$AE$105,0)),-1,MATCH(H57,System!$AE$4:$AE$105,0)-1)) -> 0 | H57: No Change | I57: VG | J57: VG | K57: VG | L57: G | M57: G | S57: =IF(CheckTreatmenTypeCodesOK(SELECT_CONDITION_BAND,OFFSET(I57,0,0,1,current_conditionBands),H57,G57)=FALSE,"ERROR","OK") ->  | T57: 22.36 | U57: 22.36 | V57: 22.36 | W57: 22.36 | X57: 22.36
D58: 5 | F58: =OFFSET(TREATMENT_TYPE_NAME,D58-1,0) -> Deep Inlay | G58: =IF(H58="",0,IF(ISERROR(MATCH(H58,System!$AE$4:$AE$105,0)),-1,MATCH(H58,System!$AE$4:$AE$105,0)-1)) -> 0 | H58: No Change | I58: VG | J58: VG | K58: VG | L58: G | M58: G | S58: =IF(CheckTreatmenTypeCodesOK(SELECT_CONDITION_BAND,OFFSET(I58,0,0,1,current_conditionBands),H58,G58)=FALSE,"ERROR","OK") ->  | T58: 34.06 | U58: 34.06 | V58: 34.06 | W58: 34.06 | X58: 34.06
D59: 6 | F59: =OFFSET(TREATMENT_TYPE_NAME,D59-1,0) -> Reconstruction | G59: =IF(H59="",0,IF(ISERROR(MATCH(H59,System!$AE$4:$AE$105,0)),-1,MATCH(H59,System!$AE$4:$AE$105,0)-1)) -> 0 | H59: No Change | I59: VG | J59: VG | K59: VG | L59: VG | M59: VG | S59: =IF(CheckTreatmenTypeCodesOK(SELECT_CONDITION_BAND,OFFSET(I59,0,0,1,current_conditionBands),H59,G59)=FALSE,"ERROR","OK") ->  | T59: 53.76 | U59: 53.76 | V59: 53.76 | W59: 53.76 | X59: 53.76
B60: =INT((ROW()-12)/(current_treatmentTypes))+1 -> 9 | C60: =OFFSET(ASSET_GROUP_NAME,B60-1,0) -> UR | D60: 1 | F60: =OFFSET(TREATMENT_TYPE_NAME,D60-1,0) -> Surface Dressing | G60: =IF(H60="",0,IF(ISERROR(MATCH(H60,System!$AE$4:$AE$105,0)),-1,MATCH(H60,System!$AE$4:$AE$105,0)-1)) -> 0 | H60: No Change | I60: VG | J60: VG | K60: G | L60: F | M60: P | N60: VG | O60: VG | P60: VG | Q60: VG | R60: VG | S60: =IF(CheckTreatmenTypeCodesOK(SELECT_CONDITION_BAND,OFFSET(I60,0,0,1,current_conditionBands),H60,G60)=FALSE,"ERROR","OK") ->  | T60: 6.53 | U60: 6.53 | V60: 6.53 | W60: 6.53 | X60: 6.53 | AD60: m²
D61: =D60+1 -> 2 | F61: Micro Asphalt | G61: =IF(H61="",0,IF(ISERROR(MATCH(H61,System!$AE$4:$AE$105,0)),-1,MATCH(H61,System!$AE$4:$AE$105,0)-1)) -> 0 | H61: No Change | I61: VG | J61: VG | K61: G | L61: F | M61: P | N61: VG | O61: VG | P61: VG | Q61: VG | R61: VG | T61: 9.02 | U61: 9.02 | V61: 9.02 | W61: 9.02 | X61: 9.02
D62: 3 | F62: =OFFSET(TREATMENT_TYPE_NAME,D62-1,0) -> Moderate Overlay | G62: =IF(H62="",0,IF(ISERROR(MATCH(H62,System!$AE$4:$AE$105,0)),-1,MATCH(H62,System!$AE$4:$AE$105,0)-1)) -> 0 | H62: No Change | I62: VG | J62: VG | K62: VG | L62: G | M62: G | S62: =IF(CheckTreatmenTypeCodesOK(SELECT_CONDITION_BAND,OFFSET(I62,0,0,1,current_conditionBands),H62,G62)=FALSE,"ERROR","OK") ->  | T62: 20.66 | U62: 20.66 | V62: 20.66 | W62: 20.66 | X62: 20.66
D63: 4 | F63: =OFFSET(TREATMENT_TYPE_NAME,D63-1,0) -> Moderate Inlay | G63: =IF(H63="",0,IF(ISERROR(MATCH(H63,System!$AE$4:$AE$105,0)),-1,MATCH(H63,System!$AE$4:$AE$105,0)-1)) -> 0 | H63: No Change | I63: VG | J63: VG | K63: VG | L63: G | M63: G | S63: =IF(CheckTreatmenTypeCodesOK(SELECT_CONDITION_BAND,OFFSET(I63,0,0,1,current_conditionBands),H63,G63)=FALSE,"ERROR","OK") ->  | T63: 19.25 | U63: 19.25 | V63: 19.25 | W63: 19.25 | X63: 19.25
D64: 5 | F64: =OFFSET(TREATMENT_TYPE_NAME,D64-1,0) -> Deep Inlay | G64: =IF(H64="",0,IF(ISERROR(MATCH(H64,System!$AE$4:$AE$105,0)),-1,MATCH(H64,System!$AE$4:$AE$105,0)-1)) -> 0 | H64: No Change | I64: VG | J64: VG | K64: VG | L64: G | M64: G | S64: =IF(CheckTreatmenTypeCodesOK(SELECT_CONDITION_BAND,OFFSET(I64,0,0,1,current_conditionBands),H64,G64)=FALSE,"ERROR","OK") ->  | T64: 31.38 | U64: 31.38 | V64: 31.38 | W64: 31.38 | X64: 31.38
D65: 6 | F65: =OFFSET(TREATMENT_TYPE_NAME,D65-1,0) -> Reconstruction | G65: =IF(H65="",0,IF(ISERROR(MATCH(H65,System!$AE$4:$AE$105,0)),-1,MATCH(H65,System!$AE$4:$AE$105,0)-1)) -> 0 | H65: No Change | I65: VG | J65: VG | K65: VG | L65: VG | M65: VG | S65: =IF(CheckTreatmenTypeCodesOK(SELECT_CONDITION_BAND,OFFSET(I65,0,0,1,current_conditionBands),H65,G65)=FALSE,"ERROR","OK") ->  | T65: 48.45 | U65: 48.45 | V65: 48.45 | W65: 48.45 | X65: 48.45
B66: =INT((ROW()-12)/(current_treatmentTypes))+1 -> 10 | C66: =OFFSET(ASSET_GROUP_NAME,B66-1,0) -> UU | D66: 1 | F66: =OFFSET(TREATMENT_TYPE_NAME,D66-1,0) -> Surface Dressing | G66: =IF(H66="",0,IF(ISERROR(MATCH(H66,System!$AE$4:$AE$105,0)),-1,MATCH(H66,System!$AE$4:$AE$105,0)-1)) -> 0 | H66: No Change | I66: VG | J66: VG | K66: G | L66: F | M66: P | N66: VG | O66: VG | P66: VG | Q66: VG | R66: VG | S66: =IF(CheckTreatmenTypeCodesOK(SELECT_CONDITION_BAND,OFFSET(I66,0,0,1,current_conditionBands),H66,G66)=FALSE,"ERROR","OK") ->  | T66: 5.85 | U66: 5.85 | V66: 5.85 | W66: 5.85 | X66: 5.85 | AD66: m²
D67: =D66+1 -> 2 | F67: Micro Asphalt | G67: =IF(H67="",0,IF(ISERROR(MATCH(H67,System!$AE$4:$AE$105,0)),-1,MATCH(H67,System!$AE$4:$AE$105,0)-1)) -> 0 | H67: No Change | I67: VG | J67: VG | K67: G | L67: F | M67: P | N67: VG | O67: VG | P67: VG | Q67: VG | R67: VG | T67: 8.68 | U67: 8.68 | V67: 8.68 | W67: 8.68 | X67: 8.68
D68: 3 | F68: =OFFSET(TREATMENT_TYPE_NAME,D68-1,0) -> Moderate Overlay | G68: =IF(H68="",0,IF(ISERROR(MATCH(H68,System!$AE$4:$AE$105,0)),-1,MATCH(H68,System!$AE$4:$AE$105,0)-1)) -> 0 | H68: No Change | I68: VG | J68: VG | K68: VG | L68: G | M68: G | S68: =IF(CheckTreatmenTypeCodesOK(SELECT_CONDITION_BAND,OFFSET(I68,0,0,1,current_conditionBands),H68,G68)=FALSE,"ERROR","OK") ->  | T68: 21.24 | U68: 21.24 | V68: 21.24 | W68: 21.24 | X68: 21.24
D69: 4 | F69: =OFFSET(TREATMENT_TYPE_NAME,D69-1,0) -> Moderate Inlay | G69: =IF(H69="",0,IF(ISERROR(MATCH(H69,System!$AE$4:$AE$105,0)),-1,MATCH(H69,System!$AE$4:$AE$105,0)-1)) -> 0 | H69: No Change | I69: VG | J69: VG | K69: VG | L69: G | M69: G | S69: =IF(CheckTreatmenTypeCodesOK(SELECT_CONDITION_BAND,OFFSET(I69,0,0,1,current_conditionBands),H69,G69)=FALSE,"ERROR","OK") ->  | T69: 19.99 | U69: 19.99 | V69: 19.99 | W69: 19.99 | X69: 19.99
D70: 5 | F70: =OFFSET(TREATMENT_TYPE_NAME,D70-1,0) -> Deep Inlay | G70: =IF(H70="",0,IF(ISERROR(MATCH(H70,System!$AE$4:$AE$105,0)),-1,MATCH(H70,System!$AE$4:$AE$105,0)-1)) -> 0 | H70: No Change | I70: VG | J70: VG | K70: VG | L70: G | M70: G | S70: =IF(CheckTreatmenTypeCodesOK(SELECT_CONDITION_BAND,OFFSET(I70,0,0,1,current_conditionBands),H70,G70)=FALSE,"ERROR","OK") ->  | T70: 31.04 | U70: 31.04 | V70: 31.04 | W70: 31.04 | X70: 31.04
D71: 6 | F71: =OFFSET(TREATMENT_TYPE_NAME,D71-1,0) -> Reconstruction | G71: =IF(H71="",0,IF(ISERROR(MATCH(H71,System!$AE$4:$AE$105,0)),-1,MATCH(H71,System!$AE$4:$AE$105,0)-1)) -> 0 | H71: No Change | I71: VG | J71: VG | K71: VG | L71: VG | M71: VG | S71: =IF(CheckTreatmenTypeCodesOK(SELECT_CONDITION_BAND,OFFSET(I71,0,0,1,current_conditionBands),H71,G71)=FALSE,"ERROR","OK") ->  | T71: 47.79 | U71: 47.79 | V71: 47.79 | W71: 47.79 | X71: 47.79

Sheet 4 - Treatment Strategies
B3: Treatment Strategies
J8: 1 | K8: 2 | L8: 3 | M8: 4 | N8: 5 | O8: 6 | P8: 7 | Q8: 8 | R8: 9 | S8: 10
B9: Serial | C9: Name | D9: Step | E9: Condition Band Index | F9: Treatment Type Index | G9: Treatment | H9: Condition Band | I9: % Treated | J9: =OFFSET(CONDITION_BAND_CODE,'4 - Treatment Strategies'!J8-1,0) -> VG | K9: =OFFSET(CONDITION_BAND_CODE,'4 - Treatment Strategies'!K8-1,0) -> G | L9: =OFFSET(CONDITION_BAND_CODE,'4 - Treatment Strategies'!L8-1,0) -> F | M9: =OFFSET(CONDITION_BAND_CODE,'4 - Treatment Strategies'!M8-1,0) -> P | N9: =OFFSET(CONDITION_BAND_CODE,'4 - Treatment Strategies'!N8-1,0) -> VP | O9: =OFFSET(CONDITION_BAND_CODE,'4 - Treatment Strategies'!O8-1,0) -> 0 | P9: =OFFSET(CONDITION_BAND_CODE,'4 - Treatment Strategies'!P8-1,0) -> 0 | Q9: =OFFSET(CONDITION_BAND_CODE,'4 - Treatment Strategies'!Q8-1,0) -> 0 | R9: =OFFSET(CONDITION_BAND_CODE,'4 - Treatment Strategies'!R8-1,0) -> 0 | S9: =OFFSET(CONDITION_BAND_CODE,'4 - Treatment Strategies'!S8-1,0) -> 0
B10: =1+(INT(ROW()-10)/System!$B$38) -> 1 | C10: Strat1 | D10: 1 | E10: =IF(ISERROR(MATCH(H10,SELECT_CONDITION_BAND_ONLY,0)),0,MATCH(H10,SELECT_CONDITION_BAND_ONLY,0)) -> 2 | F10: =IF(ISERROR(MATCH(G10,SELECT_TREATMENT_TYPE,0)),0,MATCH(G10,SELECT_TREATMENT_TYPE,0)-1) -> 1 | G10: Surface Dressing | H10: G | I10: 0.2 | J10: =IF($E10=J$8,$I10,"") ->  | K10: 0.2 | T10: =IF(D10=0,"Error: Update/enter a performance indicator",IF(G10='0 - Input Sheet'!$S$12,"",IF(OR(G10="",H10=""),System!$Q$6,IF(F10=0,System!$Q$4,IF(E10=0,System!$Q$5,""))))) -> 
D11: =D10+1 -> 2 | E11: 2 | F11: 2 | G11: Micro Asphalt | H11: G | I11: 0.2 | K11: 0.2 | T11: =IF(D11=0,"Error: Update/enter a performance indicator",IF(G11='0 - Input Sheet'!$S$12,"",IF(OR(G11="",H11=""),System!$Q$6,IF(F11=0,System!$Q$4,IF(E11=0,System!$Q$5,""))))) -> 
D12: 3 | E12: =IF(ISERROR(MATCH(H12,SELECT_CONDITION_BAND_ONLY,0)),0,MATCH(H12,SELECT_CONDITION_BAND_ONLY,0)) -> 3 | F12: =IF(ISERROR(MATCH(G12,SELECT_TREATMENT_TYPE,0)),0,MATCH(G12,SELECT_TREATMENT_TYPE,0)-1) -> 4 | G12: Moderate Inlay | H12: F | I12: 0.2 | L12: 0.2 | T12: =IF(D12=0,"Error: Update/enter a performance indicator",IF(G12='0 - Input Sheet'!$S$12,"",IF(OR(G12="",H12=""),System!$Q$6,IF(F12=0,System!$Q$4,IF(E12=0,System!$Q$5,""))))) -> 
D13: 4 | E13: =IF(ISERROR(MATCH(H13,SELECT_CONDITION_BAND_ONLY,0)),0,MATCH(H13,SELECT_CONDITION_BAND_ONLY,0)) -> 3 | F13: =IF(ISERROR(MATCH(G13,SELECT_TREATMENT_TYPE,0)),0,MATCH(G13,SELECT_TREATMENT_TYPE,0)-1) -> 3 | G13: Moderate Overlay | H13: F | I13: 0.2 | L13: 0.2 | T13: =IF(D13=0,"Error: Update/enter a performance indicator",IF(G13='0 - Input Sheet'!$S$12,"",IF(OR(G13="",H13=""),System!$Q$6,IF(F13=0,System!$Q$4,IF(E13=0,System!$Q$5,""))))) -> 
D14: 5 | E14: =IF(ISERROR(MATCH(H14,SELECT_CONDITION_BAND_ONLY,0)),0,MATCH(H14,SELECT_CONDITION_BAND_ONLY,0)) -> 4 | F14: =IF(ISERROR(MATCH(G14,SELECT_TREATMENT_TYPE,0)),0,MATCH(G14,SELECT_TREATMENT_TYPE,0)-1) -> 5 | G14: Deep Inlay | H14: P | I14: 0.2 | M14: 0.2 | T14: =IF(D14=0,"Error: Update/enter a performance indicator",IF(G14='0 - Input Sheet'!$S$12,"",IF(OR(G14="",H14=""),System!$Q$6,IF(F14=0,System!$Q$4,IF(E14=0,System!$Q$5,""))))) -> 
D15: 6 | E15: =IF(ISERROR(MATCH(H15,SELECT_CONDITION_BAND_ONLY,0)),0,MATCH(H15,SELECT_CONDITION_BAND_ONLY,0)) -> 5 | F15: =IF(ISERROR(MATCH(G15,SELECT_TREATMENT_TYPE,0)),0,MATCH(G15,SELECT_TREATMENT_TYPE,0)-1) -> 6 | G15: Reconstruction | H15: VP | I15: 0.2 | N15: 0.2 | T15: =IF(D15=0,"Error: Update/enter a performance indicator",IF(G15='0 - Input Sheet'!$S$12,"",IF(OR(G15="",H15=""),System!$Q$6,IF(F15=0,System!$Q$4,IF(E15=0,System!$Q$5,""))))) -> 
D16: 7 | E16: =IF(ISERROR(MATCH(H16,SELECT_CONDITION_BAND_ONLY,0)),0,MATCH(H16,SELECT_CONDITION_BAND_ONLY,0)) -> 0 | F16: =IF(ISERROR(MATCH(G16,SELECT_TREATMENT_TYPE,0)),0,MATCH(G16,SELECT_TREATMENT_TYPE,0)-1) -> 0 | G16: None | T16: =IF(D16=0,"Error: Update/enter a performance indicator",IF(G16='0 - Input Sheet'!$S$12,"",IF(OR(G16="",H16=""),System!$Q$6,IF(F16=0,System!$Q$4,IF(E16=0,System!$Q$5,""))))) -> 
B17: =1+(INT(ROW()-10)/System!$B$38) -> 2 | C17: Strat2 | D17: 1 | E17: 2 | F17: 1 | G17: Surface Dressing | H17: G | I17: 0.5 | K17: 0.5 | T17: =IF(D17=0,"Error: Update/enter a performance indicator",IF(G17='0 - Input Sheet'!$S$12,"",IF(OR(G17="",H17=""),System!$Q$6,IF(F17=0,System!$Q$4,IF(E17=0,System!$Q$5,""))))) -> 
D18: =D17+1 -> 2 | E18: 2 | F18: 2 | G18: Micro Asphalt | H18: G | I18: 0.5 | K18: 0.5 | T18: =IF(D18=0,"Error: Update/enter a performance indicator",IF(G18='0 - Input Sheet'!$S$12,"",IF(OR(G18="",H18=""),System!$Q$6,IF(F18=0,System!$Q$4,IF(E18=0,System!$Q$5,""))))) -> 
D19: 3 | E19: 3 | F19: 4 | G19: Moderate Inlay | H19: F | I19: 0.3 | L19: 0.3 | T19: =IF(D19=0,"Error: Update/enter a performance indicator",IF(G19='0 - Input Sheet'!$S$12,"",IF(OR(G19="",H19=""),System!$Q$6,IF(F19=0,System!$Q$4,IF(E19=0,System!$Q$5,""))))) -> 
D20: 4 | E20: 3 | F20: 3 | G20: Moderate Overlay | H20: F | I20: 0.3 | L20: 0.3 | T20: =IF(D20=0,"Error: Update/enter a performance indicator",IF(G20='0 - Input Sheet'!$S$12,"",IF(OR(G20="",H20=""),System!$Q$6,IF(F20=0,System!$Q$4,IF(E20=0,System!$Q$5,""))))) -> 
D21: 5 | E21: 4 | F21: 5 | G21: Deep Inlay | H21: P | I21: 0.4 | M21: 0.4 | T21: =IF(D21=0,"Error: Update/enter a performance indicator",IF(G21='0 - Input Sheet'!$S$12,"",IF(OR(G21="",H21=""),System!$Q$6,IF(F21=0,System!$Q$4,IF(E21=0,System!$Q$5,""))))) -> 
D22: 6 | E22: =IF(ISERROR(MATCH(H22,SELECT_CONDITION_BAND_ONLY,0)),0,MATCH(H22,SELECT_CONDITION_BAND_ONLY,0)) -> 5 | F22: =IF(ISERROR(MATCH(G22,SELECT_TREATMENT_TYPE,0)),0,MATCH(G22,SELECT_TREATMENT_TYPE,0)-1) -> 6 | G22: Reconstruction | H22: VP | I22: 0.5 | N22: 0.5 | T22: =IF(D22=0,"Error: Update/enter a performance indicator",IF(G22='0 - Input Sheet'!$S$12,"",IF(OR(G22="",H22=""),System!$Q$6,IF(F22=0,System!$Q$4,IF(E22=0,System!$Q$5,""))))) -> 
D23: 7 | E23: =IF(ISERROR(MATCH(H23,SELECT_CONDITION_BAND_ONLY,0)),0,MATCH(H23,SELECT_CONDITION_BAND_ONLY,0)) -> 0 | F23: =IF(ISERROR(MATCH(G23,SELECT_TREATMENT_TYPE,0)),0,MATCH(G23,SELECT_TREATMENT_TYPE,0)-1) -> 0 | G23: None | T23: =IF(D23=0,"Error: Update/enter a performance indicator",IF(G23='0 - Input Sheet'!$S$12,"",IF(OR(G23="",H23=""),System!$Q$6,IF(F23=0,System!$Q$4,IF(E23=0,System!$Q$5,""))))) -> 
B24: =1+(INT(ROW()-10)/System!$B$38) -> 3 | C24: Strat&Main | D24: 1 | E24: 3 | F24: 1 | G24: Surface Dressing | H24: F | I24: 0.2 | L24: 0.2 | T24: =IF(D24=0,"Error: Update/enter a performance indicator",IF(G24='0 - Input Sheet'!$S$12,"",IF(OR(G24="",H24=""),System!$Q$6,IF(F24=0,System!$Q$4,IF(E24=0,System!$Q$5,""))))) -> 
D25: =D24+1 -> 2 | E25: 3 | F25: 2 | G25: Micro Asphalt | H25: F | I25: 0.2 | L25: 0.2 | T25: =IF(D25=0,"Error: Update/enter a performance indicator",IF(G25='0 - Input Sheet'!$S$12,"",IF(OR(G25="",H25=""),System!$Q$6,IF(F25=0,System!$Q$4,IF(E25=0,System!$Q$5,""))))) -> 
D26: 3 | E26: 3 | F26: 3 | G26: Moderate Overlay | H26: F | I26: 0.15 | L26: 0.15 | T26: =IF(D26=0,"Error: Update/enter a performance indicator",IF(G26='0 - Input Sheet'!$S$12,"",IF(OR(G26="",H26=""),System!$Q$6,IF(F26=0,System!$Q$4,IF(E26=0,System!$Q$5,""))))) -> 
D27: 4 | E27: 4 | F27: 4 | G27: Moderate Inlay | H27: P | I27: 0.45 | M27: 0.45 | T27: =IF(D27=0,"Error: Update/enter a performance indicator",IF(G27='0 - Input Sheet'!$S$12,"",IF(OR(G27="",H27=""),System!$Q$6,IF(F27=0,System!$Q$4,IF(E27=0,System!$Q$5,""))))) -> 
D28: 5 | E28: 4 | F28: 5 | G28: Deep Inlay | H28: P | I28: 0.3 | J28: =IF($E28=J$8,$I28,"") ->  | M28: 0.3 | T28: =IF(D28=0,"Error: Update/enter a performance indicator",IF(G28='0 - Input Sheet'!$S$12,"",IF(OR(G28="",H28=""),System!$Q$6,IF(F28=0,System!$Q$4,IF(E28=0,System!$Q$5,""))))) -> 
D29: 6 | E29: =IF(ISERROR(MATCH(H29,SELECT_CONDITION_BAND_ONLY,0)),0,MATCH(H29,SELECT_CONDITION_BAND_ONLY,0)) -> 5 | F29: =IF(ISERROR(MATCH(G29,SELECT_TREATMENT_TYPE,0)),0,MATCH(G29,SELECT_TREATMENT_TYPE,0)-1) -> 5 | G29: Deep Inlay | H29: VP | I29: 0.45 | N29: 0.45 | T29: =IF(D29=0,"Error: Update/enter a performance indicator",IF(G29='0 - Input Sheet'!$S$12,"",IF(OR(G29="",H29=""),System!$Q$6,IF(F29=0,System!$Q$4,IF(E29=0,System!$Q$5,""))))) -> 
D30: 7 | E30: =IF(ISERROR(MATCH(H30,SELECT_CONDITION_BAND_ONLY,0)),0,MATCH(H30,SELECT_CONDITION_BAND_ONLY,0)) -> 5 | F30: =IF(ISERROR(MATCH(G30,SELECT_TREATMENT_TYPE,0)),0,MATCH(G30,SELECT_TREATMENT_TYPE,0)-1) -> 6 | G30: Reconstruction | H30: VP | I30: 0.2 | N30: 0.2 | T30: =IF(D30=0,"Error: Update/enter a performance indicator",IF(G30='0 - Input Sheet'!$S$12,"",IF(OR(G30="",H30=""),System!$Q$6,IF(F30=0,System!$Q$4,IF(E30=0,System!$Q$5,""))))) -> 
B31: =1+(INT(ROW()-10)/System!$B$38) -> 4 | C31: Secondary | D31: 1 | E31: 3 | F31: 1 | G31: Surface Dressing | H31: F | I31: 0.2 | L31: 0.2 | T31: =IF(D31=0,"Error: Update/enter a performance indicator",IF(G31='0 - Input Sheet'!$S$12,"",IF(OR(G31="",H31=""),System!$Q$6,IF(F31=0,System!$Q$4,IF(E31=0,System!$Q$5,""))))) -> 
D32: =D31+1 -> 2 | E32: 3 | F32: 2 | G32: Micro Asphalt | H32: F | I32: 0.2 | L32: 0.2 | T32: =IF(D32=0,"Error: Update/enter a performance indicator",IF(G32='0 - Input Sheet'!$S$12,"",IF(OR(G32="",H32=""),System!$Q$6,IF(F32=0,System!$Q$4,IF(E32=0,System!$Q$5,""))))) -> 
D33: 3 | E33: 3 | F33: 3 | G33: Moderate Overlay | H33: F | I33: 0.1 | L33: 0.1 | T33: =IF(D33=0,"Error: Update/enter a performance indicator",IF(G33='0 - Input Sheet'!$S$12,"",IF(OR(G33="",H33=""),System!$Q$6,IF(F33=0,System!$Q$4,IF(E33=0,System!$Q$5,""))))) -> 
D34: 4 | E34: 4 | F34: 4 | G34: Moderate Inlay | H34: P | I34: 0.2 | M34: 0.2 | T34: =IF(D34=0,"Error: Update/enter a performance indicator",IF(G34='0 - Input Sheet'!$S$12,"",IF(OR(G34="",H34=""),System!$Q$6,IF(F34=0,System!$Q$4,IF(E34=0,System!$Q$5,""))))) -> 
D35: 5 | E35: 4 | F35: 5 | G35: Deep Inlay | H35: P | I35: 0.25 | M35: 0.25 | T35: =IF(D35=0,"Error: Update/enter a performance indicator",IF(G35='0 - Input Sheet'!$S$12,"",IF(OR(G35="",H35=""),System!$Q$6,IF(F35=0,System!$Q$4,IF(E35=0,System!$Q$5,""))))) -> 
D36: 6 | E36: =IF(ISERROR(MATCH(H36,SELECT_CONDITION_BAND_ONLY,0)),0,MATCH(H36,SELECT_CONDITION_BAND_ONLY,0)) -> 5 | F36: =IF(ISERROR(MATCH(G36,SELECT_TREATMENT_TYPE,0)),0,MATCH(G36,SELECT_TREATMENT_TYPE,0)-1) -> 5 | G36: Deep Inlay | H36: VP | I36: 0.2 | N36: 0.2 | T36: =IF(D36=0,"Error: Update/enter a performance indicator",IF(G36='0 - Input Sheet'!$S$12,"",IF(OR(G36="",H36=""),System!$Q$6,IF(F36=0,System!$Q$4,IF(E36=0,System!$Q$5,""))))) -> 
D37: 7 | E37: =IF(ISERROR(MATCH(H37,SELECT_CONDITION_BAND_ONLY,0)),0,MATCH(H37,SELECT_CONDITION_BAND_ONLY,0)) -> 5 | F37: =IF(ISERROR(MATCH(G37,SELECT_TREATMENT_TYPE,0)),0,MATCH(G37,SELECT_TREATMENT_TYPE,0)-1) -> 6 | G37: Reconstruction | H37: VP | I37: 0.15 | N37: 0.15 | T37: =IF(D37=0,"Error: Update/enter a performance indicator",IF(G37='0 - Input Sheet'!$S$12,"",IF(OR(G37="",H37=""),System!$Q$6,IF(F37=0,System!$Q$4,IF(E37=0,System!$Q$5,""))))) -> 
B38: =1+(INT(ROW()-10)/System!$B$38) -> 5 | C38: Link | D38: 1 | E38: 3 | F38: 1 | G38: Surface Dressing | H38: F | I38: 0.12 | L38: 0.12 | T38: =IF(D38=0,"Error: Update/enter a performance indicator",IF(G38='0 - Input Sheet'!$S$12,"",IF(OR(G38="",H38=""),System!$Q$6,IF(F38=0,System!$Q$4,IF(E38=0,System!$Q$5,""))))) -> 
D39: =D38+1 -> 2 | E39: 3 | F39: 2 | G39: Micro Asphalt | H39: F | I39: 0.12 | L39: 0.12 | T39: =IF(D39=0,"Error: Update/enter a performance indicator",IF(G39='0 - Input Sheet'!$S$12,"",IF(OR(G39="",H39=""),System!$Q$6,IF(F39=0,System!$Q$4,IF(E39=0,System!$Q$5,""))))) -> 
D40: 3 | E40: 3 | F40: 3 | G40: Moderate Overlay | H40: F | I40: 0.12 | L40: 0.12 | T40: =IF(D40=0,"Error: Update/enter a performance indicator",IF(G40='0 - Input Sheet'!$S$12,"",IF(OR(G40="",H40=""),System!$Q$6,IF(F40=0,System!$Q$4,IF(E40=0,System!$Q$5,""))))) -> 
D41: 4 | E41: 4 | F41: 4 | G41: Moderate Inlay | H41: P | I41: 0.35 | M41: 0.35 | T41: =IF(D41=0,"Error: Update/enter a performance indicator",IF(G41='0 - Input Sheet'!$S$12,"",IF(OR(G41="",H41=""),System!$Q$6,IF(F41=0,System!$Q$4,IF(E41=0,System!$Q$5,""))))) -> 
D42: 5 | E42: 4 | F42: 5 | G42: Deep Inlay | H42: P | I42: 0.2 | M42: 0.2 | T42: =IF(D42=0,"Error: Update/enter a performance indicator",IF(G42='0 - Input Sheet'!$S$12,"",IF(OR(G42="",H42=""),System!$Q$6,IF(F42=0,System!$Q$4,IF(E42=0,System!$Q$5,""))))) -> 
D43: 6 | E43: =IF(ISERROR(MATCH(H43,SELECT_CONDITION_BAND_ONLY,0)),0,MATCH(H43,SELECT_CONDITION_BAND_ONLY,0)) -> 5 | F43: =IF(ISERROR(MATCH(G43,SELECT_TREATMENT_TYPE,0)),0,MATCH(G43,SELECT_TREATMENT_TYPE,0)-1) -> 5 | G43: Deep Inlay | H43: VP | I43: 0.25 | N43: 0.25 | T43: =IF(D43=0,"Error: Update/enter a performance indicator",IF(G43='0 - Input Sheet'!$S$12,"",IF(OR(G43="",H43=""),System!$Q$6,IF(F43=0,System!$Q$4,IF(E43=0,System!$Q$5,""))))) -> 
D44: 7 | E44: =IF(ISERROR(MATCH(H44,SELECT_CONDITION_BAND_ONLY,0)),0,MATCH(H44,SELECT_CONDITION_BAND_ONLY,0)) -> 5 | F44: =IF(ISERROR(MATCH(G44,SELECT_TREATMENT_TYPE,0)),0,MATCH(G44,SELECT_TREATMENT_TYPE,0)-1) -> 6 | G44: Reconstruction | H44: VP | I44: 0.25 | N44: 0.25 | T44: =IF(D44=0,"Error: Update/enter a performance indicator",IF(G44='0 - Input Sheet'!$S$12,"",IF(OR(G44="",H44=""),System!$Q$6,IF(F44=0,System!$Q$4,IF(E44=0,System!$Q$5,""))))) -> 
B45: =1+(INT(ROW()-10)/System!$B$38) -> 6 | C45: Local | D45: 1 | E45: 3 | F45: 1 | G45: Surface Dressing | H45: F | I45: 0.15 | L45: 0.15 | T45: =IF(D45=0,"Error: Update/enter a performance indicator",IF(G45='0 - Input Sheet'!$S$12,"",IF(OR(G45="",H45=""),System!$Q$6,IF(F45=0,System!$Q$4,IF(E45=0,System!$Q$5,""))))) -> 
D46: =D45+1 -> 2 | E46: 3 | F46: 2 | G46: Micro Asphalt | H46: F | I46: 0.15 | L46: 0.15 | T46: =IF(D46=0,"Error: Update/enter a performance indicator",IF(G46='0 - Input Sheet'!$S$12,"",IF(OR(G46="",H46=""),System!$Q$6,IF(F46=0,System!$Q$4,IF(E46=0,System!$Q$5,""))))) -> 
D47: 3 | E47: 3 | F47: 3 | G47: Moderate Overlay | H47: F | I47: 0.1 | J47: =IF($E47=J$8,$I47,"") ->  | L47: 0.1 | T47: =IF(D47=0,"Error: Update/enter a performance indicator",IF(G47='0 - Input Sheet'!$S$12,"",IF(OR(G47="",H47=""),System!$Q$6,IF(F47=0,System!$Q$4,IF(E47=0,System!$Q$5,""))))) -> 
D48: 4 | E48: 4 | F48: 4 | G48: Moderate Inlay | H48: P | I48: 0.3 | M48: 0.3 | T48: =IF(D48=0,"Error: Update/enter a performance indicator",IF(G48='0 - Input Sheet'!$S$12,"",IF(OR(G48="",H48=""),System!$Q$6,IF(F48=0,System!$Q$4,IF(E48=0,System!$Q$5,""))))) -> 
D49: 5 | E49: 4 | F49: 5 | G49: Deep Inlay | H49: P | I49: 0.15 | M49: 0.15 | T49: =IF(D49=0,"Error: Update/enter a performance indicator",IF(G49='0 - Input Sheet'!$S$12,"",IF(OR(G49="",H49=""),System!$Q$6,IF(F49=0,System!$Q$4,IF(E49=0,System!$Q$5,""))))) -> 
D50: 6 | E50: =IF(ISERROR(MATCH(H50,SELECT_CONDITION_BAND_ONLY,0)),0,MATCH(H50,SELECT_CONDITION_BAND_ONLY,0)) -> 5 | F50: =IF(ISERROR(MATCH(G50,SELECT_TREATMENT_TYPE,0)),0,MATCH(G50,SELECT_TREATMENT_TYPE,0)-1) -> 5 | G50: Deep Inlay | H50: VP | I50: 0.2 | N50: 0.2 | T50: =IF(D50=0,"Error: Update/enter a performance indicator",IF(G50='0 - Input Sheet'!$S$12,"",IF(OR(G50="",H50=""),System!$Q$6,IF(F50=0,System!$Q$4,IF(E50=0,System!$Q$5,""))))) -> 
D51: 7 | E51: =IF(ISERROR(MATCH(H51,SELECT_CONDITION_BAND_ONLY,0)),0,MATCH(H51,SELECT_CONDITION_BAND_ONLY,0)) -> 5 | F51: =IF(ISERROR(MATCH(G51,SELECT_TREATMENT_TYPE,0)),0,MATCH(G51,SELECT_TREATMENT_TYPE,0)-1) -> 6 | G51: Reconstruction | H51: VP | I51: 0.25 | N51: 0.25 | T51: =IF(D51=0,"Error: Update/enter a performance indicator",IF(G51='0 - Input Sheet'!$S$12,"",IF(OR(G51="",H51=""),System!$Q$6,IF(F51=0,System!$Q$4,IF(E51=0,System!$Q$5,""))))) -> 

Sheet 5 - Budgets
B3: Budgets
B9: Serial | C9: Name | D9: Treatment No. | E9: Treatment | F9: Budget constraints (£ 000s) | G9: Total (£ 000s)
B10: =1+(INT(ROW()-10)/System!$B$35) -> 1 | C10: AR | D10: 1 | E10: =OFFSET(TREATMENT_TYPE_NAME,D10-1,0) -> Surface Dressing | F10: 43792.86582 | G10: =SUM(OFFSET(F10,0,0,current_treatmentTypes,1)) -> 437928.6582
D11: =D10+1 -> 2 | E11: Micro Asphalt | F11: 43792.86582
D12: 3 | E12: =OFFSET(TREATMENT_TYPE_NAME,D12-1,0) -> Moderate Overlay | F12: 87585.73164
D13: 4 | E13: =OFFSET(TREATMENT_TYPE_NAME,D13-1,0) -> Moderate Inlay | F13: 87585.73164
D14: 5 | E14: =OFFSET(TREATMENT_TYPE_NAME,D14-1,0) -> Deep Inlay | F14: 87585.73164
D15: 6 | E15: =OFFSET(TREATMENT_TYPE_NAME,D15-1,0) -> Reconstruction | F15: 87585.73164
B16: =1+(INT(ROW()-10)/System!$B$35) -> 2 | C16: AU | D16: 1 | E16: Surface Dressing | F16: 21896.43291 | G16: =SUM(OFFSET(F16,0,0,current_treatmentTypes,1)) -> 218964.3291
D17: 2 | E17: Micro Asphalt | F17: 21896.43291
D18: 3 | E18: Moderate Overlay | F18: 43792.86582
D19: 4 | E19: Moderate Inlay | F19: 43792.86582
D20: 5 | E20: Deep Inlay | F20: 43792.86582
D21: 6 | E21: =OFFSET(TREATMENT_TYPE_NAME,D21-1,0) -> Reconstruction | F21: 43792.86582
B22: =1+(INT(ROW()-10)/System!$B$35) -> 3 | C22: BR | D22: 1 | E22: Surface Dressing | F22: 7962.33924 | G22: =SUM(OFFSET(F22,0,0,current_treatmentTypes,1)) -> 79623.3924
D23: 2 | E23: Micro Asphalt | F23: 7962.33924
D24: 3 | E24: Moderate Overlay | F24: 15924.67848
D25: 4 | E25: Moderate Inlay | F25: 15924.67848
D26: 5 | E26: Deep Inlay | F26: 15924.67848
D27: 6 | E27: =OFFSET(TREATMENT_TYPE_NAME,D27-1,0) -> Reconstruction | F27: 15924.67848
B28: =1+(INT(ROW()-10)/System!$B$35) -> 4 | C28: BU | D28: 1 | E28: Surface Dressing | F28: 1990.58481 | G28: =SUM(OFFSET(F28,0,0,current_treatmentTypes,1)) -> 19905.8481
D29: 2 | E29: Micro Asphalt | F29: 1990.58481
D30: 3 | E30: Moderate Overlay | F30: 3981.16962
D31: 4 | E31: Moderate Inlay | F31: 3981.16962
D32: 5 | E32: Deep Inlay | F32: 3981.16962
D33: 6 | E33: =OFFSET(TREATMENT_TYPE_NAME,D33-1,0) -> Reconstruction | F33: 3981.16962
B34: =1+(INT(ROW()-10)/System!$B$35) -> 5 | C34: CR | D34: 1 | E34: Surface Dressing | F34: 27868.18734 | G34: =SUM(OFFSET(F34,0,0,current_treatmentTypes,1)) -> 278681.8734
D35: 2 | E35: Micro Asphalt | F35: 27868.18734
D36: 3 | E36: Moderate Overlay | F36: 55736.37468
D37: 4 | E37: Moderate Inlay | F37: 55736.37468
D38: 5 | E38: Deep Inlay | F38: 55736.37468
D39: 6 | E39: =OFFSET(TREATMENT_TYPE_NAME,D39-1,0) -> Reconstruction | F39: 55736.37468
B40: =1+(INT(ROW()-10)/System!$B$35) -> 6 | C40: CU | D40: 1 | E40: Surface Dressing | F40: 3981.16962 | G40: =SUM(OFFSET(F40,0,0,current_treatmentTypes,1)) -> 39811.6962
D41: 2 | E41: Micro Asphalt | F41: 3981.16962
D42: 3 | E42: Moderate Overlay | F42: 7962.33924
D43: 4 | E43: Moderate Inlay | F43: 7962.33924
D44: 5 | E44: Deep Inlay | F44: 7962.33924
D45: 6 | E45: =OFFSET(TREATMENT_TYPE_NAME,D45-1,0) -> Reconstruction | F45: 7962.33924
B46: =1+(INT(ROW()-10)/System!$B$35) -> 7 | C46: MR | D46: 1 | E46: Surface Dressing | F46: 1990.58481 | G46: =SUM(OFFSET(F46,0,0,current_treatmentTypes,1)) -> 19905.8481
D47: 2 | E47: Micro Asphalt | F47: 1990.58481
D48: 3 | E48: Moderate Overlay | F48: 3981.16962
D49: 4 | E49: Moderate Inlay | F49: 3981.16962
D50: 5 | E50: Deep Inlay | F50: 3981.16962
D51: 6 | E51: =OFFSET(TREATMENT_TYPE_NAME,D51-1,0) -> Reconstruction | F51: 3981.16962
B52: =1+(INT(ROW()-10)/System!$B$35) -> 8 | C52: MU | D52: 1 | E52: Surface Dressing | F52: 1990.58481 | G52: =SUM(OFFSET(F52,0,0,current_treatmentTypes,1)) -> 19905.8481
D53: 2 | E53: Micro Asphalt | F53: 1990.58481
D54: 3 | E54: Moderate Overlay | F54: 3981.16962
D55: 4 | E55: Moderate Inlay | F55: 3981.16962
D56: 5 | E56: Deep Inlay | F56: 3981.16962
D57: 6 | E57: =OFFSET(TREATMENT_TYPE_NAME,D57-1,0) -> Reconstruction | F57: 3981.16962
B58: =1+(INT(ROW()-10)/System!$B$35) -> 9 | C58: UR | D58: 1 | E58: Surface Dressing | F58: 43792.86582 | G58: =SUM(OFFSET(F58,0,0,current_treatmentTypes,1)) -> 437928.6582
D59: 2 | E59: Micro Asphalt | F59: 43792.86582
D60: 3 | E60: Moderate Overlay | F60: 87585.73164
D61: 4 | E61: Moderate Inlay | F61: 87585.73164
D62: 5 | E62: Deep Inlay | F62: 87585.73164
D63: 6 | E63: =OFFSET(TREATMENT_TYPE_NAME,D63-1,0) -> Reconstruction | F63: 87585.73164
B64: =1+(INT(ROW()-10)/System!$B$35) -> 10 | C64: UU | D64: 1 | E64: Surface Dressing | F64: 43792.86582 | G64: =SUM(OFFSET(F64,0,0,current_treatmentTypes,1)) -> 437928.6582
D65: 2 | E65: Micro Asphalt | F65: 43792.86582
D66: 3 | E66: Moderate Overlay | F66: 87585.73164
D67: 4 | E67: Moderate Inlay | F67: 87585.73164
D68: 5 | E68: Deep Inlay | F68: 87585.73164
D69: 6 | E69: =OFFSET(TREATMENT_TYPE_NAME,D69-1,0) -> Reconstruction | F69: 87585.73164

Sheet 6 - Performance Targets
B3: Performance Targets
C7: Maximum number of iterations for treatment strategy: | E7: 1
B9: No. | C9: Name | D9: Performance Indicator Code | E9: Performance Indicator | F9: Expression Index | G9: Expression | H9: Performance Target (%)
B10: =ROW()-9 -> 1 | C10: AR P&VP<=6% | D10: =IF(ISERROR(MATCH(E10,SELECT_PERFOEMANCETARGET,0)),0,MATCH(E10,SELECT_PERFOEMANCETARGET,0)) -> 3 | E10: VP & P | F10: =MATCH(G10,LIST_EXPRESSIONS,0) -> 3 | G10: <= | H10: 0.06 | I10: =IF(D10=0,"Error: Update/enter a performance indicator",IF(OR(E10="",G10="",H10=""),"Incomplete data entered for target",IF(OR(AND(F10=1,D10>2),AND(F10=3,D10<3)),"Error: invalid expression for '"&E10&"'.",""))) -> 
B11: 2 | C11: AU P&VP<=13% | D11: =IF(ISERROR(MATCH(E11,SELECT_PERFOEMANCETARGET,0)),0,MATCH(E11,SELECT_PERFOEMANCETARGET,0)) -> 3 | E11: VP & P | F11: =MATCH(G11,LIST_EXPRESSIONS,0) -> 3 | G11: <= | H11: 0.13 | I11: =IF(D11=0,"Error: Update/enter a performance indicator",IF(OR(E11="",G11="",H11=""),"Incomplete data entered for target",IF(OR(AND(F11=1,D11>2),AND(F11=3,D11<3)),"Error: invalid expression for '"&E11&"'.",""))) -> 
B12: 3 | C12: BR P&VP<=8% | D12: =IF(ISERROR(MATCH(E12,SELECT_PERFOEMANCETARGET,0)),0,MATCH(E12,SELECT_PERFOEMANCETARGET,0)) -> 3 | E12: VP & P | F12: =MATCH(G12,LIST_EXPRESSIONS,0) -> 3 | G12: <= | H12: 0.08 | I12: =IF(D12=0,"Error: Update/enter a performance indicator",IF(OR(E12="",G12="",H12=""),"Incomplete data entered for target",IF(OR(AND(F12=1,D12>2),AND(F12=3,D12<3)),"Error: invalid expression for '"&E12&"'.",""))) -> 
B13: 4 | C13: BU P&VP<=13% | D13: =IF(ISERROR(MATCH(E13,SELECT_PERFOEMANCETARGET,0)),0,MATCH(E13,SELECT_PERFOEMANCETARGET,0)) -> 3 | E13: VP & P | F13: =MATCH(G13,LIST_EXPRESSIONS,0) -> 3 | G13: <= | H13: 0.13 | I13: =IF(D13=0,"Error: Update/enter a performance indicator",IF(OR(E13="",G13="",H13=""),"Incomplete data entered for target",IF(OR(AND(F13=1,D13>2),AND(F13=3,D13<3)),"Error: invalid expression for '"&E13&"'.",""))) -> 
B14: 5 | C14: CR P&VP<=11% | D14: =IF(ISERROR(MATCH(E14,SELECT_PERFOEMANCETARGET,0)),0,MATCH(E14,SELECT_PERFOEMANCETARGET,0)) -> 3 | E14: VP & P | F14: =MATCH(G14,LIST_EXPRESSIONS,0) -> 3 | G14: <= | H14: 0.11 | I14: =IF(D14=0,"Error: Update/enter a performance indicator",IF(OR(E14="",G14="",H14=""),"Incomplete data entered for target",IF(OR(AND(F14=1,D14>2),AND(F14=3,D14<3)),"Error: invalid expression for '"&E14&"'.",""))) -> 
B15: 6 | C15: CU P&VP<=12% | D15: =IF(ISERROR(MATCH(E15,SELECT_PERFOEMANCETARGET,0)),0,MATCH(E15,SELECT_PERFOEMANCETARGET,0)) -> 3 | E15: VP & P | F15: =MATCH(G15,LIST_EXPRESSIONS,0) -> 3 | G15: <= | H15: 0.12 | I15: =IF(D15=0,"Error: Update/enter a performance indicator",IF(OR(E15="",G15="",H15=""),"Incomplete data entered for target",IF(OR(AND(F15=1,D15>2),AND(F15=3,D15<3)),"Error: invalid expression for '"&E15&"'.",""))) -> 
B16: 7 | C16: MR P&VP<=5% | D16: =IF(ISERROR(MATCH(E16,SELECT_PERFOEMANCETARGET,0)),0,MATCH(E16,SELECT_PERFOEMANCETARGET,0)) -> 3 | E16: VP & P | F16: =MATCH(G16,LIST_EXPRESSIONS,0) -> 3 | G16: <= | H16: 0.05 | I16: =IF(D16=0,"Error: Update/enter a performance indicator",IF(OR(E16="",G16="",H16=""),"Incomplete data entered for target",IF(OR(AND(F16=1,D16>2),AND(F16=3,D16<3)),"Error: invalid expression for '"&E16&"'.",""))) -> 
B17: 8 | C17: MU P&VP<=5% | D17: =IF(ISERROR(MATCH(E17,SELECT_PERFOEMANCETARGET,0)),0,MATCH(E17,SELECT_PERFOEMANCETARGET,0)) -> 3 | E17: VP & P | F17: =MATCH(G17,LIST_EXPRESSIONS,0) -> 3 | G17: <= | H17: 0.05 | I17: =IF(D17=0,"Error: Update/enter a performance indicator",IF(OR(E17="",G17="",H17=""),"Incomplete data entered for target",IF(OR(AND(F17=1,D17>2),AND(F17=3,D17<3)),"Error: invalid expression for '"&E17&"'.",""))) -> 
B18: 9 | C18: UR P&VP<=11% | D18: =IF(ISERROR(MATCH(E18,SELECT_PERFOEMANCETARGET,0)),0,MATCH(E18,SELECT_PERFOEMANCETARGET,0)) -> 3 | E18: VP & P | F18: =MATCH(G18,LIST_EXPRESSIONS,0) -> 3 | G18: <= | H18: 0.11 | I18: =IF(D18=0,"Error: Update/enter a performance indicator",IF(OR(E18="",G18="",H18=""),"Incomplete data entered for target",IF(OR(AND(F18=1,D18>2),AND(F18=3,D18<3)),"Error: invalid expression for '"&E18&"'.",""))) -> 
B19: 10 | C19: UU P&VP<=12% | D19: =IF(ISERROR(MATCH(E19,SELECT_PERFOEMANCETARGET,0)),0,MATCH(E19,SELECT_PERFOEMANCETARGET,0)) -> 3 | E19: VP & P | F19: =MATCH(G19,LIST_EXPRESSIONS,0) -> 3 | G19: <= | H19: 0.12 | I19: =IF(D19=0,"Error: Update/enter a performance indicator",IF(OR(E19="",G19="",H19=""),"Incomplete data entered for target",IF(OR(AND(F19=1,D19>2),AND(F19=3,D19<3)),"Error: invalid expression for '"&E19&"'.",""))) -> 

Sheet 7 - Scenario
B3: Scenarios
F6: =TEXT((COLUMN()-5),"0") -> 1 | G6: =TEXT((COLUMN()-5),"0") -> 2 | H6: 3 | I6: 4 | J6: 5 | K6: 6 | L6: 7 | M6: 8 | N6: 9 | O6: 10 | P6: 11 | Q6: 12 | R6: 13 | S6: 14 | T6: 15 | U6: 16 | V6: 17 | W6: 18 | X6: 19 | Y6: 20 | Z6: 21 | AA6: 22 | AB6: 23 | AC6: 24 | AD6: 25 | AE6: 26 | AF6: 27 | AG6: 28 | AH6: 29 | AI6: 30
B7: No. | C7: Homogeneous Group | D7: Scenario Name | E7: Criteria | F7: =TEXT(start_year+(COLUMN()-6),"0") -> 2014 | G7: 2015 | H7: 2016 | I7: 2017 | J7: 2018 | K7: 2019 | L7: 2020 | M7: 2021 | N7: 2022 | O7: 2023 | P7: 2024 | Q7: 2025 | R7: 2026 | S7: 2027 | T7: 2028 | U7: 2029 | V7: 2030 | W7: 2031 | X7: 2032 | Y7: 2033 | Z7: 2034 | AA7: 2035 | AB7: 2036 | AC7: 2037 | AD7: 2038 | AE7: 2039 | AF7: 2040 | AG7: 2041 | AH7: 2042 | AI7: 2043
B8: =1+B4 -> 1 | C8: =OFFSET(ASSET_GROUP_NAME,B8-1,0) -> AR | E8: Transition matrix | F8: Scanner:Strat&Main:Rur | G8: Scanner:Strat&Main:Rur | H8: Scanner:Strat&Main:Rur | I8: Scanner:Strat&Main:Rur | J8: Scanner:Strat&Main:Rur | K8: Scanner:Strat&Main:Rur | L8: Scanner:Strat&Main:Rur | M8: Scanner:Strat&Main:Rur | N8: Scanner:Strat&Main:Rur | O8: Scanner:Strat&Main:Rur | P8: Scanner:Strat&Main:Rur | Q8: Scanner:Strat&Main:Rur | R8: Scanner:Strat&Main:Rur | S8: Scanner:Strat&Main:Rur | T8: Scanner:Strat&Main:Rur | U8: Scanner:Strat&Main:Rur | V8: Scanner:Strat&Main:Rur | W8: Scanner:Strat&Main:Rur | X8: Scanner:Strat&Main:Rur | Y8: Scanner:Strat&Main:Rur | Z8: Scanner:Strat&Main:Rur | AA8: Scanner:Strat&Main:Rur | AB8: Scanner:Strat&Main:Rur | AC8: Scanner:Strat&Main:Rur | AD8: Scanner:Strat&Main:Rur | AE8: Scanner:Strat&Main:Rur | AF8: Scanner:Strat&Main:Rur | AG8: Scanner:Strat&Main:Rur | AH8: Scanner:Strat&Main:Rur | AI8: Scanner:Strat&Main:Rur
E9: Treatment strategy | F9: Strat&Main | G9: Strat&Main | H9: Strat&Main | I9: Strat&Main | J9: Strat&Main | K9: Strat&Main | L9: Strat&Main | M9: Strat&Main | N9: Strat&Main | O9: Strat&Main | P9: Strat&Main | Q9: Strat&Main | R9: Strat&Main | S9: Strat&Main | T9: Strat&Main | U9: Strat&Main | V9: Strat&Main | W9: Strat&Main | X9: Strat&Main | Y9: Strat&Main | Z9: Strat&Main | AA9: Strat&Main | AB9: Strat&Main | AC9: Strat&Main | AD9: Strat&Main | AE9: Strat&Main | AF9: Strat&Main | AG9: Strat&Main | AH9: Strat&Main | AI9: Strat&Main
E10: Budget constraint | F10: AR | G10: AR | H10: AR | I10: AR | J10: AR | K10: AR | L10: AR | M10: AR | N10: AR | O10: AR | P10: AR | Q10: AR | R10: AR | S10: AR | T10: AR | U10: AR | V10: AR | W10: AR | X10: AR | Y10: AR | Z10: AR | AA10: AR | AB10: AR | AC10: AR | AD10: AR | AE10: AR | AF10: AR | AG10: AR | AH10: AR | AI10: AR
E11: Performance target
B12: =1+B8 -> 2 | C12: =OFFSET(ASSET_GROUP_NAME,B12-1,0) -> AU | E12: Transition matrix | F12: Scanner:Strat&Main:Urb | G12: Scanner:Strat&Main:Urb | H12: Scanner:Strat&Main:Urb | I12: Scanner:Strat&Main:Urb | J12: Scanner:Strat&Main:Urb | K12: Scanner:Strat&Main:Urb | L12: Scanner:Strat&Main:Urb | M12: Scanner:Strat&Main:Urb | N12: Scanner:Strat&Main:Urb | O12: Scanner:Strat&Main:Urb | P12: Scanner:Strat&Main:Urb | Q12: Scanner:Strat&Main:Urb | R12: Scanner:Strat&Main:Urb | S12: Scanner:Strat&Main:Urb | T12: Scanner:Strat&Main:Urb | U12: Scanner:Strat&Main:Urb | V12: Scanner:Strat&Main:Urb | W12: Scanner:Strat&Main:Urb | X12: Scanner:Strat&Main:Urb | Y12: Scanner:Strat&Main:Urb | Z12: Scanner:Strat&Main:Urb | AA12: Scanner:Strat&Main:Urb | AB12: Scanner:Strat&Main:Urb | AC12: Scanner:Strat&Main:Urb | AD12: Scanner:Strat&Main:Urb | AE12: Scanner:Strat&Main:Urb | AF12: Scanner:Strat&Main:Urb | AG12: Scanner:Strat&Main:Urb | AH12: Scanner:Strat&Main:Urb | AI12: Scanner:Strat&Main:Urb
E13: Treatment strategy | F13: Strat&Main | G13: Strat&Main | H13: Strat&Main | I13: Strat&Main | J13: Strat&Main | K13: Strat&Main | L13: Strat&Main | M13: Strat&Main | N13: Strat&Main | O13: Strat&Main | P13: Strat&Main | Q13: Strat&Main | R13: Strat&Main | S13: Strat&Main | T13: Strat&Main | U13: Strat&Main | V13: Strat&Main | W13: Strat&Main | X13: Strat&Main | Y13: Strat&Main | Z13: Strat&Main | AA13: Strat&Main | AB13: Strat&Main | AC13: Strat&Main | AD13: Strat&Main | AE13: Strat&Main | AF13: Strat&Main | AG13: Strat&Main | AH13: Strat&Main | AI13: Strat&Main
E14: Budget constraint | F14: AU | G14: AU | H14: AU | I14: AU | J14: AU | K14: AU | L14: AU | M14: AU | N14: AU | O14: AU | P14: AU | Q14: AU | R14: AU | S14: AU | T14: AU | U14: AU | V14: AU | W14: AU | X14: AU | Y14: AU | Z14: AU | AA14: AU | AB14: AU | AC14: AU | AD14: AU | AE14: AU | AF14: AU | AG14: AU | AH14: AU | AI14: AU
E15: Performance target
B16: =1+B12 -> 3 | C16: =OFFSET(ASSET_GROUP_NAME,B16-1,0) -> BR | E16: Transition matrix | F16: Scanner:Secondary:Rur | G16: Scanner:Secondary:Rur | H16: Scanner:Secondary:Rur | I16: Scanner:Secondary:Rur | J16: Scanner:Secondary:Rur | K16: Scanner:Secondary:Rur | L16: Scanner:Secondary:Rur | M16: Scanner:Secondary:Rur | N16: Scanner:Secondary:Rur | O16: Scanner:Secondary:Rur | P16: Scanner:Secondary:Rur | Q16: Scanner:Secondary:Rur | R16: Scanner:Secondary:Rur | S16: Scanner:Secondary:Rur | T16: Scanner:Secondary:Rur | U16: Scanner:Secondary:Rur | V16: Scanner:Secondary:Rur | W16: Scanner:Secondary:Rur | X16: Scanner:Secondary:Rur | Y16: Scanner:Secondary:Rur | Z16: Scanner:Secondary:Rur | AA16: Scanner:Secondary:Rur | AB16: Scanner:Secondary:Rur | AC16: Scanner:Secondary:Rur | AD16: Scanner:Secondary:Rur | AE16: Scanner:Secondary:Rur | AF16: Scanner:Secondary:Rur | AG16: Scanner:Secondary:Rur | AH16: Scanner:Secondary:Rur | AI16: Scanner:Secondary:Rur
E17: Treatment strategy | F17: Secondary | G17: Secondary | H17: Secondary | I17: Secondary | J17: Secondary | K17: Secondary | L17: Secondary | M17: Secondary | N17: Secondary | O17: Secondary | P17: Secondary | Q17: Secondary | R17: Secondary | S17: Secondary | T17: Secondary | U17: Secondary | V17: Secondary | W17: Secondary | X17: Secondary | Y17: Secondary | Z17: Secondary | AA17: Secondary | AB17: Secondary | AC17: Secondary | AD17: Secondary | AE17: Secondary | AF17: Secondary | AG17: Secondary | AH17: Secondary | AI17: Secondary
E18: Budget constraint | F18: BR | G18: BR | H18: BR | I18: BR | J18: BR | K18: BR | L18: BR | M18: BR | N18: BR | O18: BR | P18: BR | Q18: BR | R18: BR | S18: BR | T18: BR | U18: BR | V18: BR | W18: BR | X18: BR | Y18: BR | Z18: BR | AA18: BR | AB18: BR | AC18: BR | AD18: BR | AE18: BR | AF18: BR | AG18: BR | AH18: BR | AI18: BR
E19: Performance target
B20: =1+B16 -> 4 | C20: =OFFSET(ASSET_GROUP_NAME,B20-1,0) -> BU | E20: Transition matrix | F20: Scanner:Secondary:Urb | G20: Scanner:Secondary:Urb | H20: Scanner:Secondary:Urb | I20: Scanner:Secondary:Urb | J20: Scanner:Secondary:Urb | K20: Scanner:Secondary:Urb | L20: Scanner:Secondary:Urb | M20: Scanner:Secondary:Urb | N20: Scanner:Secondary:Urb | O20: Scanner:Secondary:Urb | P20: Scanner:Secondary:Urb | Q20: Scanner:Secondary:Urb | R20: Scanner:Secondary:Urb | S20: Scanner:Secondary:Urb | T20: Scanner:Secondary:Urb | U20: Scanner:Secondary:Urb | V20: Scanner:Secondary:Urb | W20: Scanner:Secondary:Urb | X20: Scanner:Secondary:Urb | Y20: Scanner:Secondary:Urb | Z20: Scanner:Secondary:Urb | AA20: Scanner:Secondary:Urb | AB20: Scanner:Secondary:Urb | AC20: Scanner:Secondary:Urb | AD20: Scanner:Secondary:Urb | AE20: Scanner:Secondary:Urb | AF20: Scanner:Secondary:Urb | AG20: Scanner:Secondary:Urb | AH20: Scanner:Secondary:Urb | AI20: Scanner:Secondary:Urb
E21: Treatment strategy | F21: Secondary | G21: Secondary | H21: Secondary | I21: Secondary | J21: Secondary | K21: Secondary | L21: Secondary | M21: Secondary | N21: Secondary | O21: Secondary | P21: Secondary | Q21: Secondary | R21: Secondary | S21: Secondary | T21: Secondary | U21: Secondary | V21: Secondary | W21: Secondary | X21: Secondary | Y21: Secondary | Z21: Secondary | AA21: Secondary | AB21: Secondary | AC21: Secondary | AD21: Secondary | AE21: Secondary | AF21: Secondary | AG21: Secondary | AH21: Secondary | AI21: Secondary
E22: Budget constraint | F22: BU | G22: BU | H22: BU | I22: BU | J22: BU | K22: BU | L22: BU | M22: BU | N22: BU | O22: BU | P22: BU | Q22: BU | R22: BU | S22: BU | T22: BU | U22: BU | V22: BU | W22: BU | X22: BU | Y22: BU | Z22: BU | AA22: BU | AB22: BU | AC22: BU | AD22: BU | AE22: BU | AF22: BU | AG22: BU | AH22: BU | AI22: BU
E23: Performance target
B24: =1+B20 -> 5 | C24: =OFFSET(ASSET_GROUP_NAME,B24-1,0) -> CR | E24: Transition matrix | F24: Scanner:Link:Rur | G24: Scanner:Link:Rur | H24: Scanner:Link:Rur | I24: Scanner:Link:Rur | J24: Scanner:Link:Rur | K24: Scanner:Link:Rur | L24: Scanner:Link:Rur | M24: Scanner:Link:Rur | N24: Scanner:Link:Rur | O24: Scanner:Link:Rur | P24: Scanner:Link:Rur | Q24: Scanner:Link:Rur | R24: Scanner:Link:Rur | S24: Scanner:Link:Rur | T24: Scanner:Link:Rur | U24: Scanner:Link:Rur | V24: Scanner:Link:Rur | W24: Scanner:Link:Rur | X24: Scanner:Link:Rur | Y24: Scanner:Link:Rur | Z24: Scanner:Link:Rur | AA24: Scanner:Link:Rur | AB24: Scanner:Link:Rur | AC24: Scanner:Link:Rur | AD24: Scanner:Link:Rur | AE24: Scanner:Link:Rur | AF24: Scanner:Link:Rur | AG24: Scanner:Link:Rur | AH24: Scanner:Link:Rur | AI24: Scanner:Link:Rur
E25: Treatment strategy | F25: Link | G25: Link | H25: Link | I25: Link | J25: Link | K25: Link | L25: Link | M25: Link | N25: Link | O25: Link | P25: Link | Q25: Link | R25: Link | S25: Link | T25: Link | U25: Link | V25: Link | W25: Link | X25: Link | Y25: Link | Z25: Link | AA25: Link | AB25: Link | AC25: Link | AD25: Link | AE25: Link | AF25: Link | AG25: Link | AH25: Link | AI25: Link
E26: Budget constraint | F26: CR | G26: CR | H26: CR | I26: CR | J26: CR | K26: CR | L26: CR | M26: CR | N26: CR | O26: CR | P26: CR | Q26: CR | R26: CR | S26: CR | T26: CR | U26: CR | V26: CR | W26: CR | X26: CR | Y26: CR | Z26: CR | AA26: CR | AB26: CR | AC26: CR | AD26: CR | AE26: CR | AF26: CR | AG26: CR | AH26: CR | AI26: CR
E27: Performance target
B28: =1+B24 -> 6 | C28: =OFFSET(ASSET_GROUP_NAME,B28-1,0) -> CU | E28: Transition matrix | F28: Scanner:Link:Urb | G28: Scanner:Link:Urb | H28: Scanner:Link:Urb | I28: Scanner:Link:Urb | J28: Scanner:Link:Urb | K28: Scanner:Link:Urb | L28: Scanner:Link:Urb | M28: Scanner:Link:Urb | N28: Scanner:Link:Urb | O28: Scanner:Link:Urb | P28: Scanner:Link:Urb | Q28: Scanner:Link:Urb | R28: Scanner:Link:Urb | S28: Scanner:Link:Urb | T28: Scanner:Link:Urb | U28: Scanner:Link:Urb | V28: Scanner:Link:Urb | W28: Scanner:Link:Urb | X28: Scanner:Link:Urb | Y28: Scanner:Link:Urb | Z28: Scanner:Link:Urb | AA28: Scanner:Link:Urb | AB28: Scanner:Link:Urb | AC28: Scanner:Link:Urb | AD28: Scanner:Link:Urb | AE28: Scanner:Link:Urb | AF28: Scanner:Link:Urb | AG28: Scanner:Link:Urb | AH28: Scanner:Link:Urb | AI28: Scanner:Link:Urb
E29: Treatment strategy | F29: Link | G29: Link | H29: Link | I29: Link | J29: Link | K29: Link | L29: Link | M29: Link | N29: Link | O29: Link | P29: Link | Q29: Link | R29: Link | S29: Link | T29: Link | U29: Link | V29: Link | W29: Link | X29: Link | Y29: Link | Z29: Link | AA29: Link | AB29: Link | AC29: Link | AD29: Link | AE29: Link | AF29: Link | AG29: Link | AH29: Link | AI29: Link
E30: Budget constraint | F30: CU | G30: CU | H30: CU | I30: CU | J30: CU | K30: CU | L30: CU | M30: CU | N30: CU | O30: CU | P30: CU | Q30: CU | R30: CU | S30: CU | T30: CU | U30: CU | V30: CU | W30: CU | X30: CU | Y30: CU | Z30: CU | AA30: CU | AB30: CU | AC30: CU | AD30: CU | AE30: CU | AF30: CU | AG30: CU | AH30: CU | AI30: CU
E31: Performance target
B32: =1+B28 -> 7 | C32: =OFFSET(ASSET_GROUP_NAME,B32-1,0) -> MR | E32: Transition matrix | F32: Scanner:Strat&Main:Rur | G32: Scanner:Strat&Main:Rur | H32: Scanner:Strat&Main:Rur | I32: Scanner:Strat&Main:Rur | J32: Scanner:Strat&Main:Rur | K32: Scanner:Strat&Main:Rur | L32: Scanner:Strat&Main:Rur | M32: Scanner:Strat&Main:Rur | N32: Scanner:Strat&Main:Rur | O32: Scanner:Strat&Main:Rur | P32: Scanner:Strat&Main:Rur | Q32: Scanner:Strat&Main:Rur | R32: Scanner:Strat&Main:Rur | S32: Scanner:Strat&Main:Rur | T32: Scanner:Strat&Main:Rur | U32: Scanner:Strat&Main:Rur | V32: Scanner:Strat&Main:Rur | W32: Scanner:Strat&Main:Rur | X32: Scanner:Strat&Main:Rur | Y32: Scanner:Strat&Main:Rur | Z32: Scanner:Strat&Main:Rur | AA32: Scanner:Strat&Main:Rur | AB32: Scanner:Strat&Main:Rur | AC32: Scanner:Strat&Main:Rur | AD32: Scanner:Strat&Main:Rur | AE32: Scanner:Strat&Main:Rur | AF32: Scanner:Strat&Main:Rur | AG32: Scanner:Strat&Main:Rur | AH32: Scanner:Strat&Main:Rur | AI32: Scanner:Strat&Main:Rur
E33: Treatment strategy | F33: Strat&Main | G33: Strat&Main | H33: Strat&Main | I33: Strat&Main | J33: Strat&Main | K33: Strat&Main | L33: Strat&Main | M33: Strat&Main | N33: Strat&Main | O33: Strat&Main | P33: Strat&Main | Q33: Strat&Main | R33: Strat&Main | S33: Strat&Main | T33: Strat&Main | U33: Strat&Main | V33: Strat&Main | W33: Strat&Main | X33: Strat&Main | Y33: Strat&Main | Z33: Strat&Main | AA33: Strat&Main | AB33: Strat&Main | AC33: Strat&Main | AD33: Strat&Main | AE33: Strat&Main | AF33: Strat&Main | AG33: Strat&Main | AH33: Strat&Main | AI33: Strat&Main
E34: Budget constraint | F34: MR | G34: MR | H34: MR | I34: MR | J34: MR | K34: MR | L34: MR | M34: MR | N34: MR | O34: MR | P34: MR | Q34: MR | R34: MR | S34: MR | T34: MR | U34: MR | V34: MR | W34: MR | X34: MR | Y34: MR | Z34: MR | AA34: MR | AB34: MR | AC34: MR | AD34: MR | AE34: MR | AF34: MR | AG34: MR | AH34: MR | AI34: MR
E35: Performance target
B36: =1+B32 -> 8 | C36: =OFFSET(ASSET_GROUP_NAME,B36-1,0) -> MU | E36: Transition matrix | F36: Scanner:Strat&Main:Urb | G36: Scanner:Strat&Main:Urb | H36: Scanner:Strat&Main:Urb | I36: Scanner:Strat&Main:Urb | J36: Scanner:Strat&Main:Urb | K36: Scanner:Strat&Main:Urb | L36: Scanner:Strat&Main:Urb | M36: Scanner:Strat&Main:Urb | N36: Scanner:Strat&Main:Urb | O36: Scanner:Strat&Main:Urb | P36: Scanner:Strat&Main:Urb | Q36: Scanner:Strat&Main:Urb | R36: Scanner:Strat&Main:Urb | S36: Scanner:Strat&Main:Urb | T36: Scanner:Strat&Main:Urb | U36: Scanner:Strat&Main:Urb | V36: Scanner:Strat&Main:Urb | W36: Scanner:Strat&Main:Urb | X36: Scanner:Strat&Main:Urb | Y36: Scanner:Strat&Main:Urb | Z36: Scanner:Strat&Main:Urb | AA36: Scanner:Strat&Main:Urb | AB36: Scanner:Strat&Main:Urb | AC36: Scanner:Strat&Main:Urb | AD36: Scanner:Strat&Main:Urb | AE36: Scanner:Strat&Main:Urb | AF36: Scanner:Strat&Main:Urb | AG36: Scanner:Strat&Main:Urb | AH36: Scanner:Strat&Main:Urb | AI36: Scanner:Strat&Main:Urb
E37: Treatment strategy | F37: Strat&Main | G37: Strat&Main | H37: Strat&Main | I37: Strat&Main | J37: Strat&Main | K37: Strat&Main | L37: Strat&Main | M37: Strat&Main | N37: Strat&Main | O37: Strat&Main | P37: Strat&Main | Q37: Strat&Main | R37: Strat&Main | S37: Strat&Main | T37: Strat&Main | U37: Strat&Main | V37: Strat&Main | W37: Strat&Main | X37: Strat&Main | Y37: Strat&Main | Z37: Strat&Main | AA37: Strat&Main | AB37: Strat&Main | AC37: Strat&Main | AD37: Strat&Main | AE37: Strat&Main | AF37: Strat&Main | AG37: Strat&Main | AH37: Strat&Main | AI37: Strat&Main
E38: Budget constraint | F38: MU | G38: MU | H38: MU | I38: MU | J38: MU | K38: MU | L38: MU | M38: MU | N38: MU | O38: MU | P38: MU | Q38: MU | R38: MU | S38: MU | T38: MU | U38: MU | V38: MU | W38: MU | X38: MU | Y38: MU | Z38: MU | AA38: MU | AB38: MU | AC38: MU | AD38: MU | AE38: MU | AF38: MU | AG38: MU | AH38: MU | AI38: MU
E39: Performance target
B40: =1+B36 -> 9 | C40: =OFFSET(ASSET_GROUP_NAME,B40-1,0) -> UR | E40: Transition matrix | F40: CVI:Local:Rural | G40: CVI:Local:Rural | H40: CVI:Local:Rural | I40: CVI:Local:Rural | J40: CVI:Local:Rural | K40: CVI:Local:Rural | L40: CVI:Local:Rural | M40: CVI:Local:Rural | N40: CVI:Local:Rural | O40: CVI:Local:Rural | P40: CVI:Local:Rural | Q40: CVI:Local:Rural | R40: CVI:Local:Rural | S40: CVI:Local:Rural | T40: CVI:Local:Rural | U40: CVI:Local:Rural | V40: CVI:Local:Rural | W40: CVI:Local:Rural | X40: CVI:Local:Rural | Y40: CVI:Local:Rural | Z40: CVI:Local:Rural | AA40: CVI:Local:Rural | AB40: CVI:Local:Rural | AC40: CVI:Local:Rural | AD40: CVI:Local:Rural | AE40: CVI:Local:Rural | AF40: CVI:Local:Rural | AG40: CVI:Local:Rural | AH40: CVI:Local:Rural | AI40: CVI:Local:Rural
E41: Treatment strategy | F41: Local | G41: Local | H41: Local | I41: Local | J41: Local | K41: Local | L41: Local | M41: Local | N41: Local | O41: Local | P41: Local | Q41: Local | R41: Local | S41: Local | T41: Local | U41: Local | V41: Local | W41: Local | X41: Local | Y41: Local | Z41: Local | AA41: Local | AB41: Local | AC41: Local | AD41: Local | AE41: Local | AF41: Local | AG41: Local | AH41: Local | AI41: Local
E42: Budget constraint | F42: UR | G42: UR | H42: UR | I42: UR | J42: UR | K42: UR | L42: UR | M42: UR | N42: UR | O42: UR | P42: UR | Q42: UR | R42: UR | S42: UR | T42: UR | U42: UR | V42: UR | W42: UR | X42: UR | Y42: UR | Z42: UR | AA42: UR | AB42: UR | AC42: UR | AD42: UR | AE42: UR | AF42: UR | AG42: UR | AH42: UR | AI42: UR
E43: Performance target
B44: =1+B40 -> 10 | C44: =OFFSET(ASSET_GROUP_NAME,B44-1,0) -> UU | E44: Transition matrix | F44: CVI:Local:Urban | G44: CVI:Local:Urban | H44: CVI:Local:Urban | I44: CVI:Local:Urban | J44: CVI:Local:Urban | K44: CVI:Local:Urban | L44: CVI:Local:Urban | M44: CVI:Local:Urban | N44: CVI:Local:Urban | O44: CVI:Local:Urban | P44: CVI:Local:Urban | Q44: CVI:Local:Urban | R44: CVI:Local:Urban | S44: CVI:Local:Urban | T44: CVI:Local:Urban | U44: CVI:Local:Urban | V44: CVI:Local:Urban | W44: CVI:Local:Urban | X44: CVI:Local:Urban | Y44: CVI:Local:Urban | Z44: CVI:Local:Urban | AA44: CVI:Local:Urban | AB44: CVI:Local:Urban | AC44: CVI:Local:Urban | AD44: CVI:Local:Urban | AE44: CVI:Local:Urban | AF44: CVI:Local:Urban | AG44: CVI:Local:Urban | AH44: CVI:Local:Urban | AI44: CVI:Local:Urban
E45: Treatment strategy | F45: Local | G45: Local | H45: Local | I45: Local | J45: Local | K45: Local | L45: Local | M45: Local | N45: Local | O45: Local | P45: Local | Q45: Local | R45: Local | S45: Local | T45: Local | U45: Local | V45: Local | W45: Local | X45: Local | Y45: Local | Z45: Local | AA45: Local | AB45: Local | AC45: Local | AD45: Local | AE45: Local | AF45: Local | AG45: Local | AH45: Local | AI45: Local
E46: Budget constraint | F46: UU | G46: UU | H46: UU | I46: UU | J46: UU | K46: UU | L46: UU | M46: UU | N46: UU | O46: UU | P46: UU | Q46: UU | R46: UU | S46: UU | T46: UU | U46: UU | V46: UU | W46: UU | X46: UU | Y46: UU | Z46: UU | AA46: UU | AB46: UU | AC46: UU | AD46: UU | AE46: UU | AF46: UU | AG46: UU | AH46: UU | AI46: UU
E47: Performance target

Sheet 8 - Condition by Year
B3: CONDITION BY YEAR
E6: Initial Distribution | F6: ="End of Year" -> End of Year
B7: Asset Group | C7: No. | D7: Cond | E7: =TEXT(start_year+(COLUMN()-5),"0") -> 2014 | F7: =TEXT(start_year+(COLUMN()-6),"0") -> 2014 | G7: 2015 | H7: 2016 | I7: 2017 | J7: 2018 | K7: 2019 | L7: 2020 | M7: 2021 | N7: 2022 | O7: 2023 | P7: 2024 | Q7: 2025 | R7: 2026 | S7: 2027 | T7: 2028 | U7: 2029 | V7: 2030 | W7: 2031 | X7: 2032 | Y7: 2033 | Z7: 2034 | AA7: 2035 | AB7: 2036 | AC7: 2037 | AD7: 2038 | AE7: 2039 | AF7: 2040 | AG7: 2041 | AH7: 2042 | AI7: 2043
A8: =INT((ROW()-8)/current_conditionBands)+1 -> 1 | B8: =OFFSET(ASSET_GROUP_NAME,A8-1,0) -> AR | C8: 1 | D8: =OFFSET(CONDITION_BAND_CODE,'8 - Condition by Year'!C8-1,0) -> VG | E8: 0.3155 | F8: 0.3118573829 | G8: 0.3107318711 | H8: 0.3114356419 | I8: 0.313159877 | J8: 0.3152251689 | K8: 0.3171556032 | L8: 0.3186719982 | M8: 0.319651168 | N8: 0.3200808964 | O8: 0.3200190761 | P8: 0.3195611193 | Q8: 0.3188161794 | R8: 0.3178911707 | S8: 0.3168810506 | T8: 0.3158638088 | U8: 0.3148987913 | V8: 0.3140272449 | W8: 0.3132742166 | X8: 0.3126511664 | Y8: 0.3121588361 | Z8: 0.3117900649 | AA8: 0.3115323529 | AB8: 0.3113700656 | AC8: 0.3112862294 | AD8: 0.3112639161 | AE8: 0.3112872427 | AF8: 0.3113420317 | AG8: 0.3114161848 | AH8: 0.3114998277 | AI8: 0.3115852806
C9: =C8+1 -> 2 | D9: =OFFSET(CONDITION_BAND_CODE,'8 - Condition by Year'!C9-1,0) -> G | E9: 0.4326 | F9: 0.4504258945 | G9: 0.4628257476 | H9: 0.4715779466 | I9: 0.4778903561 | J9: 0.4824955565 | K9: 0.486026587 | L9: 0.4887214819 | M9: 0.4907821124 | N9: 0.4923415278 | O9: 0.493493626 | P9: 0.4943106603 | Q9: 0.4948528066 | R9: 0.4951728545 | S9: 0.495318118 | T9: 0.4953309252 | U9: 0.4952485179 | V9: 0.4951028274 | W9: 0.4949203653 | X9: 0.4947223148 | Y9: 0.4945248322 | Z9: 0.4943395199 | AA9: 0.4941740175 | AB9: 0.4940326547 | AC9: 0.4939171158 | AD9: 0.4938270758 | AE9: 0.493760779 | AF9: 0.4937155425 | AG9: 0.4936881747 | AH9: 0.4936753078 | AI9: 0.4936736487
C10: =C9+1 -> 3 | D10: =OFFSET(CONDITION_BAND_CODE,'8 - Condition by Year'!C10-1,0) -> F | E10: 0.1942 | F10: 0.1581076271 | G10: 0.1385021457 | H10: 0.1286103719 | I10: 0.1243159375 | J10: 0.123209631 | K10: 0.1236840461 | L10: 0.1249922803 | M10: 0.1266350634 | N10: 0.1283287146 | O10: 0.129917168 | P10: 0.1313203402 | Q10: 0.132503853 | R10: 0.133461084 | S10: 0.1342022517 | T10: 0.1347475154 | U10: 0.1351224133 | V10: 0.135354727 | W10: 0.1354722851 | X10: 0.1355014351 | Y10: 0.1354660303 | Z10: 0.1353868219 | AA10: 0.1352811789 | AB10: 0.1351630608 | AC10: 0.1350431822 | AD10: 0.1349293095 | AE10: 0.134826641 | AF10: 0.134738227 | AG10: 0.134665396 | AH10: 0.1346081625 | AI10: 0.1345655967
C11: =C10+1 -> 4 | D11: =OFFSET(CONDITION_BAND_CODE,'8 - Condition by Year'!C11-1,0) -> P | E11: 0.0499 | F11: 0.06407205551 | G11: 0.06364611698 | H11: 0.05716997427 | I11: 0.04909254956 | J11: 0.04154341183 | K11: 0.03540345759 | L11: 0.03084513408 | M11: 0.02776554939 | N11: 0.02592801903 | O11: 0.02506078013 | P11: 0.0249053318 | Q11: 0.02523740912 | R11: 0.02587359283 | S11: 0.02667073028 | T11: 0.02752203144 | U11: 0.02835186813 | V11: 0.02911031288 | W11: 0.02976792972 | X11: 0.03031105853 | Y11: 0.03073769421 | Z11: 0.03105398919 | AA11: 0.03127136717 | AB11: 0.0314042126 | AC11: 0.03146808533 | AD11: 0.03147840104 | AE11: 0.03144951265 | AF11: 0.03139412705 | AG11: 0.03132299244 | AH11: 0.03124479584 | AI11: 0.03116621595
C12: =C11+1 -> 5 | D12: =OFFSET(CONDITION_BAND_CODE,'8 - Condition by Year'!C12-1,0) -> VP | E12: 0.0078 | F12: 0.01553704 | G12: 0.02429411867 | H12: 0.03120606528 | I12: 0.03554127981 | J12: 0.03752623168 | K12: 0.0377303061 | L12: 0.03676910554 | M12: 0.03516610682 | N12: 0.03332084216 | O12: 0.03150934978 | P12: 0.02990254848 | Q12: 0.02858975184 | R12: 0.02760129791 | S12: 0.0269278494 | T12: 0.02653571911 | U12: 0.02637840946 | V12: 0.02640488774 | W12: 0.02656520329 | X12: 0.02681402519 | Y12: 0.02711260722 | Z12: 0.02742960418 | AA12: 0.02774108362 | AB12: 0.02803000631 | AC12: 0.02828538724 | AD12: 0.02850129757 | AE12: 0.02867582457 | AF12: 0.02881007169 | AG12: 0.02890725201 | AH12: 0.02897190614 | AI12: 0.02900925804
A13: =INT((ROW()-8)/current_conditionBands)+1 -> 2 | B13: =OFFSET(ASSET_GROUP_NAME,A13-1,0) -> AU | C13: 1 | D13: =OFFSET(CONDITION_BAND_CODE,'8 - Condition by Year'!C13-1,0) -> VG | E13: 0.3081 | F13: 0.3140454323 | G13: 0.3203365528 | H13: 0.3261953249 | I13: 0.3309126027 | J13: 0.333568767 | K13: 0.3334438149 | L13: 0.3318543661 | M13: 0.3298660855 | N13: 0.3278486962 | O13: 0.3259239366 | P13: 0.3241262697 | Q13: 0.322460136 | R13: 0.3209201508 | S13: 0.3194981218 | T13: 0.3181854239 | U13: 0.3169737607 | V13: 0.3158553771 | W13: 0.3148230909 | X13: 0.3138702695 | Y13: 0.3129907922 | Z13: 0.312179011 | AA13: 0.3114297139 | AB13: 0.3107380908 | AC13: 0.3100997021 | AD13: 0.3095104503 | AE13: 0.3089665531 | AF13: 0.3084645195 | AG13: 0.3080011274 | AH13: 0.3075734025 | AI13: 0.3071785995
C14: =C13+1 -> 2 | D14: =OFFSET(CONDITION_BAND_CODE,'8 - Condition by Year'!C14-1,0) -> G | E14: 0.3732 | F14: 0.445706982 | G14: 0.4994812109 | H14: 0.5398272717 | I14: 0.566526078 | J14: 0.5807530585 | K14: 0.5876513385 | L14: 0.5901237262 | M14: 0.5914467008 | N14: 0.5925430186 | O14: 0.5936145956 | P14: 0.5946746511 | Q14: 0.5957020211 | R14: 0.5966789283 | S14: 0.5975961221 | T14: 0.5984507247 | U14: 0.5992435722 | V14: 0.5999773783 | W14: 0.6006556686 | X14: 0.601282216 | Y14: 0.6018607606 | Z14: 0.6023948806 | AA14: 0.6028879397 | AB14: 0.6033430719 | AC14: 0.6037631838 | AD14: 0.604150965 | AE14: 0.6045089013 | AF14: 0.6048392885 | AG14: 0.6051442463 | AH14: 0.6054257319 | AI14: 0.6056855518
C15: =C14+1 -> 3 | D15: =OFFSET(CONDITION_BAND_CODE,'8 - Condition by Year'!C15-1,0) -> F | E15: 0.209 | F15: 0.1337099335 | G15: 0.09288835642 | H15: 0.07425985279 | I15: 0.06845396371 | J15: 0.06843290436 | K15: 0.06989105816 | L15: 0.07172898499 | M15: 0.07324104767 | N15: 0.07438718015 | O15: 0.07526880754 | P15: 0.07597838217 | Q15: 0.07657667058 | R15: 0.07709950538 | S15: 0.07756728729 | T15: 0.07799175089 | U15: 0.07837998221 | V15: 0.07873661431 | W15: 0.07906497466 | X15: 0.07936766996 | Y15: 0.07964688141 | Z15: 0.07990451437 | AA15: 0.08014227606 | AB15: 0.08036171785 | AC15: 0.08056426011 | AD15: 0.08075120845 | AE15: 0.08092376542 | AF15: 0.08108303977 | AG15: 0.08123005437 | AH15: 0.08136575308 | AI15: 0.081491007
C16: =C15+1 -> 4 | D16: =OFFSET(CONDITION_BAND_CODE,'8 - Condition by Year'!C16-1,0) -> P | E16: 0.0884 | F16: 0.08016261219 | G16: 0.05772867606 | H16: 0.02996923936 | I16: 0.01027201247 | J16: 0.005703065364 | K16: 0.00471053508 | L16: 0.004569157314 | M16: 0.004631753125 | N16: 0.004722073598 | O16: 0.004799839363 | P16: 0.004861457124 | Q16: 0.004910839091 | R16: 0.004951918115 | S16: 0.004987366129 | T16: 0.00501879828 | U16: 0.005047160585 | V16: 0.005073017944 | W16: 0.00509672807 | X16: 0.005118537455 | Y16: 0.005138631878 | Z16: 0.005157162349 | AA16: 0.005174258334 | AB16: 0.005190034569 | AC16: 0.005204594682 | AD16: 0.005218033247 | AE16: 0.005230437044 | AF16: 0.005241885933 | AG16: 0.005252453516 | AH16: 0.005262207672 | AI16: 0.005271211034
C17: =C16+1 -> 5 | D17: =OFFSET(CONDITION_BAND_CODE,'8 - Condition by Year'!C17-1,0) -> VP | E17: 0.0213 | F17: 0.02637504 | G17: 0.02956520385 | H17: 0.02974831127 | I17: 0.02383534307 | J17: 0.01154220482 | K17: 0.004303253307 | L17: 0.001723765378 | M17: 0.0008144129503 | N17: 0.000499031527 | O17: 0.0003928208347 | P17: 0.0003592398707 | Q17: 0.0003503332739 | R17: 0.0003494974119 | S17: 0.0003511027111 | T17: 0.000353302264 | U17: 0.0003555242729 | V17: 0.0003576123145 | W17: 0.0003595377391 | X17: 0.0003613070455 | Y17: 0.0003629338964 | Z17: 0.0003644316565 | AA17: 0.0003658119803 | AB17: 0.0003670849281 | AC17: 0.0003682593219 | AD17: 0.000369343037 | AE17: 0.0003703431989 | AF17: 0.000371266311 | AG17: 0.000372118339 | AH17: 0.0003729047711 | AI17: 0.0003736306643
A18: =INT((ROW()-8)/current_conditionBands)+1 -> 3 | B18: =OFFSET(ASSET_GROUP_NAME,A18-1,0) -> BR | C18: 1 | D18: =OFFSET(CONDITION_BAND_CODE,'8 - Condition by Year'!C18-1,0) -> VG | E18: 0.2141 | F18: 0.2086078332 | G18: 0.2035111024 | H18: 0.1987813362 | I18: 0.1943921132 | J18: 0.1903189142 | K18: 0.1865389856 | L18: 0.1830312118 | M18: 0.1797759978 | N18: 0.1767551591 | O18: 0.1739518209 | P18: 0.171350323 | Q18: 0.1689361329 | R18: 0.1666957645 | S18: 0.1646167027 | T18: 0.1626873333 | U18: 0.1608968785 | V18: 0.1592353364 | W18: 0.1576934254 | X18: 0.1562625319 | Y18: 0.1549346628 | Z18: 0.1537024003 | AA18: 0.1525588607 | AB18: 0.1514976559 | AC18: 0.1505128579 | AD18: 0.1495989653 | AE18: 0.148750873 | AF18: 0.1479638433 | AG18: 0.1472334798 | AH18: 0.1465557024 | AI18: 0.1459267251
C19: =C18+1 -> 2 | D19: =OFFSET(CONDITION_BAND_CODE,'8 - Condition by Year'!C19-1,0) -> G | E19: 0.4604 | F19: 0.4234686302 | G19: 0.3931218533 | H19: 0.3681436526 | I19: 0.3475457887 | J19: 0.330524897 | K19: 0.3164276835 | L19: 0.3047226884 | M19: 0.2949773778 | N19: 0.2868395554 | O19: 0.2800222811 | P19: 0.2742916313 | Q19: 0.2694567664 | R19: 0.2653618693 | S19: 0.2618796013 | T19: 0.2589057894 | U19: 0.2563551134 | V19: 0.2541576024 | W19: 0.25225579 | X19: 0.2506024025 | Y19: 0.2491584809 | Z19: 0.247891854 | AA19: 0.2467758966 | AB19: 0.2457885203 | AC19: 0.2449113514 | AD19: 0.2441290619 | AE19: 0.2434288249 | AF19: 0.2427998701 | AG19: 0.2422331216 | AH19: 0.2417209023 | AI19: 0.2412566926
C20: =C19+1 -> 3 | D20: =OFFSET(CONDITION_BAND_CODE,'8 - Condition by Year'!C20-1,0) -> F | E20: 0.251 | F20: 0.2528840539 | G20: 0.2473679349 | H20: 0.2373463696 | I20: 0.2248387334 | J20: 0.2112273038 | K20: 0.1974342745 | L20: 0.1840527174 | M20: 0.1714430034 | N20: 0.1598033919 | O20: 0.1492213654 | P20: 0.139710666 | Q20: 0.1312377597 | R20: 0.123740522 | S20: 0.1171412328 | T20: 0.1113554364 | U20: 0.1062978222 | V20: 0.1018859782 | W20: 0.09804264583 | X20: 0.09469693402 | Y20: 0.09178482571 | Z20: 0.08924921638 | AA20: 0.08703965543 | AB20: 0.08511191062 | AC20: 0.0834274388 | AD20: 0.08195281926 | AE20: 0.08065918717 | AF20: 0.07952169025 | AG20: 0.07851898267 | AH20: 0.07763276341 | AI20: 0.07684736161
C21: =C20+1 -> 4 | D21: =OFFSET(CONDITION_BAND_CODE,'8 - Condition by Year'!C21-1,0) -> P | E21: 0.0624 | F21: 0.09589902078 | G21: 0.1244248432 | H21: 0.1471279137 | I21: 0.1639409808 | J21: 0.1752579412 | K21: 0.1817175222 | L21: 0.1840612651 | M21: 0.1830435782 | N21: 0.1793777727 | O21: 0.1737065284 | P21: 0.1665885626 | Q21: 0.1584957033 | R21: 0.1498163363 | S21: 0.1408624633 | T21: 0.1318785224 | U21: 0.1230507634 | V21: 0.1145164257 | W21: 0.106372275 | X21: 0.09868226956 | Y21: 0.09148426123 | Z21: 0.08479573209 | AA21: 0.07861861525 | AB21: 0.07294328214 | AC21: 0.06775179057 | AD21: 0.06302049192 | AE21: 0.05872209219 | AF21: 0.05482725487 | AG21: 0.05130582454 | AH21: 0.04812774071 | AI21: 0.04526370148
C22: =C21+1 -> 5 | D22: =OFFSET(CONDITION_BAND_CODE,'8 - Condition by Year'!C22-1,0) -> VP | E22: 0.0121 | F22: 0.01914046192 | G22: 0.03157426619 | H22: 0.04860072788 | I22: 0.06928238391 | J22: 0.09267094375 | K22: 0.1178815342 | L22: 0.1441321172 | M22: 0.1707600428 | N22: 0.1972241208 | O22: 0.2230980042 | P22: 0.2480588172 | Q22: 0.2718736377 | R22: 0.2943855078 | S22: 0.3154999999 | T22: 0.3351729184 | U22: 0.3533994225 | V22: 0.3702046573 | W22: 0.3856358638 | X22: 0.399755862 | Y22: 0.4126377693 | Z22: 0.4243607973 | AA22: 0.4350069721 | AB22: 0.444658631 | AC22: 0.4533965614 | AD22: 0.4612986616 | AE22: 0.4684390227 | AF22: 0.4748873415 | AG22: 0.4807085914 | AH22: 0.4859628911 | AI22: 0.4907055193
A23: =INT((ROW()-8)/current_conditionBands)+1 -> 4 | B23: =OFFSET(ASSET_GROUP_NAME,A23-1,0) -> BU | C23: 1 | D23: =OFFSET(CONDITION_BAND_CODE,'8 - Condition by Year'!C23-1,0) -> VG | E23: 0.278 | F23: 0.26659421 | G23: 0.2559982311 | H23: 0.2461545668 | I23: 0.2370098026 | J23: 0.2285143166 | K23: 0.2206220101 | L23: 0.2132900575 | M23: 0.2064786734 | N23: 0.2001508976 | O23: 0.1942723939 | P23: 0.188811264 | Q23: 0.1837378743 | R23: 0.1790246952 | S23: 0.1746461519 | T23: 0.1705784851 | U23: 0.1667996227 | V23: 0.1632890595 | W23: 0.1600277463 | X23: 0.1569979864 | Y23: 0.1541833394 | Z23: 0.1515685323 | AA23: 0.1491393765 | AB23: 0.1468826908 | AC23: 0.1447862298 | AD23: 0.1428386175 | AE23: 0.1410292857 | AF23: 0.1393484165 | AG23: 0.1377868889 | AH23: 0.1363362298 | AI23: 0.1349885675
C24: =C23+1 -> 2 | D24: =OFFSET(CONDITION_BAND_CODE,'8 - Condition by Year'!C24-1,0) -> G | E24: 0.3989 | F24: 0.3731379437 | G24: 0.3513578187 | H24: 0.3328764825 | I24: 0.3171337747 | J24: 0.3036699322 | K24: 0.292107185 | L24: 0.282134755 | M24: 0.2734966283 | N24: 0.2659815849 | O24: 0.2594150675 | P24: 0.2536525486 | Q24: 0.2485741179 | R24: 0.2440800647 | S24: 0.2400872697 | T24: 0.236526258 | U24: 0.2333387901 | V24: 0.230475892 | W24: 0.227896243 | X24: 0.2255648555 | Y24: 0.223451993 | Z24: 0.2215322831 | AA24: 0.2197839879 | AB24: 0.2181884055 | AC24: 0.2167293768 | AD24: 0.2153928787 | AE24: 0.2141666888 | AF24: 0.2130401076 | AG24: 0.2120037288 | AH24: 0.211049248 | AI24: 0.2101693039
C25: =C24+1 -> 3 | D25: =OFFSET(CONDITION_BAND_CODE,'8 - Condition by Year'!C25-1,0) -> F | E25: 0.2161 | F25: 0.2172815167 | G25: 0.2134054496 | H25: 0.2063503944 | I25: 0.1974451981 | J25: 0.1876155273 | K25: 0.1774932578 | L25: 0.1674978279 | M25: 0.1578964977 | N25: 0.1488487753 | O25: 0.1404389923 | P25: 0.1327000383 | Q25: 0.1256305204 | R25: 0.1192070559 | S25: 0.1133929771 | T25: 0.1081444061 | U25: 0.1034144154 | V25: 0.09915580359 | W25: 0.09532288039 | X25: 0.09187255019 | Y25: 0.08876490621 | Z25: 0.08596348971 | AA25: 0.08343532587 | AB25: 0.08115081599 | AC25: 0.07908354251 | AD25: 0.07721002623 | AE25: 0.07550946246 | AF25: 0.07396345421 | AG25: 0.07255575372 | AH25: 0.07127201938 | AI25: 0.07009959185
C26: =C25+1 -> 4 | D26: =OFFSET(CONDITION_BAND_CODE,'8 - Condition by Year'!C26-1,0) -> P | E26: 0.0815 | F26: 0.107408817 | G26: 0.1295935174 | H26: 0.1474896589 | I26: 0.1610424072 | J26: 0.170504363 | K26: 0.1762975018 | L26: 0.1789209865 | M26: 0.1788914828 | N26: 0.1767062235 | O26: 0.1728217565 | P26: 0.1676432962 | Q26: 0.1615210542 | R26: 0.154750996 | S26: 0.1475782472 | T26: 0.1402019339 | U26: 0.1327806445 | V26: 0.1254379857 | W26: 0.1182679087 | X26: 0.1113396158 | Y26: 0.1047019558 | Z26: 0.09838727548 | AA26: 0.09241473723 | AB26: 0.08679313301 | AC26: 0.08152324112 | AD26: 0.07659977604 | AE26: 0.07201298343 | AF26: 0.06774993002 | AG26: 0.06379553499 | AH26: 0.06013338418 | AI26: 0.05674636437
C27: =C26+1 -> 5 | D27: =OFFSET(CONDITION_BAND_CODE,'8 - Condition by Year'!C27-1,0) -> VP | E27: 0.0255 | F27: 0.03557751262 | G27: 0.04964498307 | H27: 0.06712889737 | I27: 0.08736881747 | J27: 0.1096958608 | K27: 0.1334800453 | L27: 0.1581563732 | M27: 0.1832367178 | N27: 0.2083125188 | O27: 0.2330517898 | P27: 0.2571928529 | Q27: 0.2805364332 | R27: 0.3029371881 | S27: 0.3242953541 | T27: 0.3445489168 | U27: 0.3636665273 | V27: 0.3816412592 | W27: 0.3984852216 | X27: 0.4142249921 | Y27: 0.4288978056 | Z27: 0.4425484194 | AA27: 0.4552265725 | AB27: 0.4669849546 | AC27: 0.4778776097 | AD27: 0.4879587015 | AE27: 0.4972815796 | AF27: 0.5058980917 | AG27: 0.5138580935 | AH27: 0.5212091186 | AI27: 0.5279961723
A28: =INT((ROW()-8)/current_conditionBands)+1 -> 5 | B28: =OFFSET(ASSET_GROUP_NAME,A28-1,0) -> CR | C28: 1 | D28: =OFFSET(CONDITION_BAND_CODE,'8 - Condition by Year'!C28-1,0) -> VG | E28: 0.2146 | F28: 0.2121271622 | G28: 0.2098200044 | H28: 0.2076674263 | I28: 0.2056590709 | J28: 0.2037852753 | K28: 0.202037024 | L28: 0.2004059056 | M28: 0.198884072 | N28: 0.1974642014 | O28: 0.196139462 | P28: 0.1949034802 | Q28: 0.1937503092 | R28: 0.1926744007 | S28: 0.191670578 | T28: 0.1907340114 | U28: 0.1898601948 | V28: 0.1890449239 | W28: 0.1882842762 | X28: 0.1875745918 | Y28: 0.1869124563 | Z28: 0.1862946839 | AA28: 0.1857183022 | AB28: 0.1851805381 | AC28: 0.1846788042 | AD28: 0.1842106865 | AE28: 0.1837739327 | AF28: 0.1833664413 | AG28: 0.1829862519 | AH28: 0.1826315352 | AI28: 0.1823005845
C29: =C28+1 -> 2 | D29: =OFFSET(CONDITION_BAND_CODE,'8 - Condition by Year'!C29-1,0) -> G | E29: 0.404 | F29: 0.3664230832 | G29: 0.3372104464 | H29: 0.3144744986 | I29: 0.2967553882 | J29: 0.282923956 | K29: 0.2721067147 | L29: 0.2636278543 | M29: 0.2569644102 | N29: 0.2517116052 | O29: 0.2475560555 | P29: 0.2442550581 | Q29: 0.2416205763 | R29: 0.2395068594 | S29: 0.2378008704 | T29: 0.2362019876 | U29: 0.2345911526 | V29: 0.2330456121 | W29: 0.2316009143 | X29: 0.2302700611 | Y29: 0.2290541781 | Z29: 0.2279484222 | AA29: 0.2269452207 | AB29: 0.2260360194 | AC29: 0.2252121998 | AD29: 0.224465537 | AE29: 0.2237884068 | AF29: 0.2231738571 | AG29: 0.2226156084 | AH29: 0.2221080203 | AI29: 0.2216460414
C30: =C29+1 -> 3 | D30: =OFFSET(CONDITION_BAND_CODE,'8 - Condition by Year'!C30-1,0) -> F | E30: 0.2804 | F30: 0.2600719046 | G30: 0.2369402134 | H30: 0.2136662891 | I30: 0.1917469275 | J30: 0.1719343485 | K30: 0.1545175943 | L30: 0.1395088185 | M30: 0.1267647387 | N30: 0.1160642382 | O30: 0.1071565957 | P30: 0.09979027916 | Q30: 0.09372907418 | R30: 0.08876012579 | S30: 0.08469695875 | T30: 0.08159240176 | U30: 0.07930331165 | V30: 0.07752997002 | W30: 0.07609724267 | X30: 0.07490089484 | Y30: 0.07387727436 | Z30: 0.07298616202 | AA30: 0.07220104521 | AB30: 0.0715035795 | AC30: 0.07088041583 | AD30: 0.07032136628 | AE30: 0.06981832932 | AF30: 0.06936464799 | AG30: 0.06895471617 | AH30: 0.06858372864 | AI30: 0.06824751556
C31: =C30+1 -> 4 | D31: =OFFSET(CONDITION_BAND_CODE,'8 - Condition by Year'!C31-1,0) -> P | E31: 0.0824 | F31: 0.1327903208 | G31: 0.1691902646 | H31: 0.1931315822 | I31: 0.2066309008 | J31: 0.2117873105 | K31: 0.2105625091 | L31: 0.2046750831 | M31: 0.1955637975 | N31: 0.1843905816 | O31: 0.1720645285 | P31: 0.1592753123 | Q31: 0.1465290896 | R31: 0.1341829634 | S31: 0.1224760069 | T31: 0.1115560188 | U31: 0.1015606442 | V31: 0.09256492225 | W31: 0.08454841867 | X31: 0.07744543407 | Y31: 0.07117209255 | Z31: 0.06564058078 | AA31: 0.06076629619 | AB31: 0.0564711254 | AC31: 0.05268464875 | AD31: 0.04934426714 | AE31: 0.046394799 | AF31: 0.04378784511 | AG31: 0.04148107915 | AH31: 0.03943754525 | AI31: 0.03762500121
C32: =C31+1 -> 5 | D32: =OFFSET(CONDITION_BAND_CODE,'8 - Condition by Year'!C32-1,0) -> VP | E32: 0.0186 | F32: 0.02858752929 | G32: 0.04683907118 | H32: 0.07106020386 | I32: 0.09920771262 | J32: 0.1295691096 | K32: 0.1607761578 | L32: 0.1917823386 | M32: 0.2218229815 | N32: 0.2503693736 | O32: 0.2770833583 | P32: 0.3017758702 | Q32: 0.3243709507 | R32: 0.3448756507 | S32: 0.363355586 | T32: 0.3799155804 | U32: 0.3946846968 | V32: 0.4078145717 | W32: 0.4194691483 | X32: 0.4298090182 | Y32: 0.4389839987 | Z32: 0.4471301511 | AA32: 0.4543691357 | AB32: 0.4608087375 | AC32: 0.4665439314 | AD32: 0.4716581431 | AE32: 0.4762245322 | AF32: 0.4803072085 | AG32: 0.4839623444 | AH32: 0.4872391706 | AI32: 0.4901808573
A33: =INT((ROW()-8)/current_conditionBands)+1 -> 6 | B33: =OFFSET(ASSET_GROUP_NAME,A33-1,0) -> CU | C33: 1 | D33: =OFFSET(CONDITION_BAND_CODE,'8 - Condition by Year'!C33-1,0) -> VG | E33: 0.3517 | F33: 0.337723553 | G33: 0.3246276221 | H33: 0.3123567349 | I33: 0.3008589136 | J33: 0.2900854551 | K33: 0.2799907244 | L33: 0.2705319617 | M33: 0.2616691011 | N33: 0.2533646008 | O33: 0.2455832839 | P33: 0.23829219 | Q33: 0.231460435 | R33: 0.2250590806 | S33: 0.2190610115 | T33: 0.2134408208 | U33: 0.2081747021 | V33: 0.2032403488 | W33: 0.1986168598 | X33: 0.1942846507 | Y33: 0.1902253707 | Z33: 0.1864218253 | AA33: 0.1828579033 | AB33: 0.1795185084 | AC33: 0.1763894953 | AD33: 0.1734576101 | AE33: 0.1707104337 | AF33: 0.1681363293 | AG33: 0.1657243936 | AH33: 0.1634644098 | AI33: 0.1613468049
C34: =C33+1 -> 2 | D34: =OFFSET(CONDITION_BAND_CODE,'8 - Condition by Year'!C34-1,0) -> G | E34: 0.3508 | F34: 0.3287567844 | G34: 0.3103298687 | H34: 0.2948370001 | I34: 0.2817316108 | J34: 0.2705753582 | K34: 0.2610162532 | L34: 0.2527712376 | M34: 0.2456123032 | N34: 0.2393554311 | O34: 0.2338517774 | P34: 0.2289806462 | Q34: 0.2246438867 | R34: 0.2207614257 | S34: 0.2172677013 | T34: 0.2141088184 | U34: 0.2112402756 | V34: 0.20862515 | W34: 0.2062326458 | X34: 0.2040369327 | Y34: 0.2020162158 | Z34: 0.2001519906 | AA34: 0.1984284439 | AB34: 0.1968319737 | AC34: 0.1953508015 | AD34: 0.1939746606 | AE34: 0.1926945437 | AF34: 0.1915024986 | AG34: 0.190391462 | AH34: 0.189355125 | AI34: 0.1883878217
C35: =C34+1 -> 3 | D35: =OFFSET(CONDITION_BAND_CODE,'8 - Condition by Year'!C35-1,0) -> F | E35: 0.1924 | F35: 0.1933608377 | G35: 0.1896345014 | H35: 0.1830951542 | I35: 0.1750218482 | J35: 0.1662711403 | K35: 0.1574020421 | L35: 0.1487660646 | M35: 0.1405717725 | N35: 0.1329307829 | O35: 0.1258903067 | P35: 0.1194559685 | Q35: 0.1136076404 | R35: 0.1083102789 | S35: 0.1035212165 | T35: 0.09919495303 | U35: 0.09528620348 | V35: 0.09175174316 | W35: 0.0885514358 | X35: 0.08564871759 | Y35: 0.08301072857 | Z35: 0.08060822406 | AA35: 0.07841535715 | AB35: 0.07640939334 | AC35: 0.07457039772 | AD35: 0.07288092025 | AE35: 0.07132569482 | AF35: 0.06989136079 | AG35: 0.06856621113 | AH35: 0.06733996861 | AI35: 0.06620358918
C36: =C35+1 -> 4 | D36: =OFFSET(CONDITION_BAND_CODE,'8 - Condition by Year'!C36-1,0) -> P | E36: 0.0761 | F36: 0.1044634043 | G36: 0.1296135581 | H36: 0.1507996135 | I36: 0.1678167559 | J36: 0.1807957437 | K36: 0.1900597677 | L36: 0.1960289307 | M36: 0.1991581256 | N36: 0.199898092 | O36: 0.1986723472 | P36: 0.1958648082 | Q36: 0.1918144532 | R36: 0.1868144752 | S36: 0.1811141734 | T36: 0.1749223892 | U36: 0.168411693 | V36: 0.1617228083 | W36: 0.1549689513 | X36: 0.1482398971 | Y36: 0.1416056748 | Z36: 0.1351198483 | AA36: 0.1288223815 | AB36: 0.1227421041 | AC36: 0.1168988119 | AD36: 0.1113050374 | AE36: 0.1059675311 | AF36: 0.1008884903 | AG36: 0.09606657287 | AH36: 0.0914977269 | AI36: 0.08717586659
C37: =C36+1 -> 5 | D37: =OFFSET(CONDITION_BAND_CODE,'8 - Condition by Year'!C37-1,0) -> VP | E37: 0.029 | F37: 0.03569542058 | G37: 0.04579444969 | H37: 0.05891149724 | I37: 0.07457087145 | J37: 0.09227230274 | K37: 0.1115312126 | L37: 0.1319018053 | M37: 0.1529886976 | N37: 0.1744510932 | O37: 0.1960022848 | P37: 0.2174063871 | Q37: 0.2384735846 | R37: 0.2590547396 | S37: 0.2790358972 | T37: 0.2983330186 | U37: 0.3168871259 | V37: 0.3346599496 | W37: 0.3516301072 | X37: 0.367789802 | Y37: 0.3831420102 | Z37: 0.3976981117 | AA37: 0.4114759141 | AB37: 0.4244980205 | AC37: 0.4367904936 | AD37: 0.4483817716 | AE37: 0.4593017966 | AF37: 0.469581321 | AG37: 0.4792513604 | AH37: 0.4883427697 | AI37: 0.4968859175
A38: =INT((ROW()-8)/current_conditionBands)+1 -> 7 | B38: =OFFSET(ASSET_GROUP_NAME,A38-1,0) -> MR | C38: 1 | D38: =OFFSET(CONDITION_BAND_CODE,'8 - Condition by Year'!C38-1,0) -> VG | E38: 0.6425 | F38: 0.607497705 | G38: 0.5738753525 | H38: 0.5441289613 | I38: 0.5183485719 | J38: 0.496159922 | K38: 0.4771160235 | L38: 0.4607907344 | M38: 0.4468030695 | N38: 0.4348208219 | O38: 0.4245573432 | P38: 0.4157663823 | Q38: 0.4082367727 | R38: 0.4017875647 | S38: 0.3962637453 | T38: 0.3915325354 | U38: 0.3874802049 | V38: 0.3840093421 | W38: 0.3810365125 | X38: 0.3784902535 | Y38: 0.3763093566 | Z38: 0.3744413961 | AA38: 0.3728414688 | AB38: 0.3714711147 | AC38: 0.3702973924 | AD38: 0.3692920872 | AE38: 0.368431033 | AF38: 0.3676935313 | AG38: 0.3670618535 | AH38: 0.366520815 | AI38: 0.3660574101
C39: =C38+1 -> 2 | D39: =OFFSET(CONDITION_BAND_CODE,'8 - Condition by Year'!C39-1,0) -> G | E39: 0.2109 | F39: 0.314038755 | G39: 0.3578809858 | H39: 0.3849940744 | I39: 0.4060884923 | J39: 0.4237832664 | K39: 0.4388864134 | L39: 0.4518178127 | M39: 0.4628939732 | N39: 0.4723810332 | O39: 0.4805068312 | P39: 0.4874666512 | Q39: 0.4934277985 | R39: 0.4985335774 | S39: 0.5029067272 | T39: 0.5066523742 | U39: 0.5098605588 | V39: 0.5126084018 | W39: 0.5149619573 | X39: 0.5169778018 | Y39: 0.5187043932 | Z39: 0.5201832363 | AA39: 0.5214498807 | AB39: 0.5225347745 | AC39: 0.5234639972 | AD39: 0.5242598859 | AE39: 0.5249415727 | AF39: 0.5255254445 | AG39: 0.5260255366 | AH39: 0.5264538707 | AI39: 0.5268207432
C40: =C39+1 -> 3 | D40: =OFFSET(CONDITION_BAND_CODE,'8 - Condition by Year'!C40-1,0) -> F | E40: 0.0936 | F40: 0.055162215 | G40: 0.05633202648 | H40: 0.06219490729 | I40: 0.06739563538 | J40: 0.07163780267 | K40: 0.07515939372 | L40: 0.07813478541 | M40: 0.08067013138 | N40: 0.0828377001 | O40: 0.08469305191 | P40: 0.08628181842 | Q40: 0.08764250131 | R40: 0.08880790463 | S40: 0.08980607301 | T40: 0.09066101068 | U40: 0.0913932723 | V40: 0.09202046146 | W40: 0.09255765526 | X40: 0.0930177672 | Y40: 0.09341185777 | Z40: 0.09374940037 | AA40: 0.09403850907 | AB40: 0.09428613362 | AC40: 0.09449822659 | AD40: 0.09467988638 | AE40: 0.09483547986 | AF40: 0.09496874726 | AG40: 0.09508289215 | AH40: 0.09518065843 | AI40: 0.09526439624
C41: =C40+1 -> 4 | D41: =OFFSET(CONDITION_BAND_CODE,'8 - Condition by Year'!C41-1,0) -> P | E41: 0.0401 | F41: 0.01553955 | G41: 0.007930212176 | H41: 0.006633236227 | I41: 0.006896791042 | J41: 0.007397964348 | K41: 0.007862783657 | L41: 0.008258774574 | M41: 0.008594275412 | N41: 0.008879886484 | O41: 0.009123862086 | P41: 0.009332608999 | Q41: 0.009511331588 | R41: 0.009664386665 | S41: 0.009795472708 | T41: 0.009907746941 | U41: 0.01000391023 | V41: 0.01008627482 | W41: 0.01015682086 | X41: 0.01021724424 | Y41: 0.01026899747 | Z41: 0.01031332464 | AA41: 0.01035129132 | AB41: 0.01038381016 | AC41: 0.01041166289 | AD41: 0.01043551903 | AE41: 0.01045595206 | AF41: 0.01047345316 | AG41: 0.01048844303 | AH41: 0.01050128201 | AI41: 0.01051227873
C42: =C41+1 -> 5 | D42: =OFFSET(CONDITION_BAND_CODE,'8 - Condition by Year'!C42-1,0) -> VP | E42: 0.0129 | F42: 0.007761775 | G42: 0.003981422958 | H42: 0.00204882075 | I42: 0.001270509364 | J42: 0.001021044552 | K42: 0.0009753856665 | L42: 0.0009978928812 | M42: 0.001038550465 | N42: 0.001080558383 | O42: 0.001118911531 | P42: 0.00115253915 | Q42: 0.00118159595 | R42: 0.001206566685 | S42: 0.001227981698 | T42: 0.001246332857 | U42: 0.001262053771 | V42: 0.00127551987 | W42: 0.001287054043 | X42: 0.001296933286 | Y42: 0.001305394995 | Z42: 0.001312642546 | AA42: 0.001318850151 | AB42: 0.00132416703 | AC42: 0.001328720992 | AD42: 0.001332621507 | AE42: 0.001335962338 | AF42: 0.001338823794 | AG42: 0.00134127466 | AH42: 0.001343373852 | AI42: 0.001345171832
A43: =INT((ROW()-8)/current_conditionBands)+1 -> 8 | B43: =OFFSET(ASSET_GROUP_NAME,A43-1,0) -> MU | C43: 1 | D43: =OFFSET(CONDITION_BAND_CODE,'8 - Condition by Year'!C43-1,0) -> VG | E43: 0.3928 | F43: 0.3981526 | G43: 0.3935100712 | H43: 0.3865402787 | I43: 0.3794790739 | J43: 0.3729426723 | K43: 0.3670609253 | L43: 0.3618196461 | M43: 0.3571654142 | N43: 0.3530377775 | O43: 0.3493788993 | P43: 0.3461361234 | Q43: 0.3432623224 | R43: 0.3407155777 | S43: 0.3384586901 | T43: 0.3364586769 | U43: 0.3346863036 | V43: 0.3331156613 | W43: 0.3317237892 | X43: 0.33049034 | Y43: 0.3293972819 | Z43: 0.3284286357 | AA43: 0.3275702407 | AB43: 0.3268095482 | AC43: 0.3261354377 | AD43: 0.3255380545 | AE43: 0.3250086654 | AF43: 0.3245395314 | AG43: 0.3241237941 | AH43: 0.3237553761 | AI43: 0.3234288914
C44: =C43+1 -> 2 | D44: =OFFSET(CONDITION_BAND_CODE,'8 - Condition by Year'!C44-1,0) -> G | E44: 0.3184 | F44: 0.47501 | G44: 0.5229617531 | H44: 0.5407126973 | I44: 0.5498771605 | J44: 0.556304234 | K44: 0.5615765741 | L44: 0.5661473782 | M44: 0.5701749955 | N44: 0.5737394727 | O44: 0.5768974443 | P44: 0.5796959116 | Q44: 0.5821758875 | R44: 0.5843736157 | S44: 0.5863212093 | T44: 0.5880471322 | U44: 0.5895766122 | V44: 0.5909320075 | W44: 0.5921331319 | X44: 0.5931975444 | Y44: 0.5941408055 | Z44: 0.5949767047 | AA44: 0.5957174619 | AB44: 0.5963739061 | AC44: 0.5969556338 | AD44: 0.5974711493 | AE44: 0.5979279889 | AF44: 0.598332831 | AG44: 0.5986915939 | AH44: 0.5990095225 | AI44: 0.5992912644
C45: =C44+1 -> 3 | D45: =OFFSET(CONDITION_BAND_CODE,'8 - Condition by Year'!C45-1,0) -> F | E45: 0.1656 | F45: 0.0840366 | G45: 0.06690550059 | H45: 0.06447289748 | I45: 0.06497436745 | J45: 0.06586354911 | K45: 0.0666799096 | L45: 0.06738077641 | M45: 0.06798592254 | N45: 0.06851469577 | O45: 0.06898023083 | P45: 0.06939162197 | Q45: 0.06975576878 | R45: 0.07007832017 | S45: 0.07036410738 | T45: 0.07061734871 | U45: 0.07084176015 | V45: 0.07104062706 | W45: 0.07121685827 | X45: 0.07137303063 | Y45: 0.07151142737 | Z45: 0.07163407177 | AA45: 0.07174275679 | AB45: 0.07183907127 | AC45: 0.07192442324 | AD45: 0.07200006045 | AE45: 0.07206708864 | AF45: 0.07212648768 | AG45: 0.07217912592 | AH45: 0.07222577288 | AI45: 0.07226711048
C46: =C45+1 -> 4 | D46: =OFFSET(CONDITION_BAND_CODE,'8 - Condition by Year'!C46-1,0) -> P | E46: 0.1005 | F46: 0.0302127 | G46: 0.01082101335 | H46: 0.005743614052 | I46: 0.004518363796 | J46: 0.004277934092 | K46: 0.004270886815 | L46: 0.004310787851 | M46: 0.004355015367 | N46: 0.004395323903 | O46: 0.004430906097 | P46: 0.004462253338 | Q46: 0.004489933789 | R46: 0.004514420898 | S46: 0.004536104083 | T46: 0.004555313036 | U46: 0.004572333376 | V46: 0.00458741567 | W46: 0.004600781024 | X46: 0.00461262504 | Y46: 0.004623120938 | Z46: 0.004632422183 | AA46: 0.004640664756 | AB46: 0.004647969159 | AC46: 0.004654442174 | AD46: 0.004660178431 | AE46: 0.004665261788 | AF46: 0.004669766556 | AG46: 0.004673758592 | AH46: 0.004677296255 | AI46: 0.004680431261
C47: =C46+1 -> 5 | D47: =OFFSET(CONDITION_BAND_CODE,'8 - Condition by Year'!C47-1,0) -> VP | E47: 0.0227 | F47: 0.0125881 | G47: 0.00580166174 | H47: 0.002530512426 | I47: 0.001151034318 | J47: 0.0006116104188 | K47: 0.0004117042016 | L47: 0.0003414114414 | M47: 0.0003186524032 | N47: 0.0003127300511 | O47: 0.0003125194822 | P47: 0.0003140896805 | Q47: 0.0003160874924 | R47: 0.0003180655634 | S47: 0.0003198891927 | T47: 0.0003215292261 | U47: 0.0003229906914 | V47: 0.0003242885439 | W47: 0.0003254395943 | X47: 0.0003264599413 | Y47: 0.0003273642563 | Z47: 0.000328165677 | AA47: 0.0003288758918 | AB47: 0.0003295052739 | AC47: 0.000330063021 | AD47: 0.0003305572858 | AE47: 0.0003309952936 | AF47: 0.0003313834473 | AG47: 0.0003317274215 | AH47: 0.0003320322445 | AI47: 0.0003323023726
A48: =INT((ROW()-8)/current_conditionBands)+1 -> 9 | B48: =OFFSET(ASSET_GROUP_NAME,A48-1,0) -> UR | C48: 1 | D48: =OFFSET(CONDITION_BAND_CODE,'8 - Condition by Year'!C48-1,0) -> VG | E48: 0.239 | F48: 0.2418601723 | G48: 0.2445573147 | H48: 0.2471007201 | I48: 0.2494991513 | J48: 0.251760872 | K48: 0.2538936746 | L48: 0.2558839951 | M48: 0.2575770376 | N48: 0.2592187892 | O48: 0.2609254745 | P48: 0.2625358948 | Q48: 0.264054521 | R48: 0.2654865856 | S48: 0.2668370225 | T48: 0.2681104845 | U48: 0.2693113592 | V48: 0.270443784 | W48: 0.2715116606 | X48: 0.2725186682 | Y48: 0.2734682764 | Z48: 0.274363757 | AA48: 0.2752081951 | AB48: 0.2760045003 | AC48: 0.276755416 | AD48: 0.2774635296 | AE48: 0.2781312807 | AF48: 0.27876097 | AG48: 0.279354767 | AH48: 0.2799147175 | AI48: 0.2804427509
C49: =C48+1 -> 2 | D49: =OFFSET(CONDITION_BAND_CODE,'8 - Condition by Year'!C49-1,0) -> G | E49: 0.177 | F49: 0.2124111374 | G49: 0.2420362336 | H49: 0.2668380508 | I49: 0.2876181367 | J49: 0.3050438788 | K49: 0.3195249362 | L49: 0.3308627076 | M49: 0.340133437 | N49: 0.3480110062 | O49: 0.3548964938 | P49: 0.3610367525 | Q49: 0.3666032897 | R49: 0.3715891822 | S49: 0.3753717752 | T49: 0.3775593734 | U49: 0.3791238304 | V49: 0.3804937269 | W49: 0.3818393311 | X49: 0.3832142178 | Y49: 0.3846235268 | Z49: 0.3860554458 | AA49: 0.3874947553 | AB49: 0.3889279529 | AC49: 0.3903446506 | AD49: 0.3917374783 | AE49: 0.39310151 | AF49: 0.3944336343 | AG49: 0.3955822965 | AH49: 0.3965718298 | AI49: 0.3974270388
C50: =C49+1 -> 3 | D50: =OFFSET(CONDITION_BAND_CODE,'8 - Condition by Year'!C50-1,0) -> F | E50: 0.292 | F50: 0.2186292849 | G50: 0.1662132263 | H50: 0.1294898508 | I50: 0.1044366707 | J50: 0.08798966691 | K50: 0.07797047598 | L50: 0.07327650609 | M50: 0.07189778241 | N50: 0.07223687727 | O50: 0.07342572812 | P50: 0.07520547304 | Q50: 0.07727974539 | R50: 0.07959043183 | S50: 0.0822600716 | T50: 0.08501412824 | U50: 0.08756893217 | V50: 0.08986126563 | W50: 0.09191244343 | X50: 0.09376784568 | Y50: 0.09547249654 | Z50: 0.09706304859 | AA50: 0.09856666795 | AB50: 0.10000241 | AC50: 0.101383169 | AD50: 0.1027174608 | AE50: 0.1040108251 | AF50: 0.105266843 | AG50: 0.106487842 | AH50: 0.1076503628 | AI50: 0.1087398188
C51: =C50+1 -> 4 | D51: =OFFSET(CONDITION_BAND_CODE,'8 - Condition by Year'!C51-1,0) -> P | E51: 0.159 | F51: 0.1789929461 | G51: 0.1814611956 | H51: 0.1729027787 | I51: 0.1579192322 | J51: 0.1397084907 | K51: 0.1204380926 | L51: 0.1015563116 | M51: 0.08410270888 | N51: 0.06857489252 | O51: 0.05508097304 | P51: 0.04353788733 | Q51: 0.03382021838 | R51: 0.02650060461 | S51: 0.02191703588 | T51: 0.02001679669 | U51: 0.01941507479 | V51: 0.01941474166 | W51: 0.01967379556 | X51: 0.02003033316 | Y51: 0.02041167357 | Z51: 0.02078795841 | AA51: 0.02114896083 | AB51: 0.0214928194 | AC51: 0.02182078039 | AD51: 0.02213489099 | AE51: 0.02243709142 | AF51: 0.02272893621 | AG51: 0.02316129864 | AH51: 0.02369623612 | AI51: 0.02429705153
C52: =C51+1 -> 5 | D52: =OFFSET(CONDITION_BAND_CODE,'8 - Condition by Year'!C52-1,0) -> VP | E52: 0.133 | F52: 0.1481064593 | G52: 0.1657320298 | H52: 0.1836685997 | I52: 0.2005268091 | J52: 0.2154970916 | K52: 0.2281728207 | L52: 0.2384204797 | M52: 0.2462890342 | N52: 0.2519584348 | O52: 0.2556713305 | P52: 0.2576839924 | Q52: 0.2582422255 | R52: 0.2568331957 | S52: 0.2536140948 | T52: 0.2492992172 | U52: 0.2445808034 | V52: 0.2397864818 | W52: 0.2350627693 | X52: 0.2304689352 | Y52: 0.2260240267 | Z52: 0.2217297902 | AA52: 0.2175814208 | AB52: 0.2135723174 | AC52: 0.209695984 | AD52: 0.2059466403 | AE52: 0.2023192927 | AF52: 0.1988096165 | AG52: 0.1954137959 | AH52: 0.1921668537 | AI52: 0.1890933399
A53: =INT((ROW()-8)/current_conditionBands)+1 -> 10 | B53: =OFFSET(ASSET_GROUP_NAME,A53-1,0) -> UU | C53: 1 | D53: =OFFSET(CONDITION_BAND_CODE,'8 - Condition by Year'!C53-1,0) -> VG | E53: 0.354 | F53: 0.3443378796 | G53: 0.3352361621 | H53: 0.3266623443 | I53: 0.3185858079 | J53: 0.3109777107 | K53: 0.303810883 | L53: 0.2970597314 | M53: 0.2907001465 | N53: 0.2847094176 | O53: 0.279066151 | P53: 0.2737501938 | Q53: 0.2687425621 | R53: 0.2640253731 | S53: 0.2595817811 | T53: 0.2553959173 | U53: 0.2514528337 | V53: 0.2477384489 | W53: 0.2442394985 | X53: 0.2409434872 | Y53: 0.2378386445 | Z53: 0.2349138827 | AA53: 0.2321587571 | AB53: 0.2295634287 | AC53: 0.2271186295 | AD53: 0.2248156285 | AE53: 0.2226462017 | AF53: 0.2206026015 | AG53: 0.2186775302 | AH53: 0.2168641131 | AI53: 0.2151558741
C54: =C53+1 -> 2 | D54: =OFFSET(CONDITION_BAND_CODE,'8 - Condition by Year'!C54-1,0) -> G | E54: 0.209 | F54: 0.2298068081 | G54: 0.2464952491 | H54: 0.259802067 | I54: 0.2703361376 | J54: 0.2786004431 | K54: 0.2850102826 | L54: 0.2899083636 | M54: 0.293577306 | N54: 0.2962500033 | O54: 0.2981182071 | P54: 0.2993396385 | Q54: 0.3000438797 | R54: 0.300337253 | S54: 0.3003068625 | T54: 0.3000239404 | U54: 0.2995466179 | V54: 0.2989222187 | W54: 0.2981891575 | X54: 0.2973785106 | Y54: 0.2965153156 | Z54: 0.2956196462 | AA54: 0.2947075 | AB54: 0.2937915335 | AC54: 0.2928816683 | AD54: 0.2919855916 | AE54: 0.29110917 | AF54: 0.2902567898 | AG54: 0.2894316377 | AH54: 0.2886359325 | AI54: 0.2878711147
C55: =C54+1 -> 3 | D55: =OFFSET(CONDITION_BAND_CODE,'8 - Condition by Year'!C55-1,0) -> F | E55: 0.253 | F55: 0.2062711592 | G55: 0.1726588882 | H55: 0.1487741677 | I55: 0.1320479739 | J55: 0.1205414419 | K55: 0.1127986808 | L55: 0.1077328585 | M55: 0.1045382036 | N55: 0.1026221731 | O55: 0.1015532874 | P55: 0.1010211179 | Q55: 0.1008056865 | R55: 0.1007541395 | S55: 0.1007630332 | T55: 0.1007649372 | U55: 0.1007183542 | V55: 0.1006001758 | W55: 0.1004000762 | X55: 0.1001163766 | Y55: 0.09975302539 | Z55: 0.09931741806 | AA55: 0.09881884643 | AB55: 0.09826741713 | AC55: 0.09767331654 | AD55: 0.09704632947 | AE55: 0.09639554173 | AF55: 0.0957291738 | AG55: 0.09505450665 | AH55: 0.09437787042 | AI55: 0.09370467473
C56: =C55+1 -> 4 | D56: =OFFSET(CONDITION_BAND_CODE,'8 - Condition by Year'!C56-1,0) -> P | E56: 0.096 | F56: 0.1226407314 | G56: 0.1363128437 | H56: 0.1413610984 | I56: 0.1408801157 | J56: 0.1370423631 | K56: 0.131345268 | L56: 0.124796545 | M56: 0.118052463 | N56: 0.1115203882 | O56: 0.1054343054 | P56: 0.09990998785 | Q56: 0.09498490962 | R56: 0.09064678222 | S56: 0.08685366136 | T56: 0.08354785278 | U56: 0.08066529511 | V56: 0.07814167797 | W56: 0.07591623287 | X56: 0.07393389125 | Y56: 0.07214632029 | Z56: 0.07051220823 | AA56: 0.06899706734 | AB56: 0.06757274515 | AC56: 0.06621677723 | AD56: 0.06491167272 | AE56: 0.06364419316 | AF56: 0.06240466307 | AG56: 0.06118633503 | AH56: 0.05998482106 | AI56: 0.05879759475
C57: =C56+1 -> 5 | D57: =OFFSET(CONDITION_BAND_CODE,'8 - Condition by Year'!C57-1,0) -> VP | E57: 0.088 | F57: 0.09694342167 | G57: 0.109296857 | H57: 0.1234003226 | I57: 0.1381499649 | J57: 0.1528380413 | K57: 0.1670348855 | L57: 0.1805025015 | M57: 0.1931318809 | N57: 0.2048980178 | O57: 0.2158280492 | P57: 0.2259790619 | Q57: 0.2354229621 | R57: 0.2442364521 | S57: 0.2524946619 | T57: 0.2602673523 | U57: 0.2676168991 | V57: 0.2745974785 | W57: 0.281255035 | X57: 0.2876277344 | Y57: 0.2937466942 | Z57: 0.2996368449 | AA57: 0.3053178292 | AB57: 0.3108048755 | AC57: 0.3161096085 | AD57: 0.3212407777 | AE57: 0.3262048934 | AF57: 0.3310067718 | AG57: 0.3356499904 | AH57: 0.3401372629 | AI57: 0.3444707417

Sheet 9 - Condition Graph
B3: CONDITION GRAPH
B6: Select Asset Group: | D6: AR

Sheet 10 - Work Quantity
B3: WORK QUANTITY
B5: Table of Work Quantities (m²) for Treatment Types by Asset Group
B6: Asset Group | C6: Num | D6: Treatment | E6: Total (m²) | F6: =TEXT(start_year+(COLUMN()-6),"0") -> 2014 | G6: 2015 | H6: 2016 | I6: 2017 | J6: 2018 | K6: 2019 | L6: 2020 | M6: 2021 | N6: 2022 | O6: 2023 | P6: 2024 | Q6: 2025 | R6: 2026 | S6: 2027 | T6: 2028 | U6: 2029 | V6: 2030 | W6: 2031 | X6: 2032 | Y6: 2033 | Z6: 2034 | AA6: 2035 | AB6: 2036 | AC6: 2037 | AD6: 2038 | AE6: 2039 | AF6: 2040 | AG6: 2041 | AH6: 2042 | AI6: 2043
A7: =INT((ROW()-7)/(current_treatmentTypes+1))+1 -> 1 | B7: =OFFSET(ASSET_GROUP_NAME,A7-1,0) -> AR | C7: 1 | D7: =OFFSET(TREATMENT_TYPE_NAME,'10 - Work Quantity'!C7-1,0) -> Surface Dressing | E7: =SUM(OFFSET(F7,0,0,1,analysis_period)) -> 215719007.1 | F7: 7190946.768 | G7: 7190946.768 | H7: 7190946.768 | I7: 7190946.768 | J7: 7181550.857 | K7: 7190946.768 | L7: 7190946.768 | M7: 7190946.768 | N7: 7190946.768 | O7: 7190946.768 | P7: 7190946.768 | Q7: 7190946.768 | R7: 7190946.768 | S7: 7190946.768 | T7: 7190946.768 | U7: 7190946.768 | V7: 7190946.768 | W7: 7190946.768 | X7: 7190946.768 | Y7: 7190946.768 | Z7: 7190946.768 | AA7: 7190946.768 | AB7: 7190946.768 | AC7: 7190946.768 | AD7: 7190946.768 | AE7: 7190946.768 | AF7: 7190946.768 | AG7: 7190946.768 | AH7: 7190946.768 | AI7: 7190946.768
C8: =C7+1 -> 2 | D8: =OFFSET(TREATMENT_TYPE_NAME,'10 - Work Quantity'!C8-1,0) -> Micro Asphalt | E8: 149804558.1 | F8: 4993485.27 | G8: 4993485.27 | H8: 4993485.27 | I8: 4993485.27 | J8: 4993485.27 | K8: 4993485.27 | L8: 4993485.27 | M8: 4993485.27 | N8: 4993485.27 | O8: 4993485.27 | P8: 4993485.27 | Q8: 4993485.27 | R8: 4993485.27 | S8: 4993485.27 | T8: 4993485.27 | U8: 4993485.27 | V8: 4993485.27 | W8: 4993485.27 | X8: 4993485.27 | Y8: 4993485.27 | Z8: 4993485.27 | AA8: 4993485.27 | AB8: 4993485.27 | AC8: 4993485.27 | AD8: 4993485.27 | AE8: 4993485.27 | AF8: 4993485.27 | AG8: 4993485.27 | AH8: 4993485.27 | AI8: 4993485.27
C9: 3 | D9: =OFFSET(TREATMENT_TYPE_NAME,'10 - Work Quantity'!C9-1,0) -> Moderate Overlay | E9: =SUM(OFFSET(F9,0,0,1,analysis_period)) -> 103122917.9 | F9: 3437430.598 | G9: 3437430.598 | H9: 3437430.598 | I9: 3437430.598 | J9: 3437430.598 | K9: 3437430.598 | L9: 3437430.598 | M9: 3437430.598 | N9: 3437430.598 | O9: 3437430.598 | P9: 3437430.598 | Q9: 3437430.598 | R9: 3437430.598 | S9: 3437430.598 | T9: 3437430.598 | U9: 3437430.598 | V9: 3437430.598 | W9: 3437430.598 | X9: 3437430.598 | Y9: 3437430.598 | Z9: 3437430.598 | AA9: 3437430.598 | AB9: 3437430.598 | AC9: 3437430.598 | AD9: 3437430.598 | AE9: 3437430.598 | AF9: 3437430.598 | AG9: 3437430.598 | AH9: 3437430.598 | AI9: 3437430.598
C10: 4 | D10: =OFFSET(TREATMENT_TYPE_NAME,'10 - Work Quantity'!C10-1,0) -> Moderate Inlay | E10: =SUM(OFFSET(F10,0,0,1,analysis_period)) -> 120035264.9 | F10: 4001175.497 | G10: 4001175.497 | H10: 4001175.497 | I10: 4001175.497 | J10: 4001175.497 | K10: 4001175.497 | L10: 4001175.497 | M10: 4001175.497 | N10: 4001175.497 | O10: 4001175.497 | P10: 4001175.497 | Q10: 4001175.497 | R10: 4001175.497 | S10: 4001175.497 | T10: 4001175.497 | U10: 4001175.497 | V10: 4001175.497 | W10: 4001175.497 | X10: 4001175.497 | Y10: 4001175.497 | Z10: 4001175.497 | AA10: 4001175.497 | AB10: 4001175.497 | AC10: 4001175.497 | AD10: 4001175.497 | AE10: 4001175.497 | AF10: 4001175.497 | AG10: 4001175.497 | AH10: 4001175.497 | AI10: 4001175.497
C11: 5 | D11: =OFFSET(TREATMENT_TYPE_NAME,'10 - Work Quantity'!C11-1,0) -> Deep Inlay | E11: =SUM(OFFSET(F11,0,0,1,analysis_period)) -> 73601455.16 | F11: 2453381.839 | G11: 2453381.839 | H11: 2453381.839 | I11: 2453381.839 | J11: 2453381.839 | K11: 2453381.839 | L11: 2453381.839 | M11: 2453381.839 | N11: 2453381.839 | O11: 2453381.839 | P11: 2453381.839 | Q11: 2453381.839 | R11: 2453381.839 | S11: 2453381.839 | T11: 2453381.839 | U11: 2453381.839 | V11: 2453381.839 | W11: 2453381.839 | X11: 2453381.839 | Y11: 2453381.839 | Z11: 2453381.839 | AA11: 2453381.839 | AB11: 2453381.839 | AC11: 2453381.839 | AD11: 2453381.839 | AE11: 2453381.839 | AF11: 2453381.839 | AG11: 2453381.839 | AH11: 2453381.839 | AI11: 2453381.839
C12: 6 | D12: =OFFSET(TREATMENT_TYPE_NAME,'10 - Work Quantity'!C12-1,0) -> Reconstruction | E12: =SUM(OFFSET(F12,0,0,1,analysis_period)) -> 36065565.23 | F12: 639821.522 | G12: 1000441.525 | H12: 1285078.251 | I12: 1463604.119 | J12: 1545345.231 | K12: 1553749.097 | L12: 1514166.474 | M12: 1448154.345 | N12: 1372165.608 | O12: 1297567.628 | P12: 1231398.908 | Q12: 1177337.417 | R12: 1136632.488 | S12: 1108899.609 | T12: 1092751.527 | U12: 1086273.453 | V12: 1087363.839 | W12: 1093965.698 | X12: 1104212.283 | Y12: 1116508.01 | Z12: 1129562.072 | AA12: 1142388.92 | AB12: 1154286.872 | AC12: 1164803.561 | AD12: 1173694.835 | AE12: 1180881.926 | AF12: 1186410.276 | AG12: 1190412.201 | AH12: 1193074.684 | AI12: 1194612.85
D13: Total | E13: =SUM(OFFSET(E7,0,0,current_treatmentTypes,1)) -> 698348768.5 | F13: 22716241.49 | G13: 23076861.5 | H13: 23361498.22 | I13: 23540024.09 | J13: 23612369.29 | K13: 23630169.07 | L13: 23590586.45 | M13: 23524574.32 | N13: 23448585.58 | O13: 23373987.6 | P13: =SUM(OFFSET(P7,0,0,current_treatmentTypes,1)) -> 23307818.88 | Q13: =SUM(OFFSET(Q7,0,0,current_treatmentTypes,1)) -> 23253757.39 | R13: =SUM(OFFSET(R7,0,0,current_treatmentTypes,1)) -> 23213052.46 | S13: =SUM(OFFSET(S7,0,0,current_treatmentTypes,1)) -> 23185319.58 | T13: =SUM(OFFSET(T7,0,0,current_treatmentTypes,1)) -> 23169171.5 | U13: =SUM(OFFSET(U7,0,0,current_treatmentTypes,1)) -> 23162693.43 | V13: =SUM(OFFSET(V7,0,0,current_treatmentTypes,1)) -> 23163783.81 | W13: =SUM(OFFSET(W7,0,0,current_treatmentTypes,1)) -> 23170385.67 | X13: =SUM(OFFSET(X7,0,0,current_treatmentTypes,1)) -> 23180632.26 | Y13: =SUM(OFFSET(Y7,0,0,current_treatmentTypes,1)) -> 23192927.98 | Z13: =SUM(OFFSET(Z7,0,0,current_treatmentTypes,1)) -> 23205982.04 | AA13: =SUM(OFFSET(AA7,0,0,current_treatmentTypes,1)) -> 23218808.89 | AB13: =SUM(OFFSET(AB7,0,0,current_treatmentTypes,1)) -> 23230706.84 | AC13: =SUM(OFFSET(AC7,0,0,current_treatmentTypes,1)) -> 23241223.53 | AD13: =SUM(OFFSET(AD7,0,0,current_treatmentTypes,1)) -> 23250114.81 | AE13: =SUM(OFFSET(AE7,0,0,current_treatmentTypes,1)) -> 23257301.9 | AF13: =SUM(OFFSET(AF7,0,0,current_treatmentTypes,1)) -> 23262830.25 | AG13: =SUM(OFFSET(AG7,0,0,current_treatmentTypes,1)) -> 23266832.17 | AH13: =SUM(OFFSET(AH7,0,0,current_treatmentTypes,1)) -> 23269494.66 | AI13: =SUM(OFFSET(AI7,0,0,current_treatmentTypes,1)) -> 23271032.82
A14: =INT((ROW()-7)/(current_treatmentTypes+1))+1 -> 2 | B14: =OFFSET(ASSET_GROUP_NAME,A14-1,0) -> AU | C14: 1 | D14: =OFFSET(TREATMENT_TYPE_NAME,'10 - Work Quantity'!C14-1,0) -> Surface Dressing | E14: =SUM(OFFSET(F14,0,0,1,analysis_period)) -> 82910718.44 | F14: 3607320.084 | G14: 3048788.949 | H14: 2661332.839 | I14: 2529759.481 | J14: 2529175.46 | K14: 2569613.176 | L14: 2608693.067 | M14: 2640142.61 | N14: 2663981.134 | O14: 2682318.19 | P14: 2697076.703 | Q14: 2709520.564 | R14: 2720395.057 | S14: 2730124.5 | T14: 2738952.961 | U14: 2747027.823 | V14: 2754445.45 | W14: 2761275.049 | X14: 2767570.839 | Y14: 2773378.186 | Z14: 2778736.72 | AA14: 2783681.949 | AB14: 2788246.141 | AC14: 2792458.837 | AD14: 2796347.195 | AE14: 2799936.224 | AF14: 2803248.987 | AG14: 2806306.759 | AH14: 2809129.17 | AI14: 2811734.339
C15: =C14+1 -> 2 | D15: =OFFSET(TREATMENT_TYPE_NAME,'10 - Work Quantity'!C15-1,0) -> Micro Asphalt | E15: 77100191.9 | F15: 2573023.844 | G15: 2573023.844 | H15: 2573023.844 | I15: 2529759.481 | J15: 2529175.46 | K15: 2569613.176 | L15: 2573023.844 | M15: 2573023.844 | N15: 2573023.844 | O15: 2573023.844 | P15: 2573023.844 | Q15: 2573023.844 | R15: 2573023.844 | S15: 2573023.844 | T15: 2573023.844 | U15: 2573023.844 | V15: 2573023.844 | W15: 2573023.844 | X15: 2573023.844 | Y15: 2573023.844 | Z15: 2573023.844 | AA15: 2573023.844 | AB15: 2573023.844 | AC15: 2573023.844 | AD15: 2573023.844 | AE15: 2573023.844 | AF15: 2573023.844 | AG15: 2573023.844 | AH15: 2573023.844 | AI15: 2573023.844
C16: 3 | D16: =OFFSET(TREATMENT_TYPE_NAME,'10 - Work Quantity'!C16-1,0) -> Moderate Overlay | E16: =SUM(OFFSET(F16,0,0,1,analysis_period)) -> 56824652.88 | F16: 1894155.096 | G16: 1894155.096 | H16: 1894155.096 | I16: 1894155.096 | J16: 1894155.096 | K16: 1894155.096 | L16: 1894155.096 | M16: 1894155.096 | N16: 1894155.096 | O16: 1894155.096 | P16: 1894155.096 | Q16: 1894155.096 | R16: 1894155.096 | S16: 1894155.096 | T16: 1894155.096 | U16: 1894155.096 | V16: 1894155.096 | W16: 1894155.096 | X16: 1894155.096 | Y16: 1894155.096 | Z16: 1894155.096 | AA16: 1894155.096 | AB16: 1894155.096 | AC16: 1894155.096 | AD16: 1894155.096 | AE16: 1894155.096 | AF16: 1894155.096 | AG16: 1894155.096 | AH16: 1894155.096 | AI16: 1894155.096
C17: 4 | D17: =OFFSET(TREATMENT_TYPE_NAME,'10 - Work Quantity'!C17-1,0) -> Moderate Inlay | E17: =SUM(OFFSET(F17,0,0,1,analysis_period)) -> 27112928.92 | F17: 1958536.038 | G17: 1958536.038 | H17: 1958536.038 | I17: 1538270.025 | J17: 854054.1131 | K17: 705419.2094 | L17: 684247.3913 | M17: 693621.3343 | N17: 707147.143 | O17: 718792.8401 | P17: 728020.3167 | Q17: 735415.44 | R17: 741567.1685 | S17: 746875.6334 | T17: 751582.7086 | U17: 755830.0635 | V17: 759702.2941 | W17: 763252.969 | X17: 766519.0012 | Y17: 769528.2118 | Z17: 772303.215 | AA17: 774863.3989 | AB17: 777225.9456 | AC17: 779406.3738 | AD17: 781418.8461 | AE17: 783276.3584 | AF17: 784990.87 | AG17: 786573.4026 | AH17: 788034.1219 | AI17: 789382.407
C18: 5 | D18: =OFFSET(TREATMENT_TYPE_NAME,'10 - Work Quantity'!C18-1,0) -> Deep Inlay | E18: =SUM(OFFSET(F18,0,0,1,analysis_period)) -> 20595424.88 | F18: 1285756.483 | G18: 1285756.483 | H18: 1285756.483 | I18: 1285756.483 | J18: 1285756.483 | K18: 930584.7088 | L18: 640550.594 | M18: 549529.37 | N18: 524811.2342 | O18: 521214.0144 | P18: 523773.6172 | Q18: 527750.9893 | R18: 531762.7321 | S18: 535473.4224 | T18: 538846.7517 | U18: 541916.0028 | V18: 544720.841 | W18: 547293.9141 | X18: 549660.5259 | Y18: 551840.6853 | Z18: 553850.8981 | AA18: 555705.3362 | AB18: 557416.5305 | AC18: 558995.7704 | AD18: 560453.3402 | AE18: 561798.6658 | AF18: 563040.4159 | AG18: 564186.5764 | AH18: 565244.5113 | AI18: 566221.0145
C19: 6 | D19: =OFFSET(TREATMENT_TYPE_NAME,'10 - Work Quantity'!C19-1,0) -> Reconstruction | E19: =SUM(OFFSET(F19,0,0,1,analysis_period)) -> 3474806.359 | F19: 548577.0945 | G19: 614929.6313 | H19: 618738.1009 | I19: 560814.4673 | J19: 419164.2409 | K19: 204580.1048 | L19: 81949.1851 | M19: 38717.84319 | N19: 23724.35802 | O19: 18675.01674 | P19: 17078.55085 | Q19: 16655.12411 | R19: 16615.38656 | S19: 16691.70377 | T19: 16796.27227 | U19: 16901.90836 | V19: 17001.17552 | W19: 17092.71175 | X19: 17176.82599 | Y19: 17254.16778 | Z19: 17325.3725 | AA19: 17390.99419 | AB19: 17451.51115 | AC19: 17507.34277 | AD19: 17558.86345 | AE19: 17606.41195 | AF19: 17650.29744 | AG19: 17690.80353 | AH19: 17728.19114 | AI19: 17762.70069
D20: Total | E20: =SUM(OFFSET(E14,0,0,current_treatmentTypes,1)) -> 268018723.4 | F20: 11867368.64 | G20: 11375190.04 | H20: 10991542.4 | I20: 10338515.03 | J20: 9511480.854 | K20: 8873965.471 | L20: 8482619.177 | M20: 8389190.097 | N20: 8386842.808 | O20: 8408179.001 | P20: =SUM(OFFSET(P14,0,0,current_treatmentTypes,1)) -> 8433128.128 | Q20: =SUM(OFFSET(Q14,0,0,current_treatmentTypes,1)) -> 8456521.057 | R20: =SUM(OFFSET(R14,0,0,current_treatmentTypes,1)) -> 8477519.284 | S20: =SUM(OFFSET(S14,0,0,current_treatmentTypes,1)) -> 8496344.199 | T20: =SUM(OFFSET(T14,0,0,current_treatmentTypes,1)) -> 8513357.633 | U20: =SUM(OFFSET(U14,0,0,current_treatmentTypes,1)) -> 8528854.737 | V20: =SUM(OFFSET(V14,0,0,current_treatmentTypes,1)) -> 8543048.7 | W20: =SUM(OFFSET(W14,0,0,current_treatmentTypes,1)) -> 8556093.584 | X20: =SUM(OFFSET(X14,0,0,current_treatmentTypes,1)) -> 8568106.132 | Y20: =SUM(OFFSET(Y14,0,0,current_treatmentTypes,1)) -> 8579180.191 | Z20: =SUM(OFFSET(Z14,0,0,current_treatmentTypes,1)) -> 8589395.145 | AA20: =SUM(OFFSET(AA14,0,0,current_treatmentTypes,1)) -> 8598820.618 | AB20: =SUM(OFFSET(AB14,0,0,current_treatmentTypes,1)) -> 8607519.068 | AC20: =SUM(OFFSET(AC14,0,0,current_treatmentTypes,1)) -> 8615547.264 | AD20: =SUM(OFFSET(AD14,0,0,current_treatmentTypes,1)) -> 8622957.184 | AE20: =SUM(OFFSET(AE14,0,0,current_treatmentTypes,1)) -> 8629796.6 | AF20: =SUM(OFFSET(AF14,0,0,current_treatmentTypes,1)) -> 8636109.51 | AG20: =SUM(OFFSET(AG14,0,0,current_treatmentTypes,1)) -> 8641936.481 | AH20: =SUM(OFFSET(AH14,0,0,current_treatmentTypes,1)) -> 8647314.934 | AI20: =SUM(OFFSET(AI14,0,0,current_treatmentTypes,1)) -> 8652279.401
A21: =INT((ROW()-7)/(current_treatmentTypes+1))+1 -> 3 | B21: =OFFSET(ASSET_GROUP_NAME,A21-1,0) -> BR | C21: 1 | D21: =OFFSET(TREATMENT_TYPE_NAME,'10 - Work Quantity'!C21-1,0) -> Surface Dressing | E21: =SUM(OFFSET(F21,0,0,1,analysis_period)) -> 38403565.47 | F21: 1280118.849 | G21: 1280118.849 | H21: 1280118.849 | I21: 1280118.849 | J21: 1280118.849 | K21: 1280118.849 | L21: 1280118.849 | M21: 1280118.849 | N21: 1280118.849 | O21: 1280118.849 | P21: 1280118.849 | Q21: 1280118.849 | R21: 1280118.849 | S21: 1280118.849 | T21: 1280118.849 | U21: 1280118.849 | V21: 1280118.849 | W21: 1280118.849 | X21: 1280118.849 | Y21: 1280118.849 | Z21: 1280118.849 | AA21: 1280118.849 | AB21: 1280118.849 | AC21: 1280118.849 | AD21: 1280118.849 | AE21: 1280118.849 | AF21: 1280118.849 | AG21: 1280118.849 | AH21: 1280118.849 | AI21: 1280118.849
C22: =C21+1 -> 2 | D22: =OFFSET(TREATMENT_TYPE_NAME,'10 - Work Quantity'!C22-1,0) -> Micro Asphalt | E22: 26659617.99 | F22: 888653.933 | G22: 888653.933 | H22: 888653.933 | I22: 888653.933 | J22: 888653.933 | K22: 888653.933 | L22: 888653.933 | M22: 888653.933 | N22: 888653.933 | O22: 888653.933 | P22: 888653.933 | Q22: 888653.933 | R22: 888653.933 | S22: 888653.933 | T22: 888653.933 | U22: 888653.933 | V22: 888653.933 | W22: 888653.933 | X22: 888653.933 | Y22: 888653.933 | Z22: 888653.933 | AA22: 888653.933 | AB22: 888653.933 | AC22: 888653.933 | AD22: 888653.933 | AE22: 888653.933 | AF22: 888653.933 | AG22: 888653.933 | AH22: 888653.933 | AI22: 888653.933
C23: 3 | D23: =OFFSET(TREATMENT_TYPE_NAME,'10 - Work Quantity'!C23-1,0) -> Moderate Overlay | E23: =SUM(OFFSET(F23,0,0,1,analysis_period)) -> 20234661.35 | F23: 674488.7116 | G23: 674488.7116 | H23: 674488.7116 | I23: 674488.7116 | J23: 674488.7116 | K23: 674488.7116 | L23: 674488.7116 | M23: 674488.7116 | N23: 674488.7116 | O23: 674488.7116 | P23: 674488.7116 | Q23: 674488.7116 | R23: 674488.7116 | S23: 674488.7116 | T23: 674488.7116 | U23: 674488.7116 | V23: 674488.7116 | W23: 674488.7116 | X23: 674488.7116 | Y23: 674488.7116 | Z23: 674488.7116 | AA23: 674488.7116 | AB23: 674488.7116 | AC23: 674488.7116 | AD23: 674488.7116 | AE23: 674488.7116 | AF23: 674488.7116 | AG23: 674488.7116 | AH23: 674488.7116 | AI23: 674488.7116
C24: 4 | D24: =OFFSET(TREATMENT_TYPE_NAME,'10 - Work Quantity'!C24-1,0) -> Moderate Inlay | E24: =SUM(OFFSET(F24,0,0,1,analysis_period)) -> 22282665.78 | F24: 742755.5261 | G24: 742755.5261 | H24: 742755.5261 | I24: 742755.5261 | J24: 742755.5261 | K24: 742755.5261 | L24: 742755.5261 | M24: 742755.5261 | N24: 742755.5261 | O24: 742755.5261 | P24: 742755.5261 | Q24: 742755.5261 | R24: 742755.5261 | S24: 742755.5261 | T24: 742755.5261 | U24: 742755.5261 | V24: 742755.5261 | W24: 742755.5261 | X24: 742755.5261 | Y24: 742755.5261 | Z24: 742755.5261 | AA24: 742755.5261 | AB24: 742755.5261 | AC24: 742755.5261 | AD24: 742755.5261 | AE24: 742755.5261 | AF24: 742755.5261 | AG24: 742755.5261 | AH24: 742755.5261 | AI24: 742755.5261
C25: 5 | D25: =OFFSET(TREATMENT_TYPE_NAME,'10 - Work Quantity'!C25-1,0) -> Deep Inlay | E25: =SUM(OFFSET(F25,0,0,1,analysis_period)) -> 14071880.84 | F25: 469062.6946 | G25: 469062.6946 | H25: 469062.6946 | I25: 469062.6946 | J25: 469062.6946 | K25: 469062.6946 | L25: 469062.6946 | M25: 469062.6946 | N25: 469062.6946 | O25: 469062.6946 | P25: 469062.6946 | Q25: 469062.6946 | R25: 469062.6946 | S25: 469062.6946 | T25: 469062.6946 | U25: 469062.6946 | V25: 469062.6946 | W25: 469062.6946 | X25: 469062.6946 | Y25: 469062.6946 | Z25: 469062.6946 | AA25: 469062.6946 | AB25: 469062.6946 | AC25: 469062.6946 | AD25: 469062.6946 | AE25: 469062.6946 | AF25: 469062.6946 | AG25: 469062.6946 | AH25: 469062.6946 | AI25: 469062.6946
C26: 6 | D26: =OFFSET(TREATMENT_TYPE_NAME,'10 - Work Quantity'!C26-1,0) -> Reconstruction | E26: =SUM(OFFSET(F26,0,0,1,analysis_period)) -> 8793306.726 | F26: 293110.2242 | G26: 293110.2242 | H26: 293110.2242 | I26: 293110.2242 | J26: 293110.2242 | K26: 293110.2242 | L26: 293110.2242 | M26: 293110.2242 | N26: 293110.2242 | O26: 293110.2242 | P26: 293110.2242 | Q26: 293110.2242 | R26: 293110.2242 | S26: 293110.2242 | T26: 293110.2242 | U26: 293110.2242 | V26: 293110.2242 | W26: 293110.2242 | X26: 293110.2242 | Y26: 293110.2242 | Z26: 293110.2242 | AA26: 293110.2242 | AB26: 293110.2242 | AC26: 293110.2242 | AD26: 293110.2242 | AE26: 293110.2242 | AF26: 293110.2242 | AG26: 293110.2242 | AH26: 293110.2242 | AI26: 293110.2242
D27: Total | E27: =SUM(OFFSET(E21,0,0,current_treatmentTypes,1)) -> 130445698.1 | F27: 4348189.938 | G27: 4348189.938 | H27: 4348189.938 | I27: 4348189.938 | J27: 4348189.938 | K27: 4348189.938 | L27: 4348189.938 | M27: 4348189.938 | N27: 4348189.938 | O27: 4348189.938 | P27: =SUM(OFFSET(P21,0,0,current_treatmentTypes,1)) -> 4348189.938 | Q27: =SUM(OFFSET(Q21,0,0,current_treatmentTypes,1)) -> 4348189.938 | R27: =SUM(OFFSET(R21,0,0,current_treatmentTypes,1)) -> 4348189.938 | S27: =SUM(OFFSET(S21,0,0,current_treatmentTypes,1)) -> 4348189.938 | T27: =SUM(OFFSET(T21,0,0,current_treatmentTypes,1)) -> 4348189.938 | U27: =SUM(OFFSET(U21,0,0,current_treatmentTypes,1)) -> 4348189.938 | V27: =SUM(OFFSET(V21,0,0,current_treatmentTypes,1)) -> 4348189.938 | W27: =SUM(OFFSET(W21,0,0,current_treatmentTypes,1)) -> 4348189.938 | X27: =SUM(OFFSET(X21,0,0,current_treatmentTypes,1)) -> 4348189.938 | Y27: =SUM(OFFSET(Y21,0,0,current_treatmentTypes,1)) -> 4348189.938 | Z27: =SUM(OFFSET(Z21,0,0,current_treatmentTypes,1)) -> 4348189.938 | AA27: =SUM(OFFSET(AA21,0,0,current_treatmentTypes,1)) -> 4348189.938 | AB27: =SUM(OFFSET(AB21,0,0,current_treatmentTypes,1)) -> 4348189.938 | AC27: =SUM(OFFSET(AC21,0,0,current_treatmentTypes,1)) -> 4348189.938 | AD27: =SUM(OFFSET(AD21,0,0,current_treatmentTypes,1)) -> 4348189.938 | AE27: =SUM(OFFSET(AE21,0,0,current_treatmentTypes,1)) -> 4348189.938 | AF27: =SUM(OFFSET(AF21,0,0,current_treatmentTypes,1)) -> 4348189.938 | AG27: =SUM(OFFSET(AG21,0,0,current_treatmentTypes,1)) -> 4348189.938 | AH27: =SUM(OFFSET(AH21,0,0,current_treatmentTypes,1)) -> 4348189.938 | AI27: =SUM(OFFSET(AI21,0,0,current_treatmentTypes,1)) -> 4348189.938
A28: =INT((ROW()-7)/(current_treatmentTypes+1))+1 -> 4 | B28: =OFFSET(ASSET_GROUP_NAME,A28-1,0) -> BU | C28: 1 | D28: =OFFSET(TREATMENT_TYPE_NAME,'10 - Work Quantity'!C28-1,0) -> Surface Dressing | E28: =SUM(OFFSET(F28,0,0,1,analysis_period)) -> 9887010.646 | F28: 329567.0215 | G28: 329567.0215 | H28: 329567.0215 | I28: 329567.0215 | J28: 329567.0215 | K28: 329567.0215 | L28: 329567.0215 | M28: 329567.0215 | N28: 329567.0215 | O28: 329567.0215 | P28: 329567.0215 | Q28: 329567.0215 | R28: 329567.0215 | S28: 329567.0215 | T28: 329567.0215 | U28: 329567.0215 | V28: 329567.0215 | W28: 329567.0215 | X28: 329567.0215 | Y28: 329567.0215 | Z28: 329567.0215 | AA28: 329567.0215 | AB28: 329567.0215 | AC28: 329567.0215 | AD28: 329567.0215 | AE28: 329567.0215 | AF28: 329567.0215 | AG28: 329567.0215 | AH28: 329567.0215 | AI28: 329567.0215
C29: =C28+1 -> 2 | D29: =OFFSET(TREATMENT_TYPE_NAME,'10 - Work Quantity'!C29-1,0) -> Micro Asphalt | E29: 6911752.813 | F29: 230391.7604 | G29: 230391.7604 | H29: 230391.7604 | I29: 230391.7604 | J29: 230391.7604 | K29: 230391.7604 | L29: 230391.7604 | M29: 230391.7604 | N29: 230391.7604 | O29: 230391.7604 | P29: 230391.7604 | Q29: 230391.7604 | R29: 230391.7604 | S29: 230391.7604 | T29: 230391.7604 | U29: 230391.7604 | V29: 230391.7604 | W29: 230391.7604 | X29: 230391.7604 | Y29: 230391.7604 | Z29: 230391.7604 | AA29: 230391.7604 | AB29: 230391.7604 | AC29: 230391.7604 | AD29: 230391.7604 | AE29: 230391.7604 | AF29: 230391.7604 | AG29: 230391.7604 | AH29: 230391.7604 | AI29: 230391.7604
C30: 3 | D30: =OFFSET(TREATMENT_TYPE_NAME,'10 - Work Quantity'!C30-1,0) -> Moderate Overlay | E30: =SUM(OFFSET(F30,0,0,1,analysis_period)) -> 5310586.421 | F30: 177019.5474 | G30: 177019.5474 | H30: 177019.5474 | I30: 177019.5474 | J30: 177019.5474 | K30: 177019.5474 | L30: 177019.5474 | M30: 177019.5474 | N30: 177019.5474 | O30: 177019.5474 | P30: 177019.5474 | Q30: 177019.5474 | R30: 177019.5474 | S30: 177019.5474 | T30: 177019.5474 | U30: 177019.5474 | V30: 177019.5474 | W30: 177019.5474 | X30: 177019.5474 | Y30: 177019.5474 | Z30: 177019.5474 | AA30: 177019.5474 | AB30: 177019.5474 | AC30: 177019.5474 | AD30: 177019.5474 | AE30: 177019.5474 | AF30: 177019.5474 | AG30: 177019.5474 | AH30: 177019.5474 | AI30: 177019.5474
C31: 4 | D31: =OFFSET(TREATMENT_TYPE_NAME,'10 - Work Quantity'!C31-1,0) -> Moderate Inlay | E31: =SUM(OFFSET(F31,0,0,1,analysis_period)) -> 5591530.365 | F31: 186384.3455 | G31: 186384.3455 | H31: 186384.3455 | I31: 186384.3455 | J31: 186384.3455 | K31: 186384.3455 | L31: 186384.3455 | M31: 186384.3455 | N31: 186384.3455 | O31: 186384.3455 | P31: 186384.3455 | Q31: 186384.3455 | R31: 186384.3455 | S31: 186384.3455 | T31: 186384.3455 | U31: 186384.3455 | V31: 186384.3455 | W31: 186384.3455 | X31: 186384.3455 | Y31: 186384.3455 | Z31: 186384.3455 | AA31: 186384.3455 | AB31: 186384.3455 | AC31: 186384.3455 | AD31: 186384.3455 | AE31: 186384.3455 | AF31: 186384.3455 | AG31: 186384.3455 | AH31: 186384.3455 | AI31: 186384.3455
C32: 5 | D32: =OFFSET(TREATMENT_TYPE_NAME,'10 - Work Quantity'!C32-1,0) -> Deep Inlay | E32: =SUM(OFFSET(F32,0,0,1,analysis_period)) -> 3620342.182 | F32: 120678.0727 | G32: 120678.0727 | H32: 120678.0727 | I32: 120678.0727 | J32: 120678.0727 | K32: 120678.0727 | L32: 120678.0727 | M32: 120678.0727 | N32: 120678.0727 | O32: 120678.0727 | P32: 120678.0727 | Q32: 120678.0727 | R32: 120678.0727 | S32: 120678.0727 | T32: 120678.0727 | U32: 120678.0727 | V32: 120678.0727 | W32: 120678.0727 | X32: 120678.0727 | Y32: 120678.0727 | Z32: 120678.0727 | AA32: 120678.0727 | AB32: 120678.0727 | AC32: 120678.0727 | AD32: 120678.0727 | AE32: 120678.0727 | AF32: 120678.0727 | AG32: 120678.0727 | AH32: 120678.0727 | AI32: 120678.0727
C33: 6 | D33: =OFFSET(TREATMENT_TYPE_NAME,'10 - Work Quantity'!C33-1,0) -> Reconstruction | E33: =SUM(OFFSET(F33,0,0,1,analysis_period)) -> 2242070.37 | F33: 74735.67899 | G33: 74735.67899 | H33: 74735.67899 | I33: 74735.67899 | J33: 74735.67899 | K33: 74735.67899 | L33: 74735.67899 | M33: 74735.67899 | N33: 74735.67899 | O33: 74735.67899 | P33: 74735.67899 | Q33: 74735.67899 | R33: 74735.67899 | S33: 74735.67899 | T33: 74735.67899 | U33: 74735.67899 | V33: 74735.67899 | W33: 74735.67899 | X33: 74735.67899 | Y33: 74735.67899 | Z33: 74735.67899 | AA33: 74735.67899 | AB33: 74735.67899 | AC33: 74735.67899 | AD33: 74735.67899 | AE33: 74735.67899 | AF33: 74735.67899 | AG33: 74735.67899 | AH33: 74735.67899 | AI33: 74735.67899
D34: Total | E34: =SUM(OFFSET(E28,0,0,current_treatmentTypes,1)) -> 33563292.8 | F34: 1118776.427 | G34: 1118776.427 | H34: 1118776.427 | I34: 1118776.427 | J34: 1118776.427 | K34: 1118776.427 | L34: 1118776.427 | M34: 1118776.427 | N34: 1118776.427 | O34: 1118776.427 | P34: =SUM(OFFSET(P28,0,0,current_treatmentTypes,1)) -> 1118776.427 | Q34: =SUM(OFFSET(Q28,0,0,current_treatmentTypes,1)) -> 1118776.427 | R34: =SUM(OFFSET(R28,0,0,current_treatmentTypes,1)) -> 1118776.427 | S34: =SUM(OFFSET(S28,0,0,current_treatmentTypes,1)) -> 1118776.427 | T34: =SUM(OFFSET(T28,0,0,current_treatmentTypes,1)) -> 1118776.427 | U34: =SUM(OFFSET(U28,0,0,current_treatmentTypes,1)) -> 1118776.427 | V34: =SUM(OFFSET(V28,0,0,current_treatmentTypes,1)) -> 1118776.427 | W34: =SUM(OFFSET(W28,0,0,current_treatmentTypes,1)) -> 1118776.427 | X34: =SUM(OFFSET(X28,0,0,current_treatmentTypes,1)) -> 1118776.427 | Y34: =SUM(OFFSET(Y28,0,0,current_treatmentTypes,1)) -> 1118776.427 | Z34: =SUM(OFFSET(Z28,0,0,current_treatmentTypes,1)) -> 1118776.427 | AA34: =SUM(OFFSET(AA28,0,0,current_treatmentTypes,1)) -> 1118776.427 | AB34: =SUM(OFFSET(AB28,0,0,current_treatmentTypes,1)) -> 1118776.427 | AC34: =SUM(OFFSET(AC28,0,0,current_treatmentTypes,1)) -> 1118776.427 | AD34: =SUM(OFFSET(AD28,0,0,current_treatmentTypes,1)) -> 1118776.427 | AE34: =SUM(OFFSET(AE28,0,0,current_treatmentTypes,1)) -> 1118776.427 | AF34: =SUM(OFFSET(AF28,0,0,current_treatmentTypes,1)) -> 1118776.427 | AG34: =SUM(OFFSET(AG28,0,0,current_treatmentTypes,1)) -> 1118776.427 | AH34: =SUM(OFFSET(AH28,0,0,current_treatmentTypes,1)) -> 1118776.427 | AI34: =SUM(OFFSET(AI28,0,0,current_treatmentTypes,1)) -> 1118776.427
A35: =INT((ROW()-7)/(current_treatmentTypes+1))+1 -> 5 | B35: =OFFSET(ASSET_GROUP_NAME,A35-1,0) -> CR | C35: 1 | D35: =OFFSET(TREATMENT_TYPE_NAME,'10 - Work Quantity'!C35-1,0) -> Surface Dressing | E35: =SUM(OFFSET(F35,0,0,1,analysis_period)) -> 116719495.6 | F35: 4110352.115 | G35: 4110352.115 | H35: 4110352.115 | I35: 4110352.115 | J35: 4110352.115 | K35: 4110352.115 | L35: 4110352.115 | M35: 4110352.115 | N35: 4110352.115 | O35: 4110352.115 | P35: 4110352.115 | Q35: 4110352.115 | R35: 4110352.115 | S35: 4110352.115 | T35: 4047719.477 | U35: 3955887.841 | V35: 3884746.534 | W35: 3827269.68 | X35: 3779275.686 | Y35: 3738211.01 | Z35: 3702462.175 | AA35: 3670965.573 | AB35: 3642985.277 | AC35: 3617985.764 | AD35: 3595558.322 | AE35: 3575377.943 | AF35: 3557177.568 | AG35: 3540732.295 | AH35: 3525849.355 | AI35: 3512361.464
C36: =C35+1 -> 2 | D36: =OFFSET(TREATMENT_TYPE_NAME,'10 - Work Quantity'!C36-1,0) -> Micro Asphalt | E36: 96429713.98 | F36: 3214323.799 | G36: 3214323.799 | H36: 3214323.799 | I36: 3214323.799 | J36: 3214323.799 | K36: 3214323.799 | L36: 3214323.799 | M36: 3214323.799 | N36: 3214323.799 | O36: 3214323.799 | P36: 3214323.799 | Q36: 3214323.799 | R36: 3214323.799 | S36: 3214323.799 | T36: 3214323.799 | U36: 3214323.799 | V36: 3214323.799 | W36: 3214323.799 | X36: 3214323.799 | Y36: 3214323.799 | Z36: 3214323.799 | AA36: 3214323.799 | AB36: 3214323.799 | AC36: 3214323.799 | AD36: 3214323.799 | AE36: 3214323.799 | AF36: 3214323.799 | AG36: 3214323.799 | AH36: 3214323.799 | AI36: 3214323.799
C37: 3 | D37: =OFFSET(TREATMENT_TYPE_NAME,'10 - Work Quantity'!C37-1,0) -> Moderate Overlay | E37: =SUM(OFFSET(F37,0,0,1,analysis_period)) -> 73953615.23 | F37: 2465120.508 | G37: 2465120.508 | H37: 2465120.508 | I37: 2465120.508 | J37: 2465120.508 | K37: 2465120.508 | L37: 2465120.508 | M37: 2465120.508 | N37: 2465120.508 | O37: 2465120.508 | P37: 2465120.508 | Q37: 2465120.508 | R37: 2465120.508 | S37: 2465120.508 | T37: 2465120.508 | U37: 2465120.508 | V37: 2465120.508 | W37: 2465120.508 | X37: 2465120.508 | Y37: 2465120.508 | Z37: 2465120.508 | AA37: 2465120.508 | AB37: 2465120.508 | AC37: 2465120.508 | AD37: 2465120.508 | AE37: 2465120.508 | AF37: 2465120.508 | AG37: 2465120.508 | AH37: 2465120.508 | AI37: 2465120.508
C38: 4 | D38: =OFFSET(TREATMENT_TYPE_NAME,'10 - Work Quantity'!C38-1,0) -> Moderate Inlay | E38: =SUM(OFFSET(F38,0,0,1,analysis_period)) -> 80699384.19 | F38: 2689979.473 | G38: 2689979.473 | H38: 2689979.473 | I38: 2689979.473 | J38: 2689979.473 | K38: 2689979.473 | L38: 2689979.473 | M38: 2689979.473 | N38: 2689979.473 | O38: 2689979.473 | P38: 2689979.473 | Q38: 2689979.473 | R38: 2689979.473 | S38: 2689979.473 | T38: 2689979.473 | U38: 2689979.473 | V38: 2689979.473 | W38: 2689979.473 | X38: 2689979.473 | Y38: 2689979.473 | Z38: 2689979.473 | AA38: 2689979.473 | AB38: 2689979.473 | AC38: 2689979.473 | AD38: 2689979.473 | AE38: 2689979.473 | AF38: 2689979.473 | AG38: 2689979.473 | AH38: 2689979.473 | AI38: 2689979.473
C39: 5 | D39: =OFFSET(TREATMENT_TYPE_NAME,'10 - Work Quantity'!C39-1,0) -> Deep Inlay | E39: =SUM(OFFSET(F39,0,0,1,analysis_period)) -> 50409744.96 | F39: 1680324.832 | G39: 1680324.832 | H39: 1680324.832 | I39: 1680324.832 | J39: 1680324.832 | K39: 1680324.832 | L39: 1680324.832 | M39: 1680324.832 | N39: 1680324.832 | O39: 1680324.832 | P39: 1680324.832 | Q39: 1680324.832 | R39: 1680324.832 | S39: 1680324.832 | T39: 1680324.832 | U39: 1680324.832 | V39: 1680324.832 | W39: 1680324.832 | X39: 1680324.832 | Y39: 1680324.832 | Z39: 1680324.832 | AA39: 1680324.832 | AB39: 1680324.832 | AC39: 1680324.832 | AD39: 1680324.832 | AE39: 1680324.832 | AF39: 1680324.832 | AG39: 1680324.832 | AH39: 1680324.832 | AI39: 1680324.832
C40: 6 | D40: =OFFSET(TREATMENT_TYPE_NAME,'10 - Work Quantity'!C40-1,0) -> Reconstruction | E40: =SUM(OFFSET(F40,0,0,1,analysis_period)) -> 31120253.87 | F40: 1037341.796 | G40: 1037341.796 | H40: 1037341.796 | I40: 1037341.796 | J40: 1037341.796 | K40: 1037341.796 | L40: 1037341.796 | M40: 1037341.796 | N40: 1037341.796 | O40: 1037341.796 | P40: 1037341.796 | Q40: 1037341.796 | R40: 1037341.796 | S40: 1037341.796 | T40: 1037341.796 | U40: 1037341.796 | V40: 1037341.796 | W40: 1037341.796 | X40: 1037341.796 | Y40: 1037341.796 | Z40: 1037341.796 | AA40: 1037341.796 | AB40: 1037341.796 | AC40: 1037341.796 | AD40: 1037341.796 | AE40: 1037341.796 | AF40: 1037341.796 | AG40: 1037341.796 | AH40: 1037341.796 | AI40: 1037341.796
D41: Total | E41: =SUM(OFFSET(E35,0,0,current_treatmentTypes,1)) -> 449332207.8 | F41: 15197442.52 | G41: 15197442.52 | H41: 15197442.52 | I41: 15197442.52 | J41: 15197442.52 | K41: 15197442.52 | L41: 15197442.52 | M41: 15197442.52 | N41: 15197442.52 | O41: 15197442.52 | P41: =SUM(OFFSET(P35,0,0,current_treatmentTypes,1)) -> 15197442.52 | Q41: =SUM(OFFSET(Q35,0,0,current_treatmentTypes,1)) -> 15197442.52 | R41: =SUM(OFFSET(R35,0,0,current_treatmentTypes,1)) -> 15197442.52 | S41: =SUM(OFFSET(S35,0,0,current_treatmentTypes,1)) -> 15197442.52 | T41: =SUM(OFFSET(T35,0,0,current_treatmentTypes,1)) -> 15134809.89 | U41: =SUM(OFFSET(U35,0,0,current_treatmentTypes,1)) -> 15042978.25 | V41: =SUM(OFFSET(V35,0,0,current_treatmentTypes,1)) -> 14971836.94 | W41: =SUM(OFFSET(W35,0,0,current_treatmentTypes,1)) -> 14914360.09 | X41: =SUM(OFFSET(X35,0,0,current_treatmentTypes,1)) -> 14866366.09 | Y41: =SUM(OFFSET(Y35,0,0,current_treatmentTypes,1)) -> 14825301.42 | Z41: =SUM(OFFSET(Z35,0,0,current_treatmentTypes,1)) -> 14789552.58 | AA41: =SUM(OFFSET(AA35,0,0,current_treatmentTypes,1)) -> 14758055.98 | AB41: =SUM(OFFSET(AB35,0,0,current_treatmentTypes,1)) -> 14730075.69 | AC41: =SUM(OFFSET(AC35,0,0,current_treatmentTypes,1)) -> 14705076.17 | AD41: =SUM(OFFSET(AD35,0,0,current_treatmentTypes,1)) -> 14682648.73 | AE41: =SUM(OFFSET(AE35,0,0,current_treatmentTypes,1)) -> 14662468.35 | AF41: =SUM(OFFSET(AF35,0,0,current_treatmentTypes,1)) -> 14644267.98 | AG41: =SUM(OFFSET(AG35,0,0,current_treatmentTypes,1)) -> 14627822.7 | AH41: =SUM(OFFSET(AH35,0,0,current_treatmentTypes,1)) -> 14612939.76 | AI41: =SUM(OFFSET(AI35,0,0,current_treatmentTypes,1)) -> 14599451.87
A42: =INT((ROW()-7)/(current_treatmentTypes+1))+1 -> 6 | B42: =OFFSET(ASSET_GROUP_NAME,A42-1,0) -> CU | C42: 1 | D42: =OFFSET(TREATMENT_TYPE_NAME,'10 - Work Quantity'!C42-1,0) -> Surface Dressing | E42: =SUM(OFFSET(F42,0,0,1,analysis_period)) -> 18123685.68 | F42: 604122.8558 | G42: 604122.8558 | H42: 604122.8558 | I42: 604122.8558 | J42: 604122.8558 | K42: 604122.8558 | L42: 604122.8558 | M42: 604122.8558 | N42: 604122.8558 | O42: 604122.8558 | P42: 604122.8558 | Q42: 604122.8558 | R42: 604122.8558 | S42: 604122.8558 | T42: 604122.8558 | U42: 604122.8558 | V42: 604122.8558 | W42: 604122.8558 | X42: 604122.8558 | Y42: 604122.8558 | Z42: 604122.8558 | AA42: 604122.8558 | AB42: 604122.8558 | AC42: 604122.8558 | AD42: 604122.8558 | AE42: 604122.8558 | AF42: 604122.8558 | AG42: 604122.8558 | AH42: 604122.8558 | AI42: 604122.8558
C43: =C42+1 -> 2 | D43: =OFFSET(TREATMENT_TYPE_NAME,'10 - Work Quantity'!C43-1,0) -> Micro Asphalt | E43: 14218462.93 | F43: 473948.7643 | G43: 473948.7643 | H43: 473948.7643 | I43: 473948.7643 | J43: 473948.7643 | K43: 473948.7643 | L43: 473948.7643 | M43: 473948.7643 | N43: 473948.7643 | O43: 473948.7643 | P43: 473948.7643 | Q43: 473948.7643 | R43: 473948.7643 | S43: 473948.7643 | T43: 473948.7643 | U43: 473948.7643 | V43: 473948.7643 | W43: 473948.7643 | X43: 473948.7643 | Y43: 473948.7643 | Z43: 473948.7643 | AA43: 473948.7643 | AB43: 473948.7643 | AC43: 473948.7643 | AD43: 473948.7643 | AE43: 473948.7643 | AF43: 473948.7643 | AG43: 473948.7643 | AH43: 473948.7643 | AI43: 473948.7643
C44: 3 | D44: =OFFSET(TREATMENT_TYPE_NAME,'10 - Work Quantity'!C44-1,0) -> Moderate Overlay | E44: =SUM(OFFSET(F44,0,0,1,analysis_period)) -> 10793952.88 | F44: 359798.4293 | G44: 359798.4293 | H44: 359798.4293 | I44: 359798.4293 | J44: 359798.4293 | K44: 359798.4293 | L44: 359798.4293 | M44: 359798.4293 | N44: 359798.4293 | O44: 359798.4293 | P44: 359798.4293 | Q44: 359798.4293 | R44: 359798.4293 | S44: 359798.4293 | T44: 359798.4293 | U44: 359798.4293 | V44: 359798.4293 | W44: 359798.4293 | X44: 359798.4293 | Y44: 359798.4293 | Z44: 359798.4293 | AA44: 359798.4293 | AB44: 359798.4293 | AC44: 359798.4293 | AD44: 359798.4293 | AE44: 359798.4293 | AF44: 359798.4293 | AG44: 359798.4293 | AH44: 359798.4293 | AI44: 359798.4293
C45: 4 | D45: =OFFSET(TREATMENT_TYPE_NAME,'10 - Work Quantity'!C45-1,0) -> Moderate Inlay | E45: =SUM(OFFSET(F45,0,0,1,analysis_period)) -> 11462100.63 | F45: 382070.0211 | G45: 382070.0211 | H45: 382070.0211 | I45: 382070.0211 | J45: 382070.0211 | K45: 382070.0211 | L45: 382070.0211 | M45: 382070.0211 | N45: 382070.0211 | O45: 382070.0211 | P45: 382070.0211 | Q45: 382070.0211 | R45: 382070.0211 | S45: 382070.0211 | T45: 382070.0211 | U45: 382070.0211 | V45: 382070.0211 | W45: 382070.0211 | X45: 382070.0211 | Y45: 382070.0211 | Z45: 382070.0211 | AA45: 382070.0211 | AB45: 382070.0211 | AC45: 382070.0211 | AD45: 382070.0211 | AE45: 382070.0211 | AF45: 382070.0211 | AG45: 382070.0211 | AH45: 382070.0211 | AI45: 382070.0211
C46: 5 | D46: =OFFSET(TREATMENT_TYPE_NAME,'10 - Work Quantity'!C46-1,0) -> Deep Inlay | E46: =SUM(OFFSET(F46,0,0,1,analysis_period)) -> 7614605.585 | F46: 253820.1862 | G46: 253820.1862 | H46: 253820.1862 | I46: 253820.1862 | J46: 253820.1862 | K46: 253820.1862 | L46: 253820.1862 | M46: 253820.1862 | N46: 253820.1862 | O46: 253820.1862 | P46: 253820.1862 | Q46: 253820.1862 | R46: 253820.1862 | S46: 253820.1862 | T46: 253820.1862 | U46: 253820.1862 | V46: 253820.1862 | W46: 253820.1862 | X46: 253820.1862 | Y46: 253820.1862 | Z46: 253820.1862 | AA46: 253820.1862 | AB46: 253820.1862 | AC46: 253820.1862 | AD46: 253820.1862 | AE46: 253820.1862 | AF46: 253820.1862 | AG46: 253820.1862 | AH46: 253820.1862 | AI46: 253820.1862
C47: 6 | D47: =OFFSET(TREATMENT_TYPE_NAME,'10 - Work Quantity'!C47-1,0) -> Reconstruction | E47: =SUM(OFFSET(F47,0,0,1,analysis_period)) -> 4578688.465 | F47: 152622.9488 | G47: 152622.9488 | H47: 152622.9488 | I47: 152622.9488 | J47: 152622.9488 | K47: 152622.9488 | L47: 152622.9488 | M47: 152622.9488 | N47: 152622.9488 | O47: 152622.9488 | P47: 152622.9488 | Q47: 152622.9488 | R47: 152622.9488 | S47: 152622.9488 | T47: 152622.9488 | U47: 152622.9488 | V47: 152622.9488 | W47: 152622.9488 | X47: 152622.9488 | Y47: 152622.9488 | Z47: 152622.9488 | AA47: 152622.9488 | AB47: 152622.9488 | AC47: 152622.9488 | AD47: 152622.9488 | AE47: 152622.9488 | AF47: 152622.9488 | AG47: 152622.9488 | AH47: 152622.9488 | AI47: 152622.9488
D48: Total | E48: =SUM(OFFSET(E42,0,0,current_treatmentTypes,1)) -> 66791496.17 | F48: 2226383.206 | G48: 2226383.206 | H48: 2226383.206 | I48: 2226383.206 | J48: 2226383.206 | K48: 2226383.206 | L48: 2226383.206 | M48: 2226383.206 | N48: 2226383.206 | O48: 2226383.206 | P48: =SUM(OFFSET(P42,0,0,current_treatmentTypes,1)) -> 2226383.206 | Q48: =SUM(OFFSET(Q42,0,0,current_treatmentTypes,1)) -> 2226383.206 | R48: =SUM(OFFSET(R42,0,0,current_treatmentTypes,1)) -> 2226383.206 | S48: =SUM(OFFSET(S42,0,0,current_treatmentTypes,1)) -> 2226383.206 | T48: =SUM(OFFSET(T42,0,0,current_treatmentTypes,1)) -> 2226383.206 | U48: =SUM(OFFSET(U42,0,0,current_treatmentTypes,1)) -> 2226383.206 | V48: =SUM(OFFSET(V42,0,0,current_treatmentTypes,1)) -> 2226383.206 | W48: =SUM(OFFSET(W42,0,0,current_treatmentTypes,1)) -> 2226383.206 | X48: =SUM(OFFSET(X42,0,0,current_treatmentTypes,1)) -> 2226383.206 | Y48: =SUM(OFFSET(Y42,0,0,current_treatmentTypes,1)) -> 2226383.206 | Z48: =SUM(OFFSET(Z42,0,0,current_treatmentTypes,1)) -> 2226383.206 | AA48: =SUM(OFFSET(AA42,0,0,current_treatmentTypes,1)) -> 2226383.206 | AB48: =SUM(OFFSET(AB42,0,0,current_treatmentTypes,1)) -> 2226383.206 | AC48: =SUM(OFFSET(AC42,0,0,current_treatmentTypes,1)) -> 2226383.206 | AD48: =SUM(OFFSET(AD42,0,0,current_treatmentTypes,1)) -> 2226383.206 | AE48: =SUM(OFFSET(AE42,0,0,current_treatmentTypes,1)) -> 2226383.206 | AF48: =SUM(OFFSET(AF42,0,0,current_treatmentTypes,1)) -> 2226383.206 | AG48: =SUM(OFFSET(AG42,0,0,current_treatmentTypes,1)) -> 2226383.206 | AH48: =SUM(OFFSET(AH42,0,0,current_treatmentTypes,1)) -> 2226383.206 | AI48: =SUM(OFFSET(AI42,0,0,current_treatmentTypes,1)) -> 2226383.206
A49: =INT((ROW()-7)/(current_treatmentTypes+1))+1 -> 7 | B49: =OFFSET(ASSET_GROUP_NAME,A49-1,0) -> MR | C49: 1 | D49: =OFFSET(TREATMENT_TYPE_NAME,'10 - Work Quantity'!C49-1,0) -> Surface Dressing | E49: =SUM(OFFSET(F49,0,0,1,analysis_period)) -> 516303.1119 | F49: 11097.41183 | G49: 11332.7519 | H49: 12512.23324 | I49: 13558.50416 | J49: 14411.93395 | K49: 15120.39981 | L49: 15718.9825 | M49: 16229.03776 | N49: 16665.10442 | O49: 17038.35998 | P49: 17357.98449 | Q49: 17631.72365 | R49: 17866.1769 | S49: 18066.9862 | T49: 18238.98066 | U49: 18386.29542 | V49: 18512.47195 | W49: 18620.5434 | X49: 18713.1077 | Y49: 18792.38996 | Z49: 18860.29604 | AA49: 18918.45828 | AB49: 18968.27484 | AC49: 19010.94323 | AD49: 19047.48914 | AE49: 19078.79109 | AF49: 19105.60153 | AG49: 19128.56495 | AH49: 19148.23335 | AI49: 19165.07954
C50: =C49+1 -> 2 | D50: =OFFSET(TREATMENT_TYPE_NAME,'10 - Work Quantity'!C50-1,0) -> Micro Asphalt | E50: 516303.1119 | F50: 11097.41183 | G50: 11332.7519 | H50: 12512.23324 | I50: 13558.50416 | J50: 14411.93395 | K50: 15120.39981 | L50: 15718.9825 | M50: 16229.03776 | N50: 16665.10442 | O50: 17038.35998 | P50: 17357.98449 | Q50: 17631.72365 | R50: 17866.1769 | S50: 18066.9862 | T50: 18238.98066 | U50: 18386.29542 | V50: 18512.47195 | W50: 18620.5434 | X50: 18713.1077 | Y50: 18792.38996 | Z50: 18860.29604 | AA50: 18918.45828 | AB50: 18968.27484 | AC50: 19010.94323 | AD50: 19047.48914 | AE50: 19078.79109 | AF50: 19105.60153 | AG50: 19128.56495 | AH50: 19148.23335 | AI50: 19165.07954
C51: 3 | D51: =OFFSET(TREATMENT_TYPE_NAME,'10 - Work Quantity'!C51-1,0) -> Moderate Overlay | E51: =SUM(OFFSET(F51,0,0,1,analysis_period)) -> 387227.3339 | F51: 8323.058873 | G51: 8499.563928 | H51: 9384.174928 | I51: 10168.87812 | J51: 10808.95046 | K51: 11340.29986 | L51: 11789.23687 | M51: 12171.77832 | N51: 12498.82832 | O51: 12778.76998 | P51: 13018.48837 | Q51: 13223.79274 | R51: 13399.63268 | S51: 13550.23965 | T51: 13679.23549 | U51: 13789.72157 | V51: 13884.35396 | W51: 13965.40755 | X51: 14034.83077 | Y51: 14094.29247 | Z51: 14145.22203 | AA51: 14188.84371 | AB51: 14226.20613 | AC51: 14258.20742 | AD51: 14285.61686 | AE51: 14309.09332 | AF51: 14329.20115 | AG51: 14346.42371 | AH51: 14361.17501 | AI51: 14373.80965
C52: 4 | D52: =OFFSET(TREATMENT_TYPE_NAME,'10 - Work Quantity'!C52-1,0) -> Moderate Inlay | E52: =SUM(OFFSET(F52,0,0,1,analysis_period)) -> 236600.3658 | F52: 12661.15915 | G52: 6461.298975 | H52: 5404.561881 | I52: 5619.298438 | J52: 6027.639412 | K52: 6406.36024 | L52: 6729.00176 | M52: 7002.357777 | N52: 7235.06511 | O52: 7433.849112 | P52: 7603.929834 | Q52: 7749.547638 | R52: 7874.252323 | S52: 7981.057298 | T52: 8072.534975 | U52: 8150.885935 | V52: 8217.994137 | W52: 8275.472933 | X52: 8324.704089 | Y52: 8366.871071 | Z52: 8402.98752 | AA52: 8433.921627 | AB52: 8460.417007 | AC52: 8483.110571 | AD52: 8502.54784 | AE52: 8519.196061 | AF52: 8533.455432 | AG52: 8545.668729 | AH52: 8556.129543 | AI52: 8565.089337
C53: 5 | D53: =OFFSET(TREATMENT_TYPE_NAME,'10 - Work Quantity'!C53-1,0) -> Deep Inlay | E53: =SUM(OFFSET(F53,0,0,1,analysis_period)) -> 185120.5882 | F53: 12957.9595 | G53: 6624.635495 | H53: 4795.411027 | I53: 4485.608183 | J53: 4612.652324 | K53: 4838.560383 | L53: 5066.753447 | M53: 5272.652634 | N53: 5452.238564 | O53: 5607.081942 | P53: 5740.039644 | Q53: 5854.028615 | R53: 5951.697504 | S53: 6035.3639 | T53: 6107.028999 | U53: 6168.412208 | V53: 6220.987989 | W53: 6266.019828 | X53: 6304.590107 | Y53: 6337.625961 | Z53: 6365.921513 | AA53: 6390.156945 | AB53: 6410.914841 | AC53: 6428.694192 | AD53: 6443.922388 | AE53: 6456.965493 | AF53: 6468.137047 | AG53: 6477.705597 | AH53: 6485.901158 | AI53: 6492.920739
C54: 6 | D54: =OFFSET(TREATMENT_TYPE_NAME,'10 - Work Quantity'!C54-1,0) -> Reconstruction | E54: =SUM(OFFSET(F54,0,0,1,analysis_period)) -> 12172.00489 | F54: 2007.638545 | G54: 1029.823487 | H54: 529.9421215 | I54: 328.626322 | J54: 264.1004665 | K54: 252.2904697 | L54: 258.1121215 | M54: 268.6284961 | N54: 279.4941441 | O54: 289.4144597 | P54: 298.1124836 | Q54: 305.6282325 | R54: 312.0870914 | S54: 317.6262374 | T54: 322.3728959 | U54: 326.4392226 | V54: 329.9223252 | W54: 332.9057214 | X54: 335.4610583 | Y54: 337.6497396 | Z54: 339.5243705 | AA54: 341.130012 | AB54: 342.5052607 | AC54: 343.6831754 | AD54: 344.6920715 | AE54: 345.5562013 | AF54: 346.2963373 | AG54: 346.9302714 | AH54: 347.4732424 | AI54: 347.9383027
D55: Total | E55: =SUM(OFFSET(E49,0,0,current_treatmentTypes,1)) -> 1853726.516 | F55: 58144.63973 | G55: 45280.82569 | H55: 45138.55643 | I55: 47719.41938 | J55: 50537.21055 | K55: 53078.31057 | L55: 55281.06919 | M55: 57173.49276 | N55: 58795.83498 | O55: 60185.83545 | P55: =SUM(OFFSET(P49,0,0,current_treatmentTypes,1)) -> 61376.53932 | Q55: =SUM(OFFSET(Q49,0,0,current_treatmentTypes,1)) -> 62396.44453 | R55: =SUM(OFFSET(R49,0,0,current_treatmentTypes,1)) -> 63270.0234 | S55: =SUM(OFFSET(S49,0,0,current_treatmentTypes,1)) -> 64018.25948 | T55: =SUM(OFFSET(T49,0,0,current_treatmentTypes,1)) -> 64659.13368 | U55: =SUM(OFFSET(U49,0,0,current_treatmentTypes,1)) -> 65208.04978 | V55: =SUM(OFFSET(V49,0,0,current_treatmentTypes,1)) -> 65678.2023 | W55: =SUM(OFFSET(W49,0,0,current_treatmentTypes,1)) -> 66080.89284 | X55: =SUM(OFFSET(X49,0,0,current_treatmentTypes,1)) -> 66425.80143 | Y55: =SUM(OFFSET(Y49,0,0,current_treatmentTypes,1)) -> 66721.21917 | Z55: =SUM(OFFSET(Z49,0,0,current_treatmentTypes,1)) -> 66974.2475 | AA55: =SUM(OFFSET(AA49,0,0,current_treatmentTypes,1)) -> 67190.96885 | AB55: =SUM(OFFSET(AB49,0,0,current_treatmentTypes,1)) -> 67376.59291 | AC55: =SUM(OFFSET(AC49,0,0,current_treatmentTypes,1)) -> 67535.58182 | AD55: =SUM(OFFSET(AD49,0,0,current_treatmentTypes,1)) -> 67671.75744 | AE55: =SUM(OFFSET(AE49,0,0,current_treatmentTypes,1)) -> 67788.39326 | AF55: =SUM(OFFSET(AF49,0,0,current_treatmentTypes,1)) -> 67888.29303 | AG55: =SUM(OFFSET(AG49,0,0,current_treatmentTypes,1)) -> 67973.8582 | AH55: =SUM(OFFSET(AH49,0,0,current_treatmentTypes,1)) -> 68047.14565 | AI55: =SUM(OFFSET(AI49,0,0,current_treatmentTypes,1)) -> 68109.9171
A56: =INT((ROW()-7)/(current_treatmentTypes+1))+1 -> 8 | B56: =OFFSET(ASSET_GROUP_NAME,A56-1,0) -> MU | C56: 1 | D56: =OFFSET(TREATMENT_TYPE_NAME,'10 - Work Quantity'!C56-1,0) -> Surface Dressing | E56: =SUM(OFFSET(F56,0,0,1,analysis_period)) -> 424885.7143 | F56: 16906.29644 | G56: 13459.89993 | H56: 12970.51424 | I56: 13071.39886 | J56: 13250.28245 | K56: 13414.51604 | L56: 13555.51486 | M56: 13677.25682 | N56: 13783.63424 | O56: 13877.28955 | P56: 13960.05231 | Q56: 14033.31055 | R56: 14098.20072 | S56: 14155.69476 | T56: 14206.64129 | U56: 14251.78788 | V56: 14291.79548 | W56: 14327.24929 | X56: 14358.66769 | Y56: 14386.51004 | Z56: 14411.18337 | AA56: 14433.04838 | AB56: 14452.42472 | AC56: 14469.59564 | AD56: 14484.81216 | AE56: 14498.29674 | AF56: 14510.24651 | AG56: 14520.83615 | AH56: 14530.22049 | AI56: 14538.53669
C57: =C56+1 -> 2 | D57: =OFFSET(TREATMENT_TYPE_NAME,'10 - Work Quantity'!C57-1,0) -> Micro Asphalt | E57: 424885.7143 | F57: 16906.29644 | G57: 13459.89993 | H57: 12970.51424 | I57: 13071.39886 | J57: 13250.28245 | K57: 13414.51604 | L57: 13555.51486 | M57: 13677.25682 | N57: 13783.63424 | O57: 13877.28955 | P57: 13960.05231 | Q57: 14033.31055 | R57: 14098.20072 | S57: 14155.69476 | T57: 14206.64129 | U57: 14251.78788 | V57: 14291.79548 | W57: 14327.24929 | X57: 14358.66769 | Y57: 14386.51004 | Z57: 14411.18337 | AA57: 14433.04838 | AB57: 14452.42472 | AC57: 14469.59564 | AD57: 14484.81216 | AE57: 14498.29674 | AF57: 14510.24651 | AG57: 14520.83615 | AH57: 14530.22049 | AI57: 14538.53669
C58: 3 | D58: =OFFSET(TREATMENT_TYPE_NAME,'10 - Work Quantity'!C58-1,0) -> Moderate Overlay | E58: =SUM(OFFSET(F58,0,0,1,analysis_period)) -> 318664.2857 | F58: 12679.72233 | G58: 10094.92495 | H58: 9727.885681 | I58: 9803.549143 | J58: 9937.711835 | K58: 10060.88703 | L58: 10166.63615 | M58: 10257.94261 | N58: 10337.72568 | O58: 10407.96716 | P58: 10470.03923 | Q58: 10524.98291 | R58: 10573.65054 | S58: 10616.77107 | T58: 10654.98096 | U58: 10688.84091 | V58: 10718.84661 | W58: 10745.43697 | X58: 10769.00077 | Y58: 10789.88253 | Z58: 10808.38753 | AA58: 10824.78629 | AB58: 10839.31854 | AC58: 10852.19673 | AD58: 10863.60912 | AE58: 10873.72256 | AF58: 10882.68488 | AG58: 10890.62712 | AH58: 10897.66536 | AI58: 10903.90252
C59: 4 | D59: =OFFSET(TREATMENT_TYPE_NAME,'10 - Work Quantity'!C59-1,0) -> Moderate Inlay | E59: =SUM(OFFSET(F59,0,0,1,analysis_period)) -> 138097.8423 | F59: 24616.40158 | G59: 8816.637047 | H59: 4679.724421 | I59: 3681.42727 | J59: 3485.53236 | K59: 3479.790451 | L59: 3512.300618 | M59: 3548.33587 | N59: 3581.178057 | O59: 3610.169361 | P59: 3635.710152 | Q59: 3658.263354 | R59: 3678.214715 | S59: 3695.881524 | T59: 3711.532402 | U59: 3725.400065 | V59: 3737.688665 | W59: 3748.578355 | X59: 3758.228503 | Y59: 3766.780247 | Z59: 3774.358622 | AA59: 3781.074423 | AB59: 3787.025832 | AC59: 3792.299851 | AD59: 3796.973581 | AE59: 3801.115347 | AF59: 3804.785697 | AG59: 3808.038288 | AH59: 3810.92067 | AI59: 3813.474979
C60: 5 | D60: =OFFSET(TREATMENT_TYPE_NAME,'10 - Work Quantity'!C60-1,0) -> Deep Inlay | E60: =SUM(OFFSET(F60,0,0,1,analysis_period)) -> 110049.3837 | F60: 23736.93884 | G60: 9254.200843 | H60: 4592.520287 | I60: 3124.162155 | J60: 2679.632398 | K60: 2559.463323 | L60: 2540.227888 | M60: 2551.006117 | N60: 2569.454226 | O60: 2588.659216 | P60: 2606.600231 | Q60: 2622.798383 | R60: 2637.250485 | S60: 2650.089671 | T60: 2661.478054 | U60: 2671.573704 | V60: 2680.521427 | W60: 2688.451107 | X60: 2695.478359 | Y60: 2701.705813 | Z60: 2707.224473 | AA60: 2712.115004 | AB60: 2716.448896 | AC60: 2720.289506 | AD60: 2723.692977 | AE60: 2726.709066 | AF60: 2729.381863 | AG60: 2731.750443 | AH60: 2733.849431 | AI60: 2735.709512
C61: 6 | D61: =OFFSET(TREATMENT_TYPE_NAME,'10 - Work Quantity'!C61-1,0) -> Reconstruction | E61: =SUM(OFFSET(F61,0,0,1,analysis_period)) -> 7992.958 | F61: 3256.00198 | G61: 1500.641249 | H61: 654.535114 | I61: 297.7232481 | J61: 158.1974035 | K61: 106.4902325 | L61: 88.30850798 | M61: 82.42172018 | N61: 80.88986149 | O61: 80.83539635 | P61: 81.24153935 | Q61: 81.75828767 | R61: 82.26992987 | S61: 82.74162461 | T61: 83.16583096 | U61: 83.5438494 | V61: 83.87954824 | W61: 84.17727564 | X61: 84.44119568 | Y61: 84.6751032 | Z61: 84.8823964 | AA61: 85.06609853 | AB61: 85.22889269 | AC61: 85.37315797 | AD61: 85.5010031 | AE61: 85.61429693 | AF61: 85.71469568 | AG61: 85.80366705 | AH61: 85.8825117 | AI61: 85.95238225
D62: Total | E62: =SUM(OFFSET(E56,0,0,current_treatmentTypes,1)) -> 1424575.898 | F62: 98101.65761 | G62: 56586.20395 | H62: 45595.69399 | I62: 43049.65953 | J62: 42761.63889 | K62: 43035.66311 | L62: 43418.50289 | M62: 43794.21995 | N62: 44136.5163 | O62: 44442.21023 | P62: =SUM(OFFSET(P56,0,0,current_treatmentTypes,1)) -> 44713.69576 | Q62: =SUM(OFFSET(Q56,0,0,current_treatmentTypes,1)) -> 44954.42404 | R62: =SUM(OFFSET(R56,0,0,current_treatmentTypes,1)) -> 45167.78712 | S62: =SUM(OFFSET(S56,0,0,current_treatmentTypes,1)) -> 45356.87341 | T62: =SUM(OFFSET(T56,0,0,current_treatmentTypes,1)) -> 45524.43982 | U62: =SUM(OFFSET(U56,0,0,current_treatmentTypes,1)) -> 45672.93429 | V62: =SUM(OFFSET(V56,0,0,current_treatmentTypes,1)) -> 45804.52722 | W62: =SUM(OFFSET(W56,0,0,current_treatmentTypes,1)) -> 45921.14228 | X62: =SUM(OFFSET(X56,0,0,current_treatmentTypes,1)) -> 46024.48422 | Y62: =SUM(OFFSET(Y56,0,0,current_treatmentTypes,1)) -> 46116.06378 | Z62: =SUM(OFFSET(Z56,0,0,current_treatmentTypes,1)) -> 46197.21977 | AA62: =SUM(OFFSET(AA56,0,0,current_treatmentTypes,1)) -> 46269.13858 | AB62: =SUM(OFFSET(AB56,0,0,current_treatmentTypes,1)) -> 46332.87159 | AC62: =SUM(OFFSET(AC56,0,0,current_treatmentTypes,1)) -> 46389.35051 | AD62: =SUM(OFFSET(AD56,0,0,current_treatmentTypes,1)) -> 46439.40101 | AE62: =SUM(OFFSET(AE56,0,0,current_treatmentTypes,1)) -> 46483.75475 | AF62: =SUM(OFFSET(AF56,0,0,current_treatmentTypes,1)) -> 46523.06016 | AG62: =SUM(OFFSET(AG56,0,0,current_treatmentTypes,1)) -> 46557.89182 | AH62: =SUM(OFFSET(AH56,0,0,current_treatmentTypes,1)) -> 46588.75895 | AI62: =SUM(OFFSET(AI56,0,0,current_treatmentTypes,1)) -> 46616.11278
A63: =INT((ROW()-7)/(current_treatmentTypes+1))+1 -> 9 | B63: =OFFSET(ASSET_GROUP_NAME,A63-1,0) -> UR | C63: 1 | D63: =OFFSET(TREATMENT_TYPE_NAME,'10 - Work Quantity'!C63-1,0) -> Surface Dressing | E63: =SUM(OFFSET(F63,0,0,1,analysis_period)) -> 199205985.6 | F63: 6706411.305 | G63: 6706411.305 | H63: 6706411.305 | I63: 6706411.305 | J63: 6706411.305 | K63: 6652819.961 | L63: 6347572.165 | M63: 6246410.356 | N63: 6271290.939 | O63: 6358521.111 | P63: 6473809.962 | Q63: 6608101.136 | R63: 6706411.305 | S63: 6706411.305 | T63: 6706411.305 | U63: 6706411.305 | V63: 6706411.305 | W63: 6706411.305 | X63: 6706411.305 | Y63: 6706411.305 | Z63: 6706411.305 | AA63: 6706411.305 | AB63: 6706411.305 | AC63: 6706411.305 | AD63: 6706411.305 | AE63: 6706411.305 | AF63: 6706411.305 | AG63: 6706411.305 | AH63: 6706411.305 | AI63: 6706411.305
C64: =C63+1 -> 2 | D64: =OFFSET(TREATMENT_TYPE_NAME,'10 - Work Quantity'!C64-1,0) -> Micro Asphalt | E64: 145652547.1 | F64: 4855084.902 | G64: 4855084.902 | H64: 4855084.902 | I64: 4855084.902 | J64: 4855084.902 | K64: 4855084.902 | L64: 4855084.902 | M64: 4855084.902 | N64: 4855084.902 | O64: 4855084.902 | P64: 4855084.902 | Q64: 4855084.902 | R64: 4855084.902 | S64: 4855084.902 | T64: 4855084.902 | U64: 4855084.902 | V64: 4855084.902 | W64: 4855084.902 | X64: 4855084.902 | Y64: 4855084.902 | Z64: 4855084.902 | AA64: 4855084.902 | AB64: 4855084.902 | AC64: 4855084.902 | AD64: 4855084.902 | AE64: 4855084.902 | AF64: 4855084.902 | AG64: 4855084.902 | AH64: 4855084.902 | AI64: 4855084.902
C65: 3 | D65: =OFFSET(TREATMENT_TYPE_NAME,'10 - Work Quantity'!C65-1,0) -> Moderate Overlay | E65: =SUM(OFFSET(F65,0,0,1,analysis_period)) -> 127039920.3 | F65: 4239386.817 | G65: 4239386.817 | H65: 4239386.817 | I65: 4239386.817 | J65: 4239386.817 | K65: 4239386.817 | L65: 4231714.777 | M65: 4164273.571 | N65: 4180860.626 | O65: 4239014.074 | P65: 4239386.817 | Q65: 4239386.817 | R65: 4239386.817 | S65: 4239386.817 | T65: 4239386.817 | U65: 4239386.817 | V65: 4239386.817 | W65: 4239386.817 | X65: 4239386.817 | Y65: 4239386.817 | Z65: 4239386.817 | AA65: 4239386.817 | AB65: 4239386.817 | AC65: 4239386.817 | AD65: 4239386.817 | AE65: 4239386.817 | AF65: 4239386.817 | AG65: 4239386.817 | AH65: 4239386.817 | AI65: 4239386.817
C66: 4 | D66: =OFFSET(TREATMENT_TYPE_NAME,'10 - Work Quantity'!C66-1,0) -> Moderate Inlay | E66: =SUM(OFFSET(F66,0,0,1,analysis_period)) -> 131516868 | F66: 4549908.137 | G66: 4549908.137 | H66: 4549908.137 | I66: 4549908.137 | J66: 4549908.137 | K66: 4549908.137 | L66: 4549908.137 | M66: 4549908.137 | N66: 4549908.137 | O66: 4549908.137 | P66: 4549908.137 | Q66: 4549908.137 | R66: 4549908.137 | S66: 4385809.282 | T66: 4005553.18 | U66: 3885142.849 | V66: 3885076.187 | W66: 3936915.361 | X66: 4008261.956 | Y66: 4084571.833 | Z66: 4159870.042 | AA66: 4232110.092 | AB66: 4300919.493 | AC66: 4366547.635 | AD66: 4429404.182 | AE66: 4489877.39 | AF66: 4548278.333 | AG66: 4549908.137 | AH66: 4549908.137 | AI66: 4549908.137
C67: 5 | D67: =OFFSET(TREATMENT_TYPE_NAME,'10 - Work Quantity'!C67-1,0) -> Deep Inlay | E67: =SUM(OFFSET(F67,0,0,1,analysis_period)) -> 83733969.06 | F67: 2791132.302 | G67: 2791132.302 | H67: 2791132.302 | I67: 2791132.302 | J67: 2791132.302 | K67: 2791132.302 | L67: 2791132.302 | M67: 2791132.302 | N67: 2791132.302 | O67: 2791132.302 | P67: 2791132.302 | Q67: 2791132.302 | R67: 2791132.302 | S67: 2791132.302 | T67: 2791132.302 | U67: 2791132.302 | V67: 2791132.302 | W67: 2791132.302 | X67: 2791132.302 | Y67: 2791132.302 | Z67: 2791132.302 | AA67: 2791132.302 | AB67: 2791132.302 | AC67: 2791132.302 | AD67: 2791132.302 | AE67: 2791132.302 | AF67: 2791132.302 | AG67: 2791132.302 | AH67: 2791132.302 | AI67: 2791132.302
C68: 6 | D68: =OFFSET(TREATMENT_TYPE_NAME,'10 - Work Quantity'!C68-1,0) -> Reconstruction | E68: =SUM(OFFSET(F68,0,0,1,analysis_period)) -> 54232651.17 | F68: 1807755.039 | G68: 1807755.039 | H68: 1807755.039 | I68: 1807755.039 | J68: 1807755.039 | K68: 1807755.039 | L68: 1807755.039 | M68: 1807755.039 | N68: 1807755.039 | O68: 1807755.039 | P68: 1807755.039 | Q68: 1807755.039 | R68: 1807755.039 | S68: 1807755.039 | T68: 1807755.039 | U68: 1807755.039 | V68: 1807755.039 | W68: 1807755.039 | X68: 1807755.039 | Y68: 1807755.039 | Z68: 1807755.039 | AA68: 1807755.039 | AB68: 1807755.039 | AC68: 1807755.039 | AD68: 1807755.039 | AE68: 1807755.039 | AF68: 1807755.039 | AG68: 1807755.039 | AH68: 1807755.039 | AI68: 1807755.039
D69: Total | E69: =SUM(OFFSET(E63,0,0,current_treatmentTypes,1)) -> 741381941.2 | F69: 24949678.5 | G69: 24949678.5 | H69: 24949678.5 | I69: 24949678.5 | J69: 24949678.5 | K69: 24896087.16 | L69: 24583167.32 | M69: 24414564.31 | N69: 24456031.95 | O69: 24601415.57 | P69: =SUM(OFFSET(P63,0,0,current_treatmentTypes,1)) -> 24717077.16 | Q69: =SUM(OFFSET(Q63,0,0,current_treatmentTypes,1)) -> 24851368.33 | R69: =SUM(OFFSET(R63,0,0,current_treatmentTypes,1)) -> 24949678.5 | S69: =SUM(OFFSET(S63,0,0,current_treatmentTypes,1)) -> 24785579.65 | T69: =SUM(OFFSET(T63,0,0,current_treatmentTypes,1)) -> 24405323.55 | U69: =SUM(OFFSET(U63,0,0,current_treatmentTypes,1)) -> 24284913.21 | V69: =SUM(OFFSET(V63,0,0,current_treatmentTypes,1)) -> 24284846.55 | W69: =SUM(OFFSET(W63,0,0,current_treatmentTypes,1)) -> 24336685.73 | X69: =SUM(OFFSET(X63,0,0,current_treatmentTypes,1)) -> 24408032.32 | Y69: =SUM(OFFSET(Y63,0,0,current_treatmentTypes,1)) -> 24484342.2 | Z69: =SUM(OFFSET(Z63,0,0,current_treatmentTypes,1)) -> 24559640.41 | AA69: =SUM(OFFSET(AA63,0,0,current_treatmentTypes,1)) -> 24631880.46 | AB69: =SUM(OFFSET(AB63,0,0,current_treatmentTypes,1)) -> 24700689.86 | AC69: =SUM(OFFSET(AC63,0,0,current_treatmentTypes,1)) -> 24766318 | AD69: =SUM(OFFSET(AD63,0,0,current_treatmentTypes,1)) -> 24829174.55 | AE69: =SUM(OFFSET(AE63,0,0,current_treatmentTypes,1)) -> 24889647.76 | AF69: =SUM(OFFSET(AF63,0,0,current_treatmentTypes,1)) -> 24948048.7 | AG69: =SUM(OFFSET(AG63,0,0,current_treatmentTypes,1)) -> 24949678.5 | AH69: =SUM(OFFSET(AH63,0,0,current_treatmentTypes,1)) -> 24949678.5 | AI69: =SUM(OFFSET(AI63,0,0,current_treatmentTypes,1)) -> 24949678.5
A70: =INT((ROW()-7)/(current_treatmentTypes+1))+1 -> 10 | B70: =OFFSET(ASSET_GROUP_NAME,A70-1,0) -> UU | C70: 1 | D70: =OFFSET(TREATMENT_TYPE_NAME,'10 - Work Quantity'!C70-1,0) -> Surface Dressing | E70: =SUM(OFFSET(F70,0,0,1,analysis_period)) -> 224578799.1 | F70: 7485959.969 | G70: 7485959.969 | H70: 7485959.969 | I70: 7485959.969 | J70: 7485959.969 | K70: 7485959.969 | L70: 7485959.969 | M70: 7485959.969 | N70: 7485959.969 | O70: 7485959.969 | P70: 7485959.969 | Q70: 7485959.969 | R70: 7485959.969 | S70: 7485959.969 | T70: 7485959.969 | U70: 7485959.969 | V70: 7485959.969 | W70: 7485959.969 | X70: 7485959.969 | Y70: 7485959.969 | Z70: 7485959.969 | AA70: 7485959.969 | AB70: 7485959.969 | AC70: 7485959.969 | AD70: 7485959.969 | AE70: 7485959.969 | AF70: 7485959.969 | AG70: 7485959.969 | AH70: 7485959.969 | AI70: 7485959.969
C71: =C70+1 -> 2 | D71: =OFFSET(TREATMENT_TYPE_NAME,'10 - Work Quantity'!C71-1,0) -> Micro Asphalt | E71: 151357831.2 | F71: 5045261.039 | G71: 5045261.039 | H71: 5045261.039 | I71: 5045261.039 | J71: 5045261.039 | K71: 5045261.039 | L71: 5045261.039 | M71: 5045261.039 | N71: 5045261.039 | O71: 5045261.039 | P71: 5045261.039 | Q71: 5045261.039 | R71: 5045261.039 | S71: 5045261.039 | T71: 5045261.039 | U71: 5045261.039 | V71: 5045261.039 | W71: 5045261.039 | X71: 5045261.039 | Y71: 5045261.039 | Z71: 5045261.039 | AA71: 5045261.039 | AB71: 5045261.039 | AC71: 5045261.039 | AD71: 5045261.039 | AE71: 5045261.039 | AF71: 5045261.039 | AG71: 5045261.039 | AH71: 5045261.039 | AI71: 5045261.039
C72: 3 | D72: =OFFSET(TREATMENT_TYPE_NAME,'10 - Work Quantity'!C72-1,0) -> Moderate Overlay | E72: =SUM(OFFSET(F72,0,0,1,analysis_period)) -> 123708660.5 | F72: 4123622.017 | G72: 4123622.017 | H72: 4123622.017 | I72: 4123622.017 | J72: 4123622.017 | K72: 4123622.017 | L72: 4123622.017 | M72: 4123622.017 | N72: 4123622.017 | O72: 4123622.017 | P72: 4123622.017 | Q72: 4123622.017 | R72: 4123622.017 | S72: 4123622.017 | T72: 4123622.017 | U72: 4123622.017 | V72: 4123622.017 | W72: 4123622.017 | X72: 4123622.017 | Y72: 4123622.017 | Z72: 4123622.017 | AA72: 4123622.017 | AB72: 4123622.017 | AC72: 4123622.017 | AD72: 4123622.017 | AE72: 4123622.017 | AF72: 4123622.017 | AG72: 4123622.017 | AH72: 4123622.017 | AI72: 4123622.017
C73: 4 | D73: =OFFSET(TREATMENT_TYPE_NAME,'10 - Work Quantity'!C73-1,0) -> Moderate Inlay | E73: =SUM(OFFSET(F73,0,0,1,analysis_period)) -> 131444319.6 | F73: 4381477.321 | G73: 4381477.321 | H73: 4381477.321 | I73: 4381477.321 | J73: 4381477.321 | K73: 4381477.321 | L73: 4381477.321 | M73: 4381477.321 | N73: 4381477.321 | O73: 4381477.321 | P73: 4381477.321 | Q73: 4381477.321 | R73: 4381477.321 | S73: 4381477.321 | T73: 4381477.321 | U73: 4381477.321 | V73: 4381477.321 | W73: 4381477.321 | X73: 4381477.321 | Y73: 4381477.321 | Z73: 4381477.321 | AA73: 4381477.321 | AB73: 4381477.321 | AC73: 4381477.321 | AD73: 4381477.321 | AE73: 4381477.321 | AF73: 4381477.321 | AG73: 4381477.321 | AH73: 4381477.321 | AI73: 4381477.321
C74: 5 | D74: =OFFSET(TREATMENT_TYPE_NAME,'10 - Work Quantity'!C74-1,0) -> Deep Inlay | E74: =SUM(OFFSET(F74,0,0,1,analysis_period)) -> 84651158.16 | F74: 2821705.272 | G74: 2821705.272 | H74: 2821705.272 | I74: 2821705.272 | J74: 2821705.272 | K74: 2821705.272 | L74: 2821705.272 | M74: 2821705.272 | N74: 2821705.272 | O74: 2821705.272 | P74: 2821705.272 | Q74: 2821705.272 | R74: 2821705.272 | S74: 2821705.272 | T74: 2821705.272 | U74: 2821705.272 | V74: 2821705.272 | W74: 2821705.272 | X74: 2821705.272 | Y74: 2821705.272 | Z74: 2821705.272 | AA74: 2821705.272 | AB74: 2821705.272 | AC74: 2821705.272 | AD74: 2821705.272 | AE74: 2821705.272 | AF74: 2821705.272 | AG74: 2821705.272 | AH74: 2821705.272 | AI74: 2821705.272
C75: 6 | D75: =OFFSET(TREATMENT_TYPE_NAME,'10 - Work Quantity'!C75-1,0) -> Reconstruction | E75: =SUM(OFFSET(F75,0,0,1,analysis_period)) -> 54981626.89 | F75: 1832720.896 | G75: 1832720.896 | H75: 1832720.896 | I75: 1832720.896 | J75: 1832720.896 | K75: 1832720.896 | L75: 1832720.896 | M75: 1832720.896 | N75: 1832720.896 | O75: 1832720.896 | P75: 1832720.896 | Q75: 1832720.896 | R75: 1832720.896 | S75: 1832720.896 | T75: 1832720.896 | U75: 1832720.896 | V75: 1832720.896 | W75: 1832720.896 | X75: 1832720.896 | Y75: 1832720.896 | Z75: 1832720.896 | AA75: 1832720.896 | AB75: 1832720.896 | AC75: 1832720.896 | AD75: 1832720.896 | AE75: 1832720.896 | AF75: 1832720.896 | AG75: 1832720.896 | AH75: 1832720.896 | AI75: 1832720.896
D76: Total | E76: =SUM(OFFSET(E70,0,0,current_treatmentTypes,1)) -> 770722395.4 | F76: 25690746.51 | G76: 25690746.51 | H76: 25690746.51 | I76: 25690746.51 | J76: 25690746.51 | K76: 25690746.51 | L76: 25690746.51 | M76: 25690746.51 | N76: 25690746.51 | O76: 25690746.51 | P76: =SUM(OFFSET(P70,0,0,current_treatmentTypes,1)) -> 25690746.51 | Q76: =SUM(OFFSET(Q70,0,0,current_treatmentTypes,1)) -> 25690746.51 | R76: =SUM(OFFSET(R70,0,0,current_treatmentTypes,1)) -> 25690746.51 | S76: =SUM(OFFSET(S70,0,0,current_treatmentTypes,1)) -> 25690746.51 | T76: =SUM(OFFSET(T70,0,0,current_treatmentTypes,1)) -> 25690746.51 | U76: =SUM(OFFSET(U70,0,0,current_treatmentTypes,1)) -> 25690746.51 | V76: =SUM(OFFSET(V70,0,0,current_treatmentTypes,1)) -> 25690746.51 | W76: =SUM(OFFSET(W70,0,0,current_treatmentTypes,1)) -> 25690746.51 | X76: =SUM(OFFSET(X70,0,0,current_treatmentTypes,1)) -> 25690746.51 | Y76: =SUM(OFFSET(Y70,0,0,current_treatmentTypes,1)) -> 25690746.51 | Z76: =SUM(OFFSET(Z70,0,0,current_treatmentTypes,1)) -> 25690746.51 | AA76: =SUM(OFFSET(AA70,0,0,current_treatmentTypes,1)) -> 25690746.51 | AB76: =SUM(OFFSET(AB70,0,0,current_treatmentTypes,1)) -> 25690746.51 | AC76: =SUM(OFFSET(AC70,0,0,current_treatmentTypes,1)) -> 25690746.51 | AD76: =SUM(OFFSET(AD70,0,0,current_treatmentTypes,1)) -> 25690746.51 | AE76: =SUM(OFFSET(AE70,0,0,current_treatmentTypes,1)) -> 25690746.51 | AF76: =SUM(OFFSET(AF70,0,0,current_treatmentTypes,1)) -> 25690746.51 | AG76: =SUM(OFFSET(AG70,0,0,current_treatmentTypes,1)) -> 25690746.51 | AH76: =SUM(OFFSET(AH70,0,0,current_treatmentTypes,1)) -> 25690746.51 | AI76: =SUM(OFFSET(AI70,0,0,current_treatmentTypes,1)) -> 25690746.51

Sheet 11 - Work Qty Graph
B3: WORK QUANTITY GRAPH
B6: Select Asset Group: | D6: AR

Sheet 12 - Exp by Condition Band
B3: EXPENDITURE BY CONDITION BAND
B5: Table of Expenditure (£) in each Condition Band for Asset Groups
B6: Asset Group | C6: No. | D6: Condition Band | E6: Analysis Period Total (£) | F6: =TEXT(start_year+(COLUMN()-6),"0") -> 2014 | G6: 2015 | H6: 2016 | I6: 2017 | J6: 2018 | K6: 2019 | L6: 2020 | M6: 2021 | N6: 2022 | O6: 2023 | P6: 2024 | Q6: 2025 | R6: 2026 | S6: 2027 | T6: 2028 | U6: 2029 | V6: 2030 | W6: 2031 | X6: 2032 | Y6: 2033 | Z6: 2034 | AA6: 2035 | AB6: 2036 | AC6: 2037 | AD6: 2038 | AE6: 2039 | AF6: 2040 | AG6: 2041 | AH6: 2042 | AI6: 2043
A7: =INT((ROW()-7)/(current_conditionBands+2))+1 -> 1 | B7: =OFFSET(ASSET_GROUP_NAME,A7-1,0) -> AR | C7: 1 | D7: =OFFSET(CONDITION_BAND_CODE,C7-1,0) -> VG | E7: =SUM(OFFSET(F7,0,0,1,analysis_period)) -> 0 | F7: 0 | G7: 0 | H7: 0 | I7: 0 | J7: 0 | K7: 0 | L7: 0 | M7: 0 | N7: 0 | O7: 0 | P7: 0 | Q7: 0 | R7: 0 | S7: 0 | T7: 0 | U7: 0 | V7: 0 | W7: 0 | X7: 0 | Y7: 0 | Z7: 0 | AA7: 0 | AB7: 0 | AC7: 0 | AD7: 0 | AE7: 0 | AF7: 0 | AG7: 0 | AH7: 0 | AI7: 0
C8: =C7+1 -> 2 | D8: =OFFSET(CONDITION_BAND_CODE,C8-1,0) -> G | E8: =SUM(OFFSET(F8,0,0,1,analysis_period)) -> 0 | F8: 0 | G8: 0 | H8: 0 | I8: 0 | J8: 0 | K8: 0 | L8: 0 | M8: 0 | N8: 0 | O8: 0 | P8: 0 | Q8: 0 | R8: 0 | S8: 0 | T8: 0 | U8: 0 | V8: 0 | W8: 0 | X8: 0 | Y8: 0 | Z8: 0 | AA8: 0 | AB8: 0 | AC8: 0 | AD8: 0 | AE8: 0 | AF8: 0 | AG8: 0 | AH8: 0 | AI8: 0
C9: =C8+1 -> 3 | D9: =OFFSET(CONDITION_BAND_CODE,C9-1,0) -> F | E9: =SUM(OFFSET(F9,0,0,1,analysis_period)) -> 5255086677 | F9: 175171463.3 | G9: 175171463.3 | H9: 175171463.3 | I9: 175171463.3 | J9: 175114242.2 | K9: 175171463.3 | L9: 175171463.3 | M9: 175171463.3 | N9: 175171463.3 | O9: 175171463.3 | P9: 175171463.3 | Q9: 175171463.3 | R9: 175171463.3 | S9: 175171463.3 | T9: 175171463.3 | U9: 175171463.3 | V9: 175171463.3 | W9: 175171463.3 | X9: 175171463.3 | Y9: 175171463.3 | Z9: 175171463.3 | AA9: 175171463.3 | AB9: 175171463.3 | AC9: 175171463.3 | AD9: 175171463.3 | AE9: 175171463.3 | AF9: 175171463.3 | AG9: 175171463.3 | AH9: 175171463.3 | AI9: 175171463.3
C10: =C9+1 -> 4 | D10: =OFFSET(CONDITION_BAND_CODE,C10-1,0) -> P | E10: =SUM(OFFSET(F10,0,0,1,analysis_period)) -> 5255143898 | F10: 175171463.3 | G10: 175171463.3 | H10: 175171463.3 | I10: 175171463.3 | J10: 175171463.3 | K10: 175171463.3 | L10: 175171463.3 | M10: 175171463.3 | N10: 175171463.3 | O10: 175171463.3 | P10: 175171463.3 | Q10: 175171463.3 | R10: 175171463.3 | S10: 175171463.3 | T10: 175171463.3 | U10: 175171463.3 | V10: 175171463.3 | W10: 175171463.3 | X10: 175171463.3 | Y10: 175171463.3 | Z10: 175171463.3 | AA10: 175171463.3 | AB10: 175171463.3 | AC10: 175171463.3 | AD10: 175171463.3 | AE10: 175171463.3 | AF10: 175171463.3 | AG10: 175171463.3 | AH10: 175171463.3 | AI10: 175171463.3
C11: =C10+1 -> 5 | D11: =OFFSET(CONDITION_BAND_CODE,C11-1,0) -> VP | E11: =SUM(OFFSET(F11,0,0,1,analysis_period)) -> 1950786423 | F11: 34607946.13 | G11: 54113882.06 | H11: 69509882.59 | I11: 79166346.81 | J11: 83587723.55 | K11: 84042288.66 | L11: 81901264.58 | M11: 78330668.54 | N11: 74220437.76 | O11: 70185432.99 | P11: 66606366.91 | Q11: 63682180.88 | R11: 61480451.3 | S11: 59980379.88 | T11: 59106930.11 | U11: 58756531.07 | V11: 58815510.06 | W11: 59172604.59 | X11: 59726842.38 | Y11: 60391918.28 | Z11: 61098012.47 | AA11: 61791816.68 | AB11: 62435376.89 | AC11: 63004224.6 | AD11: 63485153.6 | AE11: 63873903.39 | AF11: 64172931.84 | AG11: 64389395.93 | AH11: 64533409.63 | AI11: 64616609.04
D12: Total | E12: =SUM(OFFSET(E7,0,0,current_conditionBands,1)) -> 1.2461017e+10 | F12: 384950872.7 | G12: 404456808.6 | H12: 419852809.1 | I12: 429509273.4 | J12: 433873429 | K12: 434385215.2 | L12: 432244191.1 | M12: 428673595.1 | N12: 424563364.3 | O12: 420528359.6 | P12: 416949293.5 | Q12: 414025107.4 | R12: 411823377.9 | S12: 410323306.4 | T12: 409449856.7 | U12: 409099457.6 | V12: 409158436.6 | W12: 409515531.1 | X12: 410069768.9 | Y12: 410734844.8 | Z12: 411440939 | AA12: 412134743.2 | AB12: 412778303.5 | AC12: 413347151.2 | AD12: 413828080.2 | AE12: 414216830 | AF12: 414515858.4 | AG12: 414732322.5 | AH12: 414876336.2 | AI12: 414959535.6
D13: Cumulative | E13: =E12 -> 1.2461017e+10 | F13: =F12 -> 384950872.7 | G13: =OFFSET(G12,1,-1)+G12 -> 789407681.3 | H13: 1209260490 | I13: 1638769764 | J13: 2072643193 | K13: 2507028408 | L13: 2939272599 | M13: 3367946194 | N13: 3792509559 | O13: 4213037918 | P13: =OFFSET(P12,1,-1)+P12 -> 4629987212 | Q13: =OFFSET(Q12,1,-1)+Q12 -> 5044012319 | R13: =OFFSET(R12,1,-1)+R12 -> 5455835697 | S13: =OFFSET(S12,1,-1)+S12 -> 5866159003 | T13: =OFFSET(T12,1,-1)+T12 -> 6275608860 | U13: =OFFSET(U12,1,-1)+U12 -> 6684708318 | V13: =OFFSET(V12,1,-1)+V12 -> 7093866754 | W13: =OFFSET(W12,1,-1)+W12 -> 7503382285 | X13: =OFFSET(X12,1,-1)+X12 -> 7913452054 | Y13: =OFFSET(Y12,1,-1)+Y12 -> 8324186899 | Z13: =OFFSET(Z12,1,-1)+Z12 -> 8735627838 | AA13: =OFFSET(AA12,1,-1)+AA12 -> 9147762581 | AB13: =OFFSET(AB12,1,-1)+AB12 -> 9560540885 | AC13: =OFFSET(AC12,1,-1)+AC12 -> 9973888036 | AD13: =OFFSET(AD12,1,-1)+AD12 -> 1.038771612e+10 | AE13: =OFFSET(AE12,1,-1)+AE12 -> 1.080193295e+10 | AF13: =OFFSET(AF12,1,-1)+AF12 -> 1.12164488e+10 | AG13: =OFFSET(AG12,1,-1)+AG12 -> 1.163118113e+10 | AH13: =OFFSET(AH12,1,-1)+AH12 -> 1.204605746e+10 | AI13: =OFFSET(AI12,1,-1)+AI12 -> 1.2461017e+10
A14: =INT((ROW()-7)/(current_conditionBands+2))+1 -> 2 | B14: =OFFSET(ASSET_GROUP_NAME,A14-1,0) -> AU | C14: 1 | D14: =OFFSET(CONDITION_BAND_CODE,C14-1,0) -> VG | E14: =SUM(OFFSET(F14,0,0,1,analysis_period)) -> 0 | F14: 0 | G14: 0 | H14: 0 | I14: 0 | J14: 0 | K14: 0 | L14: 0 | M14: 0 | N14: 0 | O14: 0 | P14: 0 | Q14: 0 | R14: 0 | S14: 0 | T14: 0 | U14: 0 | V14: 0 | W14: 0 | X14: 0 | Y14: 0 | Z14: 0 | AA14: 0 | AB14: 0 | AC14: 0 | AD14: 0 | AE14: 0 | AF14: 0 | AG14: 0 | AH14: 0 | AI14: 0
C15: =C14+1 -> 2 | D15: =OFFSET(CONDITION_BAND_CODE,C15-1,0) -> G | E15: =SUM(OFFSET(F15,0,0,1,analysis_period)) -> 0 | F15: 0 | G15: 0 | H15: 0 | I15: 0 | J15: 0 | K15: 0 | L15: 0 | M15: 0 | N15: 0 | O15: 0 | P15: 0 | Q15: 0 | R15: 0 | S15: 0 | T15: 0 | U15: 0 | V15: 0 | W15: 0 | X15: 0 | Y15: 0 | Z15: 0 | AA15: 0 | AB15: 0 | AC15: 0 | AD15: 0 | AE15: 0 | AF15: 0 | AG15: 0 | AH15: 0 | AI15: 0
C16: =C15+1 -> 3 | D16: =OFFSET(CONDITION_BAND_CODE,C16-1,0) -> F | E16: =SUM(OFFSET(F16,0,0,1,analysis_period)) -> 2473176669 | F16: 87585731.64 | G16: 84195447.65 | H16: 81843589.06 | I16: 80676759.05 | J16: 80668244.03 | K16: 81257825.92 | L16: 81524065.64 | M16: 81714964.37 | N16: 81859664.21 | O16: 81970970.14 | P16: 82060554.32 | Q16: 82136088.55 | R16: 82202096.73 | S16: 82261154.44 | T16: 82314743.2 | U16: 82363757.61 | V16: 82408782.61 | W16: 82450238.28 | X16: 82488453.72 | Y16: 82523704.32 | Z16: 82556230.62 | AA16: 82586248.16 | AB16: 82613952.8 | AC16: 82639523.87 | AD16: 82663126.2 | AE16: 82684911.61 | AF16: 82705020.08 | AG16: 82723580.76 | AH16: 82740712.79 | AI16: 82756526.17
C17: =C16+1 -> 4 | D17: =OFFSET(CONDITION_BAND_CODE,C17-1,0) -> P | E17: =SUM(OFFSET(F17,0,0,1,analysis_period)) -> 1219852452 | F17: 87585731.64 | G17: 87585731.64 | H17: 87585731.64 | I17: 69324702.46 | J17: 38489372.03 | K17: 31790892.37 | L17: 30836749.1 | M17: 31259201.47 | N17: 31868764.58 | O17: 32393597.33 | P17: 32809448.94 | Q17: 33142722.5 | R17: 33419960.39 | S17: 33659195.21 | T17: 33871327.4 | U17: 34062741.53 | V17: 34237250.06 | W17: 34397267.14 | X17: 34544456.32 | Y17: 34680071.41 | Z17: 34805131.56 | AA17: 34920510.51 | AB17: 35026982.61 | AC17: 35125247.25 | AD17: 35215942.67 | AE17: 35299654.55 | AF17: 35376921.87 | AG17: 35448241.34 | AH17: 35514071.09 | AI17: 35574833.81
C18: =C17+1 -> 5 | D18: =OFFSET(CONDITION_BAND_CODE,C18-1,0) -> VP | E18: =SUM(OFFSET(F18,0,0,1,analysis_period)) -> 274678399.4 | F18: 29491504.6 | G18: 33058616.98 | H18: 33263360.31 | I18: 39013266.88 | J18: 46934413.35 | K18: 26676222.77 | L18: 10685763.99 | M18: 5048613.163 | N18: 3093537.664 | O18: 2435128.807 | P18: 2226957.638 | Q18: 2171744.908 | R18: 2166563.33 | S18: 2176514.713 | T18: 2190149.923 | U18: 2203924.34 | V18: 2216868.282 | W18: 2228804.148 | X18: 2239772.225 | Y18: 2249857.208 | Z18: 2259141.947 | AA18: 2267698.688 | AB18: 2275589.797 | AC18: 2282869.961 | AD18: 2289588 | AE18: 2295788.086 | AF18: 2301510.535 | AG18: 2306792.326 | AH18: 2311667.484 | AI18: 2316167.356
D19: Total | E19: =SUM(OFFSET(E14,0,0,current_conditionBands,1)) -> 3967707520 | F19: 204662967.9 | G19: 204839796.3 | H19: 202692681 | I19: 189014728.4 | J19: 166092029.4 | K19: 139724941.1 | L19: 123046578.7 | M19: 118022779 | N19: 116821966.5 | O19: 116799696.3 | P19: 117096960.9 | Q19: 117450556 | R19: 117788620.5 | S19: 118096864.4 | T19: 118376220.5 | U19: 118630423.5 | V19: 118862900.9 | W19: 119076309.6 | X19: 119272682.3 | Y19: 119453632.9 | Z19: 119620504.1 | AA19: 119774457.4 | AB19: 119916525.2 | AC19: 120047641.1 | AD19: 120168656.9 | AE19: 120280354.2 | AF19: 120383452.5 | AG19: 120478614.4 | AH19: 120566451.4 | AI19: 120647527.3
D20: Cumulative | E20: =E19 -> 3967707520 | F20: =F19 -> 204662967.9 | G20: =OFFSET(G19,1,-1)+G19 -> 409502764.1 | H20: 612195445.2 | I20: 801210173.6 | J20: 967302203 | K20: 1107027144 | L20: 1230073723 | M20: 1348096502 | N20: 1464918468 | O20: 1581718164 | P20: =OFFSET(P19,1,-1)+P19 -> 1698815125 | Q20: =OFFSET(Q19,1,-1)+Q19 -> 1816265681 | R20: =OFFSET(R19,1,-1)+R19 -> 1934054302 | S20: =OFFSET(S19,1,-1)+S19 -> 2052151166 | T20: =OFFSET(T19,1,-1)+T19 -> 2170527387 | U20: =OFFSET(U19,1,-1)+U19 -> 2289157810 | V20: =OFFSET(V19,1,-1)+V19 -> 2408020711 | W20: =OFFSET(W19,1,-1)+W19 -> 2527097021 | X20: =OFFSET(X19,1,-1)+X19 -> 2646369703 | Y20: =OFFSET(Y19,1,-1)+Y19 -> 2765823336 | Z20: =OFFSET(Z19,1,-1)+Z19 -> 2885443840 | AA20: =OFFSET(AA19,1,-1)+AA19 -> 3005218297 | AB20: =OFFSET(AB19,1,-1)+AB19 -> 3125134823 | AC20: =OFFSET(AC19,1,-1)+AC19 -> 3245182464 | AD20: =OFFSET(AD19,1,-1)+AD19 -> 3365351121 | AE20: =OFFSET(AE19,1,-1)+AE19 -> 3485631475 | AF20: =OFFSET(AF19,1,-1)+AF19 -> 3606014927 | AG20: =OFFSET(AG19,1,-1)+AG19 -> 3726493542 | AH20: =OFFSET(AH19,1,-1)+AH19 -> 3847059993 | AI20: =OFFSET(AI19,1,-1)+AI19 -> 3967707520
A21: =INT((ROW()-7)/(current_conditionBands+2))+1 -> 3 | B21: =OFFSET(ASSET_GROUP_NAME,A21-1,0) -> BR | C21: 1 | D21: =OFFSET(CONDITION_BAND_CODE,C21-1,0) -> VG | E21: =SUM(OFFSET(F21,0,0,1,analysis_period)) -> 0 | F21: 0 | G21: 0 | H21: 0 | I21: 0 | J21: 0 | K21: 0 | L21: 0 | M21: 0 | N21: 0 | O21: 0 | P21: 0 | Q21: 0 | R21: 0 | S21: 0 | T21: 0 | U21: 0 | V21: 0 | W21: 0 | X21: 0 | Y21: 0 | Z21: 0 | AA21: 0 | AB21: 0 | AC21: 0 | AD21: 0 | AE21: 0 | AF21: 0 | AG21: 0 | AH21: 0 | AI21: 0
C22: =C21+1 -> 2 | D22: =OFFSET(CONDITION_BAND_CODE,C22-1,0) -> G | E22: =SUM(OFFSET(F22,0,0,1,analysis_period)) -> 0 | F22: 0 | G22: 0 | H22: 0 | I22: 0 | J22: 0 | K22: 0 | L22: 0 | M22: 0 | N22: 0 | O22: 0 | P22: 0 | Q22: 0 | R22: 0 | S22: 0 | T22: 0 | U22: 0 | V22: 0 | W22: 0 | X22: 0 | Y22: 0 | Z22: 0 | AA22: 0 | AB22: 0 | AC22: 0 | AD22: 0 | AE22: 0 | AF22: 0 | AG22: 0 | AH22: 0 | AI22: 0
C23: =C22+1 -> 3 | D23: =OFFSET(CONDITION_BAND_CODE,C23-1,0) -> F | E23: =SUM(OFFSET(F23,0,0,1,analysis_period)) -> 955480708.8 | F23: 31849356.96 | G23: 31849356.96 | H23: 31849356.96 | I23: 31849356.96 | J23: 31849356.96 | K23: 31849356.96 | L23: 31849356.96 | M23: 31849356.96 | N23: 31849356.96 | O23: 31849356.96 | P23: 31849356.96 | Q23: 31849356.96 | R23: 31849356.96 | S23: 31849356.96 | T23: 31849356.96 | U23: 31849356.96 | V23: 31849356.96 | W23: 31849356.96 | X23: 31849356.96 | Y23: 31849356.96 | Z23: 31849356.96 | AA23: 31849356.96 | AB23: 31849356.96 | AC23: 31849356.96 | AD23: 31849356.96 | AE23: 31849356.96 | AF23: 31849356.96 | AG23: 31849356.96 | AH23: 31849356.96 | AI23: 31849356.96
C24: =C23+1 -> 4 | D24: =OFFSET(CONDITION_BAND_CODE,C24-1,0) -> P | E24: =SUM(OFFSET(F24,0,0,1,analysis_period)) -> 955480708.8 | F24: 31849356.96 | G24: 31849356.96 | H24: 31849356.96 | I24: 31849356.96 | J24: 31849356.96 | K24: 31849356.96 | L24: 31849356.96 | M24: 31849356.96 | N24: 31849356.96 | O24: 31849356.96 | P24: 31849356.96 | Q24: 31849356.96 | R24: 31849356.96 | S24: 31849356.96 | T24: 31849356.96 | U24: 31849356.96 | V24: 31849356.96 | W24: 31849356.96 | X24: 31849356.96 | Y24: 31849356.96 | Z24: 31849356.96 | AA24: 31849356.96 | AB24: 31849356.96 | AC24: 31849356.96 | AD24: 31849356.96 | AE24: 31849356.96 | AF24: 31849356.96 | AG24: 31849356.96 | AH24: 31849356.96 | AI24: 31849356.96
C25: =C24+1 -> 5 | D25: =OFFSET(CONDITION_BAND_CODE,C25-1,0) -> VP | E25: =SUM(OFFSET(F25,0,0,1,analysis_period)) -> 477740354.4 | F25: 15924678.48 | G25: 15924678.48 | H25: 15924678.48 | I25: 15924678.48 | J25: 15924678.48 | K25: 15924678.48 | L25: 15924678.48 | M25: 15924678.48 | N25: 15924678.48 | O25: 15924678.48 | P25: 15924678.48 | Q25: 15924678.48 | R25: 15924678.48 | S25: 15924678.48 | T25: 15924678.48 | U25: 15924678.48 | V25: 15924678.48 | W25: 15924678.48 | X25: 15924678.48 | Y25: 15924678.48 | Z25: 15924678.48 | AA25: 15924678.48 | AB25: 15924678.48 | AC25: 15924678.48 | AD25: 15924678.48 | AE25: 15924678.48 | AF25: 15924678.48 | AG25: 15924678.48 | AH25: 15924678.48 | AI25: 15924678.48
D26: Total | E26: =SUM(OFFSET(E21,0,0,current_conditionBands,1)) -> 2388701772 | F26: 79623392.4 | G26: 79623392.4 | H26: 79623392.4 | I26: 79623392.4 | J26: 79623392.4 | K26: 79623392.4 | L26: 79623392.4 | M26: 79623392.4 | N26: 79623392.4 | O26: 79623392.4 | P26: 79623392.4 | Q26: 79623392.4 | R26: 79623392.4 | S26: 79623392.4 | T26: 79623392.4 | U26: 79623392.4 | V26: 79623392.4 | W26: 79623392.4 | X26: 79623392.4 | Y26: 79623392.4 | Z26: 79623392.4 | AA26: 79623392.4 | AB26: 79623392.4 | AC26: 79623392.4 | AD26: 79623392.4 | AE26: 79623392.4 | AF26: 79623392.4 | AG26: 79623392.4 | AH26: 79623392.4 | AI26: 79623392.4
D27: Cumulative | E27: =E26 -> 2388701772 | F27: =F26 -> 79623392.4 | G27: =OFFSET(G26,1,-1)+G26 -> 159246784.8 | H27: 238870177.2 | I27: 318493569.6 | J27: 398116962 | K27: 477740354.4 | L27: 557363746.8 | M27: 636987139.2 | N27: 716610531.6 | O27: 796233924 | P27: =OFFSET(P26,1,-1)+P26 -> 875857316.4 | Q27: =OFFSET(Q26,1,-1)+Q26 -> 955480708.8 | R27: =OFFSET(R26,1,-1)+R26 -> 1035104101 | S27: =OFFSET(S26,1,-1)+S26 -> 1114727494 | T27: =OFFSET(T26,1,-1)+T26 -> 1194350886 | U27: =OFFSET(U26,1,-1)+U26 -> 1273974278 | V27: =OFFSET(V26,1,-1)+V26 -> 1353597671 | W27: =OFFSET(W26,1,-1)+W26 -> 1433221063 | X27: =OFFSET(X26,1,-1)+X26 -> 1512844456 | Y27: =OFFSET(Y26,1,-1)+Y26 -> 1592467848 | Z27: =OFFSET(Z26,1,-1)+Z26 -> 1672091240 | AA27: =OFFSET(AA26,1,-1)+AA26 -> 1751714633 | AB27: =OFFSET(AB26,1,-1)+AB26 -> 1831338025 | AC27: =OFFSET(AC26,1,-1)+AC26 -> 1910961418 | AD27: =OFFSET(AD26,1,-1)+AD26 -> 1990584810 | AE27: =OFFSET(AE26,1,-1)+AE26 -> 2070208202 | AF27: =OFFSET(AF26,1,-1)+AF26 -> 2149831595 | AG27: =OFFSET(AG26,1,-1)+AG26 -> 2229454987 | AH27: =OFFSET(AH26,1,-1)+AH26 -> 2309078380 | AI27: =OFFSET(AI26,1,-1)+AI26 -> 2388701772
A28: =INT((ROW()-7)/(current_conditionBands+2))+1 -> 4 | B28: =OFFSET(ASSET_GROUP_NAME,A28-1,0) -> BU | C28: 1 | D28: =OFFSET(CONDITION_BAND_CODE,C28-1,0) -> VG | E28: =SUM(OFFSET(F28,0,0,1,analysis_period)) -> 0 | F28: 0 | G28: 0 | H28: 0 | I28: 0 | J28: 0 | K28: 0 | L28: 0 | M28: 0 | N28: 0 | O28: 0 | P28: 0 | Q28: 0 | R28: 0 | S28: 0 | T28: 0 | U28: 0 | V28: 0 | W28: 0 | X28: 0 | Y28: 0 | Z28: 0 | AA28: 0 | AB28: 0 | AC28: 0 | AD28: 0 | AE28: 0 | AF28: 0 | AG28: 0 | AH28: 0 | AI28: 0
C29: =C28+1 -> 2 | D29: =OFFSET(CONDITION_BAND_CODE,C29-1,0) -> G | E29: =SUM(OFFSET(F29,0,0,1,analysis_period)) -> 0 | F29: 0 | G29: 0 | H29: 0 | I29: 0 | J29: 0 | K29: 0 | L29: 0 | M29: 0 | N29: 0 | O29: 0 | P29: 0 | Q29: 0 | R29: 0 | S29: 0 | T29: 0 | U29: 0 | V29: 0 | W29: 0 | X29: 0 | Y29: 0 | Z29: 0 | AA29: 0 | AB29: 0 | AC29: 0 | AD29: 0 | AE29: 0 | AF29: 0 | AG29: 0 | AH29: 0 | AI29: 0
C30: =C29+1 -> 3 | D30: =OFFSET(CONDITION_BAND_CODE,C30-1,0) -> F | E30: =SUM(OFFSET(F30,0,0,1,analysis_period)) -> 238870177.2 | F30: 7962339.24 | G30: 7962339.24 | H30: 7962339.24 | I30: 7962339.24 | J30: 7962339.24 | K30: 7962339.24 | L30: 7962339.24 | M30: 7962339.24 | N30: 7962339.24 | O30: 7962339.24 | P30: 7962339.24 | Q30: 7962339.24 | R30: 7962339.24 | S30: 7962339.24 | T30: 7962339.24 | U30: 7962339.24 | V30: 7962339.24 | W30: 7962339.24 | X30: 7962339.24 | Y30: 7962339.24 | Z30: 7962339.24 | AA30: 7962339.24 | AB30: 7962339.24 | AC30: 7962339.24 | AD30: 7962339.24 | AE30: 7962339.24 | AF30: 7962339.24 | AG30: 7962339.24 | AH30: 7962339.24 | AI30: 7962339.24
C31: =C30+1 -> 4 | D31: =OFFSET(CONDITION_BAND_CODE,C31-1,0) -> P | E31: =SUM(OFFSET(F31,0,0,1,analysis_period)) -> 238870177.2 | F31: 7962339.24 | G31: 7962339.24 | H31: 7962339.24 | I31: 7962339.24 | J31: 7962339.24 | K31: 7962339.24 | L31: 7962339.24 | M31: 7962339.24 | N31: 7962339.24 | O31: 7962339.24 | P31: 7962339.24 | Q31: 7962339.24 | R31: 7962339.24 | S31: 7962339.24 | T31: 7962339.24 | U31: 7962339.24 | V31: 7962339.24 | W31: 7962339.24 | X31: 7962339.24 | Y31: 7962339.24 | Z31: 7962339.24 | AA31: 7962339.24 | AB31: 7962339.24 | AC31: 7962339.24 | AD31: 7962339.24 | AE31: 7962339.24 | AF31: 7962339.24 | AG31: 7962339.24 | AH31: 7962339.24 | AI31: 7962339.24
C32: =C31+1 -> 5 | D32: =OFFSET(CONDITION_BAND_CODE,C32-1,0) -> VP | E32: =SUM(OFFSET(F32,0,0,1,analysis_period)) -> 119435088.6 | F32: 3981169.62 | G32: 3981169.62 | H32: 3981169.62 | I32: 3981169.62 | J32: 3981169.62 | K32: 3981169.62 | L32: 3981169.62 | M32: 3981169.62 | N32: 3981169.62 | O32: 3981169.62 | P32: 3981169.62 | Q32: 3981169.62 | R32: 3981169.62 | S32: 3981169.62 | T32: 3981169.62 | U32: 3981169.62 | V32: 3981169.62 | W32: 3981169.62 | X32: 3981169.62 | Y32: 3981169.62 | Z32: 3981169.62 | AA32: 3981169.62 | AB32: 3981169.62 | AC32: 3981169.62 | AD32: 3981169.62 | AE32: 3981169.62 | AF32: 3981169.62 | AG32: 3981169.62 | AH32: 3981169.62 | AI32: 3981169.62
D33: Total | E33: =SUM(OFFSET(E28,0,0,current_conditionBands,1)) -> 597175443 | F33: 19905848.1 | G33: 19905848.1 | H33: 19905848.1 | I33: 19905848.1 | J33: 19905848.1 | K33: 19905848.1 | L33: 19905848.1 | M33: 19905848.1 | N33: 19905848.1 | O33: 19905848.1 | P33: 19905848.1 | Q33: 19905848.1 | R33: 19905848.1 | S33: 19905848.1 | T33: 19905848.1 | U33: 19905848.1 | V33: 19905848.1 | W33: 19905848.1 | X33: 19905848.1 | Y33: 19905848.1 | Z33: 19905848.1 | AA33: 19905848.1 | AB33: 19905848.1 | AC33: 19905848.1 | AD33: 19905848.1 | AE33: 19905848.1 | AF33: 19905848.1 | AG33: 19905848.1 | AH33: 19905848.1 | AI33: 19905848.1
D34: Cumulative | E34: =E33 -> 597175443 | F34: =F33 -> 19905848.1 | G34: =OFFSET(G33,1,-1)+G33 -> 39811696.2 | H34: 59717544.3 | I34: 79623392.4 | J34: 99529240.5 | K34: 119435088.6 | L34: 139340936.7 | M34: 159246784.8 | N34: 179152632.9 | O34: 199058481 | P34: =OFFSET(P33,1,-1)+P33 -> 218964329.1 | Q34: =OFFSET(Q33,1,-1)+Q33 -> 238870177.2 | R34: =OFFSET(R33,1,-1)+R33 -> 258776025.3 | S34: =OFFSET(S33,1,-1)+S33 -> 278681873.4 | T34: =OFFSET(T33,1,-1)+T33 -> 298587721.5 | U34: =OFFSET(U33,1,-1)+U33 -> 318493569.6 | V34: =OFFSET(V33,1,-1)+V33 -> 338399417.7 | W34: =OFFSET(W33,1,-1)+W33 -> 358305265.8 | X34: =OFFSET(X33,1,-1)+X33 -> 378211113.9 | Y34: =OFFSET(Y33,1,-1)+Y33 -> 398116962 | Z34: =OFFSET(Z33,1,-1)+Z33 -> 418022810.1 | AA34: =OFFSET(AA33,1,-1)+AA33 -> 437928658.2 | AB34: =OFFSET(AB33,1,-1)+AB33 -> 457834506.3 | AC34: =OFFSET(AC33,1,-1)+AC33 -> 477740354.4 | AD34: =OFFSET(AD33,1,-1)+AD33 -> 497646202.5 | AE34: =OFFSET(AE33,1,-1)+AE33 -> 517552050.6 | AF34: =OFFSET(AF33,1,-1)+AF33 -> 537457898.7 | AG34: =OFFSET(AG33,1,-1)+AG33 -> 557363746.8 | AH34: =OFFSET(AH33,1,-1)+AH33 -> 577269594.9 | AI34: =OFFSET(AI33,1,-1)+AI33 -> 597175443
A35: =INT((ROW()-7)/(current_conditionBands+2))+1 -> 5 | B35: =OFFSET(ASSET_GROUP_NAME,A35-1,0) -> CR | C35: 1 | D35: =OFFSET(CONDITION_BAND_CODE,C35-1,0) -> VG | E35: =SUM(OFFSET(F35,0,0,1,analysis_period)) -> 0 | F35: 0 | G35: 0 | H35: 0 | I35: 0 | J35: 0 | K35: 0 | L35: 0 | M35: 0 | N35: 0 | O35: 0 | P35: 0 | Q35: 0 | R35: 0 | S35: 0 | T35: 0 | U35: 0 | V35: 0 | W35: 0 | X35: 0 | Y35: 0 | Z35: 0 | AA35: 0 | AB35: 0 | AC35: 0 | AD35: 0 | AE35: 0 | AF35: 0 | AG35: 0 | AH35: 0 | AI35: 0
C36: =C35+1 -> 2 | D36: =OFFSET(CONDITION_BAND_CODE,C36-1,0) -> G | E36: =SUM(OFFSET(F36,0,0,1,analysis_period)) -> 0 | F36: 0 | G36: 0 | H36: 0 | I36: 0 | J36: 0 | K36: 0 | L36: 0 | M36: 0 | N36: 0 | O36: 0 | P36: 0 | Q36: 0 | R36: 0 | S36: 0 | T36: 0 | U36: 0 | V36: 0 | W36: 0 | X36: 0 | Y36: 0 | Z36: 0 | AA36: 0 | AB36: 0 | AC36: 0 | AD36: 0 | AE36: 0 | AF36: 0 | AG36: 0 | AH36: 0 | AI36: 0
C37: =C36+1 -> 3 | D37: =OFFSET(CONDITION_BAND_CODE,C37-1,0) -> F | E37: =SUM(OFFSET(F37,0,0,1,analysis_period)) -> 3299495041 | F37: 111472749.4 | G37: 111472749.4 | H37: 111472749.4 | I37: 111472749.4 | J37: 111472749.4 | K37: 111472749.4 | L37: 111472749.4 | M37: 111472749.4 | N37: 111472749.4 | O37: 111472749.4 | P37: 111472749.4 | Q37: 111472749.4 | R37: 111472749.4 | S37: 111472749.4 | T37: 111048100.1 | U37: 110425481.6 | V37: 109943143.5 | W37: 109553450.5 | X37: 109228051.2 | Y37: 108949632.7 | Z37: 108707255.6 | AA37: 108493708.6 | AB37: 108304002.2 | AC37: 108134505.5 | AD37: 107982447.4 | AE37: 107845624.5 | AF37: 107722225.9 | AG37: 107610727 | AH37: 107509820.6 | AI37: 107418372.7
C38: =C37+1 -> 4 | D38: =OFFSET(CONDITION_BAND_CODE,C38-1,0) -> P | E38: =SUM(OFFSET(F38,0,0,1,analysis_period)) -> 3344182481 | F38: 111472749.4 | G38: 111472749.4 | H38: 111472749.4 | I38: 111472749.4 | J38: 111472749.4 | K38: 111472749.4 | L38: 111472749.4 | M38: 111472749.4 | N38: 111472749.4 | O38: 111472749.4 | P38: 111472749.4 | Q38: 111472749.4 | R38: 111472749.4 | S38: 111472749.4 | T38: 111472749.4 | U38: 111472749.4 | V38: 111472749.4 | W38: 111472749.4 | X38: 111472749.4 | Y38: 111472749.4 | Z38: 111472749.4 | AA38: 111472749.4 | AB38: 111472749.4 | AC38: 111472749.4 | AD38: 111472749.4 | AE38: 111472749.4 | AF38: 111472749.4 | AG38: 111472749.4 | AH38: 111472749.4 | AI38: 111472749.4
C39: =C38+1 -> 5 | D39: =OFFSET(CONDITION_BAND_CODE,C39-1,0) -> VP | E39: =SUM(OFFSET(F39,0,0,1,analysis_period)) -> 1672091240 | F39: 55736374.68 | G39: 55736374.68 | H39: 55736374.68 | I39: 55736374.68 | J39: 55736374.68 | K39: 55736374.68 | L39: 55736374.68 | M39: 55736374.68 | N39: 55736374.68 | O39: 55736374.68 | P39: 55736374.68 | Q39: 55736374.68 | R39: 55736374.68 | S39: 55736374.68 | T39: 55736374.68 | U39: 55736374.68 | V39: 55736374.68 | W39: 55736374.68 | X39: 55736374.68 | Y39: 55736374.68 | Z39: 55736374.68 | AA39: 55736374.68 | AB39: 55736374.68 | AC39: 55736374.68 | AD39: 55736374.68 | AE39: 55736374.68 | AF39: 55736374.68 | AG39: 55736374.68 | AH39: 55736374.68 | AI39: 55736374.68
D40: Total | E40: =SUM(OFFSET(E35,0,0,current_conditionBands,1)) -> 8315768762 | F40: 278681873.4 | G40: 278681873.4 | H40: 278681873.4 | I40: 278681873.4 | J40: 278681873.4 | K40: 278681873.4 | L40: 278681873.4 | M40: 278681873.4 | N40: 278681873.4 | O40: 278681873.4 | P40: 278681873.4 | Q40: 278681873.4 | R40: 278681873.4 | S40: 278681873.4 | T40: 278257224.1 | U40: 277634605.6 | V40: 277152267.6 | W40: 276762574.5 | X40: 276437175.2 | Y40: 276158756.7 | Z40: 275916379.6 | AA40: 275702832.6 | AB40: 275513126.2 | AC40: 275343629.5 | AD40: 275191571.5 | AE40: 275054748.5 | AF40: 274931350 | AG40: 274819851 | AH40: 274718944.7 | AI40: 274627496.8
D41: Cumulative | E41: =E40 -> 8315768762 | F41: =F40 -> 278681873.4 | G41: =OFFSET(G40,1,-1)+G40 -> 557363746.8 | H41: 836045620.2 | I41: 1114727494 | J41: 1393409367 | K41: 1672091240 | L41: 1950773114 | M41: 2229454987 | N41: 2508136861 | O41: 2786818734 | P41: =OFFSET(P40,1,-1)+P40 -> 3065500607 | Q41: =OFFSET(Q40,1,-1)+Q40 -> 3344182481 | R41: =OFFSET(R40,1,-1)+R40 -> 3622864354 | S41: =OFFSET(S40,1,-1)+S40 -> 3901546228 | T41: =OFFSET(T40,1,-1)+T40 -> 4179803452 | U41: =OFFSET(U40,1,-1)+U40 -> 4457438057 | V41: =OFFSET(V40,1,-1)+V40 -> 4734590325 | W41: =OFFSET(W40,1,-1)+W40 -> 5011352899 | X41: =OFFSET(X40,1,-1)+X40 -> 5287790075 | Y41: =OFFSET(Y40,1,-1)+Y40 -> 5563948831 | Z41: =OFFSET(Z40,1,-1)+Z40 -> 5839865211 | AA41: =OFFSET(AA40,1,-1)+AA40 -> 6115568044 | AB41: =OFFSET(AB40,1,-1)+AB40 -> 6391081170 | AC41: =OFFSET(AC40,1,-1)+AC40 -> 6666424799 | AD41: =OFFSET(AD40,1,-1)+AD40 -> 6941616371 | AE41: =OFFSET(AE40,1,-1)+AE40 -> 7216671119 | AF41: =OFFSET(AF40,1,-1)+AF40 -> 7491602469 | AG41: =OFFSET(AG40,1,-1)+AG40 -> 7766422320 | AH41: =OFFSET(AH40,1,-1)+AH40 -> 8041141265 | AI41: =OFFSET(AI40,1,-1)+AI40 -> 8315768762
A42: =INT((ROW()-7)/(current_conditionBands+2))+1 -> 6 | B42: =OFFSET(ASSET_GROUP_NAME,A42-1,0) -> CU | C42: 1 | D42: =OFFSET(CONDITION_BAND_CODE,C42-1,0) -> VG | E42: =SUM(OFFSET(F42,0,0,1,analysis_period)) -> 0 | F42: 0 | G42: 0 | H42: 0 | I42: 0 | J42: 0 | K42: 0 | L42: 0 | M42: 0 | N42: 0 | O42: 0 | P42: 0 | Q42: 0 | R42: 0 | S42: 0 | T42: 0 | U42: 0 | V42: 0 | W42: 0 | X42: 0 | Y42: 0 | Z42: 0 | AA42: 0 | AB42: 0 | AC42: 0 | AD42: 0 | AE42: 0 | AF42: 0 | AG42: 0 | AH42: 0 | AI42: 0
C43: =C42+1 -> 2 | D43: =OFFSET(CONDITION_BAND_CODE,C43-1,0) -> G | E43: =SUM(OFFSET(F43,0,0,1,analysis_period)) -> 0 | F43: 0 | G43: 0 | H43: 0 | I43: 0 | J43: 0 | K43: 0 | L43: 0 | M43: 0 | N43: 0 | O43: 0 | P43: 0 | Q43: 0 | R43: 0 | S43: 0 | T43: 0 | U43: 0 | V43: 0 | W43: 0 | X43: 0 | Y43: 0 | Z43: 0 | AA43: 0 | AB43: 0 | AC43: 0 | AD43: 0 | AE43: 0 | AF43: 0 | AG43: 0 | AH43: 0 | AI43: 0
C44: =C43+1 -> 3 | D44: =OFFSET(CONDITION_BAND_CODE,C44-1,0) -> F | E44: =SUM(OFFSET(F44,0,0,1,analysis_period)) -> 477740354.4 | F44: 15924678.48 | G44: 15924678.48 | H44: 15924678.48 | I44: 15924678.48 | J44: 15924678.48 | K44: 15924678.48 | L44: 15924678.48 | M44: 15924678.48 | N44: 15924678.48 | O44: 15924678.48 | P44: 15924678.48 | Q44: 15924678.48 | R44: 15924678.48 | S44: 15924678.48 | T44: 15924678.48 | U44: 15924678.48 | V44: 15924678.48 | W44: 15924678.48 | X44: 15924678.48 | Y44: 15924678.48 | Z44: 15924678.48 | AA44: 15924678.48 | AB44: 15924678.48 | AC44: 15924678.48 | AD44: 15924678.48 | AE44: 15924678.48 | AF44: 15924678.48 | AG44: 15924678.48 | AH44: 15924678.48 | AI44: 15924678.48
C45: =C44+1 -> 4 | D45: =OFFSET(CONDITION_BAND_CODE,C45-1,0) -> P | E45: =SUM(OFFSET(F45,0,0,1,analysis_period)) -> 477740354.4 | F45: 15924678.48 | G45: 15924678.48 | H45: 15924678.48 | I45: 15924678.48 | J45: 15924678.48 | K45: 15924678.48 | L45: 15924678.48 | M45: 15924678.48 | N45: 15924678.48 | O45: 15924678.48 | P45: 15924678.48 | Q45: 15924678.48 | R45: 15924678.48 | S45: 15924678.48 | T45: 15924678.48 | U45: 15924678.48 | V45: 15924678.48 | W45: 15924678.48 | X45: 15924678.48 | Y45: 15924678.48 | Z45: 15924678.48 | AA45: 15924678.48 | AB45: 15924678.48 | AC45: 15924678.48 | AD45: 15924678.48 | AE45: 15924678.48 | AF45: 15924678.48 | AG45: 15924678.48 | AH45: 15924678.48 | AI45: 15924678.48
C46: =C45+1 -> 5 | D46: =OFFSET(CONDITION_BAND_CODE,C46-1,0) -> VP | E46: =SUM(OFFSET(F46,0,0,1,analysis_period)) -> 238870177.2 | F46: 7962339.24 | G46: 7962339.24 | H46: 7962339.24 | I46: 7962339.24 | J46: 7962339.24 | K46: 7962339.24 | L46: 7962339.24 | M46: 7962339.24 | N46: 7962339.24 | O46: 7962339.24 | P46: 7962339.24 | Q46: 7962339.24 | R46: 7962339.24 | S46: 7962339.24 | T46: 7962339.24 | U46: 7962339.24 | V46: 7962339.24 | W46: 7962339.24 | X46: 7962339.24 | Y46: 7962339.24 | Z46: 7962339.24 | AA46: 7962339.24 | AB46: 7962339.24 | AC46: 7962339.24 | AD46: 7962339.24 | AE46: 7962339.24 | AF46: 7962339.24 | AG46: 7962339.24 | AH46: 7962339.24 | AI46: 7962339.24
D47: Total | E47: =SUM(OFFSET(E42,0,0,current_conditionBands,1)) -> 1194350886 | F47: 39811696.2 | G47: 39811696.2 | H47: 39811696.2 | I47: 39811696.2 | J47: 39811696.2 | K47: 39811696.2 | L47: 39811696.2 | M47: 39811696.2 | N47: 39811696.2 | O47: 39811696.2 | P47: 39811696.2 | Q47: 39811696.2 | R47: 39811696.2 | S47: 39811696.2 | T47: 39811696.2 | U47: 39811696.2 | V47: 39811696.2 | W47: 39811696.2 | X47: 39811696.2 | Y47: 39811696.2 | Z47: 39811696.2 | AA47: 39811696.2 | AB47: 39811696.2 | AC47: 39811696.2 | AD47: 39811696.2 | AE47: 39811696.2 | AF47: 39811696.2 | AG47: 39811696.2 | AH47: 39811696.2 | AI47: 39811696.2
D48: Cumulative | E48: =E47 -> 1194350886 | F48: =F47 -> 39811696.2 | G48: =OFFSET(G47,1,-1)+G47 -> 79623392.4 | H48: 119435088.6 | I48: 159246784.8 | J48: 199058481 | K48: 238870177.2 | L48: 278681873.4 | M48: 318493569.6 | N48: 358305265.8 | O48: 398116962 | P48: =OFFSET(P47,1,-1)+P47 -> 437928658.2 | Q48: =OFFSET(Q47,1,-1)+Q47 -> 477740354.4 | R48: =OFFSET(R47,1,-1)+R47 -> 517552050.6 | S48: =OFFSET(S47,1,-1)+S47 -> 557363746.8 | T48: =OFFSET(T47,1,-1)+T47 -> 597175443 | U48: =OFFSET(U47,1,-1)+U47 -> 636987139.2 | V48: =OFFSET(V47,1,-1)+V47 -> 676798835.4 | W48: =OFFSET(W47,1,-1)+W47 -> 716610531.6 | X48: =OFFSET(X47,1,-1)+X47 -> 756422227.8 | Y48: =OFFSET(Y47,1,-1)+Y47 -> 796233924 | Z48: =OFFSET(Z47,1,-1)+Z47 -> 836045620.2 | AA48: =OFFSET(AA47,1,-1)+AA47 -> 875857316.4 | AB48: =OFFSET(AB47,1,-1)+AB47 -> 915669012.6 | AC48: =OFFSET(AC47,1,-1)+AC47 -> 955480708.8 | AD48: =OFFSET(AD47,1,-1)+AD47 -> 995292405 | AE48: =OFFSET(AE47,1,-1)+AE47 -> 1035104101 | AF48: =OFFSET(AF47,1,-1)+AF47 -> 1074915797 | AG48: =OFFSET(AG47,1,-1)+AG47 -> 1114727494 | AH48: =OFFSET(AH47,1,-1)+AH47 -> 1154539190 | AI48: =OFFSET(AI47,1,-1)+AI47 -> 1194350886
A49: =INT((ROW()-7)/(current_conditionBands+2))+1 -> 7 | B49: =OFFSET(ASSET_GROUP_NAME,A49-1,0) -> MR | C49: 1 | D49: =OFFSET(CONDITION_BAND_CODE,C49-1,0) -> VG | E49: =SUM(OFFSET(F49,0,0,1,analysis_period)) -> 0 | F49: 0 | G49: 0 | H49: 0 | I49: 0 | J49: 0 | K49: 0 | L49: 0 | M49: 0 | N49: 0 | O49: 0 | P49: 0 | Q49: 0 | R49: 0 | S49: 0 | T49: 0 | U49: 0 | V49: 0 | W49: 0 | X49: 0 | Y49: 0 | Z49: 0 | AA49: 0 | AB49: 0 | AC49: 0 | AD49: 0 | AE49: 0 | AF49: 0 | AG49: 0 | AH49: 0 | AI49: 0
C50: =C49+1 -> 2 | D50: =OFFSET(CONDITION_BAND_CODE,C50-1,0) -> G | E50: =SUM(OFFSET(F50,0,0,1,analysis_period)) -> 0 | F50: 0 | G50: 0 | H50: 0 | I50: 0 | J50: 0 | K50: 0 | L50: 0 | M50: 0 | N50: 0 | O50: 0 | P50: 0 | Q50: 0 | R50: 0 | S50: 0 | T50: 0 | U50: 0 | V50: 0 | W50: 0 | X50: 0 | Y50: 0 | Z50: 0 | AA50: 0 | AB50: 0 | AC50: 0 | AD50: 0 | AE50: 0 | AF50: 0 | AG50: 0 | AH50: 0 | AI50: 0
C51: =C50+1 -> 3 | D51: =OFFSET(CONDITION_BAND_CODE,C51-1,0) -> F | E51: =SUM(OFFSET(F51,0,0,1,analysis_period)) -> 17538816.71 | F51: 376979.0799 | G51: 384973.5822 | H51: 425040.5631 | I51: 460582.3863 | J51: 489573.3962 | K51: 513639.9815 | L51: 533973.8354 | M51: 551300.4128 | N51: 566113.5972 | O51: 578793.0884 | P51: 589650.7332 | Q51: 598949.6525 | R51: 606914.0294 | S51: 613735.5212 | T51: 619578.173 | U51: 624582.4556 | V51: 628868.672 | W51: 632539.8593 | X51: 635684.2685 | Y51: 638377.4871 | Z51: 640684.2563 | AA51: 642660.0278 | AB51: 644352.2962 | AC51: 645801.7415 | AD51: 647043.2062 | AE51: 648106.5334 | AF51: 649017.284 | AG51: 649797.3513 | AH51: 650465.4869 | AI51: 651037.7518
C52: =C51+1 -> 4 | D52: =OFFSET(CONDITION_BAND_CODE,C52-1,0) -> P | E52: =SUM(OFFSET(F52,0,0,1,analysis_period)) -> 10810270.71 | F52: 578488.3617 | G52: 295216.7502 | H52: 246934.4323 | I52: 256745.7456 | J52: 275402.8447 | K52: 292706.5994 | L52: 307448.0904 | M52: 319937.7268 | N52: 330570.1249 | O52: 339652.5659 | P52: 347423.5541 | Q52: 354076.8316 | R52: 359774.5886 | S52: 364654.508 | T52: 368834.123 | U52: 372413.9784 | V52: 375480.1521 | W52: 378106.3583 | X52: 380355.7298 | Y52: 382282.3392 | Z52: 383932.4998 | AA52: 385345.8792 | AB52: 386556.4531 | AC52: 387593.322 | AD52: 388481.4108 | AE52: 389242.068 | AF52: 389893.5787 | AG52: 390451.6042 | AH52: 390929.5588 | AI52: 391338.9318
C53: =C52+1 -> 5 | D53: =OFFSET(CONDITION_BAND_CODE,C53-1,0) -> VP | E53: =SUM(OFFSET(F53,0,0,1,analysis_period)) -> 1636100.037 | F53: 269856.735 | G53: 138423.724 | H53: 71232.17026 | I53: 44172.30707 | J53: 35499.0642 | K53: 33911.62348 | L53: 34694.14081 | M53: 36107.6993 | N53: 37568.20538 | O53: 38901.6446 | P53: 40070.78948 | Q53: 41081.01887 | R53: 41949.18639 | S53: 42693.73069 | T53: 43331.7528 | U53: 43878.3281 | V53: 44346.50934 | W53: 44747.52255 | X53: 45090.99816 | Y53: 45385.18975 | Z53: 45637.16826 | AA53: 45852.99056 | AB53: 46037.84462 | AC53: 46196.17403 | AD53: 46331.78479 | AE53: 46447.9368 | AF53: 46547.42218 | AG53: 46632.63243 | AH53: 46705.61588 | AI53: 46768.12695
D54: Total | E54: =SUM(OFFSET(E49,0,0,current_conditionBands,1)) -> 29985187.46 | F54: 1225324.177 | G54: 818614.0563 | H54: 743207.1657 | I54: 761500.439 | J54: 800475.3051 | K54: 840258.2043 | L54: 876116.0666 | M54: 907345.839 | N54: 934251.9275 | O54: 957347.2989 | P54: 977145.0768 | Q54: 994107.5029 | R54: 1008637.804 | S54: 1021083.76 | T54: 1031744.049 | U54: 1040874.762 | V54: 1048695.333 | W54: 1055393.74 | X54: 1061130.996 | Y54: 1066045.016 | Z54: 1070253.924 | AA54: 1073858.897 | AB54: 1076946.594 | AC54: 1079591.237 | AD54: 1081856.402 | AE54: 1083796.538 | AF54: 1085458.285 | AG54: 1086881.588 | AH54: 1088100.662 | AI54: 1089144.811
D55: Cumulative | E55: =E54 -> 29985187.46 | F55: =F54 -> 1225324.177 | G55: =OFFSET(G54,1,-1)+G54 -> 2043938.233 | H55: 2787145.399 | I55: 3548645.838 | J55: 4349121.143 | K55: 5189379.347 | L55: 6065495.414 | M55: 6972841.253 | N55: 7907093.18 | O55: 8864440.479 | P55: =OFFSET(P54,1,-1)+P54 -> 9841585.556 | Q55: =OFFSET(Q54,1,-1)+Q54 -> 10835693.06 | R55: =OFFSET(R54,1,-1)+R54 -> 11844330.86 | S55: =OFFSET(S54,1,-1)+S54 -> 12865414.62 | T55: =OFFSET(T54,1,-1)+T54 -> 13897158.67 | U55: =OFFSET(U54,1,-1)+U54 -> 14938033.43 | V55: =OFFSET(V54,1,-1)+V54 -> 15986728.77 | W55: =OFFSET(W54,1,-1)+W54 -> 17042122.51 | X55: =OFFSET(X54,1,-1)+X54 -> 18103253.5 | Y55: =OFFSET(Y54,1,-1)+Y54 -> 19169298.52 | Z55: =OFFSET(Z54,1,-1)+Z54 -> 20239552.44 | AA55: =OFFSET(AA54,1,-1)+AA54 -> 21313411.34 | AB55: =OFFSET(AB54,1,-1)+AB54 -> 22390357.94 | AC55: =OFFSET(AC54,1,-1)+AC54 -> 23469949.17 | AD55: =OFFSET(AD54,1,-1)+AD54 -> 24551805.58 | AE55: =OFFSET(AE54,1,-1)+AE54 -> 25635602.11 | AF55: =OFFSET(AF54,1,-1)+AF54 -> 26721060.4 | AG55: =OFFSET(AG54,1,-1)+AG54 -> 27807941.99 | AH55: =OFFSET(AH54,1,-1)+AH54 -> 28896042.65 | AI55: =OFFSET(AI54,1,-1)+AI54 -> 29985187.46
A56: =INT((ROW()-7)/(current_conditionBands+2))+1 -> 8 | B56: =OFFSET(ASSET_GROUP_NAME,A56-1,0) -> MU | C56: 1 | D56: =OFFSET(CONDITION_BAND_CODE,C56-1,0) -> VG | E56: =SUM(OFFSET(F56,0,0,1,analysis_period)) -> 0 | F56: 0 | G56: 0 | H56: 0 | I56: 0 | J56: 0 | K56: 0 | L56: 0 | M56: 0 | N56: 0 | O56: 0 | P56: 0 | Q56: 0 | R56: 0 | S56: 0 | T56: 0 | U56: 0 | V56: 0 | W56: 0 | X56: 0 | Y56: 0 | Z56: 0 | AA56: 0 | AB56: 0 | AC56: 0 | AD56: 0 | AE56: 0 | AF56: 0 | AG56: 0 | AH56: 0 | AI56: 0
C57: =C56+1 -> 2 | D57: =OFFSET(CONDITION_BAND_CODE,C57-1,0) -> G | E57: =SUM(OFFSET(F57,0,0,1,analysis_period)) -> 0 | F57: 0 | G57: 0 | H57: 0 | I57: 0 | J57: 0 | K57: 0 | L57: 0 | M57: 0 | N57: 0 | O57: 0 | P57: 0 | Q57: 0 | R57: 0 | S57: 0 | T57: 0 | U57: 0 | V57: 0 | W57: 0 | X57: 0 | Y57: 0 | Z57: 0 | AA57: 0 | AB57: 0 | AC57: 0 | AD57: 0 | AE57: 0 | AF57: 0 | AG57: 0 | AH57: 0 | AI57: 0
C58: =C57+1 -> 3 | D58: =OFFSET(CONDITION_BAND_CODE,C58-1,0) -> F | E58: =SUM(OFFSET(F58,0,0,1,analysis_period)) -> 13562352 | F58: 539648.9824 | G58: 429640.0058 | H58: 414018.8146 | I58: 417239.0515 | J58: 422949.0157 | K58: 428191.3519 | L58: 432692.0344 | M58: 436578.0376 | N58: 439973.6049 | O58: 442963.0824 | P58: 445604.8696 | Q58: 447943.2728 | R58: 450014.567 | S58: 451849.7767 | T58: 453475.9898 | U58: 454917.0691 | V58: 456194.1119 | W58: 457325.7973 | X58: 458328.6728 | Y58: 459217.4006 | Z58: 460004.9733 | AA58: 460702.9044 | AB58: 461321.3969 | AC58: 461869.4927 | AD58: 462355.2042 | AE58: 462785.6321 | AF58: 463167.0686 | AG58: 463505.0901 | AH58: 463804.6379 | AI58: 464070.0913
C59: =C58+1 -> 4 | D59: =OFFSET(CONDITION_BAND_CODE,C59-1,0) -> P | E59: =SUM(OFFSET(F59,0,0,1,analysis_period)) -> 6223609.426 | F59: 1109379.164 | G59: 397336.4429 | H59: 210899.5806 | I59: 165909.6556 | J59: 157081.325 | K59: 156822.5563 | L59: 158287.6812 | M59: 159911.6699 | N59: 161391.7578 | O59: 162698.2992 | P59: 163849.3375 | Q59: 164865.7351 | R59: 165764.8765 | S59: 166561.0607 | T59: 167266.3936 | U59: 167891.3629 | V59: 168445.1692 | W59: 168935.9312 | X59: 169370.8312 | Y59: 169756.2298 | Z59: 170097.7619 | AA59: 170400.4207 | AB59: 170668.6308 | AC59: 170906.3133 | AD59: 171116.9427 | AE59: 171303.5983 | AF59: 171469.0088 | AG59: 171615.5922 | AH59: 171745.4915 | AI59: 171860.6057
C60: =C59+1 -> 5 | D60: =OFFSET(CONDITION_BAND_CODE,C60-1,0) -> VP | E60: =SUM(OFFSET(F60,0,0,1,analysis_period)) -> 1042241.758 | F60: 424566.3782 | G60: 195676.1157 | H60: 85348.10619 | I60: 38821.62293 | J60: 20628.15042 | K60: 13885.79387 | L60: 11514.9879 | M60: 10747.3802 | N60: 10547.63349 | O60: 10540.53151 | P60: 10593.49052 | Q60: 10660.87192 | R60: 10727.58751 | S60: 10789.09414 | T60: 10844.40853 | U60: 10893.70024 | V60: 10937.47369 | W60: 10976.29586 | X60: 11010.70971 | Y60: 11041.21008 | Z60: 11068.24008 | AA60: 11092.19392 | AB60: 11113.42146 | AC60: 11132.23293 | AD60: 11148.9033 | AE60: 11163.67625 | AF60: 11176.76774 | AG60: 11188.36916 | AH60: 11198.65011 | AI60: 11207.76088
D61: Total | E61: =SUM(OFFSET(E56,0,0,current_conditionBands,1)) -> 20828203.18 | F61: 2073594.525 | G61: 1022652.564 | H61: 710266.5014 | I61: 621970.3301 | J61: 600658.4912 | K61: 598899.702 | L61: 602494.7035 | M61: 607237.0877 | N61: 611912.9962 | O61: 616201.9131 | P61: 620047.6976 | Q61: 623469.8798 | R61: 626507.031 | S61: 629199.9315 | T61: 631586.792 | U61: 633702.1323 | V61: 635576.7547 | W61: 637238.0243 | X61: 638710.2137 | Y61: 640014.8405 | Z61: 641170.9752 | AA61: 642195.5189 | AB61: 643103.4492 | AC61: 643908.0389 | AD61: 644621.0502 | AE61: 645252.9066 | AF61: 645812.8451 | AG61: 646309.0514 | AH61: 646748.7796 | AI61: 647138.4578
